Workbook

Sheet Introduction
C4: Joint Monitoring Programme for Water Supply, Sanitation and Hygiene
C6: Estimates on household water, sanitation and hygiene by wealth quintile and sub-national region in
C7: =+Water!B5 -> Nepal
C9: Updated May 2021
C11: Follow the links below to find the following information:
C13: JMP Estimates
C14: WASH status and trends by wealth quintile (customized quintiles made without water and sanitation assets)
C15: Water
C16: Sanitation
C17: Hygiene
C19: Data inputs
C20: customized wealth quintiles and subnational data:
C21: =IF(INDIRECT(CONCATENATE("Water","!B105"))=0,"",INDIRECT(CONCATENATE("Water","!B105"))) -> DHS01
C22: =IF(INDIRECT(CONCATENATE("Water","!B106"))=0,"",INDIRECT(CONCATENATE("Water","!B106"))) -> WHS03
C23: =IF(INDIRECT(CONCATENATE("Water","!B107"))=0,"",INDIRECT(CONCATENATE("Water","!B107"))) -> DHS06
C24: =IF(INDIRECT(CONCATENATE("Water","!B108"))=0,"",INDIRECT(CONCATENATE("Water","!B108"))) -> DHS11
C25: =IF(INDIRECT(CONCATENATE("Water","!B109"))=0,"",INDIRECT(CONCATENATE("Water","!B109"))) -> MICS14
C26: =IF(INDIRECT(CONCATENATE("Water","!B110"))=0,"",INDIRECT(CONCATENATE("Water","!B110"))) -> DHS16
C27: =IF(INDIRECT(CONCATENATE("Water","!B111"))=0,"",INDIRECT(CONCATENATE("Water","!B111"))) -> MICS19
C28: =IF(INDIRECT(CONCATENATE("Water","!B112"))=0,"",INDIRECT(CONCATENATE("Water","!B112"))) -> 
C29: =IF(INDIRECT(CONCATENATE("Water","!B113"))=0,"",INDIRECT(CONCATENATE("Water","!B113"))) -> 
C30: =IF(INDIRECT(CONCATENATE("Water","!B114"))=0,"",INDIRECT(CONCATENATE("Water","!B114"))) -> 
C31: =IF(INDIRECT(CONCATENATE("Water","!B115"))=0,"",INDIRECT(CONCATENATE("Water","!B115"))) -> 
C32: =IF(INDIRECT(CONCATENATE("Water","!B116"))=0,"",INDIRECT(CONCATENATE("Water","!B116"))) -> 
L55: =+IF(ISNUMBER(M48), "", "Insufficient data to estimate safely managed sanitation services at national level") -> Insufficient data to estimate safely managed sanitation services at national level

Sheet Water
A1: BGD
B4: Summary of trends in use of drinking water by wealth quintile (%)
B5: =IF(ISERROR(INDIRECT(CONCATENATE($B105,"!A2"))),"",INDIRECT(CONCATENATE($B105,"!A2"))) -> Nepal
B7: =B118 -> National use of drinking water sources, 2000–2020 | J7: =B218 -> Urban use of drinking water sources, 2000–2020 | R7: =B318 -> Rural use of drinking water sources, 2000–2020
B31: =IF(ISERROR(INDIRECT(CONCATENATE($B105,"!A2"))),"",INDIRECT(CONCATENATE($B105,"!A2"))) -> Nepal | F31: Poorest | J31: Poor | N31: Middle | R31: Rich | V31: Richest
F32: Basic | G32: Limited | H32: Unimproved | I32: Surface water | J32: Basic | K32: Limited | L32: Unimproved | M32: Surface water | N32: Basic | O32: Limited | P32: Unimproved | Q32: Surface water | R32: Basic | S32: Limited | T32: Unimproved | U32: Surface water | V32: Basic | W32: Limited | X32: Unimproved | Y32: Surface water
B33: NATIONAL | D33: Estimate | E33: =C99 -> 2000 | F33: =E99 -> 65.85351071 | G33: =F99 -> 4.035314751 | H33: 21.73372736 | I33: 8.377447179 | J33: =J99 -> 86.75863635 | K33: =K99 -> 1.834248719 | L33: 9.092340265 | M33: 2.31477467 | N33: =O99 -> 77.95887908 | O33: =P99 -> 0.7605168143 | P33: 18.39371319 | Q33: 2.886890912 | R33: =T99 -> 87.91625016 | S33: =U99 -> 0.8544769432 | T33: 10.30531113 | U33: 0.9239617665 | V33: =Y99 -> 92.09930233 | W33: =Z99 -> 1.022853655 | X33: 5.903372074 | Y33: 0.974471943
E34: =C100 -> 2020 | F34: =E100 -> 85.72919988 | G34: 5.253240125 | H34: 4.032641328 | I34: 4.98491867 | J34: =J100 -> 93.40411731 | K34: 1.974747296 | L34: 2.201561566 | M34: 2.419573831 | N34: =O100 -> 98.72294069 | O34: 0.9630776794 | P34: 0 | Q34: 0.3139816285 | R34: =T100 -> 98.68721748 | S34: 0.9591622911 | T34: 0 | U34: 0.3536202297 | V34: =Y100 -> 98.90160011 | W34: 1.098399886 | X34: 0 | Y34: 0
B36: URBAN | D36: Estimate | E36: =C199 -> 2000 | F36: =E199 -> 86.23342018 | G36: =F199 -> 2.414191257 | H36: 9.010950691 | I36: 2.34143787 | J36: =J199 -> 90.16427556 | K36: =K199 -> 1.674635846 | L36: 7.668402933 | M36: 0.4926856582 | N36: =O199 -> 92.04257545 | O36: =P199 -> 1.595282539 | P36: 6.362142011 | Q36: 0 | R36: =T199 -> 93.6247794 | S36: =U199 -> 1.087614399 | T36: 4.996560575 | U36: 0.2910456247 | V36: =Y199 -> 94.08711885 | W36: =Z199 -> 1.147575547 | X36: 4.765305608 | Y36: 0
E37: =C200 -> 2020 | F37: =E200 -> 90.18865548 | G37: 2.524922044 | H37: 4.702146201 | I37: 2.584276273 | J37: =J200 -> 96.25288908 | K37: 1.787720661 | L37: 0.9766942541 | M37: 0.9826960009 | N37: =O200 -> 97.95958427 | O37: 1.697836176 | P37: 0 | Q37: 0.3425795495 | R37: =T200 -> 98.52133689 | S37: 1.144496417 | T37: 0.03824207671 | U37: 0.29592462 | V37: =Y200 -> 98.77281816 | W37: 1.20472677 | X37: 0 | Y37: 0.02245506746
B39: RURAL | D39: Estimate | E39: =C299 -> 2000 | F39: =E299 -> 64.62488884 | G39: =F299 -> 4.285781733 | H39: 22.34116642 | I39: 8.748163016 | J39: =J299 -> 88.26020032 | K39: =K299 -> 2.241728182 | L39: 6.607857116 | M39: 2.890214383 | N39: =O299 -> 81.84185625 | O39: =P299 -> 1.18016989 | P39: 14.60833358 | Q39: 2.369640285 | R39: =T299 -> 89.22116312 | S39: =U299 -> 0.7630406144 | T39: 8.806588404 | U39: 1.209207863 | V39: =Y299 -> 88.35695994 | W39: =Z299 -> 0.7833048853 | X39: 9.591677925 | Y39: 1.268057249
E40: =C300 -> 2020 | F40: =E300 -> 85.23168885 | G40: 5.652379783 | H40: 4.06409384 | I40: 5.051837523 | J40: =J300 -> 89.88585685 | K40: 2.283018368 | L40: 4.727450998 | M40: 3.103673782 | N40: =O300 -> 97.858102 | O40: 1.411126174 | P40: 0 | Q40: 0.7307718257 | R40: =T300 -> 98.74309643 | S40: 0.8444744535 | T40: 0 | U40: 0.4124291153 | V40: =Y300 -> 99.12126704 | W40: 0.8787329573 | X40: 0 | Y40: 0
A97: NATIONAL | D97: Poorest | I97: Poor | N97: Middle | S97: Rich | X97: Richest
D98: Improved | E98: Basic | F98: Limited | G98: Unimproved | H98: Surface water | I98: Improved | J98: Basic | K98: Limited | L98: Unimproved | M98: Surface water | N98: Improved | O98: Basic | P98: Limited | Q98: Unimproved | R98: Surface water | S98: Improved | T98: Basic | U98: Limited | V98: Unimproved | W98: Surface water | X98: Improved | Y98: Basic | Z98: Limited | AA98: Unimproved | AB98: Surface water
A99: Forecast period: | C99: 2000 | D99: =IF((D101+H101)>100,D101*100/(D101+H101),D101) -> 69.88882546 | E99: =D99*AVERAGEIF(E105:E116,">0")/100 -> 65.85351071 | F99: =D99*(100-AVERAGEIF(E105:E116,">0"))/100 -> 4.035314751 | G99: =100-(E99+F99+H99) -> 21.73372736 | H99: =IF((D101+H101)>100,H101*100/(D101+H101),H101) -> 8.377447179 | I99: =IF((I101+M101)>100,I101*100/(I101+M101),I101) -> 88.59288507 | J99: =I99*AVERAGEIF(J105:J116,">0")/100 -> 86.75863635 | K99: =I99*(100-AVERAGEIF(J105:J116,">0"))/100 -> 1.834248719 | L99: =100-(J99+K99+M99) -> 9.092340265 | M99: =IF((I101+M101)>100,M101*100/(I101+M101),M101) -> 2.31477467 | N99: =IF((N101+R101)>100,N101*100/(N101+R101),N101) -> 78.7193959 | O99: =N99*AVERAGEIF(O105:O116,">0")/100 -> 77.95887908 | P99: =N99*(100-AVERAGEIF(O105:O116,">0"))/100 -> 0.7605168143 | Q99: =100-(O99+P99+R99) -> 18.39371319 | R99: =IF((N101+R101)>100,R101*100/(N101+R101),R101) -> 2.886890912 | S99: =IF((S101+W101)>100,S101*100/(S101+W101),S101) -> 88.7707271 | T99: =S99*AVERAGEIF(T105:T116,">0")/100 -> 87.91625016 | U99: =S99*(100-AVERAGEIF(T105:T116,">0"))/100 -> 0.8544769432 | V99: =100-(T99+U99+W99) -> 10.30531113 | W99: =IF((S101+W101)>100,W101*100/(S101+W101),W101) -> 0.9239617665 | X99: =IF((X101+AB101)>100,X101*100/(X101+AB101),X101) -> 93.12215598 | Y99: =X99*AVERAGEIF(Y105:Y116,">0")/100 -> 92.09930233 | Z99: =X99*(100-AVERAGEIF(Y105:Y116,">0"))/100 -> 1.022853655 | AA99: =100-(Y99+Z99+AB99) -> 5.903372074 | AB99: =IF((X101+AB101)>100,AB101*100/(X101+AB101),AB101) -> 0.974471943
C100: 2020 | D100: =IF((D102+H102)>100,D102*100/(D102+H102),D102) -> 90.98244 | E100: =D100*AVERAGEIF(E105:E116,">0")/100 -> 85.72919988 | F100: =D100*(100-AVERAGEIF(E105:E116,">0"))/100 -> 5.253240125 | G100: =100-(E100+F100+H100) -> 4.032641328 | H100: =IF((D102+H102)>100,H102*100/(D102+H102),H102) -> 4.98491867 | I100: =IF((I102+M102)>100,I102*100/(I102+M102),I102) -> 95.3788646 | J100: =I100*AVERAGEIF(J105:J116,">0")/100 -> 93.40411731 | K100: =I100*(100-AVERAGEIF(J105:J116,">0"))/100 -> 1.974747296 | L100: =100-(J100+K100+M100) -> 2.201561566 | M100: =IF((I102+M102)>100,M102*100/(I102+M102),M102) -> 2.419573831 | N100: =IF((N102+R102)>100,N102*100/(N102+R102),N102) -> 99.68601837 | O100: =N100*AVERAGEIF(O105:O116,">0")/100 -> 98.72294069 | P100: =N100*(100-AVERAGEIF(O105:O116,">0"))/100 -> 0.9630776794 | Q100: =100-(O100+P100+R100) -> 0 | R100: =IF((N102+R102)>100,R102*100/(N102+R102),R102) -> 0.3139816285 | S100: =IF((S102+W102)>100,S102*100/(S102+W102),S102) -> 99.64637977 | T100: =S100*AVERAGEIF(T105:T116,">0")/100 -> 98.68721748 | U100: =S100*(100-AVERAGEIF(T105:T116,">0"))/100 -> 0.9591622911 | V100: =100-(T100+U100+W100) -> 0 | W100: =IF((S102+W102)>100,W102*100/(S102+W102),W102) -> 0.3536202297 | X100: =IF((X102+AB102)>100,X102*100/(X102+AB102),X102) -> 100 | Y100: =X100*AVERAGEIF(Y105:Y116,">0")/100 -> 98.90160011 | Z100: =X100*(100-AVERAGEIF(Y105:Y116,">0"))/100 -> 1.098399886 | AA100: =100-(Y100+Z100+AB100) -> 0 | AB100: =IF((X102+AB102)>100,AB102*100/(X102+AB102),AB102) -> 0
A101: Regression period: | C101: =MinRegYear(C99,C105:C116) -> 2000 | D101: =IF(MAX(C105:C116)-MIN(C105:C116)<5,AVERAGEIF(C105:C116,">0",D105:D116), IF(FORECAST($C101,D$105:D$116,$C$105:$C$116)<0,0, IF(FORECAST($C101,D$105:D$116,$C$105:$C$116)>100,100, FORECAST($C101,D$105:D$116,$C$105:$C$116)))) -> 69.88882546 | H101: =IF(MAX(C105:C116)-MIN(C105:C116)<5,AVERAGEIF(C105:C116,">0",H105:H116), IF(FORECAST($C101,H$105:H$116,$C$105:$C$116)<0,0, IF(FORECAST($C101,H$105:H$116,$C$105:$C$116)>100,100, FORECAST($C101,H$105:H$116,$C$105:$C$116)))) -> 8.377447179 | I101: =IF(MAX(C105:C116)-MIN(C105:C116)<5,AVERAGEIF(C105:C116,">0",I105:I116), IF(FORECAST($C101,I$105:I$116,$C$105:$C$116)<0,0, IF(FORECAST($C101,I$105:I$116,$C$105:$C$116)>100,100, FORECAST($C101,I$105:I$116,$C$105:$C$116)))) -> 88.59288507 | M101: =IF(MAX(C105:C116)-MIN(C105:C116)<5,AVERAGEIF(C105:C116,">0",M105:M116), IF(FORECAST($C101,M$105:M$116,$C$105:$C$116)<0,0, IF(FORECAST($C101,M$105:M$116,$C$105:$C$116)>100,100, FORECAST($C101,M$105:M$116,$C$105:$C$116)))) -> 2.31477467 | N101: =IF(MAX(C105:C116)-MIN(C105:C116)<5,AVERAGEIF(C105:C116,">0",N105:N116), IF(FORECAST($C101,N$105:N$116,$C$105:$C$116)<0,0, IF(FORECAST($C101,N$105:N$116,$C$105:$C$116)>100,100, FORECAST($C101,N$105:N$116,$C$105:$C$116)))) -> 78.7193959 | R101: =IF(MAX(C105:C116)-MIN(C105:C116)<5,AVERAGEIF(C105:C116,">0",R105:R116), IF(FORECAST($C101,R$105:R$116,$C$105:$C$116)<0,0, IF(FORECAST($C101,R$105:R$116,$C$105:$C$116)>100,100, FORECAST($C101,R$105:R$116,$C$105:$C$116)))) -> 2.886890912 | S101: =IF(MAX(C105:C116)-MIN(C105:C116)<5,AVERAGEIF(C105:C116,">0",S105:S116), IF(FORECAST($C101,S$105:S$116,$C$105:$C$116)<0,0, IF(FORECAST($C101,S$105:S$116,$C$105:$C$116)>100,100, FORECAST($C101,S$105:S$116,$C$105:$C$116)))) -> 88.7707271 | W101: =IF(MAX(C105:C116)-MIN(C105:C116)<5,AVERAGEIF(C105:C116,">0",W105:W116), IF(FORECAST($C101,W$105:W$116,$C$105:$C$116)<0,0, IF(FORECAST($C101,W$105:W$116,$C$105:$C$116)>100,100, FORECAST($C101,W$105:W$116,$C$105:$C$116)))) -> 0.9239617665 | X101: =IF(MAX(C105:C116)-MIN(C105:C116)<5,AVERAGEIF(C105:C116,">0",X105:X116), IF(FORECAST($C101,X$105:X$116,$C$105:$C$116)<0,0, IF(FORECAST($C101,X$105:X$116,$C$105:$C$116)>100,100, FORECAST($C101,X$105:X$116,$C$105:$C$116)))) -> 93.12215598 | AB101: =IF(MAX(C105:C116)-MIN(C105:C116)<5,AVERAGEIF(C105:C116,">0",AB105:AB116), IF(FORECAST($C101,AB$105:AB$116,$C$105:$C$116)<0,0, IF(FORECAST($C101,AB$105:AB$116,$C$105:$C$116)>100,100, FORECAST($C101,AB$105:AB$116,$C$105:$C$116)))) -> 0.974471943
C102: =MaxRegYear(C100,C105:C116) -> 2020 | D102: =IF(MAX(C105:C116)-MIN(C105:C116)<5,AVERAGEIF(C105:C116,">0",D105:D116), IF(FORECAST($C102,D$105:D$116,$C$105:$C$116)<0,0, IF(FORECAST($C102,D$105:D$116,$C$105:$C$116)>100,100, FORECAST($C102,D$105:D$116,$C$105:$C$116)))) -> 90.98244 | H102: =IF(MAX(C105:C116)-MIN(C105:C116)<5,AVERAGEIF(C105:C116,">0",H105:H116), IF(FORECAST($C102,H$105:H$116,$C$105:$C$116)<0,0, IF(FORECAST($C102,H$105:H$116,$C$105:$C$116)>100,100, FORECAST($C102,H$105:H$116,$C$105:$C$116)))) -> 4.98491867 | I102: =IF(MAX(C105:C116)-MIN(C105:C116)<5,AVERAGEIF(C105:C116,">0",I105:I116), IF(FORECAST($C102,I$105:I$116,$C$105:$C$116)<0,0, IF(FORECAST($C102,I$105:I$116,$C$105:$C$116)>100,100, FORECAST($C102,I$105:I$116,$C$105:$C$116)))) -> 95.3788646 | M102: =IF(MAX(C105:C116)-MIN(C105:C116)<5,AVERAGEIF(C105:C116,">0",M105:M116), IF(FORECAST($C102,M$105:M$116,$C$105:$C$116)<0,0, IF(FORECAST($C102,M$105:M$116,$C$105:$C$116)>100,100, FORECAST($C102,M$105:M$116,$C$105:$C$116)))) -> 2.419573831 | N102: =IF(MAX(C105:C116)-MIN(C105:C116)<5,AVERAGEIF(C105:C116,">0",N105:N116), IF(FORECAST($C102,N$105:N$116,$C$105:$C$116)<0,0, IF(FORECAST($C102,N$105:N$116,$C$105:$C$116)>100,100, FORECAST($C102,N$105:N$116,$C$105:$C$116)))) -> 100 | R102: =IF(MAX(C105:C116)-MIN(C105:C116)<5,AVERAGEIF(C105:C116,">0",R105:R116), IF(FORECAST($C102,R$105:R$116,$C$105:$C$116)<0,0, IF(FORECAST($C102,R$105:R$116,$C$105:$C$116)>100,100, FORECAST($C102,R$105:R$116,$C$105:$C$116)))) -> 0.3149705782 | S102: =IF(MAX(C105:C116)-MIN(C105:C116)<5,AVERAGEIF(C105:C116,">0",S105:S116), IF(FORECAST($C102,S$105:S$116,$C$105:$C$116)<0,0, IF(FORECAST($C102,S$105:S$116,$C$105:$C$116)>100,100, FORECAST($C102,S$105:S$116,$C$105:$C$116)))) -> 100 | W102: =IF(MAX(C105:C116)-MIN(C105:C116)<5,AVERAGEIF(C105:C116,">0",W105:W116), IF(FORECAST($C102,W$105:W$116,$C$105:$C$116)<0,0, IF(FORECAST($C102,W$105:W$116,$C$105:$C$116)>100,100, FORECAST($C102,W$105:W$116,$C$105:$C$116)))) -> 0.35487514 | X102: =IF(MAX(C105:C116)-MIN(C105:C116)<5,AVERAGEIF(C105:C116,">0",X105:X116), IF(FORECAST($C102,X$105:X$116,$C$105:$C$116)<0,0, IF(FORECAST($C102,X$105:X$116,$C$105:$C$116)>100,100, FORECAST($C102,X$105:X$116,$C$105:$C$116)))) -> 100 | AB102: =IF(MAX(C105:C116)-MIN(C105:C116)<5,AVERAGEIF(C105:C116,">0",AB105:AB116), IF(FORECAST($C102,AB$105:AB$116,$C$105:$C$116)<0,0, IF(FORECAST($C102,AB$105:AB$116,$C$105:$C$116)>100,100, FORECAST($C102,AB$105:AB$116,$C$105:$C$116)))) -> 0
B104: Survey | C104: Year | D104: Improved | E104: Basic | H104: Surface water | I104: Improved | J104: Basic | M104: Surface water | N104: Improved | O104: Basic | R104: Surface water | S104: Improved | T104: Basic | W104: Surface water | X104: Improved | Y104: Basic | AB104: Surface water
B105: DHS01 | C105: 2001 | D105: =IF(ISERROR(INDIRECT(CONCATENATE($B105,"!C16"))),"",INDIRECT(CONCATENATE($B105,"!C16"))) -> 69.45760946 | E105: =IF(ISERROR(INDIRECT(CONCATENATE($B105,"!C23"))),"",INDIRECT(CONCATENATE($B105,"!C23"))) -> N/A | H105: =IF(ISERROR(INDIRECT(CONCATENATE($B105,"!C21"))),"",INDIRECT(CONCATENATE($B105,"!C21"))) -> 4.037111261 | I105: =IF(ISERROR(INDIRECT(CONCATENATE($B105,"!D16"))),"",INDIRECT(CONCATENATE($B105,"!D16"))) -> 92.170086 | J105: =IF(ISERROR(INDIRECT(CONCATENATE($B105,"!D23"))),"",INDIRECT(CONCATENATE($B105,"!D23"))) -> N/A | M105: =IF(ISERROR(INDIRECT(CONCATENATE($B105,"!D21"))),"",INDIRECT(CONCATENATE($B105,"!D21"))) -> 0 | N105: =IF(ISERROR(INDIRECT(CONCATENATE($B105,"!E16"))),"",INDIRECT(CONCATENATE($B105,"!E16"))) -> 64.80570821 | O105: =IF(ISERROR(INDIRECT(CONCATENATE($B105,"!E23"))),"",INDIRECT(CONCATENATE($B105,"!E23"))) -> N/A | R105: =IF(ISERROR(INDIRECT(CONCATENATE($B105,"!E21"))),"",INDIRECT(CONCATENATE($B105,"!E21"))) -> 3.747179578 | S105: =IF(ISERROR(INDIRECT(CONCATENATE($B105,"!F16"))),"",INDIRECT(CONCATENATE($B105,"!F16"))) -> 88.59290065 | T105: =IF(ISERROR(INDIRECT(CONCATENATE($B105,"!F23"))),"",INDIRECT(CONCATENATE($B105,"!F23"))) -> N/A | W105: =IF(ISERROR(INDIRECT(CONCATENATE($B105,"!F21"))),"",INDIRECT(CONCATENATE($B105,"!F21"))) -> 0.4587355796 | X105: =IF(ISERROR(INDIRECT(CONCATENATE($B105,"!G16"))),"",INDIRECT(CONCATENATE($B105,"!G16"))) -> 89.04428739 | Y105: =IF(ISERROR(INDIRECT(CONCATENATE($B105,"!G23"))),"",INDIRECT(CONCATENATE($B105,"!G23"))) -> N/A | AB105: =IF(ISERROR(INDIRECT(CONCATENATE($B105,"!G221"))),"",INDIRECT(CONCATENATE($B105,"!G21"))) -> 1.721949767
B106: WHS03 | C106: 2003 | D106: 86.02026065 | E106: 95.63706879 | H106: 4.744588546 | I106: 91.93177271 | J106: 97.40777717 | M106: 2.037730819 | N106: 93.63479226 | O106: 97.60673779 | R106: 1.714371782 | S106: 92.15857239 | T106: 98.0325599 | W106: 1.095531733 | X106: 96.62835706 | Y106: 98.77603241 | AB106: 0.4960113081
B107: DHS06 | C107: 2006 | D107: 64.4060793 | E107: 93.35536383 | H107: 13.18855933 | I107: 84.61205074 | J107: 97.29756097 | M107: 3.350879324 | N107: 91.38849836 | O107: 98.83159688 | R107: 0.970995108 | S107: 89.44386484 | T107: 98.71955731 | W107: 0.7813938625 | X107: 97.29004978 | Y107: 97.09935898 | AB107: 0.03494296433
B108: DHS11 | C108: 2011 | D108: 77.9832368 | E108: 93.3 | H108: 12.86018165 | I108: 90.18741608 | J108: 98.9 | M108: 6.888098028 | N108: 96.1771619 | O108: 99.6 | R108: 2.575764168 | S108: 97.2071043 | T108: 99.4 | W108: 1.105085216 | X108: 99.07348519 | Y108: 99.3 | AB108: 0.3060534592
B109: MICS14 | C109: 2014 | D109: 83.14513744 | E109: 90.6 | H109: 5.720668912 | I109: 92.73199038 | J109: 97.4 | M109: 1.853867635 | N109: 96.48564443 | O109: 99.2 | R109: 1.081338605 | S109: 97.85548132 | T109: 99.1 | W109: 0.3809997187 | X109: 99.25467423 | Y109: 99.2 | AB109: 0.08261667017
B110: DHS16 | C110: 2016 | D110: 89.56750169 | E110: 96.79414941 | H110: 5.630811655 | I110: 95.0068498 | J110: 98.42392854 | M110: 2.375180931 | N110: 97.58452655 | O110: 99.78095647 | R110: 1.116865975 | S110: 98.306814 | T110: 99.78293532 | W110: 0.5203422096 | X110: 99.73596473 | Y110: 99.59921399 | AB110: 0.1241242183
B111: MICS19 | C111: 2019 | D111: =IF(ISERROR(INDIRECT(CONCATENATE($B111,"!C16"))),"",INDIRECT(CONCATENATE($B111,"!C16"))) -> 92.46960376 | E111: =IF(ISERROR(INDIRECT(CONCATENATE($B111,"!C23"))),"",INDIRECT(CONCATENATE($B111,"!C23"))) -> 95.66998486 | H111: =IF(ISERROR(INDIRECT(CONCATENATE($B111,"!C21"))),"",INDIRECT(CONCATENATE($B111,"!C21"))) -> 0.5863591259 | I111: =IF(ISERROR(INDIRECT(CONCATENATE($B111,"!D16"))),"",INDIRECT(CONCATENATE($B111,"!D16"))) -> 97.26095813 | J111: =IF(ISERROR(INDIRECT(CONCATENATE($B111,"!D23"))),"",INDIRECT(CONCATENATE($B111,"!D23"))) -> 98.14818684 | M111: =IF(ISERROR(INDIRECT(CONCATENATE($B111,"!D21"))),"",INDIRECT(CONCATENATE($B111,"!D21"))) -> 0.0644630157 | N111: =IF(ISERROR(INDIRECT(CONCATENATE($B111,"!E16"))),"",INDIRECT(CONCATENATE($B111,"!E16"))) -> 98.5568512 | O111: =IF(ISERROR(INDIRECT(CONCATENATE($B111,"!E23"))),"",INDIRECT(CONCATENATE($B111,"!E23"))) -> 99.18404232 | R111: =IF(ISERROR(INDIRECT(CONCATENATE($B111,"!E21"))),"",INDIRECT(CONCATENATE($B111,"!E21"))) -> 0 | S111: =IF(ISERROR(INDIRECT(CONCATENATE($B111,"!F16"))),"",INDIRECT(CONCATENATE($B111,"!F16"))) -> 98.08604992 | T111: =IF(ISERROR(INDIRECT(CONCATENATE($B111,"!F23"))),"",INDIRECT(CONCATENATE($B111,"!F23"))) -> 99.18955075 | W111: =IF(ISERROR(INDIRECT(CONCATENATE($B111,"!F21"))),"",INDIRECT(CONCATENATE($B111,"!F21"))) -> 0.1338408533 | X111: =IF(ISERROR(INDIRECT(CONCATENATE($B111,"!G16"))),"",INDIRECT(CONCATENATE($B111,"!G16"))) -> 97.82724411 | Y111: =IF(ISERROR(INDIRECT(CONCATENATE($B111,"!G23"))),"",INDIRECT(CONCATENATE($B111,"!G23"))) -> 99.43499531 | AB111: =IF(ISERROR(INDIRECT(CONCATENATE($B111,"!G221"))),"",INDIRECT(CONCATENATE($B111,"!G21"))) -> 0.3011425228
D112: =IF(ISERROR(INDIRECT(CONCATENATE($B112,"!C16"))),"",INDIRECT(CONCATENATE($B112,"!C16"))) ->  | E112: =IF(ISERROR(INDIRECT(CONCATENATE($B112,"!C23"))),"",INDIRECT(CONCATENATE($B112,"!C23"))) ->  | H112: =IF(ISERROR(INDIRECT(CONCATENATE($B112,"!C21"))),"",INDIRECT(CONCATENATE($B112,"!C21"))) ->  | I112: =IF(ISERROR(INDIRECT(CONCATENATE($B112,"!D16"))),"",INDIRECT(CONCATENATE($B112,"!D16"))) ->  | J112: =IF(ISERROR(INDIRECT(CONCATENATE($B112,"!D23"))),"",INDIRECT(CONCATENATE($B112,"!D23"))) ->  | M112: =IF(ISERROR(INDIRECT(CONCATENATE($B112,"!D21"))),"",INDIRECT(CONCATENATE($B112,"!D21"))) ->  | N112: =IF(ISERROR(INDIRECT(CONCATENATE($B112,"!E16"))),"",INDIRECT(CONCATENATE($B112,"!E16"))) ->  | O112: =IF(ISERROR(INDIRECT(CONCATENATE($B112,"!E23"))),"",INDIRECT(CONCATENATE($B112,"!E23"))) ->  | R112: =IF(ISERROR(INDIRECT(CONCATENATE($B112,"!E21"))),"",INDIRECT(CONCATENATE($B112,"!E21"))) ->  | S112: =IF(ISERROR(INDIRECT(CONCATENATE($B112,"!F16"))),"",INDIRECT(CONCATENATE($B112,"!F16"))) ->  | T112: =IF(ISERROR(INDIRECT(CONCATENATE($B112,"!F23"))),"",INDIRECT(CONCATENATE($B112,"!F23"))) ->  | W112: =IF(ISERROR(INDIRECT(CONCATENATE($B112,"!F21"))),"",INDIRECT(CONCATENATE($B112,"!F21"))) ->  | X112: =IF(ISERROR(INDIRECT(CONCATENATE($B112,"!G16"))),"",INDIRECT(CONCATENATE($B112,"!G16"))) ->  | Y112: =IF(ISERROR(INDIRECT(CONCATENATE($B112,"!G23"))),"",INDIRECT(CONCATENATE($B112,"!G23"))) ->  | AB112: =IF(ISERROR(INDIRECT(CONCATENATE($B112,"!G221"))),"",INDIRECT(CONCATENATE($B112,"!G21"))) -> 
B118: =CONCATENATE("National use of drinking water sources, ",C99,"–",C100) -> National use of drinking water sources, 2000–2020 | S118: Data points used for regression
E153: =IF(ISERROR(INDIRECT(CONCATENATE($B153,"!M18"))),"",INDIRECT(CONCATENATE($B153,"!M18"))) ->  | F153: =IF(ISERROR(INDIRECT(CONCATENATE($B153,"!M19"))),"",INDIRECT(CONCATENATE($B153,"!M19"))) ->  | G153: =IF(ISERROR(INDIRECT(CONCATENATE($B153,"!M20"))),"",INDIRECT(CONCATENATE($B153,"!M20"))) ->  | H153: =IF(ISERROR(INDIRECT(CONCATENATE($B153,"!M21"))),"",INDIRECT(CONCATENATE($B153,"!M21"))) ->  | J153: =IF(ISERROR(INDIRECT(CONCATENATE($B153,"!N18"))),"",INDIRECT(CONCATENATE($B153,"!N18"))) ->  | K153: =IF(ISERROR(INDIRECT(CONCATENATE($B153,"!N19"))),"",INDIRECT(CONCATENATE($B153,"!N19"))) ->  | L153: =IF(ISERROR(INDIRECT(CONCATENATE($B153,"!N20"))),"",INDIRECT(CONCATENATE($B153,"!N20"))) ->  | M153: =IF(ISERROR(INDIRECT(CONCATENATE($B153,"!N21"))),"",INDIRECT(CONCATENATE($B153,"!N21"))) ->  | O153: =IF(ISERROR(INDIRECT(CONCATENATE($B153,"!O18"))),"",INDIRECT(CONCATENATE($B153,"!O18"))) ->  | P153: =IF(ISERROR(INDIRECT(CONCATENATE($B153,"!O19"))),"",INDIRECT(CONCATENATE($B153,"!O19"))) ->  | Q153: =IF(ISERROR(INDIRECT(CONCATENATE($B153,"!O20"))),"",INDIRECT(CONCATENATE($B153,"!O20"))) ->  | R153: =IF(ISERROR(INDIRECT(CONCATENATE($B153,"!O21"))),"",INDIRECT(CONCATENATE($B153,"!O21"))) ->  | T153: =IF(ISERROR(INDIRECT(CONCATENATE($B153,"!P18"))),"",INDIRECT(CONCATENATE($B153,"!P18"))) ->  | U153: =IF(ISERROR(INDIRECT(CONCATENATE($B153,"!P19"))),"",INDIRECT(CONCATENATE($B153,"!P19"))) ->  | V153: =IF(ISERROR(INDIRECT(CONCATENATE($B153,"!P20"))),"",INDIRECT(CONCATENATE($B153,"!P20"))) ->  | W153: =IF(ISERROR(INDIRECT(CONCATENATE($B153,"!P21"))),"",INDIRECT(CONCATENATE($B153,"!P21"))) ->  | Y153: =IF(ISERROR(INDIRECT(CONCATENATE($B153,"!Q18"))),"",INDIRECT(CONCATENATE($B153,"!Q18"))) ->  | Z153: =IF(ISERROR(INDIRECT(CONCATENATE($B153,"!Q19"))),"",INDIRECT(CONCATENATE($B153,"!Q19"))) ->  | AA153: =IF(ISERROR(INDIRECT(CONCATENATE($B153,"!Q20"))),"",INDIRECT(CONCATENATE($B153,"!Q20"))) ->  | AB153: =IF(ISERROR(INDIRECT(CONCATENATE($B153,"!Q21"))),"",INDIRECT(CONCATENATE($B153,"!Q1"))) -> 
A197: URBAN | D197: Poorest | I197: Poor | N197: Middle | S197: Rich | X197: Richest
D198: Improved | E198: Basic | F198: Limited | G198: Unimproved | H198: Surface water | I198: Improved | J198: Basic | K198: Limited | L198: Unimproved | M198: Surface water | N198: Improved | O198: Basic | P198: Limited | Q198: Unimproved | R198: Surface water | S198: Improved | T198: Basic | U198: Limited | V198: Unimproved | W198: Surface water | X198: Improved | Y198: Basic | Z198: Limited | AA198: Unimproved | AB198: Surface water
A199: Forecast period: | C199: 2000 | D199: =IF((D201+H201)>100,D201*100/(D201+H201),D201) -> 88.64761144 | E199: =D199*AVERAGEIF(E205:E216,">0")/100 -> 86.23342018 | F199: =D199*(100-AVERAGEIF(E205:E216,">0"))/100 -> 2.414191257 | G199: =100-(E199+F199+H199) -> 9.010950691 | H199: =IF((D201+H201)>100,H201*100/(D201+H201),H201) -> 2.34143787 | I199: =IF((I201+M201)>100,I201*100/(I201+M201),I201) -> 91.83891141 | J199: =I199*AVERAGEIF(J205:J216,">0")/100 -> 90.16427556 | K199: =I199*(100-AVERAGEIF(J205:J216,">0"))/100 -> 1.674635846 | L199: =100-(J199+K199+M199) -> 7.668402933 | M199: =IF((I201+M201)>100,M201*100/(I201+M201),M201) -> 0.4926856582 | N199: =IF((N201+R201)>100,N201*100/(N201+R201),N201) -> 93.63785799 | O199: =N199*AVERAGEIF(O205:O216,">0")/100 -> 92.04257545 | P199: =N199*(100-AVERAGEIF(O205:O216,">0"))/100 -> 1.595282539 | Q199: =100-(O199+P199+R199) -> 6.362142011 | R199: =IF((N201+R201)>100,R201*100/(N201+R201),R201) -> 0 | S199: =IF((S201+W201)>100,S201*100/(S201+W201),S201) -> 94.7123938 | T199: =S199*AVERAGEIF(T205:T216,">0")/100 -> 93.6247794 | U199: =S199*(100-AVERAGEIF(T205:T216,">0"))/100 -> 1.087614399 | V199: =100-(T199+U199+W199) -> 4.996560575 | W199: =IF((S201+W201)>100,W201*100/(S201+W201),W201) -> 0.2910456247 | X199: =IF((X201+AB201)>100,X201*100/(X201+AB201),X201) -> 95.23469439 | Y199: =X199*AVERAGEIF(Y205:Y216,">0")/100 -> 94.08711885 | Z199: =X199*(100-AVERAGEIF(Y205:Y216,">0"))/100 -> 1.147575547 | AA199: =100-(Y199+Z199+AB199) -> 4.765305608 | AB199: =IF((X201+AB201)>100,AB201*100/(X201+AB201),AB201) -> 0
C200: 2020 | D200: =IF((D202+H202)>100,D202*100/(D202+H202),D202) -> 92.71357753 | E200: =D200*AVERAGEIF(E205:E216,">0")/100 -> 90.18865548 | F200: =D200*(100-AVERAGEIF(E205:E216,">0"))/100 -> 2.524922044 | G200: =100-(E200+F200+H200) -> 4.702146201 | H200: =IF((D202+H202)>100,H202*100/(D202+H202),H202) -> 2.584276273 | I200: =IF((I202+M202)>100,I202*100/(I202+M202),I202) -> 98.04060975 | J200: =I200*AVERAGEIF(J205:J216,">0")/100 -> 96.25288908 | K200: =I200*(100-AVERAGEIF(J205:J216,">0"))/100 -> 1.787720661 | L200: =100-(J200+K200+M200) -> 0.9766942541 | M200: =IF((I202+M202)>100,M202*100/(I202+M202),M202) -> 0.9826960009 | N200: =IF((N202+R202)>100,N202*100/(N202+R202),N202) -> 99.65742045 | O200: =N200*AVERAGEIF(O205:O216,">0")/100 -> 97.95958427 | P200: =N200*(100-AVERAGEIF(O205:O216,">0"))/100 -> 1.697836176 | Q200: =100-(O200+P200+R200) -> 0 | R200: =IF((N202+R202)>100,R202*100/(N202+R202),R202) -> 0.3425795495 | S200: =IF((S202+W202)>100,S202*100/(S202+W202),S202) -> 99.6658333 | T200: =S200*AVERAGEIF(T205:T216,">0")/100 -> 98.52133689 | U200: =S200*(100-AVERAGEIF(T205:T216,">0"))/100 -> 1.144496417 | V200: =100-(T200+U200+W200) -> 0.03824207671 | W200: =IF((S202+W202)>100,W202*100/(S202+W202),W202) -> 0.29592462 | X200: =IF((X202+AB202)>100,X202*100/(X202+AB202),X202) -> 99.97754493 | Y200: =X200*AVERAGEIF(Y205:Y216,">0")/100 -> 98.77281816 | Z200: =X200*(100-AVERAGEIF(Y205:Y216,">0"))/100 -> 1.20472677 | AA200: =100-(Y200+Z200+AB200) -> 0 | AB200: =IF((X202+AB202)>100,AB202*100/(X202+AB202),AB202) -> 0.02245506746
A201: Regression period: | C201: =MinRegYear(C199,C205:C216) -> 2000 | D201: =IF(MAX(C205:C216)-MIN(C205:C216)<5,AVERAGEIF(C205:C216,">0",D205:D216), IF(FORECAST($C201,D$205:D$216,$C$205:$C$216)<0,0, IF(FORECAST($C201,D$205:D$216,$C$205:$C$216)>100,100, FORECAST($C201,D$205:D$216,$C$205:$C$216)))) -> 88.64761144 | H201: =IF(MAX(C205:C216)-MIN(C205:C216)<5,AVERAGEIF(C205:C216,">0",H205:H216), IF(FORECAST($C201,H$205:H$216,$C$205:$C$216)<0,0, IF(FORECAST($C201,H$205:H$216,$C$205:$C$216)>100,100, FORECAST($C201,H$205:H$216,$C$205:$C$216)))) -> 2.34143787 | I201: =IF(MAX(C205:C216)-MIN(C205:C216)<5,AVERAGEIF(C205:C216,">0",I205:I216), IF(FORECAST($C201,I$205:I$216,$C$205:$C$216)<0,0, IF(FORECAST($C201,I$205:I$216,$C$205:$C$216)>100,100, FORECAST($C201,I$205:I$216,$C$205:$C$216)))) -> 91.83891141 | M201: =IF(MAX(C205:C216)-MIN(C205:C216)<5,AVERAGEIF(C205:C216,">0",M205:M216), IF(FORECAST($C201,M$205:M$216,$C$205:$C$216)<0,0, IF(FORECAST($C201,M$205:M$216,$C$205:$C$216)>100,100, FORECAST($C201,M$205:M$216,$C$205:$C$216)))) -> 0.4926856582 | N201: =IF(MAX(C205:C216)-MIN(C205:C216)<5,AVERAGEIF(C205:C216,">0",N205:N216), IF(FORECAST($C201,N$205:N$216,$C$205:$C$216)<0,0, IF(FORECAST($C201,N$205:N$216,$C$205:$C$216)>100,100, FORECAST($C201,N$205:N$216,$C$205:$C$216)))) -> 93.63785799 | R201: =IF(MAX(C205:C216)-MIN(C205:C216)<5,AVERAGEIF(C205:C216,">0",R205:R216), IF(FORECAST($C201,R$205:R$216,$C$205:$C$216)<0,0, IF(FORECAST($C201,R$205:R$216,$C$205:$C$216)>100,100, FORECAST($C201,R$205:R$216,$C$205:$C$216)))) -> 0 | S201: =IF(MAX(C205:C216)-MIN(C205:C216)<5,AVERAGEIF(C205:C216,">0",S205:S216), IF(FORECAST($C201,S$205:S$216,$C$205:$C$216)<0,0, IF(FORECAST($C201,S$205:S$216,$C$205:$C$216)>100,100, FORECAST($C201,S$205:S$216,$C$205:$C$216)))) -> 94.7123938 | W201: =IF(MAX(C205:C216)-MIN(C205:C216)<5,AVERAGEIF(C205:C216,">0",W205:W216), IF(FORECAST($C201,W$205:W$216,$C$205:$C$216)<0,0, IF(FORECAST($C201,W$205:W$216,$C$205:$C$216)>100,100, FORECAST($C201,W$205:W$216,$C$205:$C$216)))) -> 0.2910456247 | X201: =IF(MAX(C205:C216)-MIN(C205:C216)<5,AVERAGEIF(C205:C216,">0",X205:X216), IF(FORECAST($C201,X$205:X$216,$C$205:$C$216)<0,0, IF(FORECAST($C201,X$205:X$216,$C$205:$C$216)>100,100, FORECAST($C201,X$205:X$216,$C$205:$C$216)))) -> 95.23469439 | AB201: =IF(MAX(C205:C216)-MIN(C205:C216)<5,AVERAGEIF(C205:C216,">0",AB205:AB216), IF(FORECAST($C201,AB$205:AB$216,$C$205:$C$216)<0,0, IF(FORECAST($C201,AB$205:AB$216,$C$205:$C$216)>100,100, FORECAST($C201,AB$205:AB$216,$C$205:$C$216)))) -> 0
C202: =MaxRegYear(C200,C205:C216) -> 2020 | D202: =IF(MAX(C205:C216)-MIN(C205:C216)<5,AVERAGEIF(C205:C216,">0",D205:D216), IF(FORECAST($C202,D$205:D$216,$C$205:$C$216)<0,0, IF(FORECAST($C202,D$205:D$216,$C$205:$C$216)>100,100, FORECAST($C202,D$205:D$216,$C$205:$C$216)))) -> 92.71357753 | H202: =IF(MAX(C205:C216)-MIN(C205:C216)<5,AVERAGEIF(C205:C216,">0",H205:H216), IF(FORECAST($C202,H$205:H$216,$C$205:$C$216)<0,0, IF(FORECAST($C202,H$205:H$216,$C$205:$C$216)>100,100, FORECAST($C202,H$205:H$216,$C$205:$C$216)))) -> 2.584276273 | I202: =IF(MAX(C205:C216)-MIN(C205:C216)<5,AVERAGEIF(C205:C216,">0",I205:I216), IF(FORECAST($C202,I$205:I$216,$C$205:$C$216)<0,0, IF(FORECAST($C202,I$205:I$216,$C$205:$C$216)>100,100, FORECAST($C202,I$205:I$216,$C$205:$C$216)))) -> 98.04060975 | M202: =IF(MAX(C205:C216)-MIN(C205:C216)<5,AVERAGEIF(C205:C216,">0",M205:M216), IF(FORECAST($C202,M$205:M$216,$C$205:$C$216)<0,0, IF(FORECAST($C202,M$205:M$216,$C$205:$C$216)>100,100, FORECAST($C202,M$205:M$216,$C$205:$C$216)))) -> 0.9826960009 | N202: =IF(MAX(C205:C216)-MIN(C205:C216)<5,AVERAGEIF(C205:C216,">0",N205:N216), IF(FORECAST($C202,N$205:N$216,$C$205:$C$216)<0,0, IF(FORECAST($C202,N$205:N$216,$C$205:$C$216)>100,100, FORECAST($C202,N$205:N$216,$C$205:$C$216)))) -> 100 | R202: =IF(MAX(C205:C216)-MIN(C205:C216)<5,AVERAGEIF(C205:C216,">0",R205:R216), IF(FORECAST($C202,R$205:R$216,$C$205:$C$216)<0,0, IF(FORECAST($C202,R$205:R$216,$C$205:$C$216)>100,100, FORECAST($C202,R$205:R$216,$C$205:$C$216)))) -> 0.3437571913 | S202: =IF(MAX(C205:C216)-MIN(C205:C216)<5,AVERAGEIF(C205:C216,">0",S205:S216), IF(FORECAST($C202,S$205:S$216,$C$205:$C$216)<0,0, IF(FORECAST($C202,S$205:S$216,$C$205:$C$216)>100,100, FORECAST($C202,S$205:S$216,$C$205:$C$216)))) -> 99.6658333 | W202: =IF(MAX(C205:C216)-MIN(C205:C216)<5,AVERAGEIF(C205:C216,">0",W205:W216), IF(FORECAST($C202,W$205:W$216,$C$205:$C$216)<0,0, IF(FORECAST($C202,W$205:W$216,$C$205:$C$216)>100,100, FORECAST($C202,W$205:W$216,$C$205:$C$216)))) -> 0.29592462 | X202: =IF(MAX(C205:C216)-MIN(C205:C216)<5,AVERAGEIF(C205:C216,">0",X205:X216), IF(FORECAST($C202,X$205:X$216,$C$205:$C$216)<0,0, IF(FORECAST($C202,X$205:X$216,$C$205:$C$216)>100,100, FORECAST($C202,X$205:X$216,$C$205:$C$216)))) -> 100 | AB202: =IF(MAX(C205:C216)-MIN(C205:C216)<5,AVERAGEIF(C205:C216,">0",AB205:AB216), IF(FORECAST($C202,AB$205:AB$216,$C$205:$C$216)<0,0, IF(FORECAST($C202,AB$205:AB$216,$C$205:$C$216)>100,100, FORECAST($C202,AB$205:AB$216,$C$205:$C$216)))) -> 0.0224601109
B204: Survey | C204: Year | D204: Improved | E204: Basic | H204: Surface water | I204: Improved | J204: Basic | M204: Surface water | N204: Improved | O204: Basic | R204: Surface water | S204: Improved | T204: Basic | W204: Surface water | X204: Improved | Y204: Basic | AB204: Surface water
B205: DHS01 | C205: 2001 | D205: =IF(ISERROR(INDIRECT(CONCATENATE($B205,"!H16"))),"",INDIRECT(CONCATENATE($B205,"!H16"))) -> 85.16914014 | E205: =IF(ISERROR(INDIRECT(CONCATENATE($B205,"!H23"))),"",INDIRECT(CONCATENATE($B205,"!H23"))) -> N/A | H205: =IF(ISERROR(INDIRECT(CONCATENATE($B205,"!H21"))),"",INDIRECT(CONCATENATE($B205,"!H21"))) -> 2.763933116 | I205: =IF(ISERROR(INDIRECT(CONCATENATE($B205,"!I16"))),"",INDIRECT(CONCATENATE($B205,"!I16"))) -> 87.42939045 | J205: =IF(ISERROR(INDIRECT(CONCATENATE($B205,"!I23"))),"",INDIRECT(CONCATENATE($B205,"!I23"))) -> N/A | M205: =IF(ISERROR(INDIRECT(CONCATENATE($B205,"!I21"))),"",INDIRECT(CONCATENATE($B205,"!I21"))) -> 0.4966128997 | N205: =IF(ISERROR(INDIRECT(CONCATENATE($B205,"!J16"))),"",INDIRECT(CONCATENATE($B205,"!J16"))) -> 90.22766674 | O205: =IF(ISERROR(INDIRECT(CONCATENATE($B205,"!J23"))),"",INDIRECT(CONCATENATE($B205,"!J23"))) -> N/A | R205: =IF(ISERROR(INDIRECT(CONCATENATE($B205,"!J21"))),"",INDIRECT(CONCATENATE($B205,"!J21"))) -> 0 | S205: =IF(ISERROR(INDIRECT(CONCATENATE($B205,"!K16"))),"",INDIRECT(CONCATENATE($B205,"!K16"))) -> 92.40404327 | T205: =IF(ISERROR(INDIRECT(CONCATENATE($B205,"!K23"))),"",INDIRECT(CONCATENATE($B205,"!K23"))) -> N/A | W205: =IF(ISERROR(INDIRECT(CONCATENATE($B205,"!K21"))),"",INDIRECT(CONCATENATE($B205,"!K21"))) -> 0 | X205: =IF(ISERROR(INDIRECT(CONCATENATE($B205,"!L16"))),"",INDIRECT(CONCATENATE($B205,"!L16"))) -> 89.37711409 | Y205: =IF(ISERROR(INDIRECT(CONCATENATE($B205,"!L23"))),"",INDIRECT(CONCATENATE($B205,"!L23"))) -> N/A | AB205: =IF(ISERROR(INDIRECT(CONCATENATE($B205,"!L221"))),"",INDIRECT(CONCATENATE($B205,"!L21"))) -> 0
B206: WHS03 | C206: 2003 | D206: 96.3331943 | E206: 98.07100129 | H206: 0.7240623928 | I206: 96.10568323 | J206: 98.0379622 | M206: 0.3563097985 | N206: 95.2091311 | O206: 98.52872252 | R206: 0 | S206: 96.73767342 | T206: 100 | W206: 1.05332534 | X206: 99.58973981 | Y206: 98.3472512 | AB206: 0
B207: DHS06 | C207: 2006 | D207: 86.42464861 | E207: 98.39509759 | H207: 3.427554615 | I207: 96.21312913 | J207: 97.43535053 | M207: 0.4824435161 | N207: 98.90714088 | O207: 95.49100684 | R207: 0 | S207: 96.97771636 | T207: 95.50232339 | W207: 0 | X207: 100 | Y207: 95.86438753 | AB207: 0
B208: DHS11 | C208: 2011 | D208: 89.21617539 | E208: 98.2 | H208: 2.605640644 | I208: 94.72466535 | J208: 96.9 | M208: 1.443442801 | N208: 99.22952368 | O208: 98.4 | R208: 0 | S208: 98.18679797 | T208: 99.2 | W208: 0.06471527187 | X208: 100 | Y208: 99.6 | AB208: 0
B209: MICS14 | C209: 2014 | D209: 95.47948332 | E209: 96.4 | H209: 1.198327797 | I209: 98.36565377 | J209: 98.3 | M209: 0 | N209: 99.39173764 | O209: 98.7 | R209: 0 | S209: 99.92087131 | T209: 99.3 | W209: 0 | X209: 99.24943553 | Y209: 100 | AB209: 0
B210: DHS16 | C210: 2016 | D210: 88.97701474 | E210: 96.23202055 | H210: 6.343163118 | I210: 94.18830318 | J210: 99.26126327 | M210: 2.385026791 | N210: 97.39273137 | O210: 99.92315091 | R210: 0.9625201358 | S210: 98.89379807 | T210: 99.47124471 | W210: 0.3501097215 | X210: 99.90803643 | Y210: 99.6549147 | AB210: 0.06288831051
B211: MICS19 | C211: 2019 | D211: 93.16450488 | E211: 96.36173637 | H211: 0.1773178162 | I211: 97.55149893 | J211: 99.12472912 | M211: 0 | N211: 98.51206426 | O211: 98.73508406 | R211: 0 | S211: 97.20289446 | T211: 99.6364293 | W211: 0.5862455235 | X211: 98.20042105 | Y211: 99.30346246 | AB211: 0
B218: =CONCATENATE("Urban use of drinking water sources, ",C199,"–",C200) -> Urban use of drinking water sources, 2000–2020 | S218: Data points used for regression
E253: =IF(ISERROR(INDIRECT(CONCATENATE($B253,"!M18"))),"",INDIRECT(CONCATENATE($B253,"!M18"))) ->  | F253: =IF(ISERROR(INDIRECT(CONCATENATE($B253,"!M19"))),"",INDIRECT(CONCATENATE($B253,"!M19"))) ->  | G253: =IF(ISERROR(INDIRECT(CONCATENATE($B253,"!M20"))),"",INDIRECT(CONCATENATE($B253,"!M20"))) ->  | H253: =IF(ISERROR(INDIRECT(CONCATENATE($B253,"!M21"))),"",INDIRECT(CONCATENATE($B253,"!M21"))) ->  | J253: =IF(ISERROR(INDIRECT(CONCATENATE($B253,"!N18"))),"",INDIRECT(CONCATENATE($B253,"!N18"))) ->  | K253: =IF(ISERROR(INDIRECT(CONCATENATE($B253,"!N19"))),"",INDIRECT(CONCATENATE($B253,"!N19"))) ->  | L253: =IF(ISERROR(INDIRECT(CONCATENATE($B253,"!N20"))),"",INDIRECT(CONCATENATE($B253,"!N20"))) ->  | M253: =IF(ISERROR(INDIRECT(CONCATENATE($B253,"!N21"))),"",INDIRECT(CONCATENATE($B253,"!N21"))) ->  | O253: =IF(ISERROR(INDIRECT(CONCATENATE($B253,"!O18"))),"",INDIRECT(CONCATENATE($B253,"!O18"))) ->  | P253: =IF(ISERROR(INDIRECT(CONCATENATE($B253,"!O19"))),"",INDIRECT(CONCATENATE($B253,"!O19"))) ->  | Q253: =IF(ISERROR(INDIRECT(CONCATENATE($B253,"!O20"))),"",INDIRECT(CONCATENATE($B253,"!O20"))) ->  | R253: =IF(ISERROR(INDIRECT(CONCATENATE($B253,"!O21"))),"",INDIRECT(CONCATENATE($B253,"!O21"))) ->  | T253: =IF(ISERROR(INDIRECT(CONCATENATE($B253,"!P18"))),"",INDIRECT(CONCATENATE($B253,"!P18"))) ->  | U253: =IF(ISERROR(INDIRECT(CONCATENATE($B253,"!P19"))),"",INDIRECT(CONCATENATE($B253,"!P19"))) ->  | V253: =IF(ISERROR(INDIRECT(CONCATENATE($B253,"!P20"))),"",INDIRECT(CONCATENATE($B253,"!P20"))) ->  | W253: =IF(ISERROR(INDIRECT(CONCATENATE($B253,"!P21"))),"",INDIRECT(CONCATENATE($B253,"!P21"))) ->  | Y253: =IF(ISERROR(INDIRECT(CONCATENATE($B253,"!Q18"))),"",INDIRECT(CONCATENATE($B253,"!Q18"))) ->  | Z253: =IF(ISERROR(INDIRECT(CONCATENATE($B253,"!Q19"))),"",INDIRECT(CONCATENATE($B253,"!Q19"))) ->  | AA253: =IF(ISERROR(INDIRECT(CONCATENATE($B253,"!Q20"))),"",INDIRECT(CONCATENATE($B253,"!Q20"))) ->  | AB253: =IF(ISERROR(INDIRECT(CONCATENATE($B253,"!Q21"))),"",INDIRECT(CONCATENATE($B253,"!Q1"))) -> 
E254: =IF(ISERROR(INDIRECT(CONCATENATE($B254,"!M18"))),"",INDIRECT(CONCATENATE($B254,"!M18"))) ->  | F254: =IF(ISERROR(INDIRECT(CONCATENATE($B254,"!M19"))),"",INDIRECT(CONCATENATE($B254,"!M19"))) ->  | G254: =IF(ISERROR(INDIRECT(CONCATENATE($B254,"!M20"))),"",INDIRECT(CONCATENATE($B254,"!M20"))) ->  | H254: =IF(ISERROR(INDIRECT(CONCATENATE($B254,"!M21"))),"",INDIRECT(CONCATENATE($B254,"!M21"))) ->  | J254: =IF(ISERROR(INDIRECT(CONCATENATE($B254,"!N18"))),"",INDIRECT(CONCATENATE($B254,"!N18"))) ->  | K254: =IF(ISERROR(INDIRECT(CONCATENATE($B254,"!N19"))),"",INDIRECT(CONCATENATE($B254,"!N19"))) ->  | L254: =IF(ISERROR(INDIRECT(CONCATENATE($B254,"!N20"))),"",INDIRECT(CONCATENATE($B254,"!N20"))) ->  | M254: =IF(ISERROR(INDIRECT(CONCATENATE($B254,"!N21"))),"",INDIRECT(CONCATENATE($B254,"!N21"))) ->  | O254: =IF(ISERROR(INDIRECT(CONCATENATE($B254,"!O18"))),"",INDIRECT(CONCATENATE($B254,"!O18"))) ->  | P254: =IF(ISERROR(INDIRECT(CONCATENATE($B254,"!O19"))),"",INDIRECT(CONCATENATE($B254,"!O19"))) ->  | Q254: =IF(ISERROR(INDIRECT(CONCATENATE($B254,"!O20"))),"",INDIRECT(CONCATENATE($B254,"!O20"))) ->  | R254: =IF(ISERROR(INDIRECT(CONCATENATE($B254,"!O21"))),"",INDIRECT(CONCATENATE($B254,"!O21"))) ->  | T254: =IF(ISERROR(INDIRECT(CONCATENATE($B254,"!P18"))),"",INDIRECT(CONCATENATE($B254,"!P18"))) ->  | U254: =IF(ISERROR(INDIRECT(CONCATENATE($B254,"!P19"))),"",INDIRECT(CONCATENATE($B254,"!P19"))) ->  | V254: =IF(ISERROR(INDIRECT(CONCATENATE($B254,"!P20"))),"",INDIRECT(CONCATENATE($B254,"!P20"))) ->  | W254: =IF(ISERROR(INDIRECT(CONCATENATE($B254,"!P21"))),"",INDIRECT(CONCATENATE($B254,"!P21"))) ->  | Y254: =IF(ISERROR(INDIRECT(CONCATENATE($B254,"!Q18"))),"",INDIRECT(CONCATENATE($B254,"!Q18"))) ->  | Z254: =IF(ISERROR(INDIRECT(CONCATENATE($B254,"!Q19"))),"",INDIRECT(CONCATENATE($B254,"!Q19"))) ->  | AA254: =IF(ISERROR(INDIRECT(CONCATENATE($B254,"!Q20"))),"",INDIRECT(CONCATENATE($B254,"!Q20"))) ->  | AB254: =IF(ISERROR(INDIRECT(CONCATENATE($B254,"!Q21"))),"",INDIRECT(CONCATENATE($B254,"!Q1"))) -> 
E255: =IF(ISERROR(INDIRECT(CONCATENATE($B255,"!M18"))),"",INDIRECT(CONCATENATE($B255,"!M18"))) ->  | F255: =IF(ISERROR(INDIRECT(CONCATENATE($B255,"!M19"))),"",INDIRECT(CONCATENATE($B255,"!M19"))) ->  | G255: =IF(ISERROR(INDIRECT(CONCATENATE($B255,"!M20"))),"",INDIRECT(CONCATENATE($B255,"!M20"))) ->  | H255: =IF(ISERROR(INDIRECT(CONCATENATE($B255,"!M21"))),"",INDIRECT(CONCATENATE($B255,"!M21"))) ->  | J255: =IF(ISERROR(INDIRECT(CONCATENATE($B255,"!N18"))),"",INDIRECT(CONCATENATE($B255,"!N18"))) ->  | K255: =IF(ISERROR(INDIRECT(CONCATENATE($B255,"!N19"))),"",INDIRECT(CONCATENATE($B255,"!N19"))) ->  | L255: =IF(ISERROR(INDIRECT(CONCATENATE($B255,"!N20"))),"",INDIRECT(CONCATENATE($B255,"!N20"))) ->  | M255: =IF(ISERROR(INDIRECT(CONCATENATE($B255,"!N21"))),"",INDIRECT(CONCATENATE($B255,"!N21"))) ->  | O255: =IF(ISERROR(INDIRECT(CONCATENATE($B255,"!O18"))),"",INDIRECT(CONCATENATE($B255,"!O18"))) ->  | P255: =IF(ISERROR(INDIRECT(CONCATENATE($B255,"!O19"))),"",INDIRECT(CONCATENATE($B255,"!O19"))) ->  | Q255: =IF(ISERROR(INDIRECT(CONCATENATE($B255,"!O20"))),"",INDIRECT(CONCATENATE($B255,"!O20"))) ->  | R255: =IF(ISERROR(INDIRECT(CONCATENATE($B255,"!O21"))),"",INDIRECT(CONCATENATE($B255,"!O21"))) ->  | T255: =IF(ISERROR(INDIRECT(CONCATENATE($B255,"!P18"))),"",INDIRECT(CONCATENATE($B255,"!P18"))) ->  | U255: =IF(ISERROR(INDIRECT(CONCATENATE($B255,"!P19"))),"",INDIRECT(CONCATENATE($B255,"!P19"))) ->  | V255: =IF(ISERROR(INDIRECT(CONCATENATE($B255,"!P20"))),"",INDIRECT(CONCATENATE($B255,"!P20"))) ->  | W255: =IF(ISERROR(INDIRECT(CONCATENATE($B255,"!P21"))),"",INDIRECT(CONCATENATE($B255,"!P21"))) ->  | Y255: =IF(ISERROR(INDIRECT(CONCATENATE($B255,"!Q18"))),"",INDIRECT(CONCATENATE($B255,"!Q18"))) ->  | Z255: =IF(ISERROR(INDIRECT(CONCATENATE($B255,"!Q19"))),"",INDIRECT(CONCATENATE($B255,"!Q19"))) ->  | AA255: =IF(ISERROR(INDIRECT(CONCATENATE($B255,"!Q20"))),"",INDIRECT(CONCATENATE($B255,"!Q20"))) ->  | AB255: =IF(ISERROR(INDIRECT(CONCATENATE($B255,"!Q21"))),"",INDIRECT(CONCATENATE($B255,"!Q1"))) -> 
E256: =IF(ISERROR(INDIRECT(CONCATENATE($B256,"!M18"))),"",INDIRECT(CONCATENATE($B256,"!M18"))) ->  | F256: =IF(ISERROR(INDIRECT(CONCATENATE($B256,"!M19"))),"",INDIRECT(CONCATENATE($B256,"!M19"))) ->  | G256: =IF(ISERROR(INDIRECT(CONCATENATE($B256,"!M20"))),"",INDIRECT(CONCATENATE($B256,"!M20"))) ->  | H256: =IF(ISERROR(INDIRECT(CONCATENATE($B256,"!M21"))),"",INDIRECT(CONCATENATE($B256,"!M21"))) ->  | J256: =IF(ISERROR(INDIRECT(CONCATENATE($B256,"!N18"))),"",INDIRECT(CONCATENATE($B256,"!N18"))) ->  | K256: =IF(ISERROR(INDIRECT(CONCATENATE($B256,"!N19"))),"",INDIRECT(CONCATENATE($B256,"!N19"))) ->  | L256: =IF(ISERROR(INDIRECT(CONCATENATE($B256,"!N20"))),"",INDIRECT(CONCATENATE($B256,"!N20"))) ->  | M256: =IF(ISERROR(INDIRECT(CONCATENATE($B256,"!N21"))),"",INDIRECT(CONCATENATE($B256,"!N21"))) ->  | O256: =IF(ISERROR(INDIRECT(CONCATENATE($B256,"!O18"))),"",INDIRECT(CONCATENATE($B256,"!O18"))) ->  | P256: =IF(ISERROR(INDIRECT(CONCATENATE($B256,"!O19"))),"",INDIRECT(CONCATENATE($B256,"!O19"))) ->  | Q256: =IF(ISERROR(INDIRECT(CONCATENATE($B256,"!O20"))),"",INDIRECT(CONCATENATE($B256,"!O20"))) ->  | R256: =IF(ISERROR(INDIRECT(CONCATENATE($B256,"!O21"))),"",INDIRECT(CONCATENATE($B256,"!O21"))) ->  | T256: =IF(ISERROR(INDIRECT(CONCATENATE($B256,"!P18"))),"",INDIRECT(CONCATENATE($B256,"!P18"))) ->  | U256: =IF(ISERROR(INDIRECT(CONCATENATE($B256,"!P19"))),"",INDIRECT(CONCATENATE($B256,"!P19"))) ->  | V256: =IF(ISERROR(INDIRECT(CONCATENATE($B256,"!P20"))),"",INDIRECT(CONCATENATE($B256,"!P20"))) ->  | W256: =IF(ISERROR(INDIRECT(CONCATENATE($B256,"!P21"))),"",INDIRECT(CONCATENATE($B256,"!P21"))) ->  | Y256: =IF(ISERROR(INDIRECT(CONCATENATE($B256,"!Q18"))),"",INDIRECT(CONCATENATE($B256,"!Q18"))) ->  | Z256: =IF(ISERROR(INDIRECT(CONCATENATE($B256,"!Q19"))),"",INDIRECT(CONCATENATE($B256,"!Q19"))) ->  | AA256: =IF(ISERROR(INDIRECT(CONCATENATE($B256,"!Q20"))),"",INDIRECT(CONCATENATE($B256,"!Q20"))) ->  | AB256: =IF(ISERROR(INDIRECT(CONCATENATE($B256,"!Q21"))),"",INDIRECT(CONCATENATE($B256,"!Q1"))) -> 
E257: =IF(ISERROR(INDIRECT(CONCATENATE($B257,"!M18"))),"",INDIRECT(CONCATENATE($B257,"!M18"))) ->  | F257: =IF(ISERROR(INDIRECT(CONCATENATE($B257,"!M19"))),"",INDIRECT(CONCATENATE($B257,"!M19"))) ->  | G257: =IF(ISERROR(INDIRECT(CONCATENATE($B257,"!M20"))),"",INDIRECT(CONCATENATE($B257,"!M20"))) ->  | H257: =IF(ISERROR(INDIRECT(CONCATENATE($B257,"!M21"))),"",INDIRECT(CONCATENATE($B257,"!M21"))) ->  | J257: =IF(ISERROR(INDIRECT(CONCATENATE($B257,"!N18"))),"",INDIRECT(CONCATENATE($B257,"!N18"))) ->  | K257: =IF(ISERROR(INDIRECT(CONCATENATE($B257,"!N19"))),"",INDIRECT(CONCATENATE($B257,"!N19"))) ->  | L257: =IF(ISERROR(INDIRECT(CONCATENATE($B257,"!N20"))),"",INDIRECT(CONCATENATE($B257,"!N20"))) ->  | M257: =IF(ISERROR(INDIRECT(CONCATENATE($B257,"!N21"))),"",INDIRECT(CONCATENATE($B257,"!N21"))) ->  | O257: =IF(ISERROR(INDIRECT(CONCATENATE($B257,"!O18"))),"",INDIRECT(CONCATENATE($B257,"!O18"))) ->  | P257: =IF(ISERROR(INDIRECT(CONCATENATE($B257,"!O19"))),"",INDIRECT(CONCATENATE($B257,"!O19"))) ->  | Q257: =IF(ISERROR(INDIRECT(CONCATENATE($B257,"!O20"))),"",INDIRECT(CONCATENATE($B257,"!O20"))) ->  | R257: =IF(ISERROR(INDIRECT(CONCATENATE($B257,"!O21"))),"",INDIRECT(CONCATENATE($B257,"!O21"))) ->  | T257: =IF(ISERROR(INDIRECT(CONCATENATE($B257,"!P18"))),"",INDIRECT(CONCATENATE($B257,"!P18"))) ->  | U257: =IF(ISERROR(INDIRECT(CONCATENATE($B257,"!P19"))),"",INDIRECT(CONCATENATE($B257,"!P19"))) ->  | V257: =IF(ISERROR(INDIRECT(CONCATENATE($B257,"!P20"))),"",INDIRECT(CONCATENATE($B257,"!P20"))) ->  | W257: =IF(ISERROR(INDIRECT(CONCATENATE($B257,"!P21"))),"",INDIRECT(CONCATENATE($B257,"!P21"))) ->  | Y257: =IF(ISERROR(INDIRECT(CONCATENATE($B257,"!Q18"))),"",INDIRECT(CONCATENATE($B257,"!Q18"))) ->  | Z257: =IF(ISERROR(INDIRECT(CONCATENATE($B257,"!Q19"))),"",INDIRECT(CONCATENATE($B257,"!Q19"))) ->  | AA257: =IF(ISERROR(INDIRECT(CONCATENATE($B257,"!Q20"))),"",INDIRECT(CONCATENATE($B257,"!Q20"))) ->  | AB257: =IF(ISERROR(INDIRECT(CONCATENATE($B257,"!Q21"))),"",INDIRECT(CONCATENATE($B257,"!Q1"))) -> 
A297: RURAL | D297: Poorest | I297: Poor | N297: Middle | S297: Rich | X297: Richest
D298: Improved | E298: Basic | F298: Limited | G298: Unimproved | H298: Surface water | I298: Improved | J298: Basic | K298: Limited | L298: Unimproved | M298: Surface water | N298: Improved | O298: Basic | P298: Limited | Q298: Unimproved | R298: Surface water | S298: Improved | T298: Basic | U298: Limited | V298: Unimproved | W298: Surface water | X298: Improved | Y298: Basic | Z298: Limited | AA298: Unimproved | AB298: Surface water
A299: Forecast period: | C299: 2000 | D299: =IF((D301+H301)>100,D301*100/(D301+H301),D301) -> 68.91067057 | E299: =D299*AVERAGEIF(E305:E316,">0")/100 -> 64.62488884 | F299: =D299*(100-AVERAGEIF(E305:E316,">0"))/100 -> 4.285781733 | G299: =100-(E299+F299+H299) -> 22.34116642 | H299: =IF((D301+H301)>100,H301*100/(D301+H301),H301) -> 8.748163016 | I299: =IF((I301+M301)>100,I301*100/(I301+M301),I301) -> 90.5019285 | J299: =I299*AVERAGEIF(J305:J316,">0")/100 -> 88.26020032 | K299: =I299*(100-AVERAGEIF(J305:J316,">0"))/100 -> 2.241728182 | L299: =100-(J299+K299+M299) -> 6.607857116 | M299: =IF((I301+M301)>100,M301*100/(I301+M301),M301) -> 2.890214383 | N299: =IF((N301+R301)>100,N301*100/(N301+R301),N301) -> 83.02202614 | O299: =N299*AVERAGEIF(O305:O316,">0")/100 -> 81.84185625 | P299: =N299*(100-AVERAGEIF(O305:O316,">0"))/100 -> 1.18016989 | Q299: =100-(O299+P299+R299) -> 14.60833358 | R299: =IF((N301+R301)>100,R301*100/(N301+R301),R301) -> 2.369640285 | S299: =IF((S301+W301)>100,S301*100/(S301+W301),S301) -> 89.98420373 | T299: =S299*AVERAGEIF(T305:T316,">0")/100 -> 89.22116312 | U299: =S299*(100-AVERAGEIF(T305:T316,">0"))/100 -> 0.7630406144 | V299: =100-(T299+U299+W299) -> 8.806588404 | W299: =IF((S301+W301)>100,W301*100/(S301+W301),W301) -> 1.209207863 | X299: =IF((X301+AB301)>100,X301*100/(X301+AB301),X301) -> 89.14026483 | Y299: =X299*AVERAGEIF(Y305:Y316,">0")/100 -> 88.35695994 | Z299: =X299*(100-AVERAGEIF(Y305:Y316,">0"))/100 -> 0.7833048853 | AA299: =100-(Y299+Z299+AB299) -> 9.591677925 | AB299: =IF((X301+AB301)>100,AB301*100/(X301+AB301),AB301) -> 1.268057249
C300: 2020 | D300: =IF((D302+H302)>100,D302*100/(D302+H302),D302) -> 90.88406864 | E300: =D300*AVERAGEIF(E305:E316,">0")/100 -> 85.23168885 | F300: =D300*(100-AVERAGEIF(E305:E316,">0"))/100 -> 5.652379783 | G300: =100-(E300+F300+H300) -> 4.06409384 | H300: =IF((D302+H302)>100,H302*100/(D302+H302),H302) -> 5.051837523 | I300: =IF((I302+M302)>100,I302*100/(I302+M302),I302) -> 92.16887522 | J300: =I300*AVERAGEIF(J305:J316,">0")/100 -> 89.88585685 | K300: =I300*(100-AVERAGEIF(J305:J316,">0"))/100 -> 2.283018368 | L300: =100-(J300+K300+M300) -> 4.727450998 | M300: =IF((I302+M302)>100,M302*100/(I302+M302),M302) -> 3.103673782 | N300: =IF((N302+R302)>100,N302*100/(N302+R302),N302) -> 99.26922817 | O300: =N300*AVERAGEIF(O305:O316,">0")/100 -> 97.858102 | P300: =N300*(100-AVERAGEIF(O305:O316,">0"))/100 -> 1.411126174 | Q300: =100-(O300+P300+R300) -> 0 | R300: =IF((N302+R302)>100,R302*100/(N302+R302),R302) -> 0.7307718257 | S300: =IF((S302+W302)>100,S302*100/(S302+W302),S302) -> 99.58757088 | T300: =S300*AVERAGEIF(T305:T316,">0")/100 -> 98.74309643 | U300: =S300*(100-AVERAGEIF(T305:T316,">0"))/100 -> 0.8444744535 | V300: =100-(T300+U300+W300) -> 0 | W300: =IF((S302+W302)>100,W302*100/(S302+W302),W302) -> 0.4124291153 | X300: =IF((X302+AB302)>100,X302*100/(X302+AB302),X302) -> 100 | Y300: =X300*AVERAGEIF(Y305:Y316,">0")/100 -> 99.12126704 | Z300: =X300*(100-AVERAGEIF(Y305:Y316,">0"))/100 -> 0.8787329573 | AA300: =100-(Y300+Z300+AB300) -> 0 | AB300: =IF((X302+AB302)>100,AB302*100/(X302+AB302),AB302) -> 0
A301: Regression period: | C301: =MinRegYear(C299,C305:C316) -> 2000 | D301: =IF(MAX(C305:C316)-MIN(C305:C316)<5,AVERAGEIF(C305:C316,">0",D305:D316), IF(FORECAST($C301,D$305:D$316,$C$305:$C$316)<0,0, IF(FORECAST($C301,D$305:D$316,$C$305:$C$316)>100,100, FORECAST($C301,D$305:D$316,$C$305:$C$316)))) -> 68.91067057 | H301: =IF(MAX(C305:C316)-MIN(C305:C316)<5,AVERAGEIF(C305:C316,">0",H305:H316), IF(FORECAST($C301,H$305:H$316,$C$305:$C$316)<0,0, IF(FORECAST($C301,H$305:H$316,$C$305:$C$316)>100,100, FORECAST($C301,H$305:H$316,$C$305:$C$316)))) -> 8.748163016 | I301: =IF(MAX(C305:C316)-MIN(C305:C316)<5,AVERAGEIF(C305:C316,">0",I305:I316), IF(FORECAST($C301,I$305:I$316,$C$305:$C$316)<0,0, IF(FORECAST($C301,I$305:I$316,$C$305:$C$316)>100,100, FORECAST($C301,I$305:I$316,$C$305:$C$316)))) -> 90.5019285 | M301: =IF(MAX(C305:C316)-MIN(C305:C316)<5,AVERAGEIF(C305:C316,">0",M305:M316), IF(FORECAST($C301,M$305:M$316,$C$305:$C$316)<0,0, IF(FORECAST($C301,M$305:M$316,$C$305:$C$316)>100,100, FORECAST($C301,M$305:M$316,$C$305:$C$316)))) -> 2.890214383 | N301: =IF(MAX(C305:C316)-MIN(C305:C316)<5,AVERAGEIF(C305:C316,">0",N305:N316), IF(FORECAST($C301,N$305:N$316,$C$305:$C$316)<0,0, IF(FORECAST($C301,N$305:N$316,$C$305:$C$316)>100,100, FORECAST($C301,N$305:N$316,$C$305:$C$316)))) -> 83.02202614 | R301: =IF(MAX(C305:C316)-MIN(C305:C316)<5,AVERAGEIF(C305:C316,">0",R305:R316), IF(FORECAST($C301,R$305:R$316,$C$305:$C$316)<0,0, IF(FORECAST($C301,R$305:R$316,$C$305:$C$316)>100,100, FORECAST($C301,R$305:R$316,$C$305:$C$316)))) -> 2.369640285 | S301: =IF(MAX(C305:C316)-MIN(C305:C316)<5,AVERAGEIF(C305:C316,">0",S305:S316), IF(FORECAST($C301,S$305:S$316,$C$305:$C$316)<0,0, IF(FORECAST($C301,S$305:S$316,$C$305:$C$316)>100,100, FORECAST($C301,S$305:S$316,$C$305:$C$316)))) -> 89.98420373 | W301: =IF(MAX(C305:C316)-MIN(C305:C316)<5,AVERAGEIF(C305:C316,">0",W305:W316), IF(FORECAST($C301,W$305:W$316,$C$305:$C$316)<0,0, IF(FORECAST($C301,W$305:W$316,$C$305:$C$316)>100,100, FORECAST($C301,W$305:W$316,$C$305:$C$316)))) -> 1.209207863 | X301: =IF(MAX(C305:C316)-MIN(C305:C316)<5,AVERAGEIF(C305:C316,">0",X305:X316), IF(FORECAST($C301,X$305:X$316,$C$305:$C$316)<0,0, IF(FORECAST($C301,X$305:X$316,$C$305:$C$316)>100,100, FORECAST($C301,X$305:X$316,$C$305:$C$316)))) -> 89.14026483 | AB301: =IF(MAX(C305:C316)-MIN(C305:C316)<5,AVERAGEIF(C305:C316,">0",AB305:AB316), IF(FORECAST($C301,AB$305:AB$316,$C$305:$C$316)<0,0, IF(FORECAST($C301,AB$305:AB$316,$C$305:$C$316)>100,100, FORECAST($C301,AB$305:AB$316,$C$305:$C$316)))) -> 1.268057249
C302: =MaxRegYear(C300,C305:C316) -> 2020 | D302: =IF(MAX(C305:C316)-MIN(C305:C316)<5,AVERAGEIF(C305:C316,">0",D305:D316), IF(FORECAST($C302,D$305:D$316,$C$305:$C$316)<0,0, IF(FORECAST($C302,D$305:D$316,$C$305:$C$316)>100,100, FORECAST($C302,D$305:D$316,$C$305:$C$316)))) -> 90.88406864 | H302: =IF(MAX(C305:C316)-MIN(C305:C316)<5,AVERAGEIF(C305:C316,">0",H305:H316), IF(FORECAST($C302,H$305:H$316,$C$305:$C$316)<0,0, IF(FORECAST($C302,H$305:H$316,$C$305:$C$316)>100,100, FORECAST($C302,H$305:H$316,$C$305:$C$316)))) -> 5.051837523 | I302: =IF(MAX(C305:C316)-MIN(C305:C316)<5,AVERAGEIF(C305:C316,">0",I305:I316), IF(FORECAST($C302,I$305:I$316,$C$305:$C$316)<0,0, IF(FORECAST($C302,I$305:I$316,$C$305:$C$316)>100,100, FORECAST($C302,I$305:I$316,$C$305:$C$316)))) -> 92.16887522 | M302: =IF(MAX(C305:C316)-MIN(C305:C316)<5,AVERAGEIF(C305:C316,">0",M305:M316), IF(FORECAST($C302,M$305:M$316,$C$305:$C$316)<0,0, IF(FORECAST($C302,M$305:M$316,$C$305:$C$316)>100,100, FORECAST($C302,M$305:M$316,$C$305:$C$316)))) -> 3.103673782 | N302: =IF(MAX(C305:C316)-MIN(C305:C316)<5,AVERAGEIF(C305:C316,">0",N305:N316), IF(FORECAST($C302,N$305:N$316,$C$305:$C$316)<0,0, IF(FORECAST($C302,N$305:N$316,$C$305:$C$316)>100,100, FORECAST($C302,N$305:N$316,$C$305:$C$316)))) -> 100 | R302: =IF(MAX(C305:C316)-MIN(C305:C316)<5,AVERAGEIF(C305:C316,">0",R305:R316), IF(FORECAST($C302,R$305:R$316,$C$305:$C$316)<0,0, IF(FORECAST($C302,R$305:R$316,$C$305:$C$316)>100,100, FORECAST($C302,R$305:R$316,$C$305:$C$316)))) -> 0.7361514128 | S302: =IF(MAX(C305:C316)-MIN(C305:C316)<5,AVERAGEIF(C305:C316,">0",S305:S316), IF(FORECAST($C302,S$305:S$316,$C$305:$C$316)<0,0, IF(FORECAST($C302,S$305:S$316,$C$305:$C$316)>100,100, FORECAST($C302,S$305:S$316,$C$305:$C$316)))) -> 100 | W302: =IF(MAX(C305:C316)-MIN(C305:C316)<5,AVERAGEIF(C305:C316,">0",W305:W316), IF(FORECAST($C302,W$305:W$316,$C$305:$C$316)<0,0, IF(FORECAST($C302,W$305:W$316,$C$305:$C$316)>100,100, FORECAST($C302,W$305:W$316,$C$305:$C$316)))) -> 0.4141371374 | X302: =IF(MAX(C305:C316)-MIN(C305:C316)<5,AVERAGEIF(C305:C316,">0",X305:X316), IF(FORECAST($C302,X$305:X$316,$C$305:$C$316)<0,0, IF(FORECAST($C302,X$305:X$316,$C$305:$C$316)>100,100, FORECAST($C302,X$305:X$316,$C$305:$C$316)))) -> 100 | AB302: =IF(MAX(C305:C316)-MIN(C305:C316)<5,AVERAGEIF(C305:C316,">0",AB305:AB316), IF(FORECAST($C302,AB$305:AB$316,$C$305:$C$316)<0,0, IF(FORECAST($C302,AB$305:AB$316,$C$305:$C$316)>100,100, FORECAST($C302,AB$305:AB$316,$C$305:$C$316)))) -> 0
B304: Survey | C304: Year | D304: Improved | E304: Basic | H304: Surface water | I304: Improved | J304: Basic | M304: Surface water | N304: Improved | O304: Basic | R304: Surface water | S304: Improved | T304: Basic | W304: Surface water | X304: Improved | Y304: Basic | AB304: Surface water
B305: DHS01 | C305: 2001 | D305: =IF(ISERROR(INDIRECT(CONCATENATE($B305,"!M16"))),"",INDIRECT(CONCATENATE($B305,"!M16"))) -> 69.15158159 | E305: =IF(ISERROR(INDIRECT(CONCATENATE($B305,"!M23"))),"",INDIRECT(CONCATENATE($B305,"!M23"))) -> N/A | H305: =IF(ISERROR(INDIRECT(CONCATENATE($B305,"!M21"))),"",INDIRECT(CONCATENATE($B305,"!M21"))) -> 4.065224203 | I305: =IF(ISERROR(INDIRECT(CONCATENATE($B305,"!N16"))),"",INDIRECT(CONCATENATE($B305,"!N16"))) -> 99.32064845 | J305: =IF(ISERROR(INDIRECT(CONCATENATE($B305,"!N23"))),"",INDIRECT(CONCATENATE($B305,"!N23"))) -> N/A | M305: =IF(ISERROR(INDIRECT(CONCATENATE($B305,"!N21"))),"",INDIRECT(CONCATENATE($B305,"!N21"))) -> 0 | N305: =IF(ISERROR(INDIRECT(CONCATENATE($B305,"!O16"))),"",INDIRECT(CONCATENATE($B305,"!O16"))) -> 74.63713485 | O305: =IF(ISERROR(INDIRECT(CONCATENATE($B305,"!O23"))),"",INDIRECT(CONCATENATE($B305,"!O23"))) -> N/A | R305: =IF(ISERROR(INDIRECT(CONCATENATE($B305,"!O21"))),"",INDIRECT(CONCATENATE($B305,"!O21"))) -> 2.547698231 | S305: =IF(ISERROR(INDIRECT(CONCATENATE($B305,"!P16"))),"",INDIRECT(CONCATENATE($B305,"!P16"))) -> 89.922157 | T305: =IF(ISERROR(INDIRECT(CONCATENATE($B305,"!P23"))),"",INDIRECT(CONCATENATE($B305,"!P23"))) -> N/A | W305: =IF(ISERROR(INDIRECT(CONCATENATE($B305,"!P21"))),"",INDIRECT(CONCATENATE($B305,"!P21"))) -> 0.2751835787 | X305: =IF(ISERROR(INDIRECT(CONCATENATE($B305,"!Q16"))),"",INDIRECT(CONCATENATE($B305,"!Q16"))) -> 86.21787167 | Y305: =IF(ISERROR(INDIRECT(CONCATENATE($B305,"!Q23"))),"",INDIRECT(CONCATENATE($B305,"!Q23"))) -> N/A | AB305: =IF(ISERROR(INDIRECT(CONCATENATE($B305,"!Q221"))),"",INDIRECT(CONCATENATE($B305,"!Q21"))) -> 1.971941507
B306: WHS03 | C306: 2003 | D306: 85.43707412 | E306: 95.46476124 | H306: 5.098624302 | I306: 90.31608864 | J306: 97.06770966 | M306: 2.408294868 | N306: 93.30452677 | O306: 97.71465894 | R306: 1.465617631 | S306: 93.00533576 | T306: 97.93520642 | W306: 1.970121168 | X306: 94.11926401 | Y306: 98.27248413 | AB306: 0.5022284198
B307: DHS06 | C307: 2006 | D307: 62.53183535 | E307: 93.03490598 | H307: 13.99262567 | I307: 81.08869861 | J307: 96.85411835 | M307: 4.738607005 | N307: 91.19694186 | O307: 98.04657133 | R307: 1.160314632 | S307: 90.82196985 | T307: 99.29875276 | W307: 0.6572209378 | X307: 92.1734409 | Y307: 98.54993521 | AB307: 0.3979420655
B308: DHS11 | C308: 2011 | D308: 77.23625135 | E308: 92.6 | H308: 13.20639045 | I308: 88.53599343 | J308: 98.7 | M308: 7.882706853 | N308: 95.47992132 | O308: 99.7 | R308: 3.61853291 | S308: 97.45891049 | T308: 99.6 | W308: 1.44208224 | X308: 98.75252219 | Y308: 99.6 | AB308: 0.582084874
B309: MICS14 | C309: 2014 | D309: 82.74650871 | E309: 89.8 | H309: 5.821749182 | I309: 90.30286332 | J309: 96.9 | M309: 2.874434767 | N309: 95.7251053 | O309: 98.7 | R309: 0.8591343648 | S309: 97.72856631 | T309: 99.3 | W309: 0.8496428591 | X309: 98.2141931 | Y309: 99.2 | AB309: 0.3591559471
B310: DHS16 | C310: 2016 | D310: 89.88288116 | E310: 96.76243038 | H310: 5.010848706 | I310: 94.66954233 | J310: 98.81492405 | M310: 2.750202663 | N310: 98.27576089 | O310: 99.04993545 | R310: 1.021602375 | S310: 99.28404687 | T310: 99.63552713 | W310: 0.4874567173 | X310: 99.33796889 | Y310: 99.82319644 | AB310: 0
B311: MICS19 | C311: 2019 | D311: 92.29545493 | E311: 95.0219248 | H311: 1.104539369 | I311: 95.11397825 | J311: 96.80127836 | M311: 0.3243624213 | N311: 98.29591855 | O311: 98.25974908 | R311: 0.1973707993 | S311: 98.57468526 | T311: 99.14268328 | W311: 0 | X311: 99.03719532 | Y311: 99.28198647 | AB311: 0.116788075
B318: =CONCATENATE("Rural use of drinking water sources, ",C299,"–",C300) -> Rural use of drinking water sources, 2000–2020 | S318: Data points used for regression

Sheet Sanitation
B4: Summary of trends in use of sanitation facilities by wealth quintile (%)
B5: =IF(ISERROR(INDIRECT(CONCATENATE($B105,"!A2"))),"",INDIRECT(CONCATENATE($B105,"!A2"))) -> Nepal
B7: =B118 -> National use of sanitation facilities, 2000–2020 | J7: =B218 -> Urban use of sanitation facilities, 2000–2020 | R7: =B318 -> Rural use of sanitation facilities, 2000–2020
B31: =IF(ISERROR(INDIRECT(CONCATENATE($B105,"!A2"))),"",INDIRECT(CONCATENATE($B105,"!A2"))) -> Nepal | F31: Poorest | J31: Poor | N31: Middle | R31: Rich | V31: Richest
F32: Basic | G32: Limited | H32: Unimproved | I32: Open defecation | J32: Basic | K32: Limited | L32: Unimproved | M32: Open defecation | N32: Basic | O32: Limited | P32: Unimproved | Q32: Open defecation | R32: Basic | S32: Limited | T32: Unimproved | U32: Open defecation | V32: Basic | W32: Limited | X32: Unimproved | Y32: Open defecation
B33: NATIONAL | D33: Estimate | E33: =C99 -> 2000 | F33: =E99 -> 0 | G33: =F99 -> 0 | H33: 4.918356426 | I33: 95.08164357 | J33: =J99 -> 0 | K33: =K99 -> 0 | L33: 5.888248641 | M33: 94.11175136 | N33: =O99 -> 3.769414071 | O33: =P99 -> 0.8361320571 | P33: 14.54899276 | Q33: 80.84546111 | R33: =T99 -> 16.19861434 | S33: =U99 -> 5.304670235 | T33: 13.68851948 | U33: 64.80819595 | V33: =Y99 -> 58.26225227 | W33: =Z99 -> 21.37897421 | X33: 5.725340598 | Y33: 14.63343292
E34: =C100 -> 2020 | F34: =E100 -> 82.32175469 | G34: 11.79237948 | H34: 2.323028357 | I34: 3.562837475 | J34: =J100 -> 74.23340496 | K34: 13.61265509 | L34: 2.948242299 | M34: 9.205697644 | N34: =O100 -> 69.83427688 | O34: 15.49065093 | P34: 0 | Q34: 14.6750722 | R34: =T100 -> 75.33088391 | S34: 24.66911609 | T34: 0 | U34: 0 | V34: =Y100 -> 73.15589532 | W34: 26.84410468 | X34: 0 | Y34: 0
B36: URBAN | D36: Estimate | E36: =C199 -> 2000 | F36: =E199 -> 17.35424813 | G36: =F199 -> 5.706444546 | H36: 13.23539527 | I36: 63.70391205 | J36: =J199 -> 48.02894874 | K36: =K199 -> 21.9505158 | L36: 12.27442441 | M36: 17.74611105 | N36: =O199 -> 54.36080677 | O36: =P199 -> 36.4951848 | P36: 4.227411613 | Q36: 4.916596814 | R36: =T199 -> 58.68209969 | S36: =U199 -> 36.61198683 | T36: 4.351499532 | U36: 0.3544139538 | V36: =Y199 -> 85.52165035 | W36: =Z199 -> 14.21895287 | X36: 0.2593967878 | Y36: 0
E37: =C200 -> 2020 | F37: =E200 -> 66.47014467 | G37: 21.85679216 | H37: 0.297661716 | I37: 11.37540145 | J37: =J200 -> 61.89517154 | K37: 28.28775097 | L37: 0 | M37: 9.817077488 | N37: =O200 -> 57.53456725 | O37: 38.62589223 | P37: 0.1061064237 | Q37: 3.733434091 | R37: =T200 -> 61.16358666 | S37: 38.16019606 | T37: 0.1081645304 | U37: 0.5680527448 | V37: =Y200 -> 85.34745307 | W37: 14.18999058 | X37: 0.4157930355 | Y37: 0.04676332021
B39: RURAL | D39: Estimate | E39: =C299 -> 2000 | F39: =E299 -> 0 | G39: =F299 -> 0 | H39: 4.072346152 | I39: 95.92765385 | J39: =J299 -> 0 | K39: =K299 -> 0 | L39: 3.495900791 | M39: 96.50409921 | N39: =O299 -> 1.808284715 | O39: =P299 -> 0.3852756509 | P39: 12.07285026 | Q39: 85.73358937 | R39: =T299 -> 7.441037315 | S39: =U299 -> 1.515201139 | T39: 11.94637553 | U39: 79.09738602 | V39: =Y299 -> 44.54894895 | W39: =Z299 -> 10.60071527 | X39: 12.31060666 | Y39: 32.53972912
E40: =C300 -> 2020 | F40: =E300 -> 84.2516004 | G40: 11.2888669 | H40: 2.462327713 | I40: 1.997204993 | J40: =J300 -> 80.61150087 | K40: 13.05832793 | L40: 3.338034233 | M40: 2.992136973 | N40: =O300 -> 66.89220951 | O40: 14.25214699 | P40: 0.7367167949 | Q40: 18.11892671 | R40: =T300 -> 73.14767526 | S40: 14.89489115 | T40: 0 | U40: 11.95743359 | V40: =Y300 -> 80.77827776 | W40: 19.22172224 | X40: 0 | Y40: 0
A97: NATIONAL | D97: Poorest | I97: Poor | N97: Middle | S97: Rich | X97: Richest
D98: Improved | E98: Basic | F98: Limited | G98: Unimproved | H98: Open defecation | I98: Improved | J98: Basic | K98: Limited | L98: Unimproved | M98: Open defecation | N98: Improved | O98: Basic | P98: Limited | Q98: Unimproved | R98: Open defecation | S98: Improved | T98: Basic | U98: Limited | V98: Unimproved | W98: Open defecation | X98: Improved | Y98: Basic | Z98: Limited | AA98: Unimproved | AB98: Open defecation
A99: Forecast period: | C99: 2000 | D99: =IF((D101+H101)>100,D101*100/(D101+H101),D101) -> 0 | E99: =D99*AVERAGEIF(E105:E116,">0")/100 -> 0 | F99: =D99*(100-AVERAGEIF(E105:E116,">0"))/100 -> 0 | G99: =100-(E99+F99+H99) -> 4.918356426 | H99: =IF((D101+H101)>100,H101*100/(D101+H101),H101) -> 95.08164357 | I99: =IF((I101+M101)>100,I101*100/(I101+M101),I101) -> 0 | J99: =I99*AVERAGEIF(J105:J116,">0")/100 -> 0 | K99: =I99*(100-AVERAGEIF(J105:J116,">0"))/100 -> 0 | L99: =100-(J99+K99+M99) -> 5.888248641 | M99: =IF((I101+M101)>100,M101*100/(I101+M101),M101) -> 94.11175136 | N99: =IF((N101+R101)>100,N101*100/(N101+R101),N101) -> 4.605546128 | O99: =N99*AVERAGEIF(O105:O116,">0")/100 -> 3.769414071 | P99: =N99*(100-AVERAGEIF(O105:O116,">0"))/100 -> 0.8361320571 | Q99: =100-(O99+P99+R99) -> 14.54899276 | R99: =IF((N101+R101)>100,R101*100/(N101+R101),R101) -> 80.84546111 | S99: =IF((S101+W101)>100,S101*100/(S101+W101),S101) -> 21.50328457 | T99: =S99*AVERAGEIF(T105:T116,">0")/100 -> 16.19861434 | U99: =S99*(100-AVERAGEIF(T105:T116,">0"))/100 -> 5.304670235 | V99: =100-(T99+U99+W99) -> 13.68851948 | W99: =IF((S101+W101)>100,W101*100/(S101+W101),W101) -> 64.80819595 | X99: =IF((X101+AB101)>100,X101*100/(X101+AB101),X101) -> 79.64122648 | Y99: =X99*AVERAGEIF(Y105:Y116,">0")/100 -> 58.26225227 | Z99: =X99*(100-AVERAGEIF(Y105:Y116,">0"))/100 -> 21.37897421 | AA99: =100-(Y99+Z99+AB99) -> 5.725340598 | AB99: =IF((X101+AB101)>100,AB101*100/(X101+AB101),AB101) -> 14.63343292
C100: 2020 | D100: =IF((D102+H102)>100,D102*100/(D102+H102),D102) -> 94.11413417 | E100: =D100*AVERAGEIF(E105:E116,">0")/100 -> 82.32175469 | F100: =D100*(100-AVERAGEIF(E105:E116,">0"))/100 -> 11.79237948 | G100: =100-(E100+F100+H100) -> 2.323028357 | H100: =IF((D102+H102)>100,H102*100/(D102+H102),H102) -> 3.562837475 | I100: =IF((I102+M102)>100,I102*100/(I102+M102),I102) -> 87.84606006 | J100: =I100*AVERAGEIF(J105:J116,">0")/100 -> 74.23340496 | K100: =I100*(100-AVERAGEIF(J105:J116,">0"))/100 -> 13.61265509 | L100: =100-(J100+K100+M100) -> 2.948242299 | M100: =IF((I102+M102)>100,M102*100/(I102+M102),M102) -> 9.205697644 | N100: =IF((N102+R102)>100,N102*100/(N102+R102),N102) -> 85.3249278 | O100: =N100*AVERAGEIF(O105:O116,">0")/100 -> 69.83427688 | P100: =N100*(100-AVERAGEIF(O105:O116,">0"))/100 -> 15.49065093 | Q100: =100-(O100+P100+R100) -> 0 | R100: =IF((N102+R102)>100,R102*100/(N102+R102),R102) -> 14.6750722 | S100: =IF((S102+W102)>100,S102*100/(S102+W102),S102) -> 100 | T100: =S100*AVERAGEIF(T105:T116,">0")/100 -> 75.33088391 | U100: =S100*(100-AVERAGEIF(T105:T116,">0"))/100 -> 24.66911609 | V100: =100-(T100+U100+W100) -> 0 | W100: =IF((S102+W102)>100,W102*100/(S102+W102),W102) -> 0 | X100: =IF((X102+AB102)>100,X102*100/(X102+AB102),X102) -> 100 | Y100: =X100*AVERAGEIF(Y105:Y116,">0")/100 -> 73.15589532 | Z100: =X100*(100-AVERAGEIF(Y105:Y116,">0"))/100 -> 26.84410468 | AA100: =100-(Y100+Z100+AB100) -> 0 | AB100: =IF((X102+AB102)>100,AB102*100/(X102+AB102),AB102) -> 0
A101: Regression period: | C101: =MinRegYear(C99,C105:C116) -> 2000 | D101: =IF(MAX(C105:C116)-MIN(C105:C116)<5,AVERAGEIF(C105:C116,">0",D105:D116), IF(FORECAST($C101,D$105:D$116,$C$105:$C$116)<0,0, IF(FORECAST($C101,D$105:D$116,$C$105:$C$116)>100,100, FORECAST($C101,D$105:D$116,$C$105:$C$116)))) -> 0 | H101: =IF(MAX(C105:C116)-MIN(C105:C116)<5,AVERAGEIF(C105:C116,">0",H105:H116), IF(FORECAST($C101,H$105:H$116,$C$105:$C$116)<0,0, IF(FORECAST($C101,H$105:H$116,$C$105:$C$116)>100,100, FORECAST($C101,H$105:H$116,$C$105:$C$116)))) -> 95.08164357 | I101: =IF(MAX(C105:C116)-MIN(C105:C116)<5,AVERAGEIF(C105:C116,">0",I105:I116), IF(FORECAST($C101,I$105:I$116,$C$105:$C$116)<0,0, IF(FORECAST($C101,I$105:I$116,$C$105:$C$116)>100,100, FORECAST($C101,I$105:I$116,$C$105:$C$116)))) -> 0 | M101: =IF(MAX(C105:C116)-MIN(C105:C116)<5,AVERAGEIF(C105:C116,">0",M105:M116), IF(FORECAST($C101,M$105:M$116,$C$105:$C$116)<0,0, IF(FORECAST($C101,M$105:M$116,$C$105:$C$116)>100,100, FORECAST($C101,M$105:M$116,$C$105:$C$116)))) -> 94.11175136 | N101: =IF(MAX(C105:C116)-MIN(C105:C116)<5,AVERAGEIF(C105:C116,">0",N105:N116), IF(FORECAST($C101,N$105:N$116,$C$105:$C$116)<0,0, IF(FORECAST($C101,N$105:N$116,$C$105:$C$116)>100,100, FORECAST($C101,N$105:N$116,$C$105:$C$116)))) -> 4.605546128 | R101: =IF(MAX(C105:C116)-MIN(C105:C116)<5,AVERAGEIF(C105:C116,">0",R105:R116), IF(FORECAST($C101,R$105:R$116,$C$105:$C$116)<0,0, IF(FORECAST($C101,R$105:R$116,$C$105:$C$116)>100,100, FORECAST($C101,R$105:R$116,$C$105:$C$116)))) -> 80.84546111 | S101: =IF(MAX(C105:C116)-MIN(C105:C116)<5,AVERAGEIF(C105:C116,">0",S105:S116), IF(FORECAST($C101,S$105:S$116,$C$105:$C$116)<0,0, IF(FORECAST($C101,S$105:S$116,$C$105:$C$116)>100,100, FORECAST($C101,S$105:S$116,$C$105:$C$116)))) -> 21.50328457 | W101: =IF(MAX(C105:C116)-MIN(C105:C116)<5,AVERAGEIF(C105:C116,">0",W105:W116), IF(FORECAST($C101,W$105:W$116,$C$105:$C$116)<0,0, IF(FORECAST($C101,W$105:W$116,$C$105:$C$116)>100,100, FORECAST($C101,W$105:W$116,$C$105:$C$116)))) -> 64.80819595 | X101: =IF(MAX(C105:C116)-MIN(C105:C116)<5,AVERAGEIF(C105:C116,">0",X105:X116), IF(FORECAST($C101,X$105:X$116,$C$105:$C$116)<0,0, IF(FORECAST($C101,X$105:X$116,$C$105:$C$116)>100,100, FORECAST($C101,X$105:X$116,$C$105:$C$116)))) -> 79.64122648 | AB101: =IF(MAX(C105:C116)-MIN(C105:C116)<5,AVERAGEIF(C105:C116,">0",AB105:AB116), IF(FORECAST($C101,AB$105:AB$116,$C$105:$C$116)<0,0, IF(FORECAST($C101,AB$105:AB$116,$C$105:$C$116)>100,100, FORECAST($C101,AB$105:AB$116,$C$105:$C$116)))) -> 14.63343292
C102: =MaxRegYear(C100,C105:C116) -> 2020 | D102: =IF(MAX(C105:C116)-MIN(C105:C116)<5,AVERAGEIF(C105:C116,">0",D105:D116), IF(FORECAST($C102,D$105:D$116,$C$105:$C$116)<0,0, IF(FORECAST($C102,D$105:D$116,$C$105:$C$116)>100,100, FORECAST($C102,D$105:D$116,$C$105:$C$116)))) -> 94.11413417 | H102: =IF(MAX(C105:C116)-MIN(C105:C116)<5,AVERAGEIF(C105:C116,">0",H105:H116), IF(FORECAST($C102,H$105:H$116,$C$105:$C$116)<0,0, IF(FORECAST($C102,H$105:H$116,$C$105:$C$116)>100,100, FORECAST($C102,H$105:H$116,$C$105:$C$116)))) -> 3.562837475 | I102: =IF(MAX(C105:C116)-MIN(C105:C116)<5,AVERAGEIF(C105:C116,">0",I105:I116), IF(FORECAST($C102,I$105:I$116,$C$105:$C$116)<0,0, IF(FORECAST($C102,I$105:I$116,$C$105:$C$116)>100,100, FORECAST($C102,I$105:I$116,$C$105:$C$116)))) -> 87.84606006 | M102: =IF(MAX(C105:C116)-MIN(C105:C116)<5,AVERAGEIF(C105:C116,">0",M105:M116), IF(FORECAST($C102,M$105:M$116,$C$105:$C$116)<0,0, IF(FORECAST($C102,M$105:M$116,$C$105:$C$116)>100,100, FORECAST($C102,M$105:M$116,$C$105:$C$116)))) -> 9.205697644 | N102: =IF(MAX(C105:C116)-MIN(C105:C116)<5,AVERAGEIF(C105:C116,">0",N105:N116), IF(FORECAST($C102,N$105:N$116,$C$105:$C$116)<0,0, IF(FORECAST($C102,N$105:N$116,$C$105:$C$116)>100,100, FORECAST($C102,N$105:N$116,$C$105:$C$116)))) -> 85.70993006 | R102: =IF(MAX(C105:C116)-MIN(C105:C116)<5,AVERAGEIF(C105:C116,">0",R105:R116), IF(FORECAST($C102,R$105:R$116,$C$105:$C$116)<0,0, IF(FORECAST($C102,R$105:R$116,$C$105:$C$116)>100,100, FORECAST($C102,R$105:R$116,$C$105:$C$116)))) -> 14.7412889 | S102: =IF(MAX(C105:C116)-MIN(C105:C116)<5,AVERAGEIF(C105:C116,">0",S105:S116), IF(FORECAST($C102,S$105:S$116,$C$105:$C$116)<0,0, IF(FORECAST($C102,S$105:S$116,$C$105:$C$116)>100,100, FORECAST($C102,S$105:S$116,$C$105:$C$116)))) -> 100 | W102: =IF(MAX(C105:C116)-MIN(C105:C116)<5,AVERAGEIF(C105:C116,">0",W105:W116), IF(FORECAST($C102,W$105:W$116,$C$105:$C$116)<0,0, IF(FORECAST($C102,W$105:W$116,$C$105:$C$116)>100,100, FORECAST($C102,W$105:W$116,$C$105:$C$116)))) -> 0 | X102: =IF(MAX(C105:C116)-MIN(C105:C116)<5,AVERAGEIF(C105:C116,">0",X105:X116), IF(FORECAST($C102,X$105:X$116,$C$105:$C$116)<0,0, IF(FORECAST($C102,X$105:X$116,$C$105:$C$116)>100,100, FORECAST($C102,X$105:X$116,$C$105:$C$116)))) -> 100 | AB102: =IF(MAX(C105:C116)-MIN(C105:C116)<5,AVERAGEIF(C105:C116,">0",AB105:AB116), IF(FORECAST($C102,AB$105:AB$116,$C$105:$C$116)<0,0, IF(FORECAST($C102,AB$105:AB$116,$C$105:$C$116)>100,100, FORECAST($C102,AB$105:AB$116,$C$105:$C$116)))) -> 0
B104: Survey | C104: Year | D104: Improved | E104: Not shared | H104: Open defecation | I104: Improved | J104: Not shared | M104: Open defecation | N104: Improved | O104: Not shared | R104: Open defecation | S104: Improved | T104: Not shared | W104: Open defecation | X104: Improved | Y104: Not shared | AB104: Open defecation
B105: DHS01 | C105: 2001 | D105: =IF(ISERROR(INDIRECT(CONCATENATE($B105,"!C122"))),"",INDIRECT(CONCATENATE($B105,"!C122"))) -> 4.138446166 | E105: =IF(ISERROR(INDIRECT(CONCATENATE($B105,"!C129"))),"",INDIRECT(CONCATENATE($B105,"!C129"))) -> N/A | H105: =IF(ISERROR(INDIRECT(CONCATENATE($B105,"!C127"))),"",INDIRECT(CONCATENATE($B105,"!C127"))) -> 87.1080949 | I105: =IF(ISERROR(INDIRECT(CONCATENATE($B105,"!D122"))),"",INDIRECT(CONCATENATE($B105,"!D122"))) -> 1.790937249 | J105: =IF(ISERROR(INDIRECT(CONCATENATE($B105,"!D129"))),"",INDIRECT(CONCATENATE($B105,"!D129"))) -> N/A | M105: =IF(ISERROR(INDIRECT(CONCATENATE($B105,"!D127"))),"",INDIRECT(CONCATENATE($B105,"!D127"))) -> 96.41472734 | N105: =IF(ISERROR(INDIRECT(CONCATENATE($B105,"!E122"))),"",INDIRECT(CONCATENATE($B105,"!E122"))) -> 11.47050907 | O105: =IF(ISERROR(INDIRECT(CONCATENATE($B105,"!E129"))),"",INDIRECT(CONCATENATE($B105,"!E129"))) -> N/A | R105: =IF(ISERROR(INDIRECT(CONCATENATE($B105,"!E127"))),"",INDIRECT(CONCATENATE($B105,"!E127"))) -> 72.27189519 | S105: =IF(ISERROR(INDIRECT(CONCATENATE($B105,"!F122"))),"",INDIRECT(CONCATENATE($B105,"!F122"))) -> 14.18816135 | T105: =IF(ISERROR(INDIRECT(CONCATENATE($B105,"!F129"))),"",INDIRECT(CONCATENATE($B105,"!F129"))) -> N/A | W105: =IF(ISERROR(INDIRECT(CONCATENATE($B105,"!F127"))),"",INDIRECT(CONCATENATE($B105,"!F127"))) -> 72.58627754 | X105: =IF(ISERROR(INDIRECT(CONCATENATE($B105,"!G122"))),"",INDIRECT(CONCATENATE($B105,"!G122"))) -> 69.01800887 | Y105: =IF(ISERROR(INDIRECT(CONCATENATE($B105,"!G129"))),"",INDIRECT(CONCATENATE($B105,"!G129"))) -> N/A | AB105: =IF(ISERROR(INDIRECT(CONCATENATE($B105,"!G2127"))),"",INDIRECT(CONCATENATE($B105,"!G127"))) -> 23.99856716
B106: WHS03 | C106: 2003 | D106: 15.84197552 | E106: 86.04758206 | H106: 77.70050527 | I106: 19.03842511 | J106: 91.46591531 | M106: 74.22469662 | N106: 28.36073081 | O106: 91.50410176 | R106: 65.82498386 | S106: 51.63397531 | T106: 86.61742544 | W106: 37.76201532 | X106: 93.02156268 | Y106: 83.39889908 | AB106: 2.921394829
B107: DHS06 | C107: 2006 | D107: 15.63580836 | E107: 88.3423283 | H107: 70.56229684 | I107: 22.52736928 | J107: 77.08353809 | M107: 63.40035568 | N107: 18.99026527 | O107: 68.21160111 | R107: 66.7322392 | S107: 37.76124707 | T107: 68.19738457 | W107: 50.92965145 | X107: 88.84524018 | Y107: 59.70123771 | AB107: 7.655654483
B108: DHS11 | C108: 2011 | D108: 25.3046194 | E108: 81.39584943 | H108: 63.21462298 | I108: 35.61831593 | J108: 77.45948238 | M108: 52.61896388 | N108: 42.51687053 | O108: 75.12691693 | R108: 48.97855407 | S108: 72.23008768 | T108: 72.01935613 | W108: 24.10925508 | X108: 97.5742425 | Y108: 67.90520962 | AB108: 2.013586525
B109: MICS14 | C109: 2014 | D109: 76.45264643 | E109: 95.10702861 | H109: 21.21232837 | I109: 58.51614317 | J109: 90.54470738 | M109: 39.08536215 | N109: 49.45204945 | O109: 86.67705767 | R109: 48.12692336 | S109: 75.25888875 | T109: 81.3870845 | W109: 22.35512352 | X109: 98.419123 | Y109: 71.78029067 | AB109: 0.8158687676
B110: DHS16 | C110: 2016 | D110: 81.69334038 | E110: 83.46063579 | H110: 16.10738706 | I110: 71.79462424 | J110: 80.39634667 | M110: 26.51367066 | N110: 71.65553627 | O110: 81.95778774 | R110: 27.45500751 | S110: 89.40154195 | T110: 69.14235181 | W110: 9.510896707 | X110: 97.85828159 | Y110: 78.4402691 | AB110: 0.746706619
B111: MICS19 | C111: 2019 | D111: 88.33355707 | E111: 90.46735061 | H111: 9.350448244 | I111: 89.35328275 | J111: 90.0738078 | M111: 9.353295184 | N111: 93.65820527 | O111: 87.59316567 | R111: 5.164021886 | S111: 98.06100272 | T111: 74.621701 | W111: 1.023494687 | X111: 99.6570098 | Y111: 77.7094657 | AB111: 0.03463533156
B118: =CONCATENATE("National use of sanitation facilities, ",C99,"–",C100) -> National use of sanitation facilities, 2000–2020 | S118: Data points used for regression
A197: URBAN | D197: Poorest | I197: Poor | N197: Middle | S197: Rich | X197: Richest
D198: Improved | E198: Basic | F198: Limited | G198: Unimproved | H198: Open defecation | I198: Improved | J198: Basic | K198: Limited | L198: Unimproved | M198: Open defecation | N198: Improved | O198: Basic | P198: Limited | Q198: Unimproved | R198: Open defecation | S198: Improved | T198: Basic | U198: Limited | V198: Unimproved | W198: Open defecation | X198: Improved | Y198: Basic | Z198: Limited | AA198: Unimproved | AB198: Open defecation
A199: Forecast period: | C199: 2000 | D199: =IF((D201+H201)>100,D201*100/(D201+H201),D201) -> 23.06069268 | E199: =D199*AVERAGEIF(E205:E216,">0")/100 -> 17.35424813 | F199: =D199*(100-AVERAGEIF(E205:E216,">0"))/100 -> 5.706444546 | G199: =100-(E199+F199+H199) -> 13.23539527 | H199: =IF((D201+H201)>100,H201*100/(D201+H201),H201) -> 63.70391205 | I199: =IF((I201+M201)>100,I201*100/(I201+M201),I201) -> 69.97946454 | J199: =I199*AVERAGEIF(J205:J216,">0")/100 -> 48.02894874 | K199: =I199*(100-AVERAGEIF(J205:J216,">0"))/100 -> 21.9505158 | L199: =100-(J199+K199+M199) -> 12.27442441 | M199: =IF((I201+M201)>100,M201*100/(I201+M201),M201) -> 17.74611105 | N199: =IF((N201+R201)>100,N201*100/(N201+R201),N201) -> 90.85599157 | O199: =N199*AVERAGEIF(O205:O216,">0")/100 -> 54.36080677 | P199: =N199*(100-AVERAGEIF(O205:O216,">0"))/100 -> 36.4951848 | Q199: =100-(O199+P199+R199) -> 4.227411613 | R199: =IF((N201+R201)>100,R201*100/(N201+R201),R201) -> 4.916596814 | S199: =IF((S201+W201)>100,S201*100/(S201+W201),S201) -> 95.29408651 | T199: =S199*AVERAGEIF(T205:T216,">0")/100 -> 58.68209969 | U199: =S199*(100-AVERAGEIF(T205:T216,">0"))/100 -> 36.61198683 | V199: =100-(T199+U199+W199) -> 4.351499532 | W199: =IF((S201+W201)>100,W201*100/(S201+W201),W201) -> 0.3544139538 | X199: =IF((X201+AB201)>100,X201*100/(X201+AB201),X201) -> 99.74060321 | Y199: =X199*AVERAGEIF(Y205:Y216,">0")/100 -> 85.52165035 | Z199: =X199*(100-AVERAGEIF(Y205:Y216,">0"))/100 -> 14.21895287 | AA199: =100-(Y199+Z199+AB199) -> 0.2593967878 | AB199: =IF((X201+AB201)>100,AB201*100/(X201+AB201),AB201) -> 0
C200: 2020 | D200: =IF((D202+H202)>100,D202*100/(D202+H202),D202) -> 88.32693684 | E200: =D200*AVERAGEIF(E205:E216,">0")/100 -> 66.47014467 | F200: =D200*(100-AVERAGEIF(E205:E216,">0"))/100 -> 21.85679216 | G200: =100-(E200+F200+H200) -> 0.297661716 | H200: =IF((D202+H202)>100,H202*100/(D202+H202),H202) -> 11.37540145 | I200: =IF((I202+M202)>100,I202*100/(I202+M202),I202) -> 90.18292251 | J200: =I200*AVERAGEIF(J205:J216,">0")/100 -> 61.89517154 | K200: =I200*(100-AVERAGEIF(J205:J216,">0"))/100 -> 28.28775097 | L200: =100-(J200+K200+M200) -> 0 | M200: =IF((I202+M202)>100,M202*100/(I202+M202),M202) -> 9.817077488 | N200: =IF((N202+R202)>100,N202*100/(N202+R202),N202) -> 96.16045949 | O200: =N200*AVERAGEIF(O205:O216,">0")/100 -> 57.53456725 | P200: =N200*(100-AVERAGEIF(O205:O216,">0"))/100 -> 38.62589223 | Q200: =100-(O200+P200+R200) -> 0.1061064237 | R200: =IF((N202+R202)>100,R202*100/(N202+R202),R202) -> 3.733434091 | S200: =IF((S202+W202)>100,S202*100/(S202+W202),S202) -> 99.32378272 | T200: =S200*AVERAGEIF(T205:T216,">0")/100 -> 61.16358666 | U200: =S200*(100-AVERAGEIF(T205:T216,">0"))/100 -> 38.16019606 | V200: =100-(T200+U200+W200) -> 0.1081645304 | W200: =IF((S202+W202)>100,W202*100/(S202+W202),W202) -> 0.5680527448 | X200: =IF((X202+AB202)>100,X202*100/(X202+AB202),X202) -> 99.53744364 | Y200: =X200*AVERAGEIF(Y205:Y216,">0")/100 -> 85.34745307 | Z200: =X200*(100-AVERAGEIF(Y205:Y216,">0"))/100 -> 14.18999058 | AA200: =100-(Y200+Z200+AB200) -> 0.4157930355 | AB200: =IF((X202+AB202)>100,AB202*100/(X202+AB202),AB202) -> 0.04676332021
A201: Regression period: | C201: =MinRegYear(C199,C205:C216) -> 2000 | D201: =IF(MAX(C205:C216)-MIN(C205:C216)<5,AVERAGEIF(C205:C216,">0",D205:D216), IF(FORECAST($C201,D$205:D$216,$C$205:$C$216)<0,0, IF(FORECAST($C201,D$205:D$216,$C$205:$C$216)>100,100, FORECAST($C201,D$205:D$216,$C$205:$C$216)))) -> 23.06069268 | H201: =IF(MAX(C205:C216)-MIN(C205:C216)<5,AVERAGEIF(C205:C216,">0",H205:H216), IF(FORECAST($C201,H$205:H$216,$C$205:$C$216)<0,0, IF(FORECAST($C201,H$205:H$216,$C$205:$C$216)>100,100, FORECAST($C201,H$205:H$216,$C$205:$C$216)))) -> 63.70391205 | I201: =IF(MAX(C205:C216)-MIN(C205:C216)<5,AVERAGEIF(C205:C216,">0",I205:I216), IF(FORECAST($C201,I$205:I$216,$C$205:$C$216)<0,0, IF(FORECAST($C201,I$205:I$216,$C$205:$C$216)>100,100, FORECAST($C201,I$205:I$216,$C$205:$C$216)))) -> 69.97946454 | M201: =IF(MAX(C205:C216)-MIN(C205:C216)<5,AVERAGEIF(C205:C216,">0",M205:M216), IF(FORECAST($C201,M$205:M$216,$C$205:$C$216)<0,0, IF(FORECAST($C201,M$205:M$216,$C$205:$C$216)>100,100, FORECAST($C201,M$205:M$216,$C$205:$C$216)))) -> 17.74611105 | N201: =IF(MAX(C205:C216)-MIN(C205:C216)<5,AVERAGEIF(C205:C216,">0",N205:N216), IF(FORECAST($C201,N$205:N$216,$C$205:$C$216)<0,0, IF(FORECAST($C201,N$205:N$216,$C$205:$C$216)>100,100, FORECAST($C201,N$205:N$216,$C$205:$C$216)))) -> 90.85599157 | R201: =IF(MAX(C205:C216)-MIN(C205:C216)<5,AVERAGEIF(C205:C216,">0",R205:R216), IF(FORECAST($C201,R$205:R$216,$C$205:$C$216)<0,0, IF(FORECAST($C201,R$205:R$216,$C$205:$C$216)>100,100, FORECAST($C201,R$205:R$216,$C$205:$C$216)))) -> 4.916596814 | S201: =IF(MAX(C205:C216)-MIN(C205:C216)<5,AVERAGEIF(C205:C216,">0",S205:S216), IF(FORECAST($C201,S$205:S$216,$C$205:$C$216)<0,0, IF(FORECAST($C201,S$205:S$216,$C$205:$C$216)>100,100, FORECAST($C201,S$205:S$216,$C$205:$C$216)))) -> 95.29408651 | W201: =IF(MAX(C205:C216)-MIN(C205:C216)<5,AVERAGEIF(C205:C216,">0",W205:W216), IF(FORECAST($C201,W$205:W$216,$C$205:$C$216)<0,0, IF(FORECAST($C201,W$205:W$216,$C$205:$C$216)>100,100, FORECAST($C201,W$205:W$216,$C$205:$C$216)))) -> 0.3544139538 | X201: =IF(MAX(C205:C216)-MIN(C205:C216)<5,AVERAGEIF(C205:C216,">0",X205:X216), IF(FORECAST($C201,X$205:X$216,$C$205:$C$216)<0,0, IF(FORECAST($C201,X$205:X$216,$C$205:$C$216)>100,100, FORECAST($C201,X$205:X$216,$C$205:$C$216)))) -> 99.74060321 | AB201: =IF(MAX(C205:C216)-MIN(C205:C216)<5,AVERAGEIF(C205:C216,">0",AB205:AB216), IF(FORECAST($C201,AB$205:AB$216,$C$205:$C$216)<0,0, IF(FORECAST($C201,AB$205:AB$216,$C$205:$C$216)>100,100, FORECAST($C201,AB$205:AB$216,$C$205:$C$216)))) -> 0
C202: =MaxRegYear(C200,C205:C216) -> 2020 | D202: =IF(MAX(C205:C216)-MIN(C205:C216)<5,AVERAGEIF(C205:C216,">0",D205:D216), IF(FORECAST($C202,D$205:D$216,$C$205:$C$216)<0,0, IF(FORECAST($C202,D$205:D$216,$C$205:$C$216)>100,100, FORECAST($C202,D$205:D$216,$C$205:$C$216)))) -> 88.32693684 | H202: =IF(MAX(C205:C216)-MIN(C205:C216)<5,AVERAGEIF(C205:C216,">0",H205:H216), IF(FORECAST($C202,H$205:H$216,$C$205:$C$216)<0,0, IF(FORECAST($C202,H$205:H$216,$C$205:$C$216)>100,100, FORECAST($C202,H$205:H$216,$C$205:$C$216)))) -> 11.37540145 | I202: =IF(MAX(C205:C216)-MIN(C205:C216)<5,AVERAGEIF(C205:C216,">0",I205:I216), IF(FORECAST($C202,I$205:I$216,$C$205:$C$216)<0,0, IF(FORECAST($C202,I$205:I$216,$C$205:$C$216)>100,100, FORECAST($C202,I$205:I$216,$C$205:$C$216)))) -> 92.06274163 | M202: =IF(MAX(C205:C216)-MIN(C205:C216)<5,AVERAGEIF(C205:C216,">0",M205:M216), IF(FORECAST($C202,M$205:M$216,$C$205:$C$216)<0,0, IF(FORECAST($C202,M$205:M$216,$C$205:$C$216)>100,100, FORECAST($C202,M$205:M$216,$C$205:$C$216)))) -> 10.02170969 | N202: =IF(MAX(C205:C216)-MIN(C205:C216)<5,AVERAGEIF(C205:C216,">0",N205:N216), IF(FORECAST($C202,N$205:N$216,$C$205:$C$216)<0,0, IF(FORECAST($C202,N$205:N$216,$C$205:$C$216)>100,100, FORECAST($C202,N$205:N$216,$C$205:$C$216)))) -> 96.16045949 | R202: =IF(MAX(C205:C216)-MIN(C205:C216)<5,AVERAGEIF(C205:C216,">0",R205:R216), IF(FORECAST($C202,R$205:R$216,$C$205:$C$216)<0,0, IF(FORECAST($C202,R$205:R$216,$C$205:$C$216)>100,100, FORECAST($C202,R$205:R$216,$C$205:$C$216)))) -> 3.733434091 | S202: =IF(MAX(C205:C216)-MIN(C205:C216)<5,AVERAGEIF(C205:C216,">0",S205:S216), IF(FORECAST($C202,S$205:S$216,$C$205:$C$216)<0,0, IF(FORECAST($C202,S$205:S$216,$C$205:$C$216)>100,100, FORECAST($C202,S$205:S$216,$C$205:$C$216)))) -> 99.32378272 | W202: =IF(MAX(C205:C216)-MIN(C205:C216)<5,AVERAGEIF(C205:C216,">0",W205:W216), IF(FORECAST($C202,W$205:W$216,$C$205:$C$216)<0,0, IF(FORECAST($C202,W$205:W$216,$C$205:$C$216)>100,100, FORECAST($C202,W$205:W$216,$C$205:$C$216)))) -> 0.5680527448 | X202: =IF(MAX(C205:C216)-MIN(C205:C216)<5,AVERAGEIF(C205:C216,">0",X205:X216), IF(FORECAST($C202,X$205:X$216,$C$205:$C$216)<0,0, IF(FORECAST($C202,X$205:X$216,$C$205:$C$216)>100,100, FORECAST($C202,X$205:X$216,$C$205:$C$216)))) -> 99.53744364 | AB202: =IF(MAX(C205:C216)-MIN(C205:C216)<5,AVERAGEIF(C205:C216,">0",AB205:AB216), IF(FORECAST($C202,AB$205:AB$216,$C$205:$C$216)<0,0, IF(FORECAST($C202,AB$205:AB$216,$C$205:$C$216)>100,100, FORECAST($C202,AB$205:AB$216,$C$205:$C$216)))) -> 0.04676332021
B204: Survey | C204: Year | D204: Improved | E204: Not shared | H204: Open defecation | I204: Improved | J204: Not shared | M204: Open defecation | N204: Improved | O204: Not shared | R204: Open defecation | S204: Improved | T204: Not shared | W204: Open defecation | X204: Improved | Y204: Not shared | AB204: Open defecation
B205: DHS01 | C205: 2001 | D205: =IF(ISERROR(INDIRECT(CONCATENATE($B205,"!H122"))),"",INDIRECT(CONCATENATE($B205,"!H122"))) -> 23.19290327 | E205: =IF(ISERROR(INDIRECT(CONCATENATE($B205,"!H129"))),"",INDIRECT(CONCATENATE($B205,"!H129"))) -> N/A | H205: =IF(ISERROR(INDIRECT(CONCATENATE($B205,"!H127"))),"",INDIRECT(CONCATENATE($B205,"!H127"))) -> 59.83520123 | I205: =IF(ISERROR(INDIRECT(CONCATENATE($B205,"!I122"))),"",INDIRECT(CONCATENATE($B205,"!I122"))) -> 57.22206716 | J205: =IF(ISERROR(INDIRECT(CONCATENATE($B205,"!I129"))),"",INDIRECT(CONCATENATE($B205,"!I129"))) -> N/A | M205: =IF(ISERROR(INDIRECT(CONCATENATE($B205,"!I127"))),"",INDIRECT(CONCATENATE($B205,"!I127"))) -> 24.26562403 | N205: =IF(ISERROR(INDIRECT(CONCATENATE($B205,"!J122"))),"",INDIRECT(CONCATENATE($B205,"!J122"))) -> 86.51741437 | O205: =IF(ISERROR(INDIRECT(CONCATENATE($B205,"!J129"))),"",INDIRECT(CONCATENATE($B205,"!J129"))) -> N/A | R205: =IF(ISERROR(INDIRECT(CONCATENATE($B205,"!J127"))),"",INDIRECT(CONCATENATE($B205,"!J127"))) -> 11.10248401 | S205: =IF(ISERROR(INDIRECT(CONCATENATE($B205,"!K122"))),"",INDIRECT(CONCATENATE($B205,"!K122"))) -> 95.03429566 | T205: =IF(ISERROR(INDIRECT(CONCATENATE($B205,"!K129"))),"",INDIRECT(CONCATENATE($B205,"!K129"))) -> N/A | W205: =IF(ISERROR(INDIRECT(CONCATENATE($B205,"!K127"))),"",INDIRECT(CONCATENATE($B205,"!K127"))) -> 0.7170882503 | X205: =IF(ISERROR(INDIRECT(CONCATENATE($B205,"!L122"))),"",INDIRECT(CONCATENATE($B205,"!L122"))) -> 100 | Y205: =IF(ISERROR(INDIRECT(CONCATENATE($B205,"!L129"))),"",INDIRECT(CONCATENATE($B205,"!L129"))) -> N/A | AB205: =IF(ISERROR(INDIRECT(CONCATENATE($B205,"!L2127"))),"",INDIRECT(CONCATENATE($B205,"!L127"))) -> 0
B206: WHS03 | C206: 2003 | D206: 49.10317262 | E206: 73.48273443 | H206: 44.73997622 | I206: 90.57402329 | J206: 66.08716214 | M206: 6.218912342 | N206: 95.17709405 | O206: 68.71699784 | R206: 0.09901435492 | S206: 96.54723992 | T206: 77.14652369 | W206: 0 | X206: 99.21021648 | Y206: 90.57905726 | AB206: 0
B207: DHS06 | C207: 2006 | D207: 29.57532388 | E207: 63.65916047 | H207: 60.46476795 | I207: 69.13621316 | J207: 58.92967891 | M207: 22.17470132 | N207: 91.3310683 | O207: 41.23462935 | R207: 3.342283321 | S207: 95.25711742 | T207: 37.89771945 | W207: 0.5377893285 | X207: 99.75959313 | Y207: 79.00989808 | AB207: 0
B208: DHS11 | C208: 2011 | D208: 52.23166553 | E208: 62.52880077 | H208: 41.4279255 | I208: 88.66944792 | J208: 62.44761291 | M208: 8.829158887 | N208: 99.3314192 | O208: 46.63138052 | R208: 0.4551011708 | S208: 98.88923616 | T208: 65.9703974 | W208: 0.1256840349 | X208: 100 | Y208: 90.61147762 | AB208: 0
B209: MICS14 | C209: 2014 | D209: 72.17299595 | E209: 82.1913825 | H209: 24.82432439 | I209: 96.64624291 | J209: 56.03712356 | M209: 3.068718758 | N209: 99.94451449 | O209: 48.93440963 | R209: 0 | S209: 99.86751708 | T209: 65.6343437 | W209: 0 | X209: 100 | Y209: 85.86562745 | AB209: 0
B210: DHS16 | C210: 2016 | D210: 76.22079208 | E210: 80.34163463 | H210: 21.04575758 | I210: 74.87482157 | J210: 80.08738106 | M210: 24.09872021 | N210: 84.97696007 | O210: 71.59356111 | R210: 13.50693907 | S210: 96.62665742 | T210: 60.08397055 | W210: 1.720811959 | X210: 98.62151188 | Y210: 85.47382199 | AB210: 0.1309372966
B211: MICS19 | C211: 2019 | D211: 87.35984997 | E211: 89.32430608 | H211: 10.43964438 | I211: 90.02490561 | J211: 88.20855132 | M211: 8.531537069 | N211: 97.27910823 | O211: 81.88003029 | R211: 1.769286238 | S211: 98.94047867 | T211: 62.74705285 | W211: 0.1272598728 | X211: 99.88184252 | Y211: 82.92452382 | AB211: 0
B218: =CONCATENATE("Urban use of sanitation facilities, ",C199,"–",C200) -> Urban use of sanitation facilities, 2000–2020 | S218: Data points used for regression
A297: RURAL | D297: Poorest | I297: Poor | N297: Middle | S297: Rich | X297: Richest
D298: Improved | E298: Basic | F298: Limited | G298: Unimproved | H298: Open defecation | I298: Improved | J298: Basic | K298: Limited | L298: Unimproved | M298: Open defecation | N298: Improved | O298: Basic | P298: Limited | Q298: Unimproved | R298: Open defecation | S298: Improved | T298: Basic | U298: Limited | V298: Unimproved | W298: Open defecation | X298: Improved | Y298: Basic | Z298: Limited | AA298: Unimproved | AB298: Open defecation
A299: Forecast period: | C299: 2000 | D299: =IF((D301+H301)>100,D301*100/(D301+H301),D301) -> 0 | E299: =D299*AVERAGEIF(E305:E316,">0")/100 -> 0 | F299: =D299*(100-AVERAGEIF(E305:E316,">0"))/100 -> 0 | G299: =100-(E299+F299+H299) -> 4.072346152 | H299: =IF((D301+H301)>100,H301*100/(D301+H301),H301) -> 95.92765385 | I299: =IF((I301+M301)>100,I301*100/(I301+M301),I301) -> 0 | J299: =I299*AVERAGEIF(J305:J316,">0")/100 -> 0 | K299: =I299*(100-AVERAGEIF(J305:J316,">0"))/100 -> 0 | L299: =100-(J299+K299+M299) -> 3.495900791 | M299: =IF((I301+M301)>100,M301*100/(I301+M301),M301) -> 96.50409921 | N299: =IF((N301+R301)>100,N301*100/(N301+R301),N301) -> 2.193560366 | O299: =N299*AVERAGEIF(O305:O316,">0")/100 -> 1.808284715 | P299: =N299*(100-AVERAGEIF(O305:O316,">0"))/100 -> 0.3852756509 | Q299: =100-(O299+P299+R299) -> 12.07285026 | R299: =IF((N301+R301)>100,R301*100/(N301+R301),R301) -> 85.73358937 | S299: =IF((S301+W301)>100,S301*100/(S301+W301),S301) -> 8.956238454 | T299: =S299*AVERAGEIF(T305:T316,">0")/100 -> 7.441037315 | U299: =S299*(100-AVERAGEIF(T305:T316,">0"))/100 -> 1.515201139 | V299: =100-(T299+U299+W299) -> 11.94637553 | W299: =IF((S301+W301)>100,W301*100/(S301+W301),W301) -> 79.09738602 | X299: =IF((X301+AB301)>100,X301*100/(X301+AB301),X301) -> 55.14966422 | Y299: =X299*AVERAGEIF(Y305:Y316,">0")/100 -> 44.54894895 | Z299: =X299*(100-AVERAGEIF(Y305:Y316,">0"))/100 -> 10.60071527 | AA299: =100-(Y299+Z299+AB299) -> 12.31060666 | AB299: =IF((X301+AB301)>100,AB301*100/(X301+AB301),AB301) -> 32.53972912
C300: 2020 | D300: =IF((D302+H302)>100,D302*100/(D302+H302),D302) -> 95.54046729 | E300: =D300*AVERAGEIF(E305:E316,">0")/100 -> 84.2516004 | F300: =D300*(100-AVERAGEIF(E305:E316,">0"))/100 -> 11.2888669 | G300: =100-(E300+F300+H300) -> 2.462327713 | H300: =IF((D302+H302)>100,H302*100/(D302+H302),H302) -> 1.997204993 | I300: =IF((I302+M302)>100,I302*100/(I302+M302),I302) -> 93.66982879 | J300: =I300*AVERAGEIF(J305:J316,">0")/100 -> 80.61150087 | K300: =I300*(100-AVERAGEIF(J305:J316,">0"))/100 -> 13.05832793 | L300: =100-(J300+K300+M300) -> 3.338034233 | M300: =IF((I302+M302)>100,M302*100/(I302+M302),M302) -> 2.992136973 | N300: =IF((N302+R302)>100,N302*100/(N302+R302),N302) -> 81.1443565 | O300: =N300*AVERAGEIF(O305:O316,">0")/100 -> 66.89220951 | P300: =N300*(100-AVERAGEIF(O305:O316,">0"))/100 -> 14.25214699 | Q300: =100-(O300+P300+R300) -> 0.7367167949 | R300: =IF((N302+R302)>100,R302*100/(N302+R302),R302) -> 18.11892671 | S300: =IF((S302+W302)>100,S302*100/(S302+W302),S302) -> 88.04256641 | T300: =S300*AVERAGEIF(T305:T316,">0")/100 -> 73.14767526 | U300: =S300*(100-AVERAGEIF(T305:T316,">0"))/100 -> 14.89489115 | V300: =100-(T300+U300+W300) -> 0 | W300: =IF((S302+W302)>100,W302*100/(S302+W302),W302) -> 11.95743359 | X300: =IF((X302+AB302)>100,X302*100/(X302+AB302),X302) -> 100 | Y300: =X300*AVERAGEIF(Y305:Y316,">0")/100 -> 80.77827776 | Z300: =X300*(100-AVERAGEIF(Y305:Y316,">0"))/100 -> 19.22172224 | AA300: =100-(Y300+Z300+AB300) -> 0 | AB300: =IF((X302+AB302)>100,AB302*100/(X302+AB302),AB302) -> 0
A301: Regression period: | C301: =MinRegYear(C299,C305:C316) -> 2000 | D301: =IF(MAX(C305:C316)-MIN(C305:C316)<5,AVERAGEIF(C305:C316,">0",D305:D316), IF(FORECAST($C301,D$305:D$316,$C$305:$C$316)<0,0, IF(FORECAST($C301,D$305:D$316,$C$305:$C$316)>100,100, FORECAST($C301,D$305:D$316,$C$305:$C$316)))) -> 0 | H301: =IF(MAX(C305:C316)-MIN(C305:C316)<5,AVERAGEIF(C305:C316,">0",H305:H316), IF(FORECAST($C301,H$305:H$316,$C$305:$C$316)<0,0, IF(FORECAST($C301,H$305:H$316,$C$305:$C$316)>100,100, FORECAST($C301,H$305:H$316,$C$305:$C$316)))) -> 95.92765385 | I301: =IF(MAX(C305:C316)-MIN(C305:C316)<5,AVERAGEIF(C305:C316,">0",I305:I316), IF(FORECAST($C301,I$305:I$316,$C$305:$C$316)<0,0, IF(FORECAST($C301,I$305:I$316,$C$305:$C$316)>100,100, FORECAST($C301,I$305:I$316,$C$305:$C$316)))) -> 0 | M301: =IF(MAX(C305:C316)-MIN(C305:C316)<5,AVERAGEIF(C305:C316,">0",M305:M316), IF(FORECAST($C301,M$305:M$316,$C$305:$C$316)<0,0, IF(FORECAST($C301,M$305:M$316,$C$305:$C$316)>100,100, FORECAST($C301,M$305:M$316,$C$305:$C$316)))) -> 96.50409921 | N301: =IF(MAX(C305:C316)-MIN(C305:C316)<5,AVERAGEIF(C305:C316,">0",N305:N316), IF(FORECAST($C301,N$305:N$316,$C$305:$C$316)<0,0, IF(FORECAST($C301,N$305:N$316,$C$305:$C$316)>100,100, FORECAST($C301,N$305:N$316,$C$305:$C$316)))) -> 2.193560366 | R301: =IF(MAX(C305:C316)-MIN(C305:C316)<5,AVERAGEIF(C305:C316,">0",R305:R316), IF(FORECAST($C301,R$305:R$316,$C$305:$C$316)<0,0, IF(FORECAST($C301,R$305:R$316,$C$305:$C$316)>100,100, FORECAST($C301,R$305:R$316,$C$305:$C$316)))) -> 85.73358937 | S301: =IF(MAX(C305:C316)-MIN(C305:C316)<5,AVERAGEIF(C305:C316,">0",S305:S316), IF(FORECAST($C301,S$305:S$316,$C$305:$C$316)<0,0, IF(FORECAST($C301,S$305:S$316,$C$305:$C$316)>100,100, FORECAST($C301,S$305:S$316,$C$305:$C$316)))) -> 8.956238454 | W301: =IF(MAX(C305:C316)-MIN(C305:C316)<5,AVERAGEIF(C305:C316,">0",W305:W316), IF(FORECAST($C301,W$305:W$316,$C$305:$C$316)<0,0, IF(FORECAST($C301,W$305:W$316,$C$305:$C$316)>100,100, FORECAST($C301,W$305:W$316,$C$305:$C$316)))) -> 79.09738602 | X301: =IF(MAX(C305:C316)-MIN(C305:C316)<5,AVERAGEIF(C305:C316,">0",X305:X316), IF(FORECAST($C301,X$305:X$316,$C$305:$C$316)<0,0, IF(FORECAST($C301,X$305:X$316,$C$305:$C$316)>100,100, FORECAST($C301,X$305:X$316,$C$305:$C$316)))) -> 55.14966422 | AB301: =IF(MAX(C305:C316)-MIN(C305:C316)<5,AVERAGEIF(C305:C316,">0",AB305:AB316), IF(FORECAST($C301,AB$305:AB$316,$C$305:$C$316)<0,0, IF(FORECAST($C301,AB$305:AB$316,$C$305:$C$316)>100,100, FORECAST($C301,AB$305:AB$316,$C$305:$C$316)))) -> 32.53972912
C302: =MaxRegYear(C300,C305:C316) -> 2020 | D302: =IF(MAX(C305:C316)-MIN(C305:C316)<5,AVERAGEIF(C305:C316,">0",D305:D316), IF(FORECAST($C302,D$305:D$316,$C$305:$C$316)<0,0, IF(FORECAST($C302,D$305:D$316,$C$305:$C$316)>100,100, FORECAST($C302,D$305:D$316,$C$305:$C$316)))) -> 95.54046729 | H302: =IF(MAX(C305:C316)-MIN(C305:C316)<5,AVERAGEIF(C305:C316,">0",H305:H316), IF(FORECAST($C302,H$305:H$316,$C$305:$C$316)<0,0, IF(FORECAST($C302,H$305:H$316,$C$305:$C$316)>100,100, FORECAST($C302,H$305:H$316,$C$305:$C$316)))) -> 1.997204993 | I302: =IF(MAX(C305:C316)-MIN(C305:C316)<5,AVERAGEIF(C305:C316,">0",I305:I316), IF(FORECAST($C302,I$305:I$316,$C$305:$C$316)<0,0, IF(FORECAST($C302,I$305:I$316,$C$305:$C$316)>100,100, FORECAST($C302,I$305:I$316,$C$305:$C$316)))) -> 93.66982879 | M302: =IF(MAX(C305:C316)-MIN(C305:C316)<5,AVERAGEIF(C305:C316,">0",M305:M316), IF(FORECAST($C302,M$305:M$316,$C$305:$C$316)<0,0, IF(FORECAST($C302,M$305:M$316,$C$305:$C$316)>100,100, FORECAST($C302,M$305:M$316,$C$305:$C$316)))) -> 2.992136973 | N302: =IF(MAX(C305:C316)-MIN(C305:C316)<5,AVERAGEIF(C305:C316,">0",N305:N316), IF(FORECAST($C302,N$305:N$316,$C$305:$C$316)<0,0, IF(FORECAST($C302,N$305:N$316,$C$305:$C$316)>100,100, FORECAST($C302,N$305:N$316,$C$305:$C$316)))) -> 81.1443565 | R302: =IF(MAX(C305:C316)-MIN(C305:C316)<5,AVERAGEIF(C305:C316,">0",R305:R316), IF(FORECAST($C302,R$305:R$316,$C$305:$C$316)<0,0, IF(FORECAST($C302,R$305:R$316,$C$305:$C$316)>100,100, FORECAST($C302,R$305:R$316,$C$305:$C$316)))) -> 18.11892671 | S302: =IF(MAX(C305:C316)-MIN(C305:C316)<5,AVERAGEIF(C305:C316,">0",S305:S316), IF(FORECAST($C302,S$305:S$316,$C$305:$C$316)<0,0, IF(FORECAST($C302,S$305:S$316,$C$305:$C$316)>100,100, FORECAST($C302,S$305:S$316,$C$305:$C$316)))) -> 88.4853224 | W302: =IF(MAX(C305:C316)-MIN(C305:C316)<5,AVERAGEIF(C305:C316,">0",W305:W316), IF(FORECAST($C302,W$305:W$316,$C$305:$C$316)<0,0, IF(FORECAST($C302,W$305:W$316,$C$305:$C$316)>100,100, FORECAST($C302,W$305:W$316,$C$305:$C$316)))) -> 12.01756615 | X302: =IF(MAX(C305:C316)-MIN(C305:C316)<5,AVERAGEIF(C305:C316,">0",X305:X316), IF(FORECAST($C302,X$305:X$316,$C$305:$C$316)<0,0, IF(FORECAST($C302,X$305:X$316,$C$305:$C$316)>100,100, FORECAST($C302,X$305:X$316,$C$305:$C$316)))) -> 100 | AB302: =IF(MAX(C305:C316)-MIN(C305:C316)<5,AVERAGEIF(C305:C316,">0",AB305:AB316), IF(FORECAST($C302,AB$305:AB$316,$C$305:$C$316)<0,0, IF(FORECAST($C302,AB$305:AB$316,$C$305:$C$316)>100,100, FORECAST($C302,AB$305:AB$316,$C$305:$C$316)))) -> 0
B304: Survey | C304: Year | D304: Improved | E304: Not shared | H304: Open defecation | I304: Improved | J304: Not shared | M304: Open defecation | N304: Improved | O304: Not shared | R304: Open defecation | S304: Improved | T304: Not shared | W304: Open defecation | X304: Improved | Y304: Not shared | AB304: Open defecation
B305: DHS01 | C305: 2001 | D305: =IF(ISERROR(INDIRECT(CONCATENATE($B305,"!M122"))),"",INDIRECT(CONCATENATE($B305,"!M122"))) -> 3.868460752 | E305: =IF(ISERROR(INDIRECT(CONCATENATE($B305,"!M129"))),"",INDIRECT(CONCATENATE($B305,"!M129"))) -> N/A | H305: =IF(ISERROR(INDIRECT(CONCATENATE($B305,"!M127"))),"",INDIRECT(CONCATENATE($B305,"!M127"))) -> 87.37972887 | I305: =IF(ISERROR(INDIRECT(CONCATENATE($B305,"!N122"))),"",INDIRECT(CONCATENATE($B305,"!N122"))) -> 0 | J305: =IF(ISERROR(INDIRECT(CONCATENATE($B305,"!N129"))),"",INDIRECT(CONCATENATE($B305,"!N129"))) -> N/A | M305: =IF(ISERROR(INDIRECT(CONCATENATE($B305,"!N127"))),"",INDIRECT(CONCATENATE($B305,"!N127"))) -> 100 | N305: =IF(ISERROR(INDIRECT(CONCATENATE($B305,"!O122"))),"",INDIRECT(CONCATENATE($B305,"!O122"))) -> 9.010366747 | O305: =IF(ISERROR(INDIRECT(CONCATENATE($B305,"!O129"))),"",INDIRECT(CONCATENATE($B305,"!O129"))) -> N/A | R305: =IF(ISERROR(INDIRECT(CONCATENATE($B305,"!O127"))),"",INDIRECT(CONCATENATE($B305,"!O127"))) -> 79.9089803 | S305: =IF(ISERROR(INDIRECT(CONCATENATE($B305,"!P122"))),"",INDIRECT(CONCATENATE($B305,"!P122"))) -> 7.000372174 | T305: =IF(ISERROR(INDIRECT(CONCATENATE($B305,"!P129"))),"",INDIRECT(CONCATENATE($B305,"!P129"))) -> N/A | W305: =IF(ISERROR(INDIRECT(CONCATENATE($B305,"!P127"))),"",INDIRECT(CONCATENATE($B305,"!P127"))) -> 83.17782471 | X305: =IF(ISERROR(INDIRECT(CONCATENATE($B305,"!Q122"))),"",INDIRECT(CONCATENATE($B305,"!Q122"))) -> 43.85329481 | Y305: =IF(ISERROR(INDIRECT(CONCATENATE($B305,"!Q129"))),"",INDIRECT(CONCATENATE($B305,"!Q129"))) -> N/A | AB305: =IF(ISERROR(INDIRECT(CONCATENATE($B305,"!Q2127"))),"",INDIRECT(CONCATENATE($B305,"!Q127"))) -> 41.68339423
B306: WHS03 | C306: 2003 | D306: 15.23698501 | E306: 83.98952664 | H306: 78.73842999 | I306: 19.53006255 | J306: 92.63118939 | M306: 73.1961851 | N306: 22.90730262 | O306: 92.99492889 | R306: 71.43135939 | S306: 35.96077271 | T306: 90.40306378 | W306: 55.00094693 | X306: 75.33711575 | Y306: 91.34023178 | AB306: 16.33738174
B307: DHS06 | C307: 2006 | D307: 14.97344662 | E307: 90.49843985 | H307: 70.84037844 | I307: 23.88169215 | J307: 79.33491416 | M307: 62.40559165 | N307: 18.72543353 | O307: 65.96694055 | R307: 67.64848485 | S307: 24.08495206 | T307: 70.1796751 | W307: 63.57848397 | X307: 65.69371481 | Y307: 68.46917013 | AB307: 26.04267331
B308: DHS11 | C308: 2011 | D308: 24.68593259 | E308: 82.68777988 | H308: 63.63483181 | I308: 32.92455612 | J308: 78.60965753 | M308: 54.96693622 | N308: 40.06099084 | O308: 76.19280276 | R308: 50.07925348 | S308: 57.62152923 | T308: 78.38184176 | W308: 37.46834154 | X308: 92.63279089 | Y308: 67.37050691 | AB308: 6.167634206
B309: MICS14 | C309: 2014 | D309: 78.12181455 | E309: 95.26670116 | H309: 19.83867233 | I309: 64.20298398 | J309: 91.95868715 | M309: 33.31695095 | N309: 46.96275848 | O309: 87.21427949 | R309: 50.36087429 | S309: 55.21717228 | T309: 86.67588224 | W309: 42.27181821 | X309: 90.69741595 | Y309: 83.12971127 | AB309: 7.278770211
B310: DHS16 | C310: 2016 | D310: 85.43686184 | E310: 85.94593517 | H310: 12.60413405 | I310: 80.0371962 | J310: 82.22769718 | M310: 18.18900446 | N310: 64.13247906 | O310: 83.64564889 | R310: 34.94247859 | S310: 68.15348569 | T310: 82.08178477 | W310: 31.46545361 | X310: 86.42860942 | Y310: 84.00454652 | AB310: 12.70722109
B311: MICS19 | C311: 2019 | D311: 87.49334963 | E311: 90.71684016 | H311: 9.700830458 | I311: 92.51744457 | J311: 91.59302619 | M311: 6.162158249 | N311: 89.88337777 | O311: 88.60175276 | R311: 9.112375372 | S311: 93.00717884 | T311: 90.77077617 | W311: 5.939463621 | X311: 97.04027599 | Y311: 90.35549995 | AB311: 2.382551124
B318: =CONCATENATE("Rural use of sanitation facilities, ",C299,"–",C300) -> Rural use of sanitation facilities, 2000–2020 | S318: Data points used for regression

Sheet Hygiene
B4: Access to hygiene facilities by wealth quintile (%)
B5: =IF(ISERROR(INDIRECT(CONCATENATE($E$32,"!A2"))),"",INDIRECT(CONCATENATE($E$32,"!A2"))) -> Nepal
B7: =CONCATENATE("National ",IF(ISERROR(INDIRECT(CONCATENATE($E$32,"!A2"))),"",INDIRECT(CONCATENATE($E$32,"!A210")))) -> National Access to hygiene facilities | K7: =CONCATENATE("Urban ",IF(ISERROR(INDIRECT(CONCATENATE($E$32,"!A2"))),"",INDIRECT(CONCATENATE($E$32,"!A210")))) -> Urban Access to hygiene facilities | S7: =CONCATENATE("Rural ",IF(ISERROR(INDIRECT(CONCATENATE($E$32,"!A2"))),"",INDIRECT(CONCATENATE($E$32,"!A210")))) -> Rural Access to hygiene facilities
E32: =INDEX(B88:B100,A88) -> MICS19 | G32: =IF(ISERROR(INDIRECT(CONCATENATE($E$32,"!A2"))),"",INDIRECT(CONCATENATE($E$32,"!A2"))) -> Nepal | K32: Poorest | N32: Poor | Q32: Middle | T32: Rich | W32: Richest
K33: Basic | L33: Limited | M33: No facility | N33: Basic | O33: Limited | P33: No facility | Q33: Basic | R33: Limited | S33: No facility | T33: Basic | U33: Limited | V33: No facility | W33: Basic | X33: Limited | Y33: No facility
B34: >>> Select Survey : | G34: NATIONAL | J34: =IF(ISERROR(INDIRECT(CONCATENATE(#REF!,"!A2"))),"",INDIRECT(CONCATENATE(#REF!,"!A210"))) ->  | K34: =IF(ISERROR(INDIRECT(CONCATENATE($E$32,"!C222"))),"",INDIRECT(CONCATENATE($E$32,"!C222"))) -> 49.10360238 | L34: =IF(ISERROR(INDIRECT(CONCATENATE($E$32,"!C223"))),"",INDIRECT(CONCATENATE($E$32,"!C223"))) -> 26.98777063 | M34: =IF(ISERROR(INDIRECT(CONCATENATE($E$32,"!C224"))),"",INDIRECT(CONCATENATE($E$32,"!C224"))) -> 23.908627 | N34: =IF(ISERROR(INDIRECT(CONCATENATE($E$32,"!D222"))),"",INDIRECT(CONCATENATE($E$32,"!D222"))) -> 70.5329171 | O34: =IF(ISERROR(INDIRECT(CONCATENATE($E$32,"!D223"))),"",INDIRECT(CONCATENATE($E$32,"!D223"))) -> 19.53137007 | P34: =IF(ISERROR(INDIRECT(CONCATENATE($E$32,"!D224"))),"",INDIRECT(CONCATENATE($E$32,"!D224"))) -> 9.935712831 | Q34: =IF(ISERROR(INDIRECT(CONCATENATE($E$32,"!E222"))),"",INDIRECT(CONCATENATE($E$32,"!E222"))) -> 79.70835294 | R34: =IF(ISERROR(INDIRECT(CONCATENATE($E$32,"!E223"))),"",INDIRECT(CONCATENATE($E$32,"!E223"))) -> 14.46063973 | S34: =IF(ISERROR(INDIRECT(CONCATENATE($E$32,"!E224"))),"",INDIRECT(CONCATENATE($E$32,"!E224"))) -> 5.831007331 | T34: =IF(ISERROR(INDIRECT(CONCATENATE($E$32,"!F222"))),"",INDIRECT(CONCATENATE($E$32,"!F222"))) -> 89.17560792 | U34: =IF(ISERROR(INDIRECT(CONCATENATE($E$32,"!F223"))),"",INDIRECT(CONCATENATE($E$32,"!F223"))) -> 8.786601079 | V34: =IF(ISERROR(INDIRECT(CONCATENATE($E$32,"!F224"))),"",INDIRECT(CONCATENATE($E$32,"!F224"))) -> 2.037791005 | W34: =IF(ISERROR(INDIRECT(CONCATENATE($E$32,"!G222"))),"",INDIRECT(CONCATENATE($E$32,"!G222"))) -> 97.68854505 | X34: =IF(ISERROR(INDIRECT(CONCATENATE($E$32,"!G223"))),"",INDIRECT(CONCATENATE($E$32,"!G223"))) -> 1.977591483 | Y34: =IF(ISERROR(INDIRECT(CONCATENATE($E$32,"!G224"))),"",INDIRECT(CONCATENATE($E$32,"!G224"))) -> 0.3338634716
G37: URBAN | J37: =IF(ISERROR(INDIRECT(CONCATENATE(#REF!,"!A2"))),"",INDIRECT(CONCATENATE(#REF!,"!A210"))) ->  | K37: =IF(ISERROR(INDIRECT(CONCATENATE($E$32,"!H222"))),"",INDIRECT(CONCATENATE($E$32,"!H222"))) -> 58.94983143 | L37: =IF(ISERROR(INDIRECT(CONCATENATE($E$32,"!H223"))),"",INDIRECT(CONCATENATE($E$32,"!H223"))) -> 22.41685759 | M37: =IF(ISERROR(INDIRECT(CONCATENATE($E$32,"!H224"))),"",INDIRECT(CONCATENATE($E$32,"!H224"))) -> 18.63331098 | N37: =IF(ISERROR(INDIRECT(CONCATENATE($E$32,"!I222"))),"",INDIRECT(CONCATENATE($E$32,"!I222"))) -> 76.56132687 | O37: =IF(ISERROR(INDIRECT(CONCATENATE($E$32,"!I223"))),"",INDIRECT(CONCATENATE($E$32,"!I223"))) -> 16.83816957 | P37: =IF(ISERROR(INDIRECT(CONCATENATE($E$32,"!I224"))),"",INDIRECT(CONCATENATE($E$32,"!I224"))) -> 6.60050356 | Q37: =IF(ISERROR(INDIRECT(CONCATENATE($E$32,"!J222"))),"",INDIRECT(CONCATENATE($E$32,"!J222"))) -> 85.85501416 | R37: =IF(ISERROR(INDIRECT(CONCATENATE($E$32,"!J223"))),"",INDIRECT(CONCATENATE($E$32,"!J223"))) -> 11.13328273 | S37: =IF(ISERROR(INDIRECT(CONCATENATE($E$32,"!J224"))),"",INDIRECT(CONCATENATE($E$32,"!J224"))) -> 3.011703101 | T37: =IF(ISERROR(INDIRECT(CONCATENATE($E$32,"!K222"))),"",INDIRECT(CONCATENATE($E$32,"!K222"))) -> 92.36309168 | U37: =IF(ISERROR(INDIRECT(CONCATENATE($E$32,"!K223"))),"",INDIRECT(CONCATENATE($E$32,"!K223"))) -> 6.146364504 | V37: =IF(ISERROR(INDIRECT(CONCATENATE($E$32,"!K224"))),"",INDIRECT(CONCATENATE($E$32,"!K224"))) -> 1.490543817 | W37: =IF(ISERROR(INDIRECT(CONCATENATE($E$32,"!L222"))),"",INDIRECT(CONCATENATE($E$32,"!L222"))) -> 98.72873137 | X37: =IF(ISERROR(INDIRECT(CONCATENATE($E$32,"!L223"))),"",INDIRECT(CONCATENATE($E$32,"!L223"))) -> 1.071448581 | Y37: =IF(ISERROR(INDIRECT(CONCATENATE($E$32,"!L224"))),"",INDIRECT(CONCATENATE($E$32,"!L224"))) -> 0.1998200478
G40: RURAL | J40: =IF(ISERROR(INDIRECT(CONCATENATE(#REF!,"!A2"))),"",INDIRECT(CONCATENATE(#REF!,"!A210"))) ->  | K40: =IF(ISERROR(INDIRECT(CONCATENATE($E$32,"!M222"))),"",INDIRECT(CONCATENATE($E$32,"!M222"))) -> 40.64451095 | L40: =IF(ISERROR(INDIRECT(CONCATENATE($E$32,"!M223"))),"",INDIRECT(CONCATENATE($E$32,"!M223"))) -> 29.48345276 | M40: =IF(ISERROR(INDIRECT(CONCATENATE($E$32,"!M224"))),"",INDIRECT(CONCATENATE($E$32,"!M224"))) -> 29.87203629 | N40: =IF(ISERROR(INDIRECT(CONCATENATE($E$32,"!N222"))),"",INDIRECT(CONCATENATE($E$32,"!N222"))) -> 57.25087078 | O40: =IF(ISERROR(INDIRECT(CONCATENATE($E$32,"!N223"))),"",INDIRECT(CONCATENATE($E$32,"!N223"))) -> 24.54128001 | P40: =IF(ISERROR(INDIRECT(CONCATENATE($E$32,"!N224"))),"",INDIRECT(CONCATENATE($E$32,"!N224"))) -> 18.20784921 | Q40: =IF(ISERROR(INDIRECT(CONCATENATE($E$32,"!O222"))),"",INDIRECT(CONCATENATE($E$32,"!O222"))) -> 68.77647497 | R40: =IF(ISERROR(INDIRECT(CONCATENATE($E$32,"!O223"))),"",INDIRECT(CONCATENATE($E$32,"!O223"))) -> 22.02481946 | S40: =IF(ISERROR(INDIRECT(CONCATENATE($E$32,"!O224"))),"",INDIRECT(CONCATENATE($E$32,"!O224"))) -> 9.198705569 | T40: =IF(ISERROR(INDIRECT(CONCATENATE($E$32,"!P222"))),"",INDIRECT(CONCATENATE($E$32,"!P222"))) -> 74.33396325 | U40: =IF(ISERROR(INDIRECT(CONCATENATE($E$32,"!P223"))),"",INDIRECT(CONCATENATE($E$32,"!P223"))) -> 18.47336253 | V40: =IF(ISERROR(INDIRECT(CONCATENATE($E$32,"!P224"))),"",INDIRECT(CONCATENATE($E$32,"!P224"))) -> 7.192674217 | W40: =IF(ISERROR(INDIRECT(CONCATENATE($E$32,"!Q222"))),"",INDIRECT(CONCATENATE($E$32,"!Q222"))) -> 91.08182636 | X40: =IF(ISERROR(INDIRECT(CONCATENATE($E$32,"!Q223"))),"",INDIRECT(CONCATENATE($E$32,"!Q223"))) -> 6.356878002 | Y40: =IF(ISERROR(INDIRECT(CONCATENATE($E$32,"!Q224"))),"",INDIRECT(CONCATENATE($E$32,"!Q224"))) -> 2.56129564
A88: 7 | B88: DHS01
B89: WHS03
B90: DHS06
B91: DHS11
B92: MICS14
B93: DHS16
B94: MICS19
B95: Input
B96: Template

Sheet DHS01
A2: =A1026 -> Nepal
A3: =A1034 -> 2001
A4: Use of drinking water sources
A5: by wealth quintile and sub-national region
A6: Notes:
A7: WHO/UNICEF JMP customised wealth index excludes water,
A8: sanitation and hygiene assets.
A9: Survey used for analysis: | B9: =A1025 -> DHS01
A10: Improved springs based on: | B10: DHS06
A11: Time to source based on: | B11: DHS06
A14: Use of drinking water sources | C14: NATIONAL wealth index quintile | H14: URBAN wealth index quintile | M14: RURAL wealth index quintile | R14: SUB-REGIONS: | BA14: Raw numbers of respondents: | BB14: Use of drinking water sources | BC14: NATIONAL wealth index quintile | BH14: URBAN wealth index quintile | BM14: RURAL wealth index quintile | BR14: SUB-REGIONS:
A15: Weighted percentage (used in graphs) | C15: Poorest | D15: Poor | E15: Middle | F15: Rich | G15: Richest | H15: Poorest | I15: Poor | J15: Middle | K15: Rich | L15: Richest | M15: Poorest | N15: Poor | O15: Middle | P15: Rich | Q15: Richest | R15: Central | S15: Eastern | T15: Far-western | U15: Mid-western | V15: Western | BA15: Water data, raw numbers (weighted) | BC15: Poorest | BD15: Poor | BE15: Middle | BF15: Rich | BG15: Richest | BH15: Poorest | BI15: Poor | BJ15: Middle | BK15: Rich | BL15: Richest | BM15: Poorest | BN15: Poor | BO15: Middle | BP15: Rich | BQ15: Richest | BR15: Central | BS15: Eastern | BT15: Far-western | BU15: Mid-western | BV15: Western
A16: Water | B16: Improved | C16: =C58+C59+C62+C63+C66+C64*'DHS06'!C25/100 -> 69.45760946 | D16: =D58+D59+D62+D63+D66+D64*'DHS06'!D25/100 -> 92.170086 | E16: =E58+E59+E62+E63+E66+E64*'DHS06'!E25/100 -> 64.80570821 | F16: =F58+F59+F62+F63+F66+F64*'DHS06'!F25/100 -> 88.59290065 | G16: =G58+G59+G62+G63+G66+G64*'DHS06'!G25/100 -> 89.04428739 | H16: =H58+H59+H62+H63+H66+H64*'DHS06'!H25/100 -> 85.16914014 | I16: =I58+I59+I62+I63+I66+I64*'DHS06'!I25/100 -> 87.42939045 | J16: =J58+J59+J62+J63+J66+J64*'DHS06'!J25/100 -> 90.22766674 | K16: =K58+K59+K62+K63+K66+K64*'DHS06'!K25/100 -> 92.40404327 | L16: =L58+L59+L62+L63+L66+L64*'DHS06'!L25/100 -> 89.37711409 | M16: =M58+M59+M62+M63+M66+M64*'DHS06'!M25/100 -> 69.15158159 | N16: =N58+N59+N62+N63+N66+N64*'DHS06'!N25/100 -> 99.32064845 | O16: =O58+O59+O62+O63+O66+O64*'DHS06'!O25/100 -> 74.63713485 | P16: =P58+P59+P62+P63+P66+P64*'DHS06'!P25/100 -> 89.922157 | Q16: =Q58+Q59+Q62+Q63+Q66+Q64*'DHS06'!Q25/100 -> 86.21787167 | R16: =R58+R59+R62+R63+R66+R64*'DHS06'!R25/100 -> 87.98779542 | S16: =S58+S59+S62+S63+S66+S64*'DHS06'!S25/100 -> 75.65654465 | T16: =T58+T59+T62+T63+T66+T64*'DHS06'!T25/100 -> 69.18148678 | U16: =U58+U59+U62+U63+U66+U64*'DHS06'!U25/100 -> 56.18142767 | V16: =V58+V59+V62+V63+V66+V64*'DHS06'!V25/100 -> 80.97295589 | BA16: Water | BB16: Improved | BC16: N/A | BD16: N/A | BE16: N/A | BF16: N/A | BG16: N/A | BH16: N/A | BI16: N/A | BJ16: N/A | BK16: N/A | BL16: N/A | BM16: N/A | BN16: N/A | BO16: N/A | BP16: N/A | BQ16: N/A | BR16: N/A | BS16: N/A | BT16: N/A | BU16: N/A | BV16: N/A
B17: Not Improved | C17: =100-C16 -> 30.54239054 | D17: =100-D16 -> 7.829913995 | E17: 35.19429179 | F17: 11.40709935 | G17: 10.95571261 | H17: 14.83085986 | I17: 12.57060955 | J17: 9.772333262 | K17: 7.59595673 | L17: 10.62288591 | M17: 30.84841841 | N17: 0.6793515517 | O17: 25.36286515 | P17: 10.077843 | Q17: 13.78212833 | R17: 12.01220458 | S17: 24.34345535 | T17: 30.81851322 | U17: 43.81857233 | V17: 19.02704411 | BB17: Not Improved | BC17: N/A | BD17: N/A | BE17: N/A | BF17: N/A | BG17: N/A | BH17: N/A | BI17: N/A | BJ17: N/A | BK17: N/A | BL17: N/A | BM17: N/A | BN17: N/A | BO17: N/A | BP17: N/A | BQ17: N/A | BR17: N/A | BS17: N/A | BT17: N/A | BU17: N/A | BV17: N/A
A18: Water ladder | B18: Basic | C18: =C16*'DHS06'!C23/100 -> 64.84240402 | D18: =D16*'DHS06'!D23/100 -> 89.67924563 | E18: =E16*'DHS06'!E23/100 -> 64.0485163 | F18: =F16*'DHS06'!F23/100 -> 87.45851933 | G18: =G16*'DHS06'!G23/100 -> 86.46143226 | H18: =H16*'DHS06'!H23/100 -> 83.80225856 | I18: =I16*'DHS06'!I23/100 -> 85.18713306 | J18: =J16*'DHS06'!J23/100 -> 86.15930742 | K18: =K16*'DHS06'!K23/100 -> 88.24800823 | L18: =L16*'DHS06'!L23/100 -> 85.68082302 | M18: =M16*'DHS06'!M23/100 -> 64.33510892 | N18: =N16*'DHS06'!N23/100 -> 96.19613839 | O18: =O16*'DHS06'!O23/100 -> 73.17915166 | P18: =P16*'DHS06'!P23/100 -> 89.29158035 | Q18: =Q16*'DHS06'!Q23/100 -> 84.96765666 | R18: =R16*'DHS06'!R23/100 -> 85.06591477 | S18: =S16*'DHS06'!S23/100 -> 74.63821696 | T18: =T16*'DHS06'!T23/100 -> 69.05720018 | U18: =U16*'DHS06'!U23/100 -> 53.48234385 | V18: =V16*'DHS06'!V23/100 -> 78.0350752 | BA18: Water ladder | BB18: Basic | BC18: N/A | BD18: N/A | BE18: N/A | BF18: N/A | BG18: N/A | BH18: N/A | BI18: N/A | BJ18: N/A | BK18: N/A | BL18: N/A | BM18: N/A | BN18: N/A | BO18: N/A | BP18: N/A | BQ18: N/A | BR18: N/A | BS18: N/A | BT18: N/A | BU18: N/A | BV18: N/A
B19: Limited | C19: =C16*'DHS06'!C22/100 -> 4.615205444 | D19: =D16*'DHS06'!D22/100 -> 2.490840374 | E19: =E16*'DHS06'!E22/100 -> 0.7571919181 | F19: =F16*'DHS06'!F22/100 -> 1.134381316 | G19: =G16*'DHS06'!G22/100 -> 2.582855125 | H19: =H16*'DHS06'!H22/100 -> 1.366881586 | I19: =I16*'DHS06'!I22/100 -> 2.242257395 | J19: =J16*'DHS06'!J22/100 -> 4.068359319 | K19: =K16*'DHS06'!K22/100 -> 4.156035037 | L19: =L16*'DHS06'!L22/100 -> 3.696291074 | M19: =M16*'DHS06'!M22/100 -> 4.816472672 | N19: =N16*'DHS06'!N22/100 -> 3.124510056 | O19: =O16*'DHS06'!O22/100 -> 1.457983189 | P19: =P16*'DHS06'!P22/100 -> 0.6305766479 | Q19: =Q16*'DHS06'!Q22/100 -> 1.250215003 | R19: =R16*'DHS06'!R22/100 -> 2.921880649 | S19: =S16*'DHS06'!S22/100 -> 1.018327694 | T19: =T16*'DHS06'!T22/100 -> 0.1242866011 | U19: =U16*'DHS06'!U22/100 -> 2.699083817 | V19: =V16*'DHS06'!V22/100 -> 2.937880693 | BB19: Limited | BC19: N/A | BD19: N/A | BE19: N/A | BF19: N/A | BG19: N/A | BH19: N/A | BI19: N/A | BJ19: N/A | BK19: N/A | BL19: N/A | BM19: N/A | BN19: N/A | BO19: N/A | BP19: N/A | BQ19: N/A | BR19: N/A | BS19: N/A | BT19: N/A | BU19: N/A | BV19: N/A
B20: Unimproved | C20: =100-(C18+C19+C21) -> 26.50527928 | D20: =100-(D18+D19+D21) -> 7.829913995 | E20: 31.44711221 | F20: 10.94836377 | G20: 9.233762844 | H20: 12.06692674 | I20: 12.07399665 | J20: 9.772333262 | K20: 7.59595673 | L20: 10.62288591 | M20: 26.7831942 | N20: 0.6793515517 | O20: 22.81516692 | P20: 9.802659421 | Q20: 11.81018683 | R20: 11.33149176 | S20: 23.53673274 | T20: 25.76868861 | U20: 42.24422442 | V20: 12.1691458 | BB20: Unimproved | BC20: N/A | BD20: N/A | BE20: N/A | BF20: N/A | BG20: N/A | BH20: N/A | BI20: N/A | BJ20: N/A | BK20: N/A | BL20: N/A | BM20: N/A | BN20: N/A | BO20: N/A | BP20: N/A | BQ20: N/A | BR20: N/A | BS20: N/A | BT20: N/A | BU20: N/A | BV20: N/A
B21: Surface water | C21: =C65 -> 4.037111261 | D21: 0 | E21: 3.747179578 | F21: 0.4587355796 | G21: 1.721949767 | H21: 2.763933116 | I21: 0.4966128997 | J21: 0 | K21: 0 | L21: 0 | M21: 4.065224203 | N21: 0 | O21: 2.547698231 | P21: 0.2751835787 | Q21: 1.971941507 | R21: 0.6807128257 | S21: 0.8067226043 | T21: 5.049824618 | U21: 1.574347913 | V21: 6.857898301 | BB21: Surface water | BC21: N/A | BD21: N/A | BE21: N/A | BF21: N/A | BG21: N/A | BH21: N/A | BI21: N/A | BJ21: N/A | BK21: N/A | BL21: N/A | BM21: N/A | BN21: N/A | BO21: N/A | BP21: N/A | BQ21: N/A | BR21: N/A | BS21: N/A | BT21: N/A | BU21: N/A | BV21: N/A
A22: Improved water point at more than 30 minutes | B22: Yes | C22: N/A | D22: N/A | E22: N/A | F22: N/A | G22: N/A | H22: N/A | I22: N/A | J22: N/A | K22: N/A | L22: N/A | M22: N/A | N22: N/A | O22: N/A | P22: N/A | Q22: N/A | R22: N/A | S22: N/A | T22: N/A | U22: N/A | V22: N/A | BA22: Improved water point at more than 30 minutes | BB22: Yes | BC22: N/A | BD22: N/A | BE22: N/A | BF22: N/A | BG22: N/A | BH22: N/A | BI22: N/A | BJ22: N/A | BK22: N/A | BL22: N/A | BM22: N/A | BN22: N/A | BO22: N/A | BP22: N/A | BQ22: N/A | BR22: N/A | BS22: N/A | BT22: N/A | BU22: N/A | BV22: N/A
B23: No | C23: N/A | D23: N/A | E23: N/A | F23: N/A | G23: N/A | H23: N/A | I23: N/A | J23: N/A | K23: N/A | L23: N/A | M23: N/A | N23: N/A | O23: N/A | P23: N/A | Q23: N/A | R23: N/A | S23: N/A | T23: N/A | U23: N/A | V23: N/A | BB23: No | BC23: N/A | BD23: N/A | BE23: N/A | BF23: N/A | BG23: N/A | BH23: N/A | BI23: N/A | BJ23: N/A | BK23: N/A | BL23: N/A | BM23: N/A | BN23: N/A | BO23: N/A | BP23: N/A | BQ23: N/A | BR23: N/A | BS23: N/A | BT23: N/A | BU23: N/A | BV23: N/A
A24: Manually calculated ratios | B24: Improved wells
B25: Improved springs
B26: Other
C27: NATIONAL wealth index quintile | H27: URBAN wealth index quintile | M27: RURAL wealth index quintile | R27: SUB-REGIONS: | BA27: Raw numbers of respondents: | BB27: Use of drinking water sources | BC27: NATIONAL wealth index quintile | BH27: URBAN wealth index quintile | BM27: RURAL wealth index quintile | BR27: SUB-REGIONS:
A28: Percentage based on weighted population | C28: Poorest | D28: Poor | E28: Middle | F28: Rich | G28: Richest | H28: Poorest | I28: Poor | J28: Middle | K28: Rich | L28: Richest | M28: Poorest | N28: Poor | O28: Middle | P28: Rich | Q28: Richest | R28: Central | S28: Eastern | T28: Far-western | U28: Mid-western | V28: Western | BA28: Water data, raw numbers (weighted) | BC28: Poorest | BD28: Poor | BE28: Middle | BF28: Rich | BG28: Richest | BH28: Poorest | BI28: Poor | BJ28: Middle | BK28: Rich | BL28: Richest | BM28: Poorest | BN28: Poor | BO28: Middle | BP28: Rich | BQ28: Richest | BR28: Central | BS28: Eastern | BT28: Far-western | BU28: Mid-western | BV28: Western
A29: Piped water | B29: Yes | C29: 35.08512196 | D29: 1.796978356 | E29: 48.8327232 | F29: 18.32750717 | G29: 45.51103274 | H29: 32.35270537 | I29: 36.38321855 | J29: 50.01301936 | K29: 68.86535193 | L29: 76.45319995 | M29: 35.42540954 | N29: 0 | O29: 33.82212382 | P29: 9.340989208 | Q29: 34.64963985 | R29: 36.44392034 | S29: 27.21527705 | T29: 30.27254444 | U29: 26.75542186 | V29: 44.28086386 | BA29: Piped water | BB29: Yes | BC29: N/A | BD29: N/A | BE29: N/A | BF29: N/A | BG29: N/A | BH29: N/A | BI29: N/A | BJ29: N/A | BK29: N/A | BL29: N/A | BM29: N/A | BN29: N/A | BO29: N/A | BP29: N/A | BQ29: N/A | BR29: N/A | BS29: N/A | BT29: N/A | BU29: N/A | BV29: N/A
B30: No | C30: 64.91487804 | D30: 98.20302164 | E30: 51.1672768 | F30: 81.67249283 | G30: 54.48896726 | H30: 67.64729463 | I30: 63.61678145 | J30: 49.98698064 | K30: 31.13464807 | L30: 23.54680005 | M30: 64.57459046 | N30: 100 | O30: 66.17787618 | P30: 90.65901079 | Q30: 65.35036015 | R30: 63.55607966 | S30: 72.78472295 | T30: 69.72745556 | U30: 73.24457814 | V30: 55.71913614 | BB30: No | BC30: N/A | BD30: N/A | BE30: N/A | BF30: N/A | BG30: N/A | BH30: N/A | BI30: N/A | BJ30: N/A | BK30: N/A | BL30: N/A | BM30: N/A | BN30: N/A | BO30: N/A | BP30: N/A | BQ30: N/A | BR30: N/A | BS30: N/A | BT30: N/A | BU30: N/A | BV30: N/A
A31: Piped water on premises | B31: Yes | C31: 3.99588412 | D31: 0.08623984127 | E31: 8.061254439 | F31: 4.279858027 | G31: 25.94914646 | H31: 6.331168166 | I31: 11.7013349 | J31: 37.40256546 | K31: 59.04992086 | L31: 75.88992227 | M31: 4.055919941 | N31: 0 | O31: 5.510623942 | P31: 2.108706553 | Q31: 10.90104924 | R31: 16.10739109 | S31: 8.273201943 | T31: 0.7716024022 | U31: 2.919220605 | V31: 6.275073967 | BA31: Piped water on premises | BB31: Yes | BC31: N/A | BD31: N/A | BE31: N/A | BF31: N/A | BG31: N/A | BH31: N/A | BI31: N/A | BJ31: N/A | BK31: N/A | BL31: N/A | BM31: N/A | BN31: N/A | BO31: N/A | BP31: N/A | BQ31: N/A | BR31: N/A | BS31: N/A | BT31: N/A | BU31: N/A | BV31: N/A
B32: No | C32: 96.00411588 | D32: 99.91376016 | E32: 91.93874556 | F32: 95.72014197 | G32: 74.05085354 | H32: 93.66883183 | I32: 88.2986651 | J32: 62.59743454 | K32: 40.95007914 | L32: 24.11007773 | M32: 95.94408006 | N32: 100 | O32: 94.48937606 | P32: 97.89129345 | Q32: 89.09895076 | R32: 83.89260891 | S32: 91.72679806 | T32: 99.2283976 | U32: 97.0807794 | V32: 93.72492603 | BB32: No | BC32: N/A | BD32: N/A | BE32: N/A | BF32: N/A | BG32: N/A | BH32: N/A | BI32: N/A | BJ32: N/A | BK32: N/A | BL32: N/A | BM32: N/A | BN32: N/A | BO32: N/A | BP32: N/A | BQ32: N/A | BR32: N/A | BS32: N/A | BT32: N/A | BU32: N/A | BV32: N/A
A33: Piped water into dwelling | B33: Yes | C33: N/A | D33: N/A | E33: N/A | F33: N/A | G33: N/A | H33: N/A | I33: N/A | J33: N/A | K33: N/A | L33: N/A | M33: N/A | N33: N/A | O33: N/A | P33: N/A | Q33: N/A | R33: N/A | S33: N/A | T33: N/A | U33: N/A | V33: N/A | BA33: Piped water into dwelling | BB33: Yes | BC33: N/A | BD33: N/A | BE33: N/A | BF33: N/A | BG33: N/A | BH33: N/A | BI33: N/A | BJ33: N/A | BK33: N/A | BL33: N/A | BM33: N/A | BN33: N/A | BO33: N/A | BP33: N/A | BQ33: N/A | BR33: N/A | BS33: N/A | BT33: N/A | BU33: N/A | BV33: N/A
B34: No | C34: N/A | D34: N/A | E34: N/A | F34: N/A | G34: N/A | H34: N/A | I34: N/A | J34: N/A | K34: N/A | L34: N/A | M34: N/A | N34: N/A | O34: N/A | P34: N/A | Q34: N/A | R34: N/A | S34: N/A | T34: N/A | U34: N/A | V34: N/A | BB34: No | BC34: N/A | BD34: N/A | BE34: N/A | BF34: N/A | BG34: N/A | BH34: N/A | BI34: N/A | BJ34: N/A | BK34: N/A | BL34: N/A | BM34: N/A | BN34: N/A | BO34: N/A | BP34: N/A | BQ34: N/A | BR34: N/A | BS34: N/A | BT34: N/A | BU34: N/A | BV34: N/A
A35: Water source on premises | B35: Yes | C35: 7.701377495 | D35: 1.310590508 | E35: 11.96713157 | F35: 6.750815787 | G35: 29.56156591 | H35: 9.79172599 | I35: 12.76909293 | J35: 39.3703462 | K35: 59.04992086 | L35: 75.88992227 | M35: 7.788547564 | N35: 1.019027328 | O35: 8.563354746 | P35: 3.228760325 | Q35: 16.06264186 | R35: 16.46734551 | S35: 17.21181932 | T35: 5.397941109 | U35: 3.782180203 | V35: 7.997158038 | BA35: Water source on premises | BB35: Yes | BC35: N/A | BD35: N/A | BE35: N/A | BF35: N/A | BG35: N/A | BH35: N/A | BI35: N/A | BJ35: N/A | BK35: N/A | BL35: N/A | BM35: N/A | BN35: N/A | BO35: N/A | BP35: N/A | BQ35: N/A | BR35: N/A | BS35: N/A | BT35: N/A | BU35: N/A | BV35: N/A
B36: No | C36: 92.29862251 | D36: 98.68940949 | E36: 88.03286843 | F36: 93.24918421 | G36: 70.43843409 | H36: 90.20827401 | I36: 87.23090707 | J36: 60.6296538 | K36: 40.95007914 | L36: 24.11007773 | M36: 92.21145244 | N36: 98.98097267 | O36: 91.43664525 | P36: 96.77123968 | Q36: 83.93735814 | R36: 83.53265449 | S36: 82.78818068 | T36: 94.60205889 | U36: 96.2178198 | V36: 92.00284196 | BB36: No | BC36: N/A | BD36: N/A | BE36: N/A | BF36: N/A | BG36: N/A | BH36: N/A | BI36: N/A | BJ36: N/A | BK36: N/A | BL36: N/A | BM36: N/A | BN36: N/A | BO36: N/A | BP36: N/A | BQ36: N/A | BR36: N/A | BS36: N/A | BT36: N/A | BU36: N/A | BV36: N/A
A37: Improved Water source on premises | B37: Yes | C37: N/A | D37: N/A | E37: N/A | F37: N/A | G37: N/A | H37: N/A | I37: N/A | J37: N/A | K37: N/A | L37: N/A | M37: N/A | N37: N/A | O37: N/A | P37: N/A | Q37: N/A | R37: N/A | S37: N/A | T37: N/A | U37: N/A | V37: N/A | BA37: Improved water source on premises | BB37: Yes | BC37: N/A | BD37: N/A | BE37: N/A | BF37: N/A | BG37: N/A | BH37: N/A | BI37: N/A | BJ37: N/A | BK37: N/A | BL37: N/A | BM37: N/A | BN37: N/A | BO37: N/A | BP37: N/A | BQ37: N/A | BR37: N/A | BS37: N/A | BT37: N/A | BU37: N/A | BV37: N/A
B38: No | C38: N/A | D38: N/A | E38: N/A | F38: N/A | G38: N/A | H38: N/A | I38: N/A | J38: N/A | K38: N/A | L38: N/A | M38: N/A | N38: N/A | O38: N/A | P38: N/A | Q38: N/A | R38: N/A | S38: N/A | T38: N/A | U38: N/A | V38: N/A | BB38: No | BC38: N/A | BD38: N/A | BE38: N/A | BF38: N/A | BG38: N/A | BH38: N/A | BI38: N/A | BJ38: N/A | BK38: N/A | BL38: N/A | BM38: N/A | BN38: N/A | BO38: N/A | BP38: N/A | BQ38: N/A | BR38: N/A | BS38: N/A | BT38: N/A | BU38: N/A | BV38: N/A
A39: Piped water on premises available when needed | B39: Yes | C39: N/A | D39: N/A | E39: N/A | F39: N/A | G39: N/A | H39: N/A | I39: N/A | J39: N/A | K39: N/A | L39: N/A | M39: N/A | N39: N/A | O39: N/A | P39: N/A | Q39: N/A | R39: N/A | S39: N/A | T39: N/A | U39: N/A | V39: N/A | BA39: Piped water on premises available when needed | BB39: Yes | BC39: N/A | BD39: N/A | BE39: N/A | BF39: N/A | BG39: N/A | BH39: N/A | BI39: N/A | BJ39: N/A | BK39: N/A | BL39: N/A | BM39: N/A | BN39: N/A | BO39: N/A | BP39: N/A | BQ39: N/A | BR39: N/A | BS39: N/A | BT39: N/A | BU39: N/A | BV39: N/A
B40: No | C40: N/A | D40: N/A | E40: N/A | F40: N/A | G40: N/A | H40: N/A | I40: N/A | J40: N/A | K40: N/A | L40: N/A | M40: N/A | N40: N/A | O40: N/A | P40: N/A | Q40: N/A | R40: N/A | S40: N/A | T40: N/A | U40: N/A | V40: N/A | BB40: No | BC40: N/A | BD40: N/A | BE40: N/A | BF40: N/A | BG40: N/A | BH40: N/A | BI40: N/A | BJ40: N/A | BK40: N/A | BL40: N/A | BM40: N/A | BN40: N/A | BO40: N/A | BP40: N/A | BQ40: N/A | BR40: N/A | BS40: N/A | BT40: N/A | BU40: N/A | BV40: N/A
A41: Water point at more than 30 minutes | B41: Yes | C41: 6.441381394 | D41: 0.2965017342 | E41: 8.151825253 | F41: 3.952417124 | G41: 2.249949671 | H41: 3.788930849 | I41: 0 | J41: 0 | K41: 0 | L41: 0 | M41: 6.505552748 | N41: 0 | O41: 6.450745245 | P41: 1.795172277 | Q41: 4.862399396 | R41: 1.798508476 | S41: 7.231513741 | T41: 4.960713424 | U41: 8.946246693 | V41: 6.865026331 | BA41: Water point at more than 30 minutes | BB41: Yes | BC41: N/A | BD41: N/A | BE41: N/A | BF41: N/A | BG41: N/A | BH41: N/A | BI41: N/A | BJ41: N/A | BK41: N/A | BL41: N/A | BM41: N/A | BN41: N/A | BO41: N/A | BP41: N/A | BQ41: N/A | BR41: N/A | BS41: N/A | BT41: N/A | BU41: N/A | BV41: N/A
B42: No | C42: 93.55861861 | D42: 99.70349827 | E42: 91.84817475 | F42: 96.04758288 | G42: 97.75005033 | H42: 96.21106915 | I42: 100 | J42: 100 | K42: 100 | L42: 100 | M42: 93.49444725 | N42: 100 | O42: 93.54925476 | P42: 98.20482772 | Q42: 95.1376006 | R42: 98.20149152 | S42: 92.76848626 | T42: 95.03928658 | U42: 91.05375331 | V42: 93.13497367 | BB42: No | BC42: N/A | BD42: N/A | BE42: N/A | BF42: N/A | BG42: N/A | BH42: N/A | BI42: N/A | BJ42: N/A | BK42: N/A | BL42: N/A | BM42: N/A | BN42: N/A | BO42: N/A | BP42: N/A | BQ42: N/A | BR42: N/A | BS42: N/A | BT42: N/A | BU42: N/A | BV42: N/A
A43: Water source available when needed | B43: Yes | C43: N/A | D43: N/A | E43: N/A | F43: N/A | G43: N/A | H43: N/A | I43: N/A | J43: N/A | K43: N/A | L43: N/A | M43: N/A | N43: N/A | O43: N/A | P43: N/A | Q43: N/A | R43: N/A | S43: N/A | T43: N/A | U43: N/A | V43: N/A | BA43: Water source available when needed | BB43: Yes | BC43: N/A | BD43: N/A | BE43: N/A | BF43: N/A | BG43: N/A | BH43: N/A | BI43: N/A | BJ43: N/A | BK43: N/A | BL43: N/A | BM43: N/A | BN43: N/A | BO43: N/A | BP43: N/A | BQ43: N/A | BR43: N/A | BS43: N/A | BT43: N/A | BU43: N/A | BV43: N/A
B44: No | C44: N/A | D44: N/A | E44: N/A | F44: N/A | G44: N/A | H44: N/A | I44: N/A | J44: N/A | K44: N/A | L44: N/A | M44: N/A | N44: N/A | O44: N/A | P44: N/A | Q44: N/A | R44: N/A | S44: N/A | T44: N/A | U44: N/A | V44: N/A | BB44: No | BC44: N/A | BD44: N/A | BE44: N/A | BF44: N/A | BG44: N/A | BH44: N/A | BI44: N/A | BJ44: N/A | BK44: N/A | BL44: N/A | BM44: N/A | BN44: N/A | BO44: N/A | BP44: N/A | BQ44: N/A | BR44: N/A | BS44: N/A | BT44: N/A | BU44: N/A | BV44: N/A
A45: Improved water source available when needed | B45: Yes | C45: N/A | D45: N/A | E45: N/A | F45: N/A | G45: N/A | H45: N/A | I45: N/A | J45: N/A | K45: N/A | L45: N/A | M45: N/A | N45: N/A | O45: N/A | P45: N/A | Q45: N/A | R45: N/A | S45: N/A | T45: N/A | U45: N/A | V45: N/A | BA45: Improved water source available when needed | BB45: Yes | BC45: N/A | BD45: N/A | BE45: N/A | BF45: N/A | BG45: N/A | BH45: N/A | BI45: N/A | BJ45: N/A | BK45: N/A | BL45: N/A | BM45: N/A | BN45: N/A | BO45: N/A | BP45: N/A | BQ45: N/A | BR45: N/A | BS45: N/A | BT45: N/A | BU45: N/A | BV45: N/A
B46: No | C46: N/A | D46: N/A | E46: N/A | F46: N/A | G46: N/A | H46: N/A | I46: N/A | J46: N/A | K46: N/A | L46: N/A | M46: N/A | N46: N/A | O46: N/A | P46: N/A | Q46: N/A | R46: N/A | S46: N/A | T46: N/A | U46: N/A | V46: N/A | BB46: No | BC46: N/A | BD46: N/A | BE46: N/A | BF46: N/A | BG46: N/A | BH46: N/A | BI46: N/A | BJ46: N/A | BK46: N/A | BL46: N/A | BM46: N/A | BN46: N/A | BO46: N/A | BP46: N/A | BQ46: N/A | BR46: N/A | BS46: N/A | BT46: N/A | BU46: N/A | BV46: N/A
A47: Microbiological quality at point of collection | B47: Not contaminated (No E. coli in 100 mL) | C47: N/A | D47: N/A | E47: N/A | F47: N/A | G47: N/A | H47: N/A | I47: N/A | J47: N/A | K47: N/A | L47: N/A | M47: N/A | N47: N/A | O47: N/A | P47: N/A | Q47: N/A | R47: N/A | S47: N/A | T47: N/A | U47: N/A | V47: N/A | BA47: Microbiological quality at point of collection | BB47: Not contaminated (No E. coli in 100 mL) | BC47: N/A | BD47: N/A | BE47: N/A | BF47: N/A | BG47: N/A | BH47: N/A | BI47: N/A | BJ47: N/A | BK47: N/A | BL47: N/A | BM47: N/A | BN47: N/A | BO47: N/A | BP47: N/A | BQ47: N/A | BR47: N/A | BS47: N/A | BT47: N/A | BU47: N/A | BV47: N/A
B48: Contaminated (E. coli detected in 100 mL) | C48: N/A | D48: N/A | E48: N/A | F48: N/A | G48: N/A | H48: N/A | I48: N/A | J48: N/A | K48: N/A | L48: N/A | M48: N/A | N48: N/A | O48: N/A | P48: N/A | Q48: N/A | R48: N/A | S48: N/A | T48: N/A | U48: N/A | V48: N/A | BB48: Contaminated (E. coli detected in 100 mL) | BC48: N/A | BD48: N/A | BE48: N/A | BF48: N/A | BG48: N/A | BH48: N/A | BI48: N/A | BJ48: N/A | BK48: N/A | BL48: N/A | BM48: N/A | BN48: N/A | BO48: N/A | BP48: N/A | BQ48: N/A | BR48: N/A | BS48: N/A | BT48: N/A | BU48: N/A | BV48: N/A
B49: Highly contaminated (>100 CFU/100 mL) | C49: N/A | D49: N/A | E49: N/A | F49: N/A | G49: N/A | H49: N/A | I49: N/A | J49: N/A | K49: N/A | L49: N/A | M49: N/A | N49: N/A | O49: N/A | P49: N/A | Q49: N/A | R49: N/A | S49: N/A | T49: N/A | U49: N/A | V49: N/A | BB49: Highly contaminated (>100 CFU/100 mL) | BC49: N/A | BD49: N/A | BE49: N/A | BF49: N/A | BG49: N/A | BH49: N/A | BI49: N/A | BJ49: N/A | BK49: N/A | BL49: N/A | BM49: N/A | BN49: N/A | BO49: N/A | BP49: N/A | BQ49: N/A | BR49: N/A | BS49: N/A | BT49: N/A | BU49: N/A | BV49: N/A
A50: Microbiological quality of improved water sources at point of collection | B50: Not contaminated (No E. coli in 100 mL) | C50: N/A | D50: N/A | E50: N/A | F50: N/A | G50: N/A | H50: N/A | I50: N/A | J50: N/A | K50: N/A | L50: N/A | M50: N/A | N50: N/A | O50: N/A | P50: N/A | Q50: N/A | R50: N/A | S50: N/A | T50: N/A | U50: N/A | V50: N/A | BA50: Microbiological quality of improved water sources at point of collection | BB50: Not contaminated (No E. coli in 100 mL) | BC50: N/A | BD50: N/A | BE50: N/A | BF50: N/A | BG50: N/A | BH50: N/A | BI50: N/A | BJ50: N/A | BK50: N/A | BL50: N/A | BM50: N/A | BN50: N/A | BO50: N/A | BP50: N/A | BQ50: N/A | BR50: N/A | BS50: N/A | BT50: N/A | BU50: N/A | BV50: N/A
B51: Contaminated (E. coli detected in 100 mL) | C51: N/A | D51: N/A | E51: N/A | F51: N/A | G51: N/A | H51: N/A | I51: N/A | J51: N/A | K51: N/A | L51: N/A | M51: N/A | N51: N/A | O51: N/A | P51: N/A | Q51: N/A | R51: N/A | S51: N/A | T51: N/A | U51: N/A | V51: N/A | BB51: Contaminated (E. coli detected in 100 mL) | BC51: N/A | BD51: N/A | BE51: N/A | BF51: N/A | BG51: N/A | BH51: N/A | BI51: N/A | BJ51: N/A | BK51: N/A | BL51: N/A | BM51: N/A | BN51: N/A | BO51: N/A | BP51: N/A | BQ51: N/A | BR51: N/A | BS51: N/A | BT51: N/A | BU51: N/A | BV51: N/A
B52: Highly contaminated (>100 CFU/100 mL) | C52: N/A | D52: N/A | E52: N/A | F52: N/A | G52: N/A | H52: N/A | I52: N/A | J52: N/A | K52: N/A | L52: N/A | M52: N/A | N52: N/A | O52: N/A | P52: N/A | Q52: N/A | R52: N/A | S52: N/A | T52: N/A | U52: N/A | V52: N/A | BB52: Highly contaminated (>100 CFU/100 mL) | BC52: N/A | BD52: N/A | BE52: N/A | BF52: N/A | BG52: N/A | BH52: N/A | BI52: N/A | BJ52: N/A | BK52: N/A | BL52: N/A | BM52: N/A | BN52: N/A | BO52: N/A | BP52: N/A | BQ52: N/A | BR52: N/A | BS52: N/A | BT52: N/A | BU52: N/A | BV52: N/A
A53: Microbiological quality of piped on premises at point of collection | B53: Not contaminated (No E. coli in 100 mL) | C53: N/A | D53: N/A | E53: N/A | F53: N/A | G53: N/A | H53: N/A | I53: N/A | J53: N/A | K53: N/A | L53: N/A | M53: N/A | N53: N/A | O53: N/A | P53: N/A | Q53: N/A | R53: N/A | S53: N/A | T53: N/A | U53: N/A | V53: N/A | BA53: Microbiological quality of piped on premises at point of collection | BB53: Not contaminated (No E. coli in 100 mL) | BC53: N/A | BD53: N/A | BE53: N/A | BF53: N/A | BG53: N/A | BH53: N/A | BI53: N/A | BJ53: N/A | BK53: N/A | BL53: N/A | BM53: N/A | BN53: N/A | BO53: N/A | BP53: N/A | BQ53: N/A | BR53: N/A | BS53: N/A | BT53: N/A | BU53: N/A | BV53: N/A
B54: Contaminated (E. coli detected in 100 mL) | C54: N/A | D54: N/A | E54: N/A | F54: N/A | G54: N/A | H54: N/A | I54: N/A | J54: N/A | K54: N/A | L54: N/A | M54: N/A | N54: N/A | O54: N/A | P54: N/A | Q54: N/A | R54: N/A | S54: N/A | T54: N/A | U54: N/A | V54: N/A | BB54: Contaminated (E. coli detected in 100 mL) | BC54: N/A | BD54: N/A | BE54: N/A | BF54: N/A | BG54: N/A | BH54: N/A | BI54: N/A | BJ54: N/A | BK54: N/A | BL54: N/A | BM54: N/A | BN54: N/A | BO54: N/A | BP54: N/A | BQ54: N/A | BR54: N/A | BS54: N/A | BT54: N/A | BU54: N/A | BV54: N/A
B55: Highly contaminated (>100 CFU/100 mL) | C55: N/A | D55: N/A | E55: N/A | F55: N/A | G55: N/A | H55: N/A | I55: N/A | J55: N/A | K55: N/A | L55: N/A | M55: N/A | N55: N/A | O55: N/A | P55: N/A | Q55: N/A | R55: N/A | S55: N/A | T55: N/A | U55: N/A | V55: N/A | BB55: Highly contaminated (>100 CFU/100 mL) | BC55: N/A | BD55: N/A | BE55: N/A | BF55: N/A | BG55: N/A | BH55: N/A | BI55: N/A | BJ55: N/A | BK55: N/A | BL55: N/A | BM55: N/A | BN55: N/A | BO55: N/A | BP55: N/A | BQ55: N/A | BR55: N/A | BS55: N/A | BT55: N/A | BU55: N/A | BV55: N/A
C56: NATIONAL wealth index quintile | H56: URBAN wealth index quintile | M56: RURAL wealth index quintile | R56: SUB-REGIONS: | BA56: Raw numbers of respondents: | BB56: Use of drinking water sources | BC56: NATIONAL wealth index quintile | BH56: URBAN wealth index quintile | BM56: RURAL wealth index quintile | BR56: SUB-REGIONS:
A57: Percentage based on weighted population | C57: Poorest | D57: Poor | E57: Middle | F57: Rich | G57: Richest | H57: Poorest | I57: Poor | J57: Middle | K57: Rich | L57: Richest | M57: Poorest | N57: Poor | O57: Middle | P57: Rich | Q57: Richest | R57: Central | S57: Eastern | T57: Far-western | U57: Mid-western | V57: Western | BA57: Water data, raw numbers (weighted) | BC57: Poorest | BD57: Poor | BE57: Middle | BF57: Rich | BG57: Richest | BH57: Poorest | BI57: Poor | BJ57: Middle | BK57: Rich | BL57: Richest | BM57: Poorest | BN57: Poor | BO57: Middle | BP57: Rich | BQ57: Richest | BR57: Central | BS57: Eastern | BT57: Far-western | BU57: Mid-western | BV57: Western
A58: Source of drinking water | B58: Piped into house/yard/plot | C58: 3.998282029 | D58: 0.08623984127 | E58: 8.061254439 | F58: 4.279858027 | G58: 25.94914646 | H58: 6.331168166 | I58: 11.7013349 | J58: 37.40256546 | K58: 59.04992086 | L58: 75.88992227 | M58: 4.0584048 | N58: 0 | O58: 5.510623942 | P58: 2.108706553 | Q58: 10.90104924 | R58: 16.11728331 | S58: 8.273201943 | T58: 0.7716024022 | U58: 2.919220605 | V58: 6.275073967
B59: Public/nieghbor's tap | C59: 31.10789433 | D59: 1.710738514 | E59: 40.77146876 | F59: 14.04764914 | G59: 19.56188628 | H59: 26.0215372 | I59: 24.68188365 | J59: 12.6104539 | K59: 9.815431071 | L59: 0.5632776764 | M59: 31.38870811 | N59: 0 | O59: 28.31149987 | P59: 7.232282655 | Q59: 23.74859062 | R59: 20.34901876 | S59: 18.94207511 | T59: 29.50094204 | U59: 23.83620126 | V59: 38.00578989
B60: Well in house/yard/plot | C60: 0.6022988089 | D60: 3.652964499 | E60: 0.7810636347 | F60: 3.512287225 | G60: 4.300428972 | H60: 3.17569105 | I60: 5.214812711 | J60: 5.109228754 | K60: 4.130807606 | L60: 6.120921468 | M60: 0.5420983578 | N60: 0.6793515517 | O60: 1.775919592 | P60: 3.817003347 | Q60: 3.554701741 | R60: 2.222870135 | S60: 2.918302187 | T60: 2.9998446 | U60: 2.14203826 | V60: 0.8217014772
B61: Public/neighbor's well | C61: 2.320989122 | D61: 3.867354689 | E61: 1.327386367 | F61: 2.410928812 | G61: 2.213681552 | H61: 5.625048637 | I61: 6.695266134 | J61: 4.663104508 | K61: 3.465149124 | L61: 4.501964443 | M61: 2.304488282 | N61: 0 | O61: 2.238698069 | P61: 2.528244608 | Q61: 0.7017912063 | R61: 2.653279155 | S61: 1.907848027 | T61: 0.5864359322 | U61: 3.862117536 | V61: 1.856046302
B62: Tubewell in yard/plot | C62: 7.45934047 | D62: 37.1696448 | E62: 4.008907637 | F62: 42.17045068 | G62: 32.92150052 | H62: 33.76711883 | I62: 47.41918973 | J62: 32.53732617 | K62: 19.14074705 | L62: 12.30599746 | M62: 6.735918739 | N62: 5.682849606 | O62: 15.42375624 | P62: 44.08575526 | Q62: 38.05900955 | R62: 16.8552297 | S62: 27.07611869 | T62: 29.18269423 | U62: 16.44625645 | V62: 17.2838234
B63: Public/neighbor's tubewell | C63: 23.48561627 | D63: 53.09954299 | E63: 4.985329358 | F63: 25.39174067 | G63: 6.252515899 | H63: 13.76324927 | I63: 2.284248289 | J63: 7.132933994 | K63: 2.200532648 | L63: 0.1765476252 | M63: 23.48329772 | N63: 93.63779884 | O63: 19.35681204 | P63: 35.48507307 | Q63: 9.528730678 | R63: 32.59433412 | S63: 19.83826978 | T63: 5.335781886 | U63: 9.048590038 | V63: 13.04187729
B64: Sprong/kuwa | C64: 25.82514294 | D64: 0.4135146599 | E64: 35.19868848 | F64: 7.486977346 | G64: 6.486958117 | H64: 7.900757491 | I64: 0.9748922668 | J64: 0 | K64: 0 | L64: 0 | M64: 26.23419579 | N64: 0 | O64: 24.07437584 | P64: 4.329054537 | Q64: 11.21078932 | R64: 7.756566668 | S64: 20.227754 | T64: 25.52655275 | U64: 37.67012235 | V64: 15.46258997
B65: River/stream/pond/lake | C65: 4.037111261 | D65: 0 | E65: 3.747179578 | F65: 0.4587355796 | G65: 1.721949767 | H65: 2.763933116 | I65: 0.4966128997 | J65: 0 | K65: 0 | L65: 0 | M65: 4.065224203 | N65: 0 | O65: 2.547698231 | P65: 0.2751835787 | Q65: 1.971941507 | R65: 0.6807128257 | S65: 0.8067226043 | T65: 5.049824618 | U65: 1.574347913 | V65: 6.857898301
B66: Stone tap/dhara | C66: 1.105929948 | D66: 0 | E66: 1.056187568 | F66: 0.2413725149 | G66: 0.5919324361 | H66: 0.6514962406 | I66: 0.5317594183 | J66: 0.5443872147 | K66: 2.19741164 | L66: 0.441369063 | M66: 1.129068338 | N66: 0 | O66: 0.7180993443 | P66: 0.1386963924 | Q66: 0.3233961459 | R66: 0.7707053263 | S66: 0.009707662773 | T66: 0.7192707367 | U66: 2.501105587 | V66: 0.3951993941
B67: Other | C67: 0.05739483437 | D67: 0 | E67: 0.06253417972 | F67: 0 | G67: 0 | H67: 0 | I67: 0 | J67: 0 | K67: 0 | L67: 0 | M67: 0.05859565551 | N67: 0 | O67: 0.04251683586 | P67: 0 | Q67: 0 | R67: 0 | S67: 0 | T67: 0.3270508084 | U67: 0 | V67: 0
A108: =A1026 -> Nepal
A109: =A1034 -> 2001
A110: Use of sanitation facilities
A111: by wealth quintile and sub-national region
A112: Notes:
A113: WHO/UNICEF JMP customised wealth index excludes water,
A114: sanitation and hygiene assets.
A115: Survey used for analysis: | B115: =A1025 -> DHS01
A116: =B1030 -> Ratio of Improved latrines based on:
A117: =B1029 -> Ratio of Shared improved based on:
A120: Use of sanitation facilities | C120: NATIONAL wealth index quintile | H120: URBAN wealth index quintile | M120: RURAL wealth index quintile | R120: SUB-REGIONS: | BA120: Raw numbers of respondents: | BB120: Use of sanitation facilities | BC120: NATIONAL wealth index quintile | BH120: URBAN wealth index quintile | BM120: RURAL wealth index quintile | BR120: SUB-REGIONS:
A121: Weighted percentage (used in graphs) | C121: Poorest | D121: Poor | E121: Middle | F121: Rich | G121: Richest | H121: Poorest | I121: Poor | J121: Middle | K121: Rich | L121: Richest | M121: Poorest | N121: Poor | O121: Middle | P121: Rich | Q121: Richest | R121: Central | S121: Eastern | T121: Far-western | U121: Mid-western | V121: Western | BA121: Sanitation data, raw numbers (weighted) | BC121: Poorest | BD121: Poor | BE121: Middle | BF121: Rich | BG121: Richest | BH121: Poorest | BI121: Poor | BJ121: Middle | BK121: Rich | BL121: Richest | BM121: Poorest | BN121: Poor | BO121: Middle | BP121: Rich | BQ121: Richest | BR121: Central | BS121: Eastern | BT121: Far-western | BU121: Mid-western | BV121: Western
A122: Sanitation | B122: Improved | C122: =C153+C155+C154*'DHS06'!C130/100 -> 4.138446166 | D122: =D153+D155+D154*'DHS06'!D130/100 -> 1.790937249 | E122: =E153+E155+E154*'DHS06'!E130/100 -> 11.47050907 | F122: =F153+F155+F154*'DHS06'!F130/100 -> 14.18816135 | G122: =G153+G155+G154*'DHS06'!G130/100 -> 69.01800887 | H122: =H153+H155+H154*'DHS06'!H130/100 -> 23.19290327 | I122: =I153+I155+I154*'DHS06'!I130/100 -> 57.22206716 | J122: =J153+J155+J154*'DHS06'!J130/100 -> 86.51741437 | K122: =K153+K155+K154*'DHS06'!K130/100 -> 95.03429566 | L122: =L153+L155+L154*'DHS06'!L130/100 -> 100 | M122: =M153+M155+M154*'DHS06'!M130/100 -> 3.868460752 | N122: =N153+N155+N154*'DHS06'!N130/100 -> 0 | O122: =O153+O155+O154*'DHS06'!O130/100 -> 9.010366747 | P122: =P153+P155+P154*'DHS06'!P130/100 -> 7.000372174 | Q122: =Q153+Q155+Q154*'DHS06'!Q130/100 -> 43.85329481 | R122: =R153+R155+R154*'DHS06'!R130/100 -> 23.16960094 | S122: =S153+S155+S154*'DHS06'!S130/100 -> 16.16302371 | T122: =T153+T155+T154*'DHS06'!T130/100 -> 8.527277092 | U122: =U153+U155+U154*'DHS06'!U130/100 -> 10.14963417 | V122: =V153+V155+V154*'DHS06'!V130/100 -> 31.50637532 | BA122: Sanitation | BB122: Improved | BC122: N/A | BD122: N/A | BE122: N/A | BF122: N/A | BG122: N/A | BH122: N/A | BI122: N/A | BJ122: N/A | BK122: N/A | BL122: N/A | BM122: N/A | BN122: N/A | BO122: N/A | BP122: N/A | BQ122: N/A | BR122: N/A | BS122: N/A | BT122: N/A | BU122: N/A | BV122: N/A
B123: Not Improved | C123: =100-C122 -> 95.86155383 | D123: =100-D122 -> 98.20906275 | E123: 88.52949093 | F123: 85.81183865 | G123: 30.98199113 | H123: 76.80709673 | I123: 42.77793284 | J123: 13.48258563 | K123: 4.965704337 | L123: 0 | M123: 96.13153925 | N123: 100 | O123: 90.98963325 | P123: 92.99962783 | Q123: 56.14670519 | R123: 76.83039906 | S123: 83.83697629 | T123: 91.47272291 | U123: 89.85036583 | V123: 68.49362468 | BB123: Not Improved | BC123: N/A | BD123: N/A | BE123: N/A | BF123: N/A | BG123: N/A | BH123: N/A | BI123: N/A | BJ123: N/A | BK123: N/A | BL123: N/A | BM123: N/A | BN123: N/A | BO123: N/A | BP123: N/A | BQ123: N/A | BR123: N/A | BS123: N/A | BT123: N/A | BU123: N/A | BV123: N/A
A124: Sanitation ladder | B124: Basic | C124: =C122*'DHS06'!C129/100 -> 3.655999699 | D124: =D122*'DHS06'!D129/100 -> 1.380517796 | E124: =E122*'DHS06'!E129/100 -> 7.824217889 | F124: =F122*'DHS06'!F129/100 -> 9.675954955 | G124: =G122*'DHS06'!G129/100 -> 41.20460554 | H124: =H122*'DHS06'!H129/100 -> 14.76440751 | I124: =I122*'DHS06'!I129/100 -> 33.72078044 | J124: =J122*'DHS06'!J129/100 -> 35.67513514 | K124: =K122*'DHS06'!K129/100 -> 36.01583075 | L124: =L122*'DHS06'!L129/100 -> 79.00989808 | M124: =M122*'DHS06'!M129/100 -> 3.500896627 | N124: =N122*'DHS06'!N129/100 -> 0 | O124: =O122*'DHS06'!O129/100 -> 5.943863275 | P124: =P122*'DHS06'!P129/100 -> 4.912838448 | Q124: =Q122*'DHS06'!Q129/100 -> 30.02598703 | R124: =R122*'DHS06'!R129/100 -> 13.85985349 | S124: =S122*'DHS06'!S129/100 -> 11.12402799 | T124: =T122*'DHS06'!T129/100 -> 6.32893697 | U124: =U122*'DHS06'!U129/100 -> 6.561179645 | V124: =V122*'DHS06'!V129/100 -> 23.34694642 | BA124: Sanitation ladder | BB124: Basic | BC124: N/A | BD124: N/A | BE124: N/A | BF124: N/A | BG124: N/A | BH124: N/A | BI124: N/A | BJ124: N/A | BK124: N/A | BL124: N/A | BM124: N/A | BN124: N/A | BO124: N/A | BP124: N/A | BQ124: N/A | BR124: N/A | BS124: N/A | BT124: N/A | BU124: N/A | BV124: N/A
B125: Limited | C125: =C122*'DHS06'!C128/100 -> 0.4824464676 | D125: =D122*'DHS06'!D128/100 -> 0.4104194524 | E125: =E122*'DHS06'!E128/100 -> 3.646291176 | F125: =F122*'DHS06'!F128/100 -> 4.51220639 | G125: =G122*'DHS06'!G128/100 -> 27.81340333 | H125: =H122*'DHS06'!H128/100 -> 8.42849576 | I125: =I122*'DHS06'!I128/100 -> 23.50128671 | J125: =J122*'DHS06'!J128/100 -> 50.84227924 | K125: =K122*'DHS06'!K128/100 -> 59.01846491 | L125: =L122*'DHS06'!L128/100 -> 20.99010192 | M125: =M122*'DHS06'!M128/100 -> 0.3675641254 | N125: =N122*'DHS06'!N128/100 -> 0 | O125: =O122*'DHS06'!O128/100 -> 3.066503472 | P125: =P122*'DHS06'!P128/100 -> 2.087533726 | Q125: =Q122*'DHS06'!Q128/100 -> 13.82730778 | R125: =R122*'DHS06'!R128/100 -> 9.309747451 | S125: =S122*'DHS06'!S128/100 -> 5.038995715 | T125: =T122*'DHS06'!T128/100 -> 2.198340122 | U125: =U122*'DHS06'!U128/100 -> 3.58845453 | V125: =V122*'DHS06'!V128/100 -> 8.159428898 | BB125: Limited | BC125: N/A | BD125: N/A | BE125: N/A | BF125: N/A | BG125: N/A | BH125: N/A | BI125: N/A | BJ125: N/A | BK125: N/A | BL125: N/A | BM125: N/A | BN125: N/A | BO125: N/A | BP125: N/A | BQ125: N/A | BR125: N/A | BS125: N/A | BT125: N/A | BU125: N/A | BV125: N/A
B126: Unimproved | C126: =100-(C124+C125+C127) -> 8.753458929 | D126: =100-(D124+D125+D127) -> 1.79433541 | E126: 16.25759575 | F126: 13.22556111 | G126: 6.983423971 | H126: 16.97189549 | I126: 18.51230882 | J126: 2.380101617 | K126: 4.248616087 | L126: 0 | M126: 8.751810378 | N126: 0 | O126: 11.08065295 | P126: 9.821803119 | Q126: 14.46331096 | R126: 4.906857676 | S126: 19.76339493 | T126: 6.481284296 | U126: 6.379687852 | V126: 10.5302712 | BB126: Unimproved | BC126: N/A | BD126: N/A | BE126: N/A | BF126: N/A | BG126: N/A | BH126: N/A | BI126: N/A | BJ126: N/A | BK126: N/A | BL126: N/A | BM126: N/A | BN126: N/A | BO126: N/A | BP126: N/A | BQ126: N/A | BR126: N/A | BS126: N/A | BT126: N/A | BU126: N/A | BV126: N/A
B127: Open defecation | C127: =C156 -> 87.1080949 | D127: =D156 -> 96.41472734 | E127: 72.27189519 | F127: 72.58627754 | G127: 23.99856716 | H127: 59.83520123 | I127: 24.26562403 | J127: 11.10248401 | K127: 0.7170882503 | L127: 0 | M127: 87.37972887 | N127: 100 | O127: 79.9089803 | P127: 83.17782471 | Q127: 41.68339423 | R127: 71.92354139 | S127: 64.07358136 | T127: 84.99143861 | U127: 83.47067797 | V127: 57.96335348 | BB127: Open defecation | BC127: N/A | BD127: N/A | BE127: N/A | BF127: N/A | BG127: N/A | BH127: N/A | BI127: N/A | BJ127: N/A | BK127: N/A | BL127: N/A | BM127: N/A | BN127: N/A | BO127: N/A | BP127: N/A | BQ127: N/A | BR127: N/A | BS127: N/A | BT127: N/A | BU127: N/A | BV127: N/A
A128: Shared among Improved Sanitation | B128: Yes | C128: N/A | D128: N/A | E128: N/A | F128: N/A | G128: N/A | H128: N/A | I128: N/A | J128: N/A | K128: N/A | L128: N/A | M128: N/A | N128: N/A | O128: N/A | P128: N/A | Q128: N/A | R128: N/A | S128: N/A | T128: N/A | U128: N/A | V128: N/A | BA128: Shared among improved sanitation facilities | BB128: Yes | BC128: N/A | BD128: N/A | BE128: N/A | BF128: N/A | BG128: N/A | BH128: N/A | BI128: N/A | BJ128: N/A | BK128: N/A | BL128: N/A | BM128: N/A | BN128: N/A | BO128: N/A | BP128: N/A | BQ128: N/A | BR128: N/A | BS128: N/A | BT128: N/A | BU128: N/A | BV128: N/A
B129: No | C129: N/A | D129: N/A | E129: N/A | F129: N/A | G129: N/A | H129: N/A | I129: N/A | J129: N/A | K129: N/A | L129: N/A | M129: N/A | N129: N/A | O129: N/A | P129: N/A | Q129: N/A | R129: N/A | S129: N/A | T129: N/A | U129: N/A | V129: N/A | BB129: No | BC129: N/A | BD129: N/A | BE129: N/A | BF129: N/A | BG129: N/A | BH129: N/A | BI129: N/A | BJ129: N/A | BK129: N/A | BL129: N/A | BM129: N/A | BN129: N/A | BO129: N/A | BP129: N/A | BQ129: N/A | BR129: N/A | BS129: N/A | BT129: N/A | BU129: N/A | BV129: N/A
A130: Manually calculated ratios | B130: Improved latrines
B131: Other
B132: Other
C133: NATIONAL wealth index quintile | H133: URBAN wealth index quintile | M133: RURAL wealth index quintile | R133: SUB-REGIONS: | BA133: Raw numbers of respondents: | BB133: Use of sanitation facilities | BC133: NATIONAL wealth index quintile | BH133: URBAN wealth index quintile | BM133: RURAL wealth index quintile | BR133: SUB-REGIONS:
A134: Percentage based on weighted population | C134: Poorest | D134: Poor | E134: Middle | F134: Rich | G134: Richest | H134: Poorest | I134: Poor | J134: Middle | K134: Rich | L134: Richest | M134: Poorest | N134: Poor | O134: Middle | P134: Rich | Q134: Richest | R134: Central | S134: Eastern | T134: Far-western | U134: Mid-western | V134: Western | BA134: Sanitation data, raw numbers (weighted) | BC134: Poorest | BD134: Poor | BE134: Middle | BF134: Rich | BG134: Richest | BH134: Poorest | BI134: Poor | BJ134: Middle | BK134: Rich | BL134: Richest | BM134: Poorest | BN134: Poor | BO134: Middle | BP134: Rich | BQ134: Richest | BR134: Central | BS134: Eastern | BT134: Far-western | BU134: Mid-western | BV134: Western
A135: Sanitation type | B135: Sewer connection | C135: N/A | D135: N/A | E135: N/A | F135: N/A | G135: N/A | H135: N/A | I135: N/A | J135: N/A | K135: N/A | L135: N/A | M135: N/A | N135: N/A | O135: N/A | P135: N/A | Q135: N/A | R135: N/A | S135: N/A | T135: N/A | U135: N/A | V135: N/A | BA135: Sanitation type | BB135: Sewer connection | BC135: N/A | BD135: N/A | BE135: N/A | BF135: N/A | BG135: N/A | BH135: N/A | BI135: N/A | BJ135: N/A | BK135: N/A | BL135: N/A | BM135: N/A | BN135: N/A | BO135: N/A | BP135: N/A | BQ135: N/A | BR135: N/A | BS135: N/A | BT135: N/A | BU135: N/A | BV135: N/A
B136: Septic tank connection | C136: N/A | D136: N/A | E136: N/A | F136: N/A | G136: N/A | H136: N/A | I136: N/A | J136: N/A | K136: N/A | L136: N/A | M136: N/A | N136: N/A | O136: N/A | P136: N/A | Q136: N/A | R136: N/A | S136: N/A | T136: N/A | U136: N/A | V136: N/A | BB136: Septic tank connection | BC136: N/A | BD136: N/A | BE136: N/A | BF136: N/A | BG136: N/A | BH136: N/A | BI136: N/A | BJ136: N/A | BK136: N/A | BL136: N/A | BM136: N/A | BN136: N/A | BO136: N/A | BP136: N/A | BQ136: N/A | BR136: N/A | BS136: N/A | BT136: N/A | BU136: N/A | BV136: N/A
B137: Improved latrines | C137: N/A | D137: N/A | E137: N/A | F137: N/A | G137: N/A | H137: N/A | I137: N/A | J137: N/A | K137: N/A | L137: N/A | M137: N/A | N137: N/A | O137: N/A | P137: N/A | Q137: N/A | R137: N/A | S137: N/A | T137: N/A | U137: N/A | V137: N/A | BB137: Improved latrines | BC137: N/A | BD137: N/A | BE137: N/A | BF137: N/A | BG137: N/A | BH137: N/A | BI137: N/A | BJ137: N/A | BK137: N/A | BL137: N/A | BM137: N/A | BN137: N/A | BO137: N/A | BP137: N/A | BQ137: N/A | BR137: N/A | BS137: N/A | BT137: N/A | BU137: N/A | BV137: N/A
B138: Unimproved facilities | C138: N/A | D138: N/A | E138: N/A | F138: N/A | G138: N/A | H138: N/A | I138: N/A | J138: N/A | K138: N/A | L138: N/A | M138: N/A | N138: N/A | O138: N/A | P138: N/A | Q138: N/A | R138: N/A | S138: N/A | T138: N/A | U138: N/A | V138: N/A | BB138: Unimproved facilities | BC138: N/A | BD138: N/A | BE138: N/A | BF138: N/A | BG138: N/A | BH138: N/A | BI138: N/A | BJ138: N/A | BK138: N/A | BL138: N/A | BM138: N/A | BN138: N/A | BO138: N/A | BP138: N/A | BQ138: N/A | BR138: N/A | BS138: N/A | BT138: N/A | BU138: N/A | BV138: N/A
B139: Open defecation | C139: 87.1080949 | D139: 96.41472734 | E139: 72.27189519 | F139: 72.58627754 | G139: 23.99856716 | H139: 59.83520123 | I139: 24.26562403 | J139: 11.10248401 | K139: 0.7170882503 | L139: 0 | M139: 87.37972887 | N139: 100 | O139: 79.9089803 | P139: 83.17782471 | Q139: 41.68339423 | R139: 71.92354139 | S139: 64.07358136 | T139: 84.99143861 | U139: 83.47067797 | V139: 57.96335348 | BB139: Open defecation | BC139: N/A | BD139: N/A | BE139: N/A | BF139: N/A | BG139: N/A | BH139: N/A | BI139: N/A | BJ139: N/A | BK139: N/A | BL139: N/A | BM139: N/A | BN139: N/A | BO139: N/A | BP139: N/A | BQ139: N/A | BR139: N/A | BS139: N/A | BT139: N/A | BU139: N/A | BV139: N/A
A140: Septic tank emptying practices | B140: Not emptied/treated and disposed in situ | C140: N/A | D140: N/A | E140: N/A | F140: N/A | G140: N/A | H140: N/A | I140: N/A | J140: N/A | K140: N/A | L140: N/A | M140: N/A | N140: N/A | O140: N/A | P140: N/A | Q140: N/A | R140: N/A | S140: N/A | T140: N/A | U140: N/A | V140: N/A | BA140: Septic tank emptying practices | BB140: Not emptied/treated and disposed in situ | BC140: N/A | BD140: N/A | BE140: N/A | BF140: N/A | BG140: N/A | BH140: N/A | BI140: N/A | BJ140: N/A | BK140: N/A | BL140: N/A | BM140: N/A | BN140: N/A | BO140: N/A | BP140: N/A | BQ140: N/A | BR140: N/A | BS140: N/A | BT140: N/A | BU140: N/A | BV140: N/A
B141: Emptied and buried on site | C141: N/A | D141: N/A | E141: N/A | F141: N/A | G141: N/A | H141: N/A | I141: N/A | J141: N/A | K141: N/A | L141: N/A | M141: N/A | N141: N/A | O141: N/A | P141: N/A | Q141: N/A | R141: N/A | S141: N/A | T141: N/A | U141: N/A | V141: N/A | BB141: Emptied and buried on site | BC141: N/A | BD141: N/A | BE141: N/A | BF141: N/A | BG141: N/A | BH141: N/A | BI141: N/A | BJ141: N/A | BK141: N/A | BL141: N/A | BM141: N/A | BN141: N/A | BO141: N/A | BP141: N/A | BQ141: N/A | BR141: N/A | BS141: N/A | BT141: N/A | BU141: N/A | BV141: N/A
B142: Emptied and discharged locally | C142: N/A | D142: N/A | E142: N/A | F142: N/A | G142: N/A | H142: N/A | I142: N/A | J142: N/A | K142: N/A | L142: N/A | M142: N/A | N142: N/A | O142: N/A | P142: N/A | Q142: N/A | R142: N/A | S142: N/A | T142: N/A | U142: N/A | V142: N/A | BB142: Emptied and discharged locally | BC142: N/A | BD142: N/A | BE142: N/A | BF142: N/A | BG142: N/A | BH142: N/A | BI142: N/A | BJ142: N/A | BK142: N/A | BL142: N/A | BM142: N/A | BN142: N/A | BO142: N/A | BP142: N/A | BQ142: N/A | BR142: N/A | BS142: N/A | BT142: N/A | BU142: N/A | BV142: N/A
B143: Emptied and removed offsite | C143: N/A | D143: N/A | E143: N/A | F143: N/A | G143: N/A | H143: N/A | I143: N/A | J143: N/A | K143: N/A | L143: N/A | M143: N/A | N143: N/A | O143: N/A | P143: N/A | Q143: N/A | R143: N/A | S143: N/A | T143: N/A | U143: N/A | V143: N/A | BB143: Emptied and removed offsite | BC143: N/A | BD143: N/A | BE143: N/A | BF143: N/A | BG143: N/A | BH143: N/A | BI143: N/A | BJ143: N/A | BK143: N/A | BL143: N/A | BM143: N/A | BN143: N/A | BO143: N/A | BP143: N/A | BQ143: N/A | BR143: N/A | BS143: N/A | BT143: N/A | BU143: N/A | BV143: N/A
A144: Latrine emptying practices | B144: Not emptied/treated and disposed in situ | C144: N/A | D144: N/A | E144: N/A | F144: N/A | G144: N/A | H144: N/A | I144: N/A | J144: N/A | K144: N/A | L144: N/A | M144: N/A | N144: N/A | O144: N/A | P144: N/A | Q144: N/A | R144: N/A | S144: N/A | T144: N/A | U144: N/A | V144: N/A | BA144: Latrine emptying practices | BB144: Not emptied/treated and disposed in situ | BC144: N/A | BD144: N/A | BE144: N/A | BF144: N/A | BG144: N/A | BH144: N/A | BI144: N/A | BJ144: N/A | BK144: N/A | BL144: N/A | BM144: N/A | BN144: N/A | BO144: N/A | BP144: N/A | BQ144: N/A | BR144: N/A | BS144: N/A | BT144: N/A | BU144: N/A | BV144: N/A
B145: Emptied and buried on site | C145: N/A | D145: N/A | E145: N/A | F145: N/A | G145: N/A | H145: N/A | I145: N/A | J145: N/A | K145: N/A | L145: N/A | M145: N/A | N145: N/A | O145: N/A | P145: N/A | Q145: N/A | R145: N/A | S145: N/A | T145: N/A | U145: N/A | V145: N/A | BB145: Emptied and buried on site | BC145: N/A | BD145: N/A | BE145: N/A | BF145: N/A | BG145: N/A | BH145: N/A | BI145: N/A | BJ145: N/A | BK145: N/A | BL145: N/A | BM145: N/A | BN145: N/A | BO145: N/A | BP145: N/A | BQ145: N/A | BR145: N/A | BS145: N/A | BT145: N/A | BU145: N/A | BV145: N/A
B146: Emptied and discharged locally | C146: N/A | D146: N/A | E146: N/A | F146: N/A | G146: N/A | H146: N/A | I146: N/A | J146: N/A | K146: N/A | L146: N/A | M146: N/A | N146: N/A | O146: N/A | P146: N/A | Q146: N/A | R146: N/A | S146: N/A | T146: N/A | U146: N/A | V146: N/A | BB146: Emptied and discharged locally | BC146: N/A | BD146: N/A | BE146: N/A | BF146: N/A | BG146: N/A | BH146: N/A | BI146: N/A | BJ146: N/A | BK146: N/A | BL146: N/A | BM146: N/A | BN146: N/A | BO146: N/A | BP146: N/A | BQ146: N/A | BR146: N/A | BS146: N/A | BT146: N/A | BU146: N/A | BV146: N/A
B147: Emptied and removed offsite | C147: N/A | D147: N/A | E147: N/A | F147: N/A | G147: N/A | H147: N/A | I147: N/A | J147: N/A | K147: N/A | L147: N/A | M147: N/A | N147: N/A | O147: N/A | P147: N/A | Q147: N/A | R147: N/A | S147: N/A | T147: N/A | U147: N/A | V147: N/A | BB147: Emptied and removed offsite | BC147: N/A | BD147: N/A | BE147: N/A | BF147: N/A | BG147: N/A | BH147: N/A | BI147: N/A | BJ147: N/A | BK147: N/A | BL147: N/A | BM147: N/A | BN147: N/A | BO147: N/A | BP147: N/A | BQ147: N/A | BR147: N/A | BS147: N/A | BT147: N/A | BU147: N/A | BV147: N/A
A148: Shared among improved sanitation facilities | B148: Yes | C148: N/A | D148: N/A | E148: N/A | F148: N/A | G148: N/A | H148: N/A | I148: N/A | J148: N/A | K148: N/A | L148: N/A | M148: N/A | N148: N/A | O148: N/A | P148: N/A | Q148: N/A | R148: N/A | S148: N/A | T148: N/A | U148: N/A | V148: N/A | BA148: Shared among improved sanitation facilities | BB148: Yes | BC148: N/A | BD148: N/A | BE148: N/A | BF148: N/A | BG148: N/A | BH148: N/A | BI148: N/A | BJ148: N/A | BK148: N/A | BL148: N/A | BM148: N/A | BN148: N/A | BO148: N/A | BP148: N/A | BQ148: N/A | BR148: N/A | BS148: N/A | BT148: N/A | BU148: N/A | BV148: N/A
B149: No | C149: N/A | D149: N/A | E149: N/A | F149: N/A | G149: N/A | H149: N/A | I149: N/A | J149: N/A | K149: N/A | L149: N/A | M149: N/A | N149: N/A | O149: N/A | P149: N/A | Q149: N/A | R149: N/A | S149: N/A | T149: N/A | U149: N/A | V149: N/A | BB149: No | BC149: N/A | BD149: N/A | BE149: N/A | BF149: N/A | BG149: N/A | BH149: N/A | BI149: N/A | BJ149: N/A | BK149: N/A | BL149: N/A | BM149: N/A | BN149: N/A | BO149: N/A | BP149: N/A | BQ149: N/A | BR149: N/A | BS149: N/A | BT149: N/A | BU149: N/A | BV149: N/A
B150: DK/missing | C150: N/A | D150: N/A | E150: N/A | F150: N/A | G150: N/A | H150: N/A | I150: N/A | J150: N/A | K150: N/A | L150: N/A | M150: N/A | N150: N/A | O150: N/A | P150: N/A | Q150: N/A | R150: N/A | S150: N/A | T150: N/A | U150: N/A | V150: N/A | BB150: DK/missing | BC150: N/A | BD150: N/A | BE150: N/A | BF150: N/A | BG150: N/A | BH150: N/A | BI150: N/A | BJ150: N/A | BK150: N/A | BL150: N/A | BM150: N/A | BN150: N/A | BO150: N/A | BP150: N/A | BQ150: N/A | BR150: N/A | BS150: N/A | BT150: N/A | BU150: N/A | BV150: N/A
A151: Shared among all sanitation facilities | B151: Yes | C151: 22.00522615 | D151: 37.83421989 | E151: 13.3090248 | F151: 23.62902634 | G151: 32.54715288 | H151: 35.2317265 | I151: 25.25597616 | J151: 53.69620213 | K151: 52.36843812 | L151: 25.67639856 | M151: 21.16917431 | N151: 0 | O151: 14.82117114 | P151: 28.17166604 | Q151: 24.20279206 | R151: 32.41413275 | S151: 27.85520908 | T151: 21.1486042 | U151: 17.67571305 | V151: 20.83984765 | BA151: Shared among all sanitation facilities | BB151: Yes | BC151: N/A | BD151: N/A | BE151: N/A | BF151: N/A | BG151: N/A | BH151: N/A | BI151: N/A | BJ151: N/A | BK151: N/A | BL151: N/A | BM151: N/A | BN151: N/A | BO151: N/A | BP151: N/A | BQ151: N/A | BR151: N/A | BS151: N/A | BT151: N/A | BU151: N/A | BV151: N/A
B152: No | C152: 77.99477385 | D152: 58.01254879 | E152: 85.61079594 | F152: 72.92690182 | G152: 66.03738502 | H152: 64.04412829 | I152: 74.50094469 | J152: 45.94868117 | K152: 46.78029926 | L152: 73.88223237 | M152: 78.83082569 | N152: 0 | O152: 83.90917487 | P152: 66.15357431 | Q152: 73.48403665 | R152: 65.43698011 | S152: 71.78819716 | T152: 75.50224944 | U152: 75.87782412 | V152: 78.78424341 | BB152: No | BC152: N/A | BD152: N/A | BE152: N/A | BF152: N/A | BG152: N/A | BH152: N/A | BI152: N/A | BJ152: N/A | BK152: N/A | BL152: N/A | BM152: N/A | BN152: N/A | BO152: N/A | BP152: N/A | BQ152: N/A | BR152: N/A | BS152: N/A | BT152: N/A | BU152: N/A | BV152: N/A
A153: Type of toilet facility | B153: Flush toilet | C153: 0.8356726007 | D153: 0.5745148126 | E153: 1.771393555 | F153: 4.686570987 | G153: 47.28390918 | H153: 9.606174989 | I153: 37.33330156 | J153: 71.27955324 | K153: 80.84036932 | L153: 87.95104703 | M153: 0.7804253322 | N153: 0 | O153: 1.402866998 | P153: 2.220305437 | Q153: 24.79411399 | R153: 17.97191256 | S153: 11.49731686 | T153: 4.298985999 | U153: 2.409823061 | V153: 8.284150389 | BA153: Type of toilet facility | BB153: Flush toilet | BC153: 127.388397 | BD153: 28.816401 | BE153: 174.83803 | BF153: 359.696216 | BG153: 4492.085168 | BH153: 90.601247 | BI153: 347.688726 | BJ153: 648.435007 | BK153: 789.493151 | BL153: 822.37004 | BM153: 116.530043 | BN153: 0 | BO153: 203.654431 | BP153: 99.098395 | BQ153: 2064.953172 | BR153: 2676.980956 | BS153: 1363.371196 | BT153: 196.067611 | BU153: 155.183613 | BV153: 791.220836
B154: Traditional pit toilet | C154: 11.84962084 | D154: 2.885863321 | E154: 24.4225353 | F154: 21.54336918 | G154: 20.38460389 | H154: 27.19321434 | I154: 31.70158047 | J154: 7.903202316 | K154: 8.580077424 | L154: 1.359654439 | M154: 11.67653541 | N154: 0 | O154: 17.60191786 | P154: 14.15039523 | Q154: 27.63075544 | R154: 8.605898997 | S154: 22.53683789 | T154: 10.02544247 | U154: 10.80242181 | V154: 29.78159394 | BB154: Traditional pit toilet | BC154: 1806.334446 | BD154: 144.748565 | BE154: 2410.524723 | BF154: 1653.462285 | BG154: 1936.586428 | BH154: 256.474521 | BI154: 295.239951 | BJ154: 71.895976 | BK154: 83.793684 | BL154: 12.713198 | BM154: 1743.49437 | BN154: 0 | BO154: 2555.273288 | BP154: 631.571419 | BQ154: 2301.20004 | BR154: 1281.87958 | BS154: 2672.456191 | BT154: 457.239115 | BU154: 695.635656 | BV154: 2844.445905
B155: Ventilated/improved pit latrine | C155: 0.2066116526 | D155: 0.1248945245 | E155: 1.458913314 | F155: 1.144076755 | G155: 8.280791327 | H155: 3.36540944 | I155: 6.699493943 | J155: 9.170373218 | K155: 9.86246501 | L155: 10.68929854 | M155: 0.1633103933 | N155: 0 | O155: 1.035063953 | P155: 0.3831970935 | Q155: 5.891736343 | R155: 1.395069627 | S155: 1.892263883 | T155: 0.6841329224 | U155: 3.317077151 | V155: 3.970902194 | BB155: Ventilated/improved pit latrine | BC155: 31.495501 | BD155: 6.264435 | BE155: 143.995968 | BF155: 87.808353 | BG155: 786.695105 | BH155: 31.741072 | BI155: 62.393049 | BJ155: 83.423517 | BK155: 96.317578 | BL155: 99.948314 | BM155: 24.384866 | BN155: 0 | BO155: 150.260403 | BP155: 17.10315 | BQ155: 490.687413 | BR155: 207.800634 | BS155: 224.387838 | BT155: 31.201848 | BU155: 213.607391 | BV155: 379.261651
B156: No facility/bush/field | C156: 87.1080949 | D156: 96.41472734 | E156: 72.27189519 | F156: 72.58627754 | G156: 23.99856716 | H156: 59.83520123 | I156: 24.26562403 | J156: 11.10248401 | K156: 0.7170882503 | L156: 0 | M156: 87.37972887 | N156: 100 | O156: 79.9089803 | P156: 83.17782471 | Q156: 41.68339423 | R156: 71.92354139 | S156: 64.07358136 | T156: 84.99143861 | U156: 83.47067797 | V156: 57.96335348 | BB156: No facility/bush/field | BC156: 13278.59806 | BD156: 4835.950935 | BE156: 7133.296686 | BF156: 5571.026116 | BG156: 2279.921636 | BH156: 564.339485 | BI156: 225.988154 | BJ156: 101.000062 | BK156: 7.003138 | BL156: 0 | BM156: 13047.19765 | BN156: 368.84791 | BO156: 11600.39971 | BP156: 3712.45721 | BQ156: 3471.560112 | BR156: 10713.26994 | BS156: 7597.953182 | BT156: 3876.278808 | BU156: 5375.200194 | BV156: 5536.091312
B157: OTHER | C157: 0 | D157: 0 | E157: 0.07526264296 | F157: 0.039705537 | G157: 0.05212844784 | H157: 0 | I157: 0 | J157: 0.5443872147 | K157: 0 | L157: 0 | M157: 0 | N157: 0 | O157: 0.05117088689 | P157: 0.06827753682 | Q157: 0 | R157: 0.1035774274 | S157: 0 | T157: 0 | U157: 0 | V157: 0 | BB157: OTHER | BC157: 0 | BD157: 0 | BE157: 7.428486 | BF157: 3.047416 | BG157: 4.952328 | BH157: 0 | BI157: 0 | BJ157: 4.952328 | BK157: 0 | BL157: 0 | BM157: 0 | BN157: 0 | BO157: 7.428486 | BP157: 3.047416 | BQ157: 0 | BR157: 15.42823 | BS157: 0 | BT157: 0 | BU157: 0 | BV157: 0
BB158: Total | BC158: 15243.81641 | BD158: 5015.780336 | BE158: 9870.083893 | BF158: 7675.040386 | BG158: 9500.240665 | BH158: 943.156325 | BI158: 931.30988 | BJ158: 909.70689 | BK158: 976.607551 | BL158: 935.031552 | BM158: 14931.60693 | BN158: 368.84791 | BO158: 14517.01632 | BP158: 4463.27759 | BQ158: 8328.400737 | BR158: 14895.35934 | BS158: 11858.16841 | BT158: 4560.787382 | BU158: 6439.626854 | BV158: 9551.019704
A208: =A1026 -> Nepal
A209: =A1034 -> 2001
A210: Access to hygiene facilities
A211: by wealth quintile and sub-national region
A212: Notes:
A213: WHO/UNICEF JMP customised wealth index excludes water,
A214: sanitation and hygiene assets.
A215: Survey used for analysis: | B215: =A1025 -> DHS01
A220: Access to handwashing | C220: NATIONAL wealth index quintile | H220: URBAN wealth index quintile | M220: RURAL wealth index quintile | R220: SUB-REGIONS: | BA220: Raw numbers of respondents: | BB220: Access to handwashing | BC220: NATIONAL wealth index quintile | BH220: URBAN wealth index quintile | BM220: RURAL wealth index quintile | BR220: SUB-REGIONS:
A221: Weighted percentage (used in graphs) | C221: Poorest | D221: Poor | E221: Middle | F221: Rich | G221: Richest | H221: Poorest | I221: Poor | J221: Middle | K221: Rich | L221: Richest | M221: Poorest | N221: Poor | O221: Middle | P221: Rich | Q221: Richest | R221: Central | S221: Eastern | T221: Far-western | U221: Mid-western | V221: Western | BA221: Hygiene data, raw numbers (weighted) | BC221: Poorest | BD221: Poor | BE221: Middle | BF221: Rich | BG221: Richest | BH221: Poorest | BI221: Poor | BJ221: Middle | BK221: Rich | BL221: Richest | BM221: Poorest | BN221: Poor | BO221: Middle | BP221: Rich | BQ221: Richest | BR221: Central | BS221: Eastern | BT221: Far-western | BU221: Mid-western | BV221: Western
A222: Hygiene ladder | B222: Basic | C222: N/A | D222: N/A | E222: N/A | F222: N/A | G222: N/A | H222: N/A | I222: N/A | J222: N/A | K222: N/A | L222: N/A | M222: N/A | N222: N/A | O222: N/A | P222: N/A | Q222: N/A | R222: N/A | S222: N/A | T222: N/A | U222: N/A | V222: N/A | BA222: Hygiene ladder | BB222: Basic | BC222: N/A | BD222: N/A | BE222: N/A | BF222: N/A | BG222: N/A | BH222: N/A | BI222: N/A | BJ222: N/A | BK222: N/A | BL222: N/A | BM222: N/A | BN222: N/A | BO222: N/A | BP222: N/A | BQ222: N/A | BR222: N/A | BS222: N/A | BT222: N/A | BU222: N/A | BV222: N/A
B223: Limited | C223: N/A | D223: N/A | E223: N/A | F223: N/A | G223: N/A | H223: N/A | I223: N/A | J223: N/A | K223: N/A | L223: N/A | M223: N/A | N223: N/A | O223: N/A | P223: N/A | Q223: N/A | R223: N/A | S223: N/A | T223: N/A | U223: N/A | V223: N/A | BB223: Limited | BC223: N/A | BD223: N/A | BE223: N/A | BF223: N/A | BG223: N/A | BH223: N/A | BI223: N/A | BJ223: N/A | BK223: N/A | BL223: N/A | BM223: N/A | BN223: N/A | BO223: N/A | BP223: N/A | BQ223: N/A | BR223: N/A | BS223: N/A | BT223: N/A | BU223: N/A | BV223: N/A
B224: No facility | C224: N/A | D224: N/A | E224: N/A | F224: N/A | G224: N/A | H224: N/A | I224: N/A | J224: N/A | K224: N/A | L224: N/A | M224: N/A | N224: N/A | O224: N/A | P224: N/A | Q224: N/A | R224: N/A | S224: N/A | T224: N/A | U224: N/A | V224: N/A | BB224: No facility | BC224: N/A | BD224: N/A | BE224: N/A | BF224: N/A | BG224: N/A | BH224: N/A | BI224: N/A | BJ224: N/A | BK224: N/A | BL224: N/A | BM224: N/A | BN224: N/A | BO224: N/A | BP224: N/A | BQ224: N/A | BR224: N/A | BS224: N/A | BT224: N/A | BU224: N/A | BV224: N/A
BA225: Observed handwashing place | BB225: Fixed | BC225: N/A | BD225: N/A | BE225: N/A | BF225: N/A | BG225: N/A | BH225: N/A | BI225: N/A | BJ225: N/A | BK225: N/A | BL225: N/A | BM225: N/A | BN225: N/A | BO225: N/A | BP225: N/A | BQ225: N/A | BR225: N/A | BS225: N/A | BT225: N/A | BU225: N/A | BV225: N/A
BB226: Mobile | BC226: N/A | BD226: N/A | BE226: N/A | BF226: N/A | BG226: N/A | BH226: N/A | BI226: N/A | BJ226: N/A | BK226: N/A | BL226: N/A | BM226: N/A | BN226: N/A | BO226: N/A | BP226: N/A | BQ226: N/A | BR226: N/A | BS226: N/A | BT226: N/A | BU226: N/A | BV226: N/A
BA227: Water / Soap | BB227: Water and soap | BC227: N/A | BD227: N/A | BE227: N/A | BF227: N/A | BG227: N/A | BH227: N/A | BI227: N/A | BJ227: N/A | BK227: N/A | BL227: N/A | BM227: N/A | BN227: N/A | BO227: N/A | BP227: N/A | BQ227: N/A | BR227: N/A | BS227: N/A | BT227: N/A | BU227: N/A | BV227: N/A
BB228: Water only | BC228: N/A | BD228: N/A | BE228: N/A | BF228: N/A | BG228: N/A | BH228: N/A | BI228: N/A | BJ228: N/A | BK228: N/A | BL228: N/A | BM228: N/A | BN228: N/A | BO228: N/A | BP228: N/A | BQ228: N/A | BR228: N/A | BS228: N/A | BT228: N/A | BU228: N/A | BV228: N/A
BB229: Soap only | BC229: N/A | BD229: N/A | BE229: N/A | BF229: N/A | BG229: N/A | BH229: N/A | BI229: N/A | BJ229: N/A | BK229: N/A | BL229: N/A | BM229: N/A | BN229: N/A | BO229: N/A | BP229: N/A | BQ229: N/A | BR229: N/A | BS229: N/A | BT229: N/A | BU229: N/A | BV229: N/A
BB230: Neither | BC230: N/A | BD230: N/A | BE230: N/A | BF230: N/A | BG230: N/A | BH230: N/A | BI230: N/A | BJ230: N/A | BK230: N/A | BL230: N/A | BM230: N/A | BN230: N/A | BO230: N/A | BP230: N/A | BQ230: N/A | BR230: N/A | BS230: N/A | BT230: N/A | BU230: N/A | BV230: N/A
BA259: Raw numbers of respondents: | BB259: Menstrual health and hygiene | BC259: NATIONAL wealth index quintile | BH259: URBAN wealth index quintile | BM259: RURAL wealth index quintile | BR259: SUB-REGIONS:
BA260: MHH data, raw numbers (weighted) | BC260: Poorest | BD260: Poor | BE260: Middle | BF260: Rich | BG260: Richest | BH260: Poorest | BI260: Poor | BJ260: Middle | BK260: Rich | BL260: Richest | BM260: Poorest | BN260: Poor | BO260: Middle | BP260: Rich | BQ260: Richest | BR260: Central | BS260: Eastern | BT260: Far-western | BU260: Mid-western | BV260: Western
BA261: Private place to wash and change | BB261: Yes | BC261: N/A | BD261: N/A | BE261: N/A | BF261: N/A | BG261: N/A | BH261: N/A | BI261: N/A | BJ261: N/A | BK261: N/A | BL261: N/A | BM261: N/A | BN261: N/A | BO261: N/A | BP261: N/A | BQ261: N/A | BR261: N/A | BS261: N/A | BT261: N/A | BU261: N/A | BV261: N/A
BB262: No | BC262: N/A | BD262: N/A | BE262: N/A | BF262: N/A | BG262: N/A | BH262: N/A | BI262: N/A | BJ262: N/A | BK262: N/A | BL262: N/A | BM262: N/A | BN262: N/A | BO262: N/A | BP262: N/A | BQ262: N/A | BR262: N/A | BS262: N/A | BT262: N/A | BU262: N/A | BV262: N/A
BB263: DK/not sure/missing | BC263: N/A | BD263: N/A | BE263: N/A | BF263: N/A | BG263: N/A | BH263: N/A | BI263: N/A | BJ263: N/A | BK263: N/A | BL263: N/A | BM263: N/A | BN263: N/A | BO263: N/A | BP263: N/A | BQ263: N/A | BR263: N/A | BS263: N/A | BT263: N/A | BU263: N/A | BV263: N/A
BA264: Use of menstrual materials | BB264: Materials reusable | BC264: N/A | BD264: N/A | BE264: N/A | BF264: N/A | BG264: N/A | BH264: N/A | BI264: N/A | BJ264: N/A | BK264: N/A | BL264: N/A | BM264: N/A | BN264: N/A | BO264: N/A | BP264: N/A | BQ264: N/A | BR264: N/A | BS264: N/A | BT264: N/A | BU264: N/A | BV264: N/A
BB265: Materials not reusable | BC265: N/A | BD265: N/A | BE265: N/A | BF265: N/A | BG265: N/A | BH265: N/A | BI265: N/A | BJ265: N/A | BK265: N/A | BL265: N/A | BM265: N/A | BN265: N/A | BO265: N/A | BP265: N/A | BQ265: N/A | BR265: N/A | BS265: N/A | BT265: N/A | BU265: N/A | BV265: N/A
BB266: No materials used | BC266: N/A | BD266: N/A | BE266: N/A | BF266: N/A | BG266: N/A | BH266: N/A | BI266: N/A | BJ266: N/A | BK266: N/A | BL266: N/A | BM266: N/A | BN266: N/A | BO266: N/A | BP266: N/A | BQ266: N/A | BR266: N/A | BS266: N/A | BT266: N/A | BU266: N/A | BV266: N/A
BB267: DK/not sure/missing | BC267: N/A | BD267: N/A | BE267: N/A | BF267: N/A | BG267: N/A | BH267: N/A | BI267: N/A | BJ267: N/A | BK267: N/A | BL267: N/A | BM267: N/A | BN267: N/A | BO267: N/A | BP267: N/A | BQ267: N/A | BR267: N/A | BS267: N/A | BT267: N/A | BU267: N/A | BV267: N/A
BA268: Use of menstrual materials with private place to wash and change | BB268: Materials reusable | BC268: N/A | BD268: N/A | BE268: N/A | BF268: N/A | BG268: N/A | BH268: N/A | BI268: N/A | BJ268: N/A | BK268: N/A | BL268: N/A | BM268: N/A | BN268: N/A | BO268: N/A | BP268: N/A | BQ268: N/A | BR268: N/A | BS268: N/A | BT268: N/A | BU268: N/A | BV268: N/A
BB269: Materials not reusable | BC269: N/A | BD269: N/A | BE269: N/A | BF269: N/A | BG269: N/A | BH269: N/A | BI269: N/A | BJ269: N/A | BK269: N/A | BL269: N/A | BM269: N/A | BN269: N/A | BO269: N/A | BP269: N/A | BQ269: N/A | BR269: N/A | BS269: N/A | BT269: N/A | BU269: N/A | BV269: N/A
BB270: No materials used | BC270: N/A | BD270: N/A | BE270: N/A | BF270: N/A | BG270: N/A | BH270: N/A | BI270: N/A | BJ270: N/A | BK270: N/A | BL270: N/A | BM270: N/A | BN270: N/A | BO270: N/A | BP270: N/A | BQ270: N/A | BR270: N/A | BS270: N/A | BT270: N/A | BU270: N/A | BV270: N/A
BA271: Awareness of menstruation before menarche | BB271: Yes | BC271: N/A | BD271: N/A | BE271: N/A | BF271: N/A | BG271: N/A | BH271: N/A | BI271: N/A | BJ271: N/A | BK271: N/A | BL271: N/A | BM271: N/A | BN271: N/A | BO271: N/A | BP271: N/A | BQ271: N/A | BR271: N/A | BS271: N/A | BT271: N/A | BU271: N/A | BV271: N/A
BB272: No | BC272: N/A | BD272: N/A | BE272: N/A | BF272: N/A | BG272: N/A | BH272: N/A | BI272: N/A | BJ272: N/A | BK272: N/A | BL272: N/A | BM272: N/A | BN272: N/A | BO272: N/A | BP272: N/A | BQ272: N/A | BR272: N/A | BS272: N/A | BT272: N/A | BU272: N/A | BV272: N/A
BB273: DK/not sure/missing | BC273: N/A | BD273: N/A | BE273: N/A | BF273: N/A | BG273: N/A | BH273: N/A | BI273: N/A | BJ273: N/A | BK273: N/A | BL273: N/A | BM273: N/A | BN273: N/A | BO273: N/A | BP273: N/A | BQ273: N/A | BR273: N/A | BS273: N/A | BT273: N/A | BU273: N/A | BV273: N/A
BA274: Participation in (all) activities during menstruation | BB274: Yes | BC274: N/A | BD274: N/A | BE274: N/A | BF274: N/A | BG274: N/A | BH274: N/A | BI274: N/A | BJ274: N/A | BK274: N/A | BL274: N/A | BM274: N/A | BN274: N/A | BO274: N/A | BP274: N/A | BQ274: N/A | BR274: N/A | BS274: N/A | BT274: N/A | BU274: N/A | BV274: N/A
BB275: No | BC275: N/A | BD275: N/A | BE275: N/A | BF275: N/A | BG275: N/A | BH275: N/A | BI275: N/A | BJ275: N/A | BK275: N/A | BL275: N/A | BM275: N/A | BN275: N/A | BO275: N/A | BP275: N/A | BQ275: N/A | BR275: N/A | BS275: N/A | BT275: N/A | BU275: N/A | BV275: N/A
BB276: DK/not sure/missing/no such activity | BC276: N/A | BD276: N/A | BE276: N/A | BF276: N/A | BG276: N/A | BH276: N/A | BI276: N/A | BJ276: N/A | BK276: N/A | BL276: N/A | BM276: N/A | BN276: N/A | BO276: N/A | BP276: N/A | BQ276: N/A | BR276: N/A | BS276: N/A | BT276: N/A | BU276: N/A | BV276: N/A
BA277: Participation in specific activities during menstruation | BB277: Did not go to school (amongst those usually attending school) | BC277: N/A | BD277: N/A | BE277: N/A | BF277: N/A | BG277: N/A | BH277: N/A | BI277: N/A | BJ277: N/A | BK277: N/A | BL277: N/A | BM277: N/A | BN277: N/A | BO277: N/A | BP277: N/A | BQ277: N/A | BR277: N/A | BS277: N/A | BT277: N/A | BU277: N/A | BV277: N/A
BB278: Did not go to work (amongst those who usually work) | BC278: N/A | BD278: N/A | BE278: N/A | BF278: N/A | BG278: N/A | BH278: N/A | BI278: N/A | BJ278: N/A | BK278: N/A | BL278: N/A | BM278: N/A | BN278: N/A | BO278: N/A | BP278: N/A | BQ278: N/A | BR278: N/A | BS278: N/A | BT278: N/A | BU278: N/A | BV278: N/A
BB279: Did not participate in social activities | BC279: N/A | BD279: N/A | BE279: N/A | BF279: N/A | BG279: N/A | BH279: N/A | BI279: N/A | BJ279: N/A | BK279: N/A | BL279: N/A | BM279: N/A | BN279: N/A | BO279: N/A | BP279: N/A | BQ279: N/A | BR279: N/A | BS279: N/A | BT279: N/A | BU279: N/A | BV279: N/A
BB280: Did not cook food | BC280: N/A | BD280: N/A | BE280: N/A | BF280: N/A | BG280: N/A | BH280: N/A | BI280: N/A | BJ280: N/A | BK280: N/A | BL280: N/A | BM280: N/A | BN280: N/A | BO280: N/A | BP280: N/A | BQ280: N/A | BR280: N/A | BS280: N/A | BT280: N/A | BU280: N/A | BV280: N/A
BB281: Did not eat with others | BC281: N/A | BD281: N/A | BE281: N/A | BF281: N/A | BG281: N/A | BH281: N/A | BI281: N/A | BJ281: N/A | BK281: N/A | BL281: N/A | BM281: N/A | BN281: N/A | BO281: N/A | BP281: N/A | BQ281: N/A | BR281: N/A | BS281: N/A | BT281: N/A | BU281: N/A | BV281: N/A
BB282: Did not bathe in regular place | BC282: N/A | BD282: N/A | BE282: N/A | BF282: N/A | BG282: N/A | BH282: N/A | BI282: N/A | BJ282: N/A | BK282: N/A | BL282: N/A | BM282: N/A | BN282: N/A | BO282: N/A | BP282: N/A | BQ282: N/A | BR282: N/A | BS282: N/A | BT282: N/A | BU282: N/A | BV282: N/A
BB283: Did not participate in other activities | BC283: N/A | BD283: N/A | BE283: N/A | BF283: N/A | BG283: N/A | BH283: N/A | BI283: N/A | BJ283: N/A | BK283: N/A | BL283: N/A | BM283: N/A | BN283: N/A | BO283: N/A | BP283: N/A | BQ283: N/A | BR283: N/A | BS283: N/A | BT283: N/A | BU283: N/A | BV283: N/A
BB284: DK/not sure/missing/no such activity | BC284: N/A | BD284: N/A | BE284: N/A | BF284: N/A | BG284: N/A | BH284: N/A | BI284: N/A | BJ284: N/A | BK284: N/A | BL284: N/A | BM284: N/A | BN284: N/A | BO284: N/A | BP284: N/A | BQ284: N/A | BR284: N/A | BS284: N/A | BT284: N/A | BU284: N/A | BV284: N/A
BA339: Raw numbers of respondents: | BB339: Basic water, sanitation and hygiene | BC339: NATIONAL wealth index quintile | BH339: URBAN wealth index quintile | BM339: RURAL wealth index quintile | BR339: SUB-REGIONS:
BA340: WatSan data, raw numbers (weighted) | BC340: Poorest | BD340: Poor | BE340: Middle | BF340: Rich | BG340: Richest | BH340: Poorest | BI340: Poor | BJ340: Middle | BK340: Rich | BL340: Richest | BM340: Poorest | BN340: Poor | BO340: Middle | BP340: Rich | BQ340: Richest | BR340: Central | BS340: Eastern | BT340: Far-western | BU340: Mid-western | BV340: Western
BA341: Use of Basic Water Sanitation and Hygiene | BB341: Yes | BC341: N/A | BD341: N/A | BE341: N/A | BF341: N/A | BG341: N/A | BH341: N/A | BI341: N/A | BJ341: N/A | BK341: N/A | BL341: N/A | BM341: N/A | BN341: N/A | BO341: N/A | BP341: N/A | BQ341: N/A | BR341: N/A | BS341: N/A | BT341: N/A | BU341: N/A | BV341: N/A
BB342: No | BC342: N/A | BD342: N/A | BE342: N/A | BF342: N/A | BG342: N/A | BH342: N/A | BI342: N/A | BJ342: N/A | BK342: N/A | BL342: N/A | BM342: N/A | BN342: N/A | BO342: N/A | BP342: N/A | BQ342: N/A | BR342: N/A | BS342: N/A | BT342: N/A | BU342: N/A | BV342: N/A
BA343: Use of Basic Water and Sanitation | BB343: Yes | BC343: N/A | BD343: N/A | BE343: N/A | BF343: N/A | BG343: N/A | BH343: N/A | BI343: N/A | BJ343: N/A | BK343: N/A | BL343: N/A | BM343: N/A | BN343: N/A | BO343: N/A | BP343: N/A | BQ343: N/A | BR343: N/A | BS343: N/A | BT343: N/A | BU343: N/A | BV343: N/A
BB344: No | BC344: N/A | BD344: N/A | BE344: N/A | BF344: N/A | BG344: N/A | BH344: N/A | BI344: N/A | BJ344: N/A | BK344: N/A | BL344: N/A | BM344: N/A | BN344: N/A | BO344: N/A | BP344: N/A | BQ344: N/A | BR344: N/A | BS344: N/A | BT344: N/A | BU344: N/A | BV344: N/A
BA345: Use of Basic Water and Hygiene | BB345: Yes | BC345: N/A | BD345: N/A | BE345: N/A | BF345: N/A | BG345: N/A | BH345: N/A | BI345: N/A | BJ345: N/A | BK345: N/A | BL345: N/A | BM345: N/A | BN345: N/A | BO345: N/A | BP345: N/A | BQ345: N/A | BR345: N/A | BS345: N/A | BT345: N/A | BU345: N/A | BV345: N/A
BB346: No | BC346: N/A | BD346: N/A | BE346: N/A | BF346: N/A | BG346: N/A | BH346: N/A | BI346: N/A | BJ346: N/A | BK346: N/A | BL346: N/A | BM346: N/A | BN346: N/A | BO346: N/A | BP346: N/A | BQ346: N/A | BR346: N/A | BS346: N/A | BT346: N/A | BU346: N/A | BV346: N/A
BA347: Use of Basic Sanitation and Hygiene | BB347: Yes | BC347: N/A | BD347: N/A | BE347: N/A | BF347: N/A | BG347: N/A | BH347: N/A | BI347: N/A | BJ347: N/A | BK347: N/A | BL347: N/A | BM347: N/A | BN347: N/A | BO347: N/A | BP347: N/A | BQ347: N/A | BR347: N/A | BS347: N/A | BT347: N/A | BU347: N/A | BV347: N/A
BB348: No | BC348: N/A | BD348: N/A | BE348: N/A | BF348: N/A | BG348: N/A | BH348: N/A | BI348: N/A | BJ348: N/A | BK348: N/A | BL348: N/A | BM348: N/A | BN348: N/A | BO348: N/A | BP348: N/A | BQ348: N/A | BR348: N/A | BS348: N/A | BT348: N/A | BU348: N/A | BV348: N/A
BA349: Use of Basic Water | BB349: Yes | BC349: N/A | BD349: N/A | BE349: N/A | BF349: N/A | BG349: N/A | BH349: N/A | BI349: N/A | BJ349: N/A | BK349: N/A | BL349: N/A | BM349: N/A | BN349: N/A | BO349: N/A | BP349: N/A | BQ349: N/A | BR349: N/A | BS349: N/A | BT349: N/A | BU349: N/A | BV349: N/A
BB350: No | BC350: N/A | BD350: N/A | BE350: N/A | BF350: N/A | BG350: N/A | BH350: N/A | BI350: N/A | BJ350: N/A | BK350: N/A | BL350: N/A | BM350: N/A | BN350: N/A | BO350: N/A | BP350: N/A | BQ350: N/A | BR350: N/A | BS350: N/A | BT350: N/A | BU350: N/A | BV350: N/A
BA351: Use of Basic Sanitation | BB351: Yes | BC351: N/A | BD351: N/A | BE351: N/A | BF351: N/A | BG351: N/A | BH351: N/A | BI351: N/A | BJ351: N/A | BK351: N/A | BL351: N/A | BM351: N/A | BN351: N/A | BO351: N/A | BP351: N/A | BQ351: N/A | BR351: N/A | BS351: N/A | BT351: N/A | BU351: N/A | BV351: N/A
BB352: No | BC352: N/A | BD352: N/A | BE352: N/A | BF352: N/A | BG352: N/A | BH352: N/A | BI352: N/A | BJ352: N/A | BK352: N/A | BL352: N/A | BM352: N/A | BN352: N/A | BO352: N/A | BP352: N/A | BQ352: N/A | BR352: N/A | BS352: N/A | BT352: N/A | BU352: N/A | BV352: N/A
BA353: Access to Basic Hygiene | BB353: Yes | BC353: N/A | BD353: N/A | BE353: N/A | BF353: N/A | BG353: N/A | BH353: N/A | BI353: N/A | BJ353: N/A | BK353: N/A | BL353: N/A | BM353: N/A | BN353: N/A | BO353: N/A | BP353: N/A | BQ353: N/A | BR353: N/A | BS353: N/A | BT353: N/A | BU353: N/A | BV353: N/A
BB354: No | BC354: N/A | BD354: N/A | BE354: N/A | BF354: N/A | BG354: N/A | BH354: N/A | BI354: N/A | BJ354: N/A | BK354: N/A | BL354: N/A | BM354: N/A | BN354: N/A | BO354: N/A | BP354: N/A | BQ354: N/A | BR354: N/A | BS354: N/A | BT354: N/A | BU354: N/A | BV354: N/A
C399: INITIAL (national) Wealth Index | H399: URBAN Wealth Index | M399: RURAL Wealth Index
C400: Component Matrix | H400: Component Matrix | M400: Component Matrix
E401: Component | J401: Component | O401: Component
B402: Note: The INITIAL (national) Wealth Index is based on the first component of the Principal Component Analysis (PCA) which has been obtained at national level. The final national-level (NATIONAL) Wealth Index is based on the URBAN and RURAL specific wealth indexes. Regression procedures are used to establish the relationships between the two sets of scores (urban and rural) and the initial (national) wealth factors. This allows best use of the available information for each area and a better precision of the FINAL (NATIONAL) Wealth Index. For dependency reasons, all WASH variables (contained in the generic MICS and DHS scripts) have been excluded from the sets of asset variables used in the PCAs. The PCA can extracts as many components as there are asset variables in the input. Only the first of the components is used to represent the Wealth Index. The scores represent the weights of the asset variables on the Wealth Index (correlations between the variables and the component). The communalities are the proportion of each variable's variance that can be explained by the component. Proportion of explained variance is the part of the model's total variance that is explained by the component. For more information on the procedure used: The DHS Wealth Index, DHS Comparative Reports No. 6, Shea Oscar Rutstein, Kiersten Johnson, ORC Macro International Inc., 2004. The DHS Wealth Index: Approaches for Rural and Urban Areas, Shea O. Rutstein, ORC Macro International Inc., 2008. MICS Methodological Paper No. 4, Review of options for reporting water, sanitation and hygiene coverage by wealth quintile, UNICEF, 2016. | E402: 1 | J402: 1 | O402: 1
C403: Has earth/sand floor | E403: -0.8371591932 | H403: Has earth/sand floor | J403: -0.7945897904 | M403: Has earth/sand floor | O403: -0.7721849242
C404: Household fuel type: traditional | E404: -0.8298334536 | H404: Household fuel type: traditional | J404: -0.7868175508 | M404: Household fuel type: traditional | O404: -0.7264270143
C405: Has television | E405: 0.7567508411 | H405: Has television | J405: 0.7125551191 | M405: Has electricity | O405: 0.6542282542
C406: Has electricity | E406: 0.7361929779 | H406: Has electricity | J406: 0.6382535498 | M406: Has television | O406: 0.6326744112
C407: Has cement floor | E407: 0.6628153308 | H407: Household fuel type: LPG, natural gas | J407: 0.6014495855 | M407: Has cement floor | O407: 0.6258857236
C408: Household fuel type: LPG, natural gas | E408: 0.5857938112 | H408: Has telephone | J408: 0.5725410115 | M408: Household fuel type: kerosene | O408: 0.4971217636
C409: Has telephone | E409: 0.5631239681 | H409: Has cement floor | J409: 0.4944570699 | M409: Household fuel type: LPG, natural gas | O409: 0.4242765162
C410: Household fuel type: kerosene | E410: 0.5441204301 | H410: Has vinyl/asphalt strip floor | J410: 0.4453232716 | M410: Has telephone | O410: 0.4020716327
C411: Has vinyl/asphalt strip floor | E411: 0.495482699 | H411: Has radio | J411: 0.4242636246 | M411: Has vinyl/asphalt strip floor | O411: 0.3985136767
C412: Has radio | E412: 0.3119189529 | H412: Household fuel type: kerosene | J412: 0.2692235963 | M412: Household fuel type: biogas | O412: 0.3455254997
C413: Has bicycle | E413: 0.291571167 | H413: Has bicycle | J413: 0.224472563 | M413: Has wood floor | O413: 0.3009107894
C414: Household fuel type: biogas | E414: 0.2338266996 | H414: Has ceramic tile floor | J414: 0.147430921 | M414: Has radio | O414: 0.2864484402
C415: Has wood floor | E415: 0.1432716827 | H415: Household fuel type: biogas | J415: 0.1375012713 | M415: Has bicycle | O415: 0.2141876339
C416: Has ceramic tile floor | E416: 0.1428944094 | H416: Has wood floor | J416: -0.1234855017 | M416: Household fuel type: smokeless chulo | O416: 0.1582543634
C417: Household fuel type: smokeless chulo | E417: 0.06022399698 | H417: Household fuel type: electricity | J417: 0.03489385718 | M417: Household fuel type: electricity | O417: 0.07226204721
C418: Household fuel type: electricity | E418: 0.05516205544 | H418: Household fuel type: smokeless chulo | J418: 0.01674251403
M421: Communalities
C422: Communalities | H422: Communalities | O422: Extraction
E423: Extraction | J423: Extraction | M423: Has electricity | O423: 0.4280146086
C424: Has electricity | E424: 0.5419801006 | H424: Has electricity | J424: 0.4073675938 | M424: Has radio | O424: 0.08205270892
C425: Has radio | E425: 0.0972934332 | H425: Has radio | J425: 0.1799996232 | M425: Has television | O425: 0.4002769106
C426: Has television | E426: 0.5726718354 | H426: Has television | J426: 0.5077347978 | M426: Has bicycle | O426: 0.04587634251
... 91 more rows

Sheet WHS03
A2: =A1026 -> Nepal
A3: =A1034 -> 2003
A4: Use of drinking water sources
A5: by wealth quintile and sub-national region
A6: Notes:
A7: WHO/UNICEF JMP customised wealth index excludes water,
A8: sanitation and hygiene assets.
A9: Survey used for analysis: | B9: =A1025 -> WHS03
A10: =B1028 -> 
A11: =B1027 -> 
A14: Use of drinking water sources | C14: NATIONAL wealth index quintile | H14: URBAN wealth index quintile | M14: RURAL wealth index quintile | BA14: Raw numbers of respondents: | BB14: Use of drinking water sources | BC14: NATIONAL wealth index quintile | BH14: URBAN wealth index quintile | BM14: RURAL wealth index quintile
A15: Weighted percentage (used in graphs) | C15: Poorest | D15: Poor | E15: Middle | F15: Rich | G15: Richest | H15: Poorest | I15: Poor | J15: Middle | K15: Rich | L15: Richest | M15: Poorest | N15: Poor | O15: Middle | P15: Rich | Q15: Richest | BA15: Water data, raw numbers (weighted) | BC15: Poorest | BD15: Poor | BE15: Middle | BF15: Rich | BG15: Richest | BH15: Poorest | BI15: Poor | BJ15: Middle | BK15: Rich | BL15: Richest | BM15: Poorest | BN15: Poor | BO15: Middle | BP15: Rich | BQ15: Richest
A16: Water | B16: Improved | C16: 86.02026065 | D16: 91.93177271 | E16: 93.63479226 | F16: 92.15857239 | G16: 96.62835706 | H16: 96.3331943 | I16: 96.10568323 | J16: 95.2091311 | K16: 96.73767342 | L16: 99.58973981 | M16: 85.43707412 | N16: 90.31608864 | O16: 93.30452677 | P16: 93.00533576 | Q16: 94.11926401 | BA16: Water | BB16: Improved | BC16: N/A | BD16: N/A | BE16: N/A | BF16: N/A | BG16: N/A | BH16: N/A | BI16: N/A | BJ16: N/A | BK16: N/A | BL16: N/A | BM16: N/A | BN16: N/A | BO16: N/A | BP16: N/A | BQ16: N/A
B17: Not Improved | C17: 13.97973935 | D17: 8.068227291 | E17: 6.365207742 | F17: 7.841427612 | G17: 3.371642941 | H17: 3.666805703 | I17: 3.894316771 | J17: 4.790868905 | K17: 3.262326583 | L17: 0.4102601874 | M17: 14.56292588 | N17: 9.683911365 | O17: 6.695473233 | P17: 6.994664241 | Q17: 5.880735991 | BB17: Not Improved | BC17: N/A | BD17: N/A | BE17: N/A | BF17: N/A | BG17: N/A | BH17: N/A | BI17: N/A | BJ17: N/A | BK17: N/A | BL17: N/A | BM17: N/A | BN17: N/A | BO17: N/A | BP17: N/A | BQ17: N/A
A18: Water ladder | B18: Basic | C18: =C16*C23/100 -> 82.26725585 | D18: =D16*D23/100 -> 89.54869631 | E18: =E16*E23/100 -> 91.39386616 | F18: 90.34540768 | G18: 95.44565728 | H18: 94.47492822 | I18: 94.2200534 | J18: 93.8083406 | K18: 96.73767342 | L18: 97.94377158 | M18: 81.56229882 | N18: 87.66775869 | O18: 91.17220011 | P18: 91.08496756 | Q18: 92.49333879 | BA18: Water ladder | BB18: Basic | BC18: N/A | BD18: N/A | BE18: N/A | BF18: N/A | BG18: N/A | BH18: N/A | BI18: N/A | BJ18: N/A | BK18: N/A | BL18: N/A | BM18: N/A | BN18: N/A | BO18: N/A | BP18: N/A | BQ18: N/A
B19: Limited | C19: =C16*C22/100 -> 3.753004802 | D19: =D16*D22/100 -> 2.383076399 | E19: =E16*E22/100 -> 2.240926097 | F19: 1.81316471 | G19: 1.182699776 | H19: 1.858266079 | I19: 1.885629829 | J19: 1.4007905 | K19: 0 | L19: 1.645968234 | M19: 3.874775299 | N19: 2.648329945 | O19: 2.132326661 | P19: 1.920368202 | Q19: 1.625925219 | BB19: Limited | BC19: N/A | BD19: N/A | BE19: N/A | BF19: N/A | BG19: N/A | BH19: N/A | BI19: N/A | BJ19: N/A | BK19: N/A | BL19: N/A | BM19: N/A | BN19: N/A | BO19: N/A | BP19: N/A | BQ19: N/A
B20: Unimproved | C20: =100-C18-C19-C21 -> 9.235150801 | D20: =100-D18-D19-D21 -> 6.030496472 | E20: =100-E18-E19-E21 -> 4.65083596 | F20: 6.745895879 | G20: 2.875631633 | H20: 2.942743311 | I20: 3.538006973 | J20: 4.790868905 | K20: 2.209001244 | L20: 0.4102601874 | M20: 9.464301577 | N20: 7.275616497 | O20: 5.229855602 | P20: 5.024543074 | Q20: 5.378507571 | BB20: Unimproved | BC20: N/A | BD20: N/A | BE20: N/A | BF20: N/A | BG20: N/A | BH20: N/A | BI20: N/A | BJ20: N/A | BK20: N/A | BL20: N/A | BM20: N/A | BN20: N/A | BO20: N/A | BP20: N/A | BQ20: N/A
B21: Surface water | C21: 4.744588546 | D21: 2.037730819 | E21: 1.714371782 | F21: 1.095531733 | G21: 0.4960113081 | H21: 0.7240623928 | I21: 0.3563097985 | J21: 0 | K21: 1.05332534 | L21: 0 | M21: 5.098624302 | N21: 2.408294868 | O21: 1.465617631 | P21: 1.970121168 | Q21: 0.5022284198 | BB21: Surface water | BC21: N/A | BD21: N/A | BE21: N/A | BF21: N/A | BG21: N/A | BH21: N/A | BI21: N/A | BJ21: N/A | BK21: N/A | BL21: N/A | BM21: N/A | BN21: N/A | BO21: N/A | BP21: N/A | BQ21: N/A
A22: Improved water point at more than 30 minutes | B22: Yes | C22: 4.362931214 | D22: 2.592222829 | E22: 2.393262208 | F22: 1.967440102 | G22: 1.223967593 | H22: 1.928998714 | I22: 1.962037796 | J22: 1.471277475 | K22: 0 | L22: 1.652748805 | M22: 4.535238758 | N22: 2.932290342 | O22: 2.28534106 | P22: 2.06479358 | Q22: 1.727515866 | BA22: Improved water point at more than 30 minutes | BB22: Yes | BC22: N/A | BD22: N/A | BE22: N/A | BF22: N/A | BG22: N/A | BH22: N/A | BI22: N/A | BJ22: N/A | BK22: N/A | BL22: N/A | BM22: N/A | BN22: N/A | BO22: N/A | BP22: N/A | BQ22: N/A
B23: No | C23: 95.63706879 | D23: 97.40777717 | E23: 97.60673779 | F23: 98.0325599 | G23: 98.77603241 | H23: 98.07100129 | I23: 98.0379622 | J23: 98.52872252 | K23: 100 | L23: 98.3472512 | M23: 95.46476124 | N23: 97.06770966 | O23: 97.71465894 | P23: 97.93520642 | Q23: 98.27248413 | BB23: No | BC23: N/A | BD23: N/A | BE23: N/A | BF23: N/A | BG23: N/A | BH23: N/A | BI23: N/A | BJ23: N/A | BK23: N/A | BL23: N/A | BM23: N/A | BN23: N/A | BO23: N/A | BP23: N/A | BQ23: N/A
A24: Manually calculated ratios | B24: Improved wells
B25: Improved springs
B26: Other
C27: NATIONAL wealth index quintile | H27: URBAN wealth index quintile | M27: RURAL wealth index quintile | BA27: Raw numbers of respondents: | BB27: Use of drinking water sources | BC27: NATIONAL wealth index quintile | BH27: URBAN wealth index quintile | BM27: RURAL wealth index quintile
A28: Percentage based on weighted population | C28: Poorest | D28: Poor | E28: Middle | F28: Rich | G28: Richest | H28: Poorest | I28: Poor | J28: Middle | K28: Rich | L28: Richest | M28: Poorest | N28: Poor | O28: Middle | P28: Rich | Q28: Richest | BA28: Water data, raw numbers (weighted) | BC28: Poorest | BD28: Poor | BE28: Middle | BF28: Rich | BG28: Richest | BH28: Poorest | BI28: Poor | BJ28: Middle | BK28: Rich | BL28: Richest | BM28: Poorest | BN28: Poor | BO28: Middle | BP28: Rich | BQ28: Richest
A29: Piped water | B29: Yes | C29: 54.78792104 | D29: 51.00445339 | E29: 45.70620039 | F29: 40.60319801 | G29: 65.9181146 | H29: 44.26228327 | I29: 55.32773432 | J29: 71.00970704 | K29: 78.77381606 | L29: 86.70114367 | M29: 53.83047237 | N29: 54.48573591 | O29: 46.83055181 | P29: 40.51383299 | Q29: 48.74337994 | BA29: Piped water | BB29: Yes | BC29: N/A | BD29: N/A | BE29: N/A | BF29: N/A | BG29: N/A | BH29: N/A | BI29: N/A | BJ29: N/A | BK29: N/A | BL29: N/A | BM29: N/A | BN29: N/A | BO29: N/A | BP29: N/A | BQ29: N/A
B30: No | C30: 45.21207896 | D30: 48.99554661 | E30: 54.29379961 | F30: 59.39680199 | G30: 34.0818854 | H30: 55.73771673 | I30: 44.67226568 | J30: 28.99029296 | K30: 21.22618394 | L30: 13.29885633 | M30: 46.16952763 | N30: 45.51426409 | O30: 53.16944819 | P30: 59.48616701 | Q30: 51.25662006 | BB30: No | BC30: N/A | BD30: N/A | BE30: N/A | BF30: N/A | BG30: N/A | BH30: N/A | BI30: N/A | BJ30: N/A | BK30: N/A | BL30: N/A | BM30: N/A | BN30: N/A | BO30: N/A | BP30: N/A | BQ30: N/A
A31: Piped water on premises | B31: Yes | C31: 7.704149514 | D31: 8.865291842 | E31: 10.04404923 | F31: 15.17919734 | G31: 48.22184801 | H31: 11.50516552 | I31: 39.52037357 | J31: 62.45327667 | K31: 70.99512347 | L31: 81.73300204 | M31: 7.574712389 | N31: 8.923155342 | O31: 10.05060817 | P31: 11.62278009 | Q31: 21.0994288 | BA31: Piped water on premises | BB31: Yes | BC31: N/A | BD31: N/A | BE31: N/A | BF31: N/A | BG31: N/A | BH31: N/A | BI31: N/A | BJ31: N/A | BK31: N/A | BL31: N/A | BM31: N/A | BN31: N/A | BO31: N/A | BP31: N/A | BQ31: N/A
B32: No | C32: 92.29585049 | D32: 91.13470816 | E32: 89.95595077 | F32: 84.82080266 | G32: 51.77815199 | H32: 88.49483448 | I32: 60.47962643 | J32: 37.54672333 | K32: 29.00487653 | L32: 18.26699796 | M32: 92.42528761 | N32: 91.07684466 | O32: 89.94939183 | P32: 88.37721991 | Q32: 78.9005712 | BB32: No | BC32: N/A | BD32: N/A | BE32: N/A | BF32: N/A | BG32: N/A | BH32: N/A | BI32: N/A | BJ32: N/A | BK32: N/A | BL32: N/A | BM32: N/A | BN32: N/A | BO32: N/A | BP32: N/A | BQ32: N/A
A33: Piped water into dwelling | B33: Yes | C33: N/A | D33: N/A | E33: N/A | F33: N/A | G33: N/A | H33: N/A | I33: N/A | J33: N/A | K33: N/A | L33: N/A | M33: N/A | N33: N/A | O33: N/A | P33: N/A | Q33: N/A | BA33: Piped water into dwelling | BB33: Yes | BC33: N/A | BD33: N/A | BE33: N/A | BF33: N/A | BG33: N/A | BH33: N/A | BI33: N/A | BJ33: N/A | BK33: N/A | BL33: N/A | BM33: N/A | BN33: N/A | BO33: N/A | BP33: N/A | BQ33: N/A
B34: No | C34: N/A | D34: N/A | E34: N/A | F34: N/A | G34: N/A | H34: N/A | I34: N/A | J34: N/A | K34: N/A | L34: N/A | M34: N/A | N34: N/A | O34: N/A | P34: N/A | Q34: N/A | BB34: No | BC34: N/A | BD34: N/A | BE34: N/A | BF34: N/A | BG34: N/A | BH34: N/A | BI34: N/A | BJ34: N/A | BK34: N/A | BL34: N/A | BM34: N/A | BN34: N/A | BO34: N/A | BP34: N/A | BQ34: N/A
A35: Water source on premises | B35: Yes | C35: N/A | D35: N/A | E35: N/A | F35: N/A | G35: N/A | H35: N/A | I35: N/A | J35: N/A | K35: N/A | L35: N/A | M35: N/A | N35: N/A | O35: N/A | P35: N/A | Q35: N/A | BA35: Water source on premises | BB35: Yes | BC35: N/A | BD35: N/A | BE35: N/A | BF35: N/A | BG35: N/A | BH35: N/A | BI35: N/A | BJ35: N/A | BK35: N/A | BL35: N/A | BM35: N/A | BN35: N/A | BO35: N/A | BP35: N/A | BQ35: N/A
B36: No | C36: N/A | D36: N/A | E36: N/A | F36: N/A | G36: N/A | H36: N/A | I36: N/A | J36: N/A | K36: N/A | L36: N/A | M36: N/A | N36: N/A | O36: N/A | P36: N/A | Q36: N/A | BB36: No | BC36: N/A | BD36: N/A | BE36: N/A | BF36: N/A | BG36: N/A | BH36: N/A | BI36: N/A | BJ36: N/A | BK36: N/A | BL36: N/A | BM36: N/A | BN36: N/A | BO36: N/A | BP36: N/A | BQ36: N/A
A37: Improved Water source on premises | B37: Yes | C37: N/A | D37: N/A | E37: N/A | F37: N/A | G37: N/A | H37: N/A | I37: N/A | J37: N/A | K37: N/A | L37: N/A | M37: N/A | N37: N/A | O37: N/A | P37: N/A | Q37: N/A | BA37: Improved water source on premises | BB37: Yes | BC37: N/A | BD37: N/A | BE37: N/A | BF37: N/A | BG37: N/A | BH37: N/A | BI37: N/A | BJ37: N/A | BK37: N/A | BL37: N/A | BM37: N/A | BN37: N/A | BO37: N/A | BP37: N/A | BQ37: N/A
B38: No | C38: N/A | D38: N/A | E38: N/A | F38: N/A | G38: N/A | H38: N/A | I38: N/A | J38: N/A | K38: N/A | L38: N/A | M38: N/A | N38: N/A | O38: N/A | P38: N/A | Q38: N/A | BB38: No | BC38: N/A | BD38: N/A | BE38: N/A | BF38: N/A | BG38: N/A | BH38: N/A | BI38: N/A | BJ38: N/A | BK38: N/A | BL38: N/A | BM38: N/A | BN38: N/A | BO38: N/A | BP38: N/A | BQ38: N/A
A39: Piped water on premises available when needed | B39: Yes | C39: N/A | D39: N/A | E39: N/A | F39: N/A | G39: N/A | H39: N/A | I39: N/A | J39: N/A | K39: N/A | L39: N/A | M39: N/A | N39: N/A | O39: N/A | P39: N/A | Q39: N/A | BA39: Piped water on premises available when needed | BB39: Yes | BC39: N/A | BD39: N/A | BE39: N/A | BF39: N/A | BG39: N/A | BH39: N/A | BI39: N/A | BJ39: N/A | BK39: N/A | BL39: N/A | BM39: N/A | BN39: N/A | BO39: N/A | BP39: N/A | BQ39: N/A
B40: No | C40: N/A | D40: N/A | E40: N/A | F40: N/A | G40: N/A | H40: N/A | I40: N/A | J40: N/A | K40: N/A | L40: N/A | M40: N/A | N40: N/A | O40: N/A | P40: N/A | Q40: N/A | BB40: No | BC40: N/A | BD40: N/A | BE40: N/A | BF40: N/A | BG40: N/A | BH40: N/A | BI40: N/A | BJ40: N/A | BK40: N/A | BL40: N/A | BM40: N/A | BN40: N/A | BO40: N/A | BP40: N/A | BQ40: N/A
A41: Water point at more than 30 minutes | B41: Yes | C41: 7.297381081 | D41: 4.170534446 | E41: 3.266917809 | F41: 2.356049146 | G41: 1.285444151 | H41: 1.849165045 | I41: 1.883625021 | J41: 1.452241771 | K41: 0 | L41: 1.652748805 | M41: 7.296607708 | N41: 5.319173989 | O41: 3.192381977 | P41: 2.724402227 | Q41: 1.87038277 | BA41: Water point at more than 30 minutes | BB41: Yes | BC41: N/A | BD41: N/A | BE41: N/A | BF41: N/A | BG41: N/A | BH41: N/A | BI41: N/A | BJ41: N/A | BK41: N/A | BL41: N/A | BM41: N/A | BN41: N/A | BO41: N/A | BP41: N/A | BQ41: N/A
B42: No | C42: 92.70261892 | D42: 95.82946555 | E42: 96.73308219 | F42: 97.64395085 | G42: 98.71455585 | H42: 98.15083495 | I42: 98.11637498 | J42: 98.54775823 | K42: 100 | L42: 98.3472512 | M42: 92.70339229 | N42: 94.68082601 | O42: 96.80761802 | P42: 97.27559777 | Q42: 98.12961723 | BB42: No | BC42: N/A | BD42: N/A | BE42: N/A | BF42: N/A | BG42: N/A | BH42: N/A | BI42: N/A | BJ42: N/A | BK42: N/A | BL42: N/A | BM42: N/A | BN42: N/A | BO42: N/A | BP42: N/A | BQ42: N/A
A43: Water source available when needed | B43: Yes | C43: N/A | D43: N/A | E43: N/A | F43: N/A | G43: N/A | H43: N/A | I43: N/A | J43: N/A | K43: N/A | L43: N/A | M43: N/A | N43: N/A | O43: N/A | P43: N/A | Q43: N/A | BA43: Water source available when needed | BB43: Yes | BC43: N/A | BD43: N/A | BE43: N/A | BF43: N/A | BG43: N/A | BH43: N/A | BI43: N/A | BJ43: N/A | BK43: N/A | BL43: N/A | BM43: N/A | BN43: N/A | BO43: N/A | BP43: N/A | BQ43: N/A
B44: No | C44: N/A | D44: N/A | E44: N/A | F44: N/A | G44: N/A | H44: N/A | I44: N/A | J44: N/A | K44: N/A | L44: N/A | M44: N/A | N44: N/A | O44: N/A | P44: N/A | Q44: N/A | BB44: No | BC44: N/A | BD44: N/A | BE44: N/A | BF44: N/A | BG44: N/A | BH44: N/A | BI44: N/A | BJ44: N/A | BK44: N/A | BL44: N/A | BM44: N/A | BN44: N/A | BO44: N/A | BP44: N/A | BQ44: N/A
A45: Improved water source available when needed | B45: Yes | C45: N/A | D45: N/A | E45: N/A | F45: N/A | G45: N/A | H45: N/A | I45: N/A | J45: N/A | K45: N/A | L45: N/A | M45: N/A | N45: N/A | O45: N/A | P45: N/A | Q45: N/A | BA45: Improved water source available when needed | BB45: Yes | BC45: N/A | BD45: N/A | BE45: N/A | BF45: N/A | BG45: N/A | BH45: N/A | BI45: N/A | BJ45: N/A | BK45: N/A | BL45: N/A | BM45: N/A | BN45: N/A | BO45: N/A | BP45: N/A | BQ45: N/A
B46: No | C46: N/A | D46: N/A | E46: N/A | F46: N/A | G46: N/A | H46: N/A | I46: N/A | J46: N/A | K46: N/A | L46: N/A | M46: N/A | N46: N/A | O46: N/A | P46: N/A | Q46: N/A | BB46: No | BC46: N/A | BD46: N/A | BE46: N/A | BF46: N/A | BG46: N/A | BH46: N/A | BI46: N/A | BJ46: N/A | BK46: N/A | BL46: N/A | BM46: N/A | BN46: N/A | BO46: N/A | BP46: N/A | BQ46: N/A
A47: Microbiological quality at point of collection | B47: Not contaminated (No E. coli in 100 mL) | C47: N/A | D47: N/A | E47: N/A | F47: N/A | G47: N/A | H47: N/A | I47: N/A | J47: N/A | K47: N/A | L47: N/A | M47: N/A | N47: N/A | O47: N/A | P47: N/A | Q47: N/A | BA47: Microbiological quality at point of collection | BB47: Not contaminated (No E. coli in 100 mL) | BC47: N/A | BD47: N/A | BE47: N/A | BF47: N/A | BG47: N/A | BH47: N/A | BI47: N/A | BJ47: N/A | BK47: N/A | BL47: N/A | BM47: N/A | BN47: N/A | BO47: N/A | BP47: N/A | BQ47: N/A
B48: Contaminated (E. coli detected in 100 mL) | C48: N/A | D48: N/A | E48: N/A | F48: N/A | G48: N/A | H48: N/A | I48: N/A | J48: N/A | K48: N/A | L48: N/A | M48: N/A | N48: N/A | O48: N/A | P48: N/A | Q48: N/A | BB48: Contaminated (E. coli detected in 100 mL) | BC48: N/A | BD48: N/A | BE48: N/A | BF48: N/A | BG48: N/A | BH48: N/A | BI48: N/A | BJ48: N/A | BK48: N/A | BL48: N/A | BM48: N/A | BN48: N/A | BO48: N/A | BP48: N/A | BQ48: N/A
B49: Highly contaminated (>100 CFU/100 mL) | C49: N/A | D49: N/A | E49: N/A | F49: N/A | G49: N/A | H49: N/A | I49: N/A | J49: N/A | K49: N/A | L49: N/A | M49: N/A | N49: N/A | O49: N/A | P49: N/A | Q49: N/A | BB49: Highly contaminated (>100 CFU/100 mL) | BC49: N/A | BD49: N/A | BE49: N/A | BF49: N/A | BG49: N/A | BH49: N/A | BI49: N/A | BJ49: N/A | BK49: N/A | BL49: N/A | BM49: N/A | BN49: N/A | BO49: N/A | BP49: N/A | BQ49: N/A
A50: Microbiological quality of improved water sources at point of collection | B50: Not contaminated (No E. coli in 100 mL) | C50: N/A | D50: N/A | E50: N/A | F50: N/A | G50: N/A | H50: N/A | I50: N/A | J50: N/A | K50: N/A | L50: N/A | M50: N/A | N50: N/A | O50: N/A | P50: N/A | Q50: N/A | BA50: Microbiological quality of improved water sources at point of collection | BB50: Not contaminated (No E. coli in 100 mL) | BC50: N/A | BD50: N/A | BE50: N/A | BF50: N/A | BG50: N/A | BH50: N/A | BI50: N/A | BJ50: N/A | BK50: N/A | BL50: N/A | BM50: N/A | BN50: N/A | BO50: N/A | BP50: N/A | BQ50: N/A
B51: Contaminated (E. coli detected in 100 mL) | C51: N/A | D51: N/A | E51: N/A | F51: N/A | G51: N/A | H51: N/A | I51: N/A | J51: N/A | K51: N/A | L51: N/A | M51: N/A | N51: N/A | O51: N/A | P51: N/A | Q51: N/A | BB51: Contaminated (E. coli detected in 100 mL) | BC51: N/A | BD51: N/A | BE51: N/A | BF51: N/A | BG51: N/A | BH51: N/A | BI51: N/A | BJ51: N/A | BK51: N/A | BL51: N/A | BM51: N/A | BN51: N/A | BO51: N/A | BP51: N/A | BQ51: N/A
B52: Highly contaminated (>100 CFU/100 mL) | C52: N/A | D52: N/A | E52: N/A | F52: N/A | G52: N/A | H52: N/A | I52: N/A | J52: N/A | K52: N/A | L52: N/A | M52: N/A | N52: N/A | O52: N/A | P52: N/A | Q52: N/A | BB52: Highly contaminated (>100 CFU/100 mL) | BC52: N/A | BD52: N/A | BE52: N/A | BF52: N/A | BG52: N/A | BH52: N/A | BI52: N/A | BJ52: N/A | BK52: N/A | BL52: N/A | BM52: N/A | BN52: N/A | BO52: N/A | BP52: N/A | BQ52: N/A
A53: Microbiological quality of piped on premises at point of collection | B53: Not contaminated (No E. coli in 100 mL) | C53: N/A | D53: N/A | E53: N/A | F53: N/A | G53: N/A | H53: N/A | I53: N/A | J53: N/A | K53: N/A | L53: N/A | M53: N/A | N53: N/A | O53: N/A | P53: N/A | Q53: N/A | BA53: Microbiological quality of piped on premises at point of collection | BB53: Not contaminated (No E. coli in 100 mL) | BC53: N/A | BD53: N/A | BE53: N/A | BF53: N/A | BG53: N/A | BH53: N/A | BI53: N/A | BJ53: N/A | BK53: N/A | BL53: N/A | BM53: N/A | BN53: N/A | BO53: N/A | BP53: N/A | BQ53: N/A
B54: Contaminated (E. coli detected in 100 mL) | C54: N/A | D54: N/A | E54: N/A | F54: N/A | G54: N/A | H54: N/A | I54: N/A | J54: N/A | K54: N/A | L54: N/A | M54: N/A | N54: N/A | O54: N/A | P54: N/A | Q54: N/A | BB54: Contaminated (E. coli detected in 100 mL) | BC54: N/A | BD54: N/A | BE54: N/A | BF54: N/A | BG54: N/A | BH54: N/A | BI54: N/A | BJ54: N/A | BK54: N/A | BL54: N/A | BM54: N/A | BN54: N/A | BO54: N/A | BP54: N/A | BQ54: N/A
B55: Highly contaminated (>100 CFU/100 mL) | C55: N/A | D55: N/A | E55: N/A | F55: N/A | G55: N/A | H55: N/A | I55: N/A | J55: N/A | K55: N/A | L55: N/A | M55: N/A | N55: N/A | O55: N/A | P55: N/A | Q55: N/A | BB55: Highly contaminated (>100 CFU/100 mL) | BC55: N/A | BD55: N/A | BE55: N/A | BF55: N/A | BG55: N/A | BH55: N/A | BI55: N/A | BJ55: N/A | BK55: N/A | BL55: N/A | BM55: N/A | BN55: N/A | BO55: N/A | BP55: N/A | BQ55: N/A
C56: NATIONAL wealth index quintile | H56: URBAN wealth index quintile | M56: RURAL wealth index quintile | BA56: Raw numbers of respondents: | BB56: Use of drinking water sources | BC56: NATIONAL wealth index quintile | BH56: URBAN wealth index quintile | BM56: RURAL wealth index quintile
A57: Percentage based on weighted population | C57: Poorest | D57: Poor | E57: Middle | F57: Rich | G57: Richest | H57: Poorest | I57: Poor | J57: Middle | K57: Rich | L57: Richest | M57: Poorest | N57: Poor | O57: Middle | P57: Rich | Q57: Richest | BA57: Water data, raw numbers (weighted) | BC57: Poorest | BD57: Poor | BE57: Middle | BF57: Rich | BG57: Richest | BH57: Poorest | BI57: Poor | BJ57: Middle | BK57: Rich | BL57: Richest | BM57: Poorest | BN57: Poor | BO57: Middle | BP57: Rich | BQ57: Richest
A58: main source of drinking water | B58: Piped water through house connection or yard | C58: 7.735726352 | D58: 8.868570131 | E58: 10.09523157 | F58: 15.91618557 | G58: 49.44499708 | H58: 11.50516552 | I58: 40.10289958 | J58: 65.59588976 | K58: 72.39018098 | L58: 82.06970135 | M58: 7.611760177 | N58: 8.926991542 | O58: 10.09309017 | P58: 11.94500358 | Q58: 22.05359699
B59: Public standpipe | C59: 47.27675281 | D59: 42.15474415 | E59: 35.84387789 | F59: 26.65839989 | G59: 18.14513308 | H59: 32.75711775 | I59: 16.04035953 | J59: 8.986985033 | K59: 7.93154427 | L59: 4.988607901 | M59: 46.48199612 | N59: 45.58216861 | O59: 36.93540544 | P59: 29.69201236 | Q59: 28.89407876
B60: Protected tube well or bore hole | C60: 23.91628138 | D60: 36.53542144 | E60: 44.34652109 | F60: 49.42181097 | G60: 26.33683007 | H60: 41.97536216 | I60: 35.60728104 | J60: 15.3142073 | K60: 13.23178777 | L60: 8.407384084 | M60: 24.53786268 | N60: 30.58742412 | O60: 42.80532192 | P60: 50.06680227 | Q60: 43.95859208
B61: Protected dug well or protected spring | C61: 7.39917061 | D61: 4.407032367 | E61: 3.826304678 | F61: 4.590043377 | G61: 4.578122976 | H61: 10.09554886 | I61: 5.233387288 | J61: 8.427985114 | K61: 4.539682288 | L61: 4.00166829 | M61: 7.169748155 | N61: 5.258332614 | O61: 3.865089653 | P61: 3.826190999 | Q61: 3.363635741
B62: Unprotected dug well or spring | C62: 9.165745843 | D62: 6.165210048 | E62: 4.313471103 | F62: 2.383071907 | G62: 0.6471498065 | H62: 3.025286384 | I62: 2.251574188 | J62: 0 | K62: 1.028404142 | L62: 0 | M62: 9.33500745 | N62: 7.433882513 | O62: 4.956892269 | P62: 2.609300729 | Q62: 1.203699776
B63: Rainwater (into tank or cistern ) | C63: 0 | D63: 0 | E63: 0 | F63: 0.04666319299 | G63: 0 | H63: 0 | I63: 0 | J63: 0 | K63: 0 | L63: 0 | M63: 0 | N63: 0 | O63: 0 | P63: 0.05375469709 | Q63: 0
B64: Water taken directly from pond-water or stream | C64: 4.461424036 | D64: 1.869021867 | E64: 1.574593673 | F64: 0.9838250892 | G64: 0.2735110634 | H64: 0.6415193196 | I64: 0.2261552635 | J64: 0 | K64: 0.3330226095 | L64: 0 | M64: 4.81004716 | N64: 2.211200598 | O64: 1.344200546 | P64: 1.806935363 | Q64: 0.4207310464
B65: Tanker-truck, vendor | C65: 0.0448989759 | D65: 0 | E65: 0 | F65: 0 | G65: 0.5742559156 | H65: 0 | I65: 0.5383431115 | J65: 1.67493279 | K65: 0.5453779357 | L65: 0.5326383736 | M65: 0.05357826363 | N65: 0 | O65: 0 | P65: 0 | Q65: 0.1056655956
A108: =A1026 -> Nepal
A109: =A1034 -> 2003
A110: Use of sanitation facilities
A111: by wealth quintile and sub-national region
A112: Notes:
A113: WHO/UNICEF JMP customised wealth index excludes water,
A114: sanitation and hygiene assets.
A115: Survey used for analysis: | B115: =A1025 -> WHS03
A116: =B1030 -> 
A117: =B1029 -> 
A120: Use of sanitation facilities | C120: NATIONAL wealth index quintile | H120: URBAN wealth index quintile | M120: RURAL wealth index quintile | BA120: Raw numbers of respondents: | BB120: Use of sanitation facilities | BC120: NATIONAL wealth index quintile | BH120: URBAN wealth index quintile | BM120: RURAL wealth index quintile
A121: Weighted percentage (used in graphs) | C121: Poorest | D121: Poor | E121: Middle | F121: Rich | G121: Richest | H121: Poorest | I121: Poor | J121: Middle | K121: Rich | L121: Richest | M121: Poorest | N121: Poor | O121: Middle | P121: Rich | Q121: Richest | BA121: Sanitation data, raw numbers (weighted) | BC121: Poorest | BD121: Poor | BE121: Middle | BF121: Rich | BG121: Richest | BH121: Poorest | BI121: Poor | BJ121: Middle | BK121: Rich | BL121: Richest | BM121: Poorest | BN121: Poor | BO121: Middle | BP121: Rich | BQ121: Richest
A122: Sanitation | B122: Improved | C122: 15.84197552 | D122: 19.03842511 | E122: 28.36073081 | F122: 51.63397531 | G122: 93.02156268 | H122: 49.10317262 | I122: 90.57402329 | J122: 95.17709405 | K122: 96.54723992 | L122: 99.21021648 | M122: 15.23698501 | N122: 19.53006255 | O122: 22.90730262 | P122: 35.96077271 | Q122: 75.33711575 | BA122: Sanitation | BB122: Improved | BC122: 119626.9195 | BD122: 145678.8226 | BE122: 213280.4584 | BF122: 391769.7313 | BG122: 704942.4084 | BH122: 55061.76569 | BI122: 102209.1279 | BJ122: 107193.4278 | BK122: 108064.71 | BL122: 111969.5152 | BM122: 96495.92542 | BN122: 128548.3826 | BO122: 147598.3867 | BP122: 232149.868 | BQ122: 486007.2307
B123: Not Improved | C123: 84.15802448 | D123: 80.96157489 | E123: 71.63926919 | F123: 48.36602469 | G123: 6.978437322 | H123: 50.89682738 | I123: 9.425976706 | J123: 4.822905954 | K123: 3.452760082 | L123: 0.7897835217 | M123: 84.76301499 | N123: 80.46993745 | O123: 77.09269738 | P123: 64.03922729 | Q123: 24.66288425 | BB123: Not Improved | BC123: 635499.3544 | BD123: 619504.3359 | BE123: 538746.9129 | BF123: 366974.3493 | BG123: 52884.474 | BH123: 57073.07764 | BI123: 10636.83409 | BJ123: 5431.809265 | BK123: 3864.652344 | BL123: 891.3565674 | BM123: 536804.7268 | BN123: 529659.3539 | BO123: 496730.5821 | BP123: 413414.3134 | BQ123: 159102.7206
A124: Sanitation ladder | B124: Basic | C124: =C122*C129/100 -> 13.63163689 | D124: =D122*D129/100 -> 17.41366978 | E124: =E122*E129/100 -> 25.95123198 | F124: 44.72402007 | G124: 77.57895918 | H124: 36.08235393 | I124: 59.85780163 | J124: 65.40284166 | K124: 74.48283931 | L124: 89.86367879 | M124: 12.79747158 | N124: 18.09092923 | O124: 21.30262978 | P124: 32.50964029 | Q124: 68.81309615 | BA124: Sanitation ladder | BB124: Basic | BC124: 101031.5303 | BD124: 130560.308 | BE124: 195223.7213 | BF124: 338578.8915 | BG124: 586979.2043 | BH124: 40146.34332 | BI124: 66720.3849 | BJ124: 73516.85019 | BK124: 84175.26453 | BL124: 101380.5782 | BM124: 78638.55807 | BN124: 116050.2238 | BO124: 138317.6528 | BP124: 210667.8976 | BQ124: 442759.9019
B125: Limited | C125: =C122*C128/100 -> 2.210338636 | D125: =D122*D128/100 -> 1.624755322 | E125: =E122*E128/100 -> 2.409498831 | F125: 6.909955244 | G125: 15.4426035 | H125: 13.02081869 | I125: 30.71622166 | J125: 29.77425238 | K125: 22.0644006 | L125: 9.346537688 | M125: 2.439513426 | N125: 1.439133321 | O125: 1.604672837 | P125: 3.45113242 | Q125: 6.524019605 | BB125: Limited | BC125: 17983.87457 | BD125: 14835.66272 | BE125: 17411.64333 | BF125: 52682.58976 | BG125: 116843.7547 | BH125: 14915.42236 | BI125: 35488.743 | BJ125: 33676.57764 | BK125: 23889.4455 | BL125: 10588.93695 | BM125: 17245.85269 | BN125: 12498.15881 | BO125: 8352.78833 | BP125: 21481.97036 | BQ125: 41619.62942
B126: Unimproved | C126: =100-C124-C125-C127 -> 6.457519202 | D126: =100-D124-D125-D127 -> 6.736878274 | E126: =100-E124-E125-E127 -> 5.814285333 | F126: 10.60400937 | G126: 4.057042493 | H126: 6.156851161 | I126: 3.207064364 | J126: 4.723891599 | K126: 3.452760082 | L126: 0.7897835217 | M126: 6.024585004 | N126: 7.273752347 | O126: 5.661337995 | P126: 9.038280358 | Q126: 8.32550251 | BB126: Unimproved | BC126: 49237.57411 | BD126: 51759.4039 | BE126: 44149.65001 | BF126: 80649.21886 | BG126: 30778.06218 | BH126: 6903.975403 | BI126: 3619.042633 | BJ126: 5320.294113 | BK126: 3864.652344 | BL126: 891.3565674 | BM126: 38635.23315 | BN126: 47876.40068 | BO126: 37140.48489 | BP126: 58347.9006 | BQ126: 53974.56866
B127: Open defecation | C127: 77.70050527 | D127: 74.22469662 | E127: 65.82498386 | F127: 37.76201532 | G127: 2.921394829 | H127: 44.73997622 | I127: 6.218912342 | J127: 0.09901435492 | K127: 0 | L127: 0 | M127: 78.73842999 | N127: 73.1961851 | O127: 71.43135939 | P127: 55.00094693 | Q127: 16.33738174 | BB127: Open defecation | BC127: 586261.7803 | BD127: 567744.932 | BE127: 494597.2629 | BF127: 286325.1305 | BG127: 22106.41182 | BH127: 50169.10223 | BI127: 7017.791458 | BJ127: 111.515152 | BK127: 0 | BL127: 0 | BM127: 498169.4936 | BN127: 481782.9532 | BO127: 459590.0972 | BP127: 355066.4128 | BQ127: 105128.1519
A128: Shared among Improved Sanitation | B128: Yes | C128: 13.95241794 | D128: 8.53408469 | E128: 8.495898244 | F128: 13.38257456 | G128: 16.60110092 | H128: 26.51726557 | I128: 33.91283786 | J128: 31.28300216 | K128: 22.85347631 | L128: 9.420942741 | M128: 16.01047336 | N128: 7.36881061 | O128: 7.005071108 | P128: 9.596936218 | Q128: 8.659768216 | BA128: Shared among improved sanitation facilities | BB128: Yes | BC128: N/A | BD128: N/A | BE128: N/A | BF128: N/A | BG128: N/A | BH128: N/A | BI128: N/A | BJ128: N/A | BK128: N/A | BL128: N/A | BM128: N/A | BN128: N/A | BO128: N/A | BP128: N/A | BQ128: N/A
B129: No | C129: 86.04758206 | D129: 91.46591531 | E129: 91.50410176 | F129: 86.61742544 | G129: 83.39889908 | H129: 73.48273443 | I129: 66.08716214 | J129: 68.71699784 | K129: 77.14652369 | L129: 90.57905726 | M129: 83.98952664 | N129: 92.63118939 | O129: 92.99492889 | P129: 90.40306378 | Q129: 91.34023178 | BB129: No | BC129: N/A | BD129: N/A | BE129: N/A | BF129: N/A | BG129: N/A | BH129: N/A | BI129: N/A | BJ129: N/A | BK129: N/A | BL129: N/A | BM129: N/A | BN129: N/A | BO129: N/A | BP129: N/A | BQ129: N/A
A130: Manually calculated ratios | B130: Improved latrines
B131: Other
B132: Other
C133: NATIONAL wealth index quintile | H133: URBAN wealth index quintile | M133: RURAL wealth index quintile | BA133: Raw numbers of respondents: | BB133: Use of sanitation facilities | BC133: NATIONAL wealth index quintile | BH133: URBAN wealth index quintile | BM133: RURAL wealth index quintile
A134: Percentage based on weighted population | C134: Poorest | D134: Poor | E134: Middle | F134: Rich | G134: Richest | H134: Poorest | I134: Poor | J134: Middle | K134: Rich | L134: Richest | M134: Poorest | N134: Poor | O134: Middle | P134: Rich | Q134: Richest | BA134: Sanitation data, raw numbers (weighted) | BC134: Poorest | BD134: Poor | BE134: Middle | BF134: Rich | BG134: Richest | BH134: Poorest | BI134: Poor | BJ134: Middle | BK134: Rich | BL134: Richest | BM134: Poorest | BN134: Poor | BO134: Middle | BP134: Rich | BQ134: Richest
A135: Sanitation type | B135: Sewer connection | C135: 0.3812811929 | D135: 0.7939266055 | E135: 0.7737167217 | F135: 5.067061753 | G135: 27.40111143 | H135: 15.20989711 | I135: 35.34684274 | J135: 46.82414616 | K135: 46.2068266 | L135: 44.00310149 | M135: 0.4546267961 | N135: 0.7551720552 | O135: 0.3444032872 | P135: 0.9573914881 | Q135: 5.202544341 | BA135: Sanitation type | BB135: Sewer connection | BC135: N/A | BD135: N/A | BE135: N/A | BF135: N/A | BG135: N/A | BH135: N/A | BI135: N/A | BJ135: N/A | BK135: N/A | BL135: N/A | BM135: N/A | BN135: N/A | BO135: N/A | BP135: N/A | BQ135: N/A
B136: Septic tank connection | C136: 4.916622799 | D136: 5.783997046 | E136: 9.904952956 | F136: 25.29764547 | G136: 54.86974836 | H136: 15.41240527 | I136: 41.24330571 | J136: 41.83276264 | K136: 44.61278061 | L136: 51.72804442 | M136: 4.419787211 | N136: 6.431558672 | O136: 7.795461528 | P136: 14.08639074 | Q136: 51.60242978 | BB136: Septic tank connection | BC136: N/A | BD136: N/A | BE136: N/A | BF136: N/A | BG136: N/A | BH136: N/A | BI136: N/A | BJ136: N/A | BK136: N/A | BL136: N/A | BM136: N/A | BN136: N/A | BO136: N/A | BP136: N/A | BQ136: N/A
B137: Improved latrines | C137: 10.54407153 | D137: 12.46050146 | E137: 17.68206113 | F137: 21.26926809 | G137: 10.75070289 | H137: 18.48087024 | I137: 13.98387484 | J137: 6.520185239 | K137: 5.72763271 | L137: 3.479070566 | M137: 10.362571 | N137: 12.34333182 | O137: 14.7674378 | P137: 20.91699048 | Q137: 18.53214163 | BB137: Improved latrines | BC137: N/A | BD137: N/A | BE137: N/A | BF137: N/A | BG137: N/A | BH137: N/A | BI137: N/A | BJ137: N/A | BK137: N/A | BL137: N/A | BM137: N/A | BN137: N/A | BO137: N/A | BP137: N/A | BQ137: N/A
B138: Unimproved facilities | C138: 6.52044245 | D138: 6.764315619 | E138: 5.870750413 | F138: 10.62930452 | G138: 4.061357929 | H138: 6.156851161 | I138: 3.207064364 | J138: 4.723891599 | K138: 3.452760082 | L138: 0.7897835217 | M138: 6.100614775 | N138: 7.273752347 | O138: 5.764211558 | P138: 9.038280358 | Q138: 8.366723929 | BB138: Unimproved facilities | BC138: N/A | BD138: N/A | BE138: N/A | BF138: N/A | BG138: N/A | BH138: N/A | BI138: N/A | BJ138: N/A | BK138: N/A | BL138: N/A | BM138: N/A | BN138: N/A | BO138: N/A | BP138: N/A | BQ138: N/A
B139: Open defecation | C139: 77.63758203 | D139: 74.19725927 | E139: 65.76851878 | F139: 37.73672017 | G139: 2.917079393 | H139: 44.73997622 | I139: 6.218912342 | J139: 0.09901435492 | K139: 0 | L139: 0 | M139: 78.66240022 | N139: 73.1961851 | O139: 71.32848583 | P139: 55.00094693 | Q139: 16.29616032 | BB139: Open defecation | BC139: N/A | BD139: N/A | BE139: N/A | BF139: N/A | BG139: N/A | BH139: N/A | BI139: N/A | BJ139: N/A | BK139: N/A | BL139: N/A | BM139: N/A | BN139: N/A | BO139: N/A | BP139: N/A | BQ139: N/A
A140: Septic tank emptying practices | B140: Not emptied/treated and disposed in situ | C140: N/A | D140: N/A | E140: N/A | F140: N/A | G140: N/A | H140: N/A | I140: N/A | J140: N/A | K140: N/A | L140: N/A | M140: N/A | N140: N/A | O140: N/A | P140: N/A | Q140: N/A | BA140: Septic tank emptying practices | BB140: Not emptied/treated and disposed in situ | BC140: N/A | BD140: N/A | BE140: N/A | BF140: N/A | BG140: N/A | BH140: N/A | BI140: N/A | BJ140: N/A | BK140: N/A | BL140: N/A | BM140: N/A | BN140: N/A | BO140: N/A | BP140: N/A | BQ140: N/A
B141: Emptied and buried on site | C141: N/A | D141: N/A | E141: N/A | F141: N/A | G141: N/A | H141: N/A | I141: N/A | J141: N/A | K141: N/A | L141: N/A | M141: N/A | N141: N/A | O141: N/A | P141: N/A | Q141: N/A | BB141: Emptied and buried on site | BC141: N/A | BD141: N/A | BE141: N/A | BF141: N/A | BG141: N/A | BH141: N/A | BI141: N/A | BJ141: N/A | BK141: N/A | BL141: N/A | BM141: N/A | BN141: N/A | BO141: N/A | BP141: N/A | BQ141: N/A
B142: Emptied and discharged locally | C142: N/A | D142: N/A | E142: N/A | F142: N/A | G142: N/A | H142: N/A | I142: N/A | J142: N/A | K142: N/A | L142: N/A | M142: N/A | N142: N/A | O142: N/A | P142: N/A | Q142: N/A | BB142: Emptied and discharged locally | BC142: N/A | BD142: N/A | BE142: N/A | BF142: N/A | BG142: N/A | BH142: N/A | BI142: N/A | BJ142: N/A | BK142: N/A | BL142: N/A | BM142: N/A | BN142: N/A | BO142: N/A | BP142: N/A | BQ142: N/A
B143: Emptied and removed offsite | C143: N/A | D143: N/A | E143: N/A | F143: N/A | G143: N/A | H143: N/A | I143: N/A | J143: N/A | K143: N/A | L143: N/A | M143: N/A | N143: N/A | O143: N/A | P143: N/A | Q143: N/A | BB143: Emptied and removed offsite | BC143: N/A | BD143: N/A | BE143: N/A | BF143: N/A | BG143: N/A | BH143: N/A | BI143: N/A | BJ143: N/A | BK143: N/A | BL143: N/A | BM143: N/A | BN143: N/A | BO143: N/A | BP143: N/A | BQ143: N/A
A144: Latrine emptying practices | B144: Not emptied/treated and disposed in situ | C144: N/A | D144: N/A | E144: N/A | F144: N/A | G144: N/A | H144: N/A | I144: N/A | J144: N/A | K144: N/A | L144: N/A | M144: N/A | N144: N/A | O144: N/A | P144: N/A | Q144: N/A | BA144: Latrine emptying practices | BB144: Not emptied/treated and disposed in situ | BC144: N/A | BD144: N/A | BE144: N/A | BF144: N/A | BG144: N/A | BH144: N/A | BI144: N/A | BJ144: N/A | BK144: N/A | BL144: N/A | BM144: N/A | BN144: N/A | BO144: N/A | BP144: N/A | BQ144: N/A
B145: Emptied and buried on site | C145: N/A | D145: N/A | E145: N/A | F145: N/A | G145: N/A | H145: N/A | I145: N/A | J145: N/A | K145: N/A | L145: N/A | M145: N/A | N145: N/A | O145: N/A | P145: N/A | Q145: N/A | BB145: Emptied and buried on site | BC145: N/A | BD145: N/A | BE145: N/A | BF145: N/A | BG145: N/A | BH145: N/A | BI145: N/A | BJ145: N/A | BK145: N/A | BL145: N/A | BM145: N/A | BN145: N/A | BO145: N/A | BP145: N/A | BQ145: N/A
B146: Emptied and discharged locally | C146: N/A | D146: N/A | E146: N/A | F146: N/A | G146: N/A | H146: N/A | I146: N/A | J146: N/A | K146: N/A | L146: N/A | M146: N/A | N146: N/A | O146: N/A | P146: N/A | Q146: N/A | BB146: Emptied and discharged locally | BC146: N/A | BD146: N/A | BE146: N/A | BF146: N/A | BG146: N/A | BH146: N/A | BI146: N/A | BJ146: N/A | BK146: N/A | BL146: N/A | BM146: N/A | BN146: N/A | BO146: N/A | BP146: N/A | BQ146: N/A
B147: Emptied and removed offsite | C147: N/A | D147: N/A | E147: N/A | F147: N/A | G147: N/A | H147: N/A | I147: N/A | J147: N/A | K147: N/A | L147: N/A | M147: N/A | N147: N/A | O147: N/A | P147: N/A | Q147: N/A | BB147: Emptied and removed offsite | BC147: N/A | BD147: N/A | BE147: N/A | BF147: N/A | BG147: N/A | BH147: N/A | BI147: N/A | BJ147: N/A | BK147: N/A | BL147: N/A | BM147: N/A | BN147: N/A | BO147: N/A | BP147: N/A | BQ147: N/A
A148: Shared among improved sanitation facilities | B148: Yes | C148: 3.750031548 | D148: 2.366409168 | E148: 3.045705006 | F148: 7.76248717 | G148: 15.74254147 | H148: 15.10576191 | I148: 31.44883731 | J148: 29.90144883 | K148: 22.41305866 | L148: 9.382292364 | M148: 4.243669574 | N148: 2.139570725 | O148: 2.111248816 | P148: 4.132638237 | Q148: 6.899272831 | BA148: Shared among improved sanitation facilities | BB148: Yes | BC148: N/A | BD148: N/A | BE148: N/A | BF148: N/A | BG148: N/A | BH148: N/A | BI148: N/A | BJ148: N/A | BK148: N/A | BL148: N/A | BM148: N/A | BN148: N/A | BO148: N/A | BP148: N/A | BQ148: N/A
B149: No | C149: 23.12725641 | D149: 25.36250674 | E149: 32.80341793 | F149: 50.24195088 | G149: 79.08575662 | H149: 41.85999826 | I149: 61.285476 | J149: 65.68224445 | K149: 75.65980496 | L149: 90.20744745 | M149: 22.2619151 | N149: 26.89592548 | O149: 28.02761464 | P149: 38.92941973 | Q149: 72.77113703 | BB149: No | BC149: N/A | BD149: N/A | BE149: N/A | BF149: N/A | BG149: N/A | BH149: N/A | BI149: N/A | BJ149: N/A | BK149: N/A | BL149: N/A | BM149: N/A | BN149: N/A | BO149: N/A | BP149: N/A | BQ149: N/A
B150: DK/missing | C150: 73.12271204 | D150: 72.27108409 | E150: 64.15087707 | F150: 41.99556195 | G150: 5.171701912 | H150: 43.03423983 | I150: 7.265686692 | J150: 4.416306721 | K150: 1.927136381 | L150: 0.4102601874 | M150: 73.49441533 | N150: 70.9645038 | O150: 69.86113655 | P150: 56.93794203 | Q150: 20.32959014 | BB150: DK/missing | BC150: N/A | BD150: N/A | BE150: N/A | BF150: N/A | BG150: N/A | BH150: N/A | BI150: N/A | BJ150: N/A | BK150: N/A | BL150: N/A | BM150: N/A | BN150: N/A | BO150: N/A | BP150: N/A | BQ150: N/A
A151: Shared among all sanitation facilities | B151: Yes | C151: 89.683695 | D151: 94.75202841 | E151: 91.66998521 | F151: 87.6365665 | G151: 83.16445928 | H151: 74.43878787 | I151: 65.55150524 | J151: 68.54205294 | K151: 77.12327743 | L151: 90.50670185 | M151: 88.47355827 | N151: 95.51673582 | O151: 93.2680462 | P151: 91.31890072 | Q151: 91.72666663 | BA151: Shared among all sanitation facilities | BB151: Yes | BC151: N/A | BD151: N/A | BE151: N/A | BF151: N/A | BG151: N/A | BH151: N/A | BI151: N/A | BJ151: N/A | BK151: N/A | BL151: N/A | BM151: N/A | BN151: N/A | BO151: N/A | BP151: N/A | BQ151: N/A
B152: No | C152: 10.316305 | D152: 5.247971591 | E152: 8.330014788 | F152: 12.3634335 | G152: 16.83554072 | H152: 25.56121213 | I152: 34.44849476 | J152: 31.45794706 | K152: 22.87672257 | L152: 9.49329815 | M152: 11.52644173 | N152: 4.483264175 | O152: 6.731953797 | P152: 8.681099283 | Q152: 8.273333374 | BB152: No | BC152: N/A | BD152: N/A | BE152: N/A | BF152: N/A | BG152: N/A | BH152: N/A | BI152: N/A | BJ152: N/A | BK152: N/A | BL152: N/A | BM152: N/A | BN152: N/A | BO152: N/A | BP152: N/A | BQ152: N/A
A153: What type of toilet facilities | B153: Flush to piped sewage system | C153: 0.3815452361 | D153: 0.7939266055 | E153: 0.7737167217 | F153: 5.309285567 | G153: 28.13037813 | H153: 15.20989711 | I153: 35.86785136 | J153: 48.936895 | K153: 47.11479291 | L153: 44.35339732 | M153: 0.4546267961 | N153: 0.75577209 | O153: 0.3444032872 | P153: 0.982137983 | Q153: 5.442534549 | BA153: What type of toilet facilities | BB153: Flush to piped sewage system | BC153: 2879.154465 | BD153: 6074.992676 | BE153: 5818.561523 | BF153: 38446.03111 | BG153: 207652.9885 | BH153: 17055.5943 | BI153: 39887.48473 | BJ153: 52735.80563 | BK153: 51719.00638 | BL153: 49662.28394 | BM153: 2879.154465 | BN153: 4970.600891 | BO153: 2219.090149 | BP153: 6180.576523 | BQ153: 33562.13126
B154: Flush to septic tank | C154: 4.920027637 | D154: 5.783997046 | E154: 9.904952956 | F154: 26.5069641 | G154: 56.33007892 | H154: 15.41240527 | I154: 41.85122756 | J154: 43.72029563 | K154: 45.48942385 | L154: 52.13983625 | M154: 4.419787211 | N154: 6.436668976 | O154: 7.795461528 | P154: 14.45049341 | Q154: 53.98281851 | BB154: Flush to septic tank | BC154: 37126.71054 | BD154: 44258.17128 | BE154: 74487.95734 | BF154: 191944.3875 | BG154: 415817.7033 | BH154: 17282.6765 | BI154: 46541.40509 | BJ154: 47114.24811 | BK154: 49934.80087 | BL154: 58380.72186 | BM154: 27990.54123 | BN154: 42333.01675 | BO154: 50228.41688 | BP154: 90936.69305 | BQ154: 332892.4097
B155: Pour flush latrine | C155: 1.530542415 | D155: 1.690153513 | E155: 3.2334099 | F155: 6.544766815 | G155: 5.433535638 | H155: 4.023441856 | I155: 5.091598539 | J155: 3.984047394 | K155: 4.050066849 | L155: 2.256426104 | M155: 1.619878566 | N155: 1.71433225 | O155: 2.516780443 | P155: 4.640780701 | Q155: 7.768636565 | BB155: Pour flush latrine | BC155: 11549.52968 | BD155: 12932.77003 | BE155: 24316.12747 | BF155: 47392.49856 | BG155: 40109.30489 | BH155: 4511.680222 | BI155: 5662.203094 | BJ155: 4293.324066 | BK155: 4445.852783 | BL155: 2526.509369 | BM155: 10258.70152 | BN155: 11274.90883 | BO155: 16216.34547 | BP155: 29204.34882 | BQ155: 47906.35645
B156: Covered dry latrine (with privacy) | C156: 9.020831054 | D156: 10.77034794 | E156: 14.44865123 | F156: 15.74124895 | G156: 5.603291768 | H156: 14.45742838 | I156: 9.098397092 | J156: 2.830334641 | K156: 1.790114113 | L156: 1.250340325 | M156: 8.742692433 | N156: 10.63880718 | O156: 12.25065736 | P156: 16.81686865 | Q156: 11.61838149 | BB156: Covered dry latrine (with privacy) | BC156: 68071.52481 | BD156: 82412.88857 | BE156: 108657.812 | BF156: 113986.8141 | BG156: 41362.41167 | BH156: 16211.81467 | BI156: 10118.03499 | BJ156: 3050.050018 | BK156: 1965.049988 | BL156: 1400 | BM156: 55367.5282 | BN156: 69969.85617 | BO156: 78934.53423 | BP156: 105828.2496 | BQ156: 71646.33337
B157: Uncovered dry latrine (without privacy) | C157: 6.148620726 | D157: 5.857783982 | E157: 5.199099432 | F157: 5.606060389 | G157: 0.8859082917 | H157: 5.285125155 | I157: 1.653436299 | J157: 0 | K157: 1.555602278 | L157: 0 | M157: 5.845685125 | N157: 6.447820735 | O157: 5.126248147 | P157: 5.840652677 | Q157: 3.043611342 | BB157: Uncovered dry latrine (without privacy) | BC157: 46397.71944 | BD157: 44822.77649 | BE157: 39098.65079 | BF157: 40595.06113 | BG157: 6539.602966 | BH157: 5926.466812 | BI157: 1838.733368 | BJ157: 0 | BK157: 1707.62088 | BL157: 0 | BM157: 37020.76202 | BN157: 42406.36021 | BO157: 33029.90182 | BP157: 36755.12141 | BQ157: 18768.84427
B158: Bucket latrine (where fresh excreta are manually removed) | C158: 0.0467883581 | D158: 0.06445188741 | E158: 0.0797304068 | F158: 0.09132361337 | G158: 0.06929304649 | H158: 0.3148590308 | I158: 0 | J158: 0 | K158: 0 | L158: 0 | M158: 0 | N158: 0.07498648542 | O158: 0.09305719771 | P158: 0 | Q158: 0.1901859844 | BB158: Bucket latrine (where fresh excreta are manually removed) | BC158: 353.0666809 | BD158: 493.1749878 | BE158: 599.5944824 | BF158: 661.2999878 | BG158: 511.5078125 | BH158: 353.0666809 | BI158: 0 | BJ158: 0 | BK158: 0 | BL158: 0 | BM158: 0 | BN158: 493.1749878 | BO158: 599.5944824 | BP158: 0 | BQ158: 1172.8078
B159: No facilities (open defecation) | C159: 77.69134727 | D159: 74.19725927 | E159: 65.76851878 | F159: 39.5406714 | G159: 2.994715984 | H159: 44.73997622 | I159: 6.310578434 | J159: 0.1034819743 | K159: 0 | L159: 0 | M159: 78.66240022 | N159: 73.25434438 | O159: 71.32848583 | P159: 56.4226022 | Q159: 17.04789229 | BB159: No facilities (open defecation) | BC159: 586261.7803 | BD159: 567744.932 | BE159: 494597.2629 | BF159: 286325.1305 | BG159: 22106.41182 | BH159: 50169.10223 | BI159: 7017.791458 | BJ159: 111.515152 | BK159: 0 | BL159: 0 | BM159: 498169.4936 | BN159: 481782.9532 | BO159: 459590.0972 | BP159: 355066.4128 | BQ159: 105128.1519
B160: Other | C160: 0.2602972986 | D160: 0.8420797494 | E160: 0.5919205749 | F160: 0.6596791689 | G160: 0.5527982161 | H160: 0.5568669749 | I160: 0.1269107186 | J160: 0.4249453664 | K160: 0 | L160: 0 | M160: 0.2549296491 | N160: 0.6772679069 | O160: 0.5449062135 | P160: 0.8464643784 | Q160: 0.9059392667 | BB160: Other | BC160: 1964.213043 | BD160: 6443.452423 | BE160: 4451.404739 | BF160: 4776.922531 | BG160: 4080.649078 | BH160: 624.4419098 | BI160: 141.1333313 | BJ160: 457.9333496 | BK160: 0 | BL160: 0 | BM160: 1614.47113 | BN160: 4454.290527 | BO160: 3510.988586 | BP160: 5326.784988 | BQ160: 5586.597992
BB161: Total | BC161: 754603.699 | BD161: 765183.1585 | BE161: 752027.3713 | BF161: 724128.1454 | BG161: 738180.5801 | BH161: 112134.8433 | BI161: 111206.7861 | BJ161: 107762.8763 | BK161: 109772.3309 | BL161: 111969.5152 | BM161: 633300.6522 | BN161: 657685.1615 | BO161: 644328.9688 | BP161: 629298.1872 | BQ161: 616663.6327
A208: =A1026 -> Nepal
A209: =A1034 -> 2003
A210: Access to hygiene facilities
A211: by wealth quintile and sub-national region
A212: Notes:
A213: WHO/UNICEF JMP customised wealth index excludes water,
A214: sanitation and hygiene assets.
A215: Survey used for analysis: | B215: =A1025 -> WHS03
A220: Access to handwashing | C220: NATIONAL wealth index quintile | H220: URBAN wealth index quintile | M220: RURAL wealth index quintile | BA220: Raw numbers of respondents: | BB220: Access to handwashing | BC220: NATIONAL wealth index quintile | BH220: URBAN wealth index quintile | BM220: RURAL wealth index quintile
A221: Weighted percentage (used in graphs) | C221: Poorest | D221: Poor | E221: Middle | F221: Rich | G221: Richest | H221: Poorest | I221: Poor | J221: Middle | K221: Rich | L221: Richest | M221: Poorest | N221: Poor | O221: Middle | P221: Rich | Q221: Richest | BA221: Hygiene data, raw numbers (weighted) | BC221: Poorest | BD221: Poor | BE221: Middle | BF221: Rich | BG221: Richest | BH221: Poorest | BI221: Poor | BJ221: Middle | BK221: Rich | BL221: Richest | BM221: Poorest | BN221: Poor | BO221: Middle | BP221: Rich | BQ221: Richest
A222: Hygiene ladder | B222: Basic | C222: N/A | D222: N/A | E222: N/A | F222: N/A | G222: N/A | H222: N/A | I222: N/A | J222: N/A | K222: N/A | L222: N/A | M222: N/A | N222: N/A | O222: N/A | P222: N/A | Q222: N/A | BA222: Hygiene ladder | BB222: Basic | BC222: N/A | BD222: N/A | BE222: N/A | BF222: N/A | BG222: N/A | BH222: N/A | BI222: N/A | BJ222: N/A | BK222: N/A | BL222: N/A | BM222: N/A | BN222: N/A | BO222: N/A | BP222: N/A | BQ222: N/A
B223: Limited | C223: N/A | D223: N/A | E223: N/A | F223: N/A | G223: N/A | H223: N/A | I223: N/A | J223: N/A | K223: N/A | L223: N/A | M223: N/A | N223: N/A | O223: N/A | P223: N/A | Q223: N/A | BB223: Limited | BC223: N/A | BD223: N/A | BE223: N/A | BF223: N/A | BG223: N/A | BH223: N/A | BI223: N/A | BJ223: N/A | BK223: N/A | BL223: N/A | BM223: N/A | BN223: N/A | BO223: N/A | BP223: N/A | BQ223: N/A
B224: No facility | C224: N/A | D224: N/A | E224: N/A | F224: N/A | G224: N/A | H224: N/A | I224: N/A | J224: N/A | K224: N/A | L224: N/A | M224: N/A | N224: N/A | O224: N/A | P224: N/A | Q224: N/A | BB224: No facility | BC224: N/A | BD224: N/A | BE224: N/A | BF224: N/A | BG224: N/A | BH224: N/A | BI224: N/A | BJ224: N/A | BK224: N/A | BL224: N/A | BM224: N/A | BN224: N/A | BO224: N/A | BP224: N/A | BQ224: N/A
BA225: Observed handwashing place | BB225: Fixed | BC225: N/A | BD225: N/A | BE225: N/A | BF225: N/A | BG225: N/A | BH225: N/A | BI225: N/A | BJ225: N/A | BK225: N/A | BL225: N/A | BM225: N/A | BN225: N/A | BO225: N/A | BP225: N/A | BQ225: N/A
BB226: Mobile | BC226: N/A | BD226: N/A | BE226: N/A | BF226: N/A | BG226: N/A | BH226: N/A | BI226: N/A | BJ226: N/A | BK226: N/A | BL226: N/A | BM226: N/A | BN226: N/A | BO226: N/A | BP226: N/A | BQ226: N/A
BA227: Water / Soap | BB227: Water and soap | BC227: N/A | BD227: N/A | BE227: N/A | BF227: N/A | BG227: N/A | BH227: N/A | BI227: N/A | BJ227: N/A | BK227: N/A | BL227: N/A | BM227: N/A | BN227: N/A | BO227: N/A | BP227: N/A | BQ227: N/A
BB228: Water only | BC228: N/A | BD228: N/A | BE228: N/A | BF228: N/A | BG228: N/A | BH228: N/A | BI228: N/A | BJ228: N/A | BK228: N/A | BL228: N/A | BM228: N/A | BN228: N/A | BO228: N/A | BP228: N/A | BQ228: N/A
BB229: Soap only | BC229: N/A | BD229: N/A | BE229: N/A | BF229: N/A | BG229: N/A | BH229: N/A | BI229: N/A | BJ229: N/A | BK229: N/A | BL229: N/A | BM229: N/A | BN229: N/A | BO229: N/A | BP229: N/A | BQ229: N/A
BB230: Neither | BC230: N/A | BD230: N/A | BE230: N/A | BF230: N/A | BG230: N/A | BH230: N/A | BI230: N/A | BJ230: N/A | BK230: N/A | BL230: N/A | BM230: N/A | BN230: N/A | BO230: N/A | BP230: N/A | BQ230: N/A
BA259: Raw numbers of respondents: | BB259: Menstrual health and hygiene | BC259: NATIONAL wealth index quintile | BH259: URBAN wealth index quintile | BM259: RURAL wealth index quintile
BA260: MHH data, raw numbers (weighted) | BC260: Poorest | BD260: Poor | BE260: Middle | BF260: Rich | BG260: Richest | BH260: Poorest | BI260: Poor | BJ260: Middle | BK260: Rich | BL260: Richest | BM260: Poorest | BN260: Poor | BO260: Middle | BP260: Rich | BQ260: Richest
BA261: Private place to wash and change | BB261: Yes | BC261: N/A | BD261: N/A | BE261: N/A | BF261: N/A | BG261: N/A | BH261: N/A | BI261: N/A | BJ261: N/A | BK261: N/A | BL261: N/A | BM261: N/A | BN261: N/A | BO261: N/A | BP261: N/A | BQ261: N/A
BB262: No | BC262: N/A | BD262: N/A | BE262: N/A | BF262: N/A | BG262: N/A | BH262: N/A | BI262: N/A | BJ262: N/A | BK262: N/A | BL262: N/A | BM262: N/A | BN262: N/A | BO262: N/A | BP262: N/A | BQ262: N/A
BB263: DK/not sure/missing | BC263: N/A | BD263: N/A | BE263: N/A | BF263: N/A | BG263: N/A | BH263: N/A | BI263: N/A | BJ263: N/A | BK263: N/A | BL263: N/A | BM263: N/A | BN263: N/A | BO263: N/A | BP263: N/A | BQ263: N/A
BA264: Use of menstrual materials | BB264: Materials reusable | BC264: N/A | BD264: N/A | BE264: N/A | BF264: N/A | BG264: N/A | BH264: N/A | BI264: N/A | BJ264: N/A | BK264: N/A | BL264: N/A | BM264: N/A | BN264: N/A | BO264: N/A | BP264: N/A | BQ264: N/A
BB265: Materials not reusable | BC265: N/A | BD265: N/A | BE265: N/A | BF265: N/A | BG265: N/A | BH265: N/A | BI265: N/A | BJ265: N/A | BK265: N/A | BL265: N/A | BM265: N/A | BN265: N/A | BO265: N/A | BP265: N/A | BQ265: N/A
BB266: No materials used | BC266: N/A | BD266: N/A | BE266: N/A | BF266: N/A | BG266: N/A | BH266: N/A | BI266: N/A | BJ266: N/A | BK266: N/A | BL266: N/A | BM266: N/A | BN266: N/A | BO266: N/A | BP266: N/A | BQ266: N/A
BB267: DK/not sure/missing | BC267: N/A | BD267: N/A | BE267: N/A | BF267: N/A | BG267: N/A | BH267: N/A | BI267: N/A | BJ267: N/A | BK267: N/A | BL267: N/A | BM267: N/A | BN267: N/A | BO267: N/A | BP267: N/A | BQ267: N/A
BA268: Use of menstrual materials with private place to wash and change | BB268: Materials reusable | BC268: N/A | BD268: N/A | BE268: N/A | BF268: N/A | BG268: N/A | BH268: N/A | BI268: N/A | BJ268: N/A | BK268: N/A | BL268: N/A | BM268: N/A | BN268: N/A | BO268: N/A | BP268: N/A | BQ268: N/A
BB269: Materials not reusable | BC269: N/A | BD269: N/A | BE269: N/A | BF269: N/A | BG269: N/A | BH269: N/A | BI269: N/A | BJ269: N/A | BK269: N/A | BL269: N/A | BM269: N/A | BN269: N/A | BO269: N/A | BP269: N/A | BQ269: N/A
BB270: No materials used | BC270: N/A | BD270: N/A | BE270: N/A | BF270: N/A | BG270: N/A | BH270: N/A | BI270: N/A | BJ270: N/A | BK270: N/A | BL270: N/A | BM270: N/A | BN270: N/A | BO270: N/A | BP270: N/A | BQ270: N/A
BA271: Awareness of menstruation before menarche | BB271: Yes | BC271: N/A | BD271: N/A | BE271: N/A | BF271: N/A | BG271: N/A | BH271: N/A | BI271: N/A | BJ271: N/A | BK271: N/A | BL271: N/A | BM271: N/A | BN271: N/A | BO271: N/A | BP271: N/A | BQ271: N/A
BB272: No | BC272: N/A | BD272: N/A | BE272: N/A | BF272: N/A | BG272: N/A | BH272: N/A | BI272: N/A | BJ272: N/A | BK272: N/A | BL272: N/A | BM272: N/A | BN272: N/A | BO272: N/A | BP272: N/A | BQ272: N/A
BB273: DK/not sure/missing | BC273: N/A | BD273: N/A | BE273: N/A | BF273: N/A | BG273: N/A | BH273: N/A | BI273: N/A | BJ273: N/A | BK273: N/A | BL273: N/A | BM273: N/A | BN273: N/A | BO273: N/A | BP273: N/A | BQ273: N/A
BA274: Participation in (all) activities during menstruation | BB274: Yes | BC274: N/A | BD274: N/A | BE274: N/A | BF274: N/A | BG274: N/A | BH274: N/A | BI274: N/A | BJ274: N/A | BK274: N/A | BL274: N/A | BM274: N/A | BN274: N/A | BO274: N/A | BP274: N/A | BQ274: N/A
BB275: No | BC275: N/A | BD275: N/A | BE275: N/A | BF275: N/A | BG275: N/A | BH275: N/A | BI275: N/A | BJ275: N/A | BK275: N/A | BL275: N/A | BM275: N/A | BN275: N/A | BO275: N/A | BP275: N/A | BQ275: N/A
BB276: DK/not sure/missing/no such activity | BC276: N/A | BD276: N/A | BE276: N/A | BF276: N/A | BG276: N/A | BH276: N/A | BI276: N/A | BJ276: N/A | BK276: N/A | BL276: N/A | BM276: N/A | BN276: N/A | BO276: N/A | BP276: N/A | BQ276: N/A
BA277: Participation in specific activities during menstruation | BB277: Did not go to school (amongst those usually attending school) | BC277: N/A | BD277: N/A | BE277: N/A | BF277: N/A | BG277: N/A | BH277: N/A | BI277: N/A | BJ277: N/A | BK277: N/A | BL277: N/A | BM277: N/A | BN277: N/A | BO277: N/A | BP277: N/A | BQ277: N/A
BB278: Did not go to work (amongst those who usually work) | BC278: N/A | BD278: N/A | BE278: N/A | BF278: N/A | BG278: N/A | BH278: N/A | BI278: N/A | BJ278: N/A | BK278: N/A | BL278: N/A | BM278: N/A | BN278: N/A | BO278: N/A | BP278: N/A | BQ278: N/A
BB279: Did not participate in social activities | BC279: N/A | BD279: N/A | BE279: N/A | BF279: N/A | BG279: N/A | BH279: N/A | BI279: N/A | BJ279: N/A | BK279: N/A | BL279: N/A | BM279: N/A | BN279: N/A | BO279: N/A | BP279: N/A | BQ279: N/A
BB280: Did not cook food | BC280: N/A | BD280: N/A | BE280: N/A | BF280: N/A | BG280: N/A | BH280: N/A | BI280: N/A | BJ280: N/A | BK280: N/A | BL280: N/A | BM280: N/A | BN280: N/A | BO280: N/A | BP280: N/A | BQ280: N/A
BB281: Did not eat with others | BC281: N/A | BD281: N/A | BE281: N/A | BF281: N/A | BG281: N/A | BH281: N/A | BI281: N/A | BJ281: N/A | BK281: N/A | BL281: N/A | BM281: N/A | BN281: N/A | BO281: N/A | BP281: N/A | BQ281: N/A
BB282: Did not bathe in regular place | BC282: N/A | BD282: N/A | BE282: N/A | BF282: N/A | BG282: N/A | BH282: N/A | BI282: N/A | BJ282: N/A | BK282: N/A | BL282: N/A | BM282: N/A | BN282: N/A | BO282: N/A | BP282: N/A | BQ282: N/A
BB283: Did not participate in other activities | BC283: N/A | BD283: N/A | BE283: N/A | BF283: N/A | BG283: N/A | BH283: N/A | BI283: N/A | BJ283: N/A | BK283: N/A | BL283: N/A | BM283: N/A | BN283: N/A | BO283: N/A | BP283: N/A | BQ283: N/A
BB284: DK/not sure/missing/no such activity | BC284: N/A | BD284: N/A | BE284: N/A | BF284: N/A | BG284: N/A | BH284: N/A | BI284: N/A | BJ284: N/A | BK284: N/A | BL284: N/A | BM284: N/A | BN284: N/A | BO284: N/A | BP284: N/A | BQ284: N/A
BA339: Raw numbers of respondents: | BB339: Basic water, sanitation and hygiene | BC339: NATIONAL wealth index quintile | BH339: URBAN wealth index quintile | BM339: RURAL wealth index quintile
BA340: WatSan data, raw numbers (weighted) | BC340: Poorest | BD340: Poor | BE340: Middle | BF340: Rich | BG340: Richest | BH340: Poorest | BI340: Poor | BJ340: Middle | BK340: Rich | BL340: Richest | BM340: Poorest | BN340: Poor | BO340: Middle | BP340: Rich | BQ340: Richest
BA341: Use of Basic Water Sanitation and Hygiene | BB341: Yes | BC341: N/A | BD341: N/A | BE341: N/A | BF341: N/A | BG341: N/A | BH341: N/A | BI341: N/A | BJ341: N/A | BK341: N/A | BL341: N/A | BM341: N/A | BN341: N/A | BO341: N/A | BP341: N/A | BQ341: N/A
BB342: No | BC342: N/A | BD342: N/A | BE342: N/A | BF342: N/A | BG342: N/A | BH342: N/A | BI342: N/A | BJ342: N/A | BK342: N/A | BL342: N/A | BM342: N/A | BN342: N/A | BO342: N/A | BP342: N/A | BQ342: N/A
BA343: Use of Basic Water and Sanitation | BB343: Yes | BC343: N/A | BD343: N/A | BE343: N/A | BF343: N/A | BG343: N/A | BH343: N/A | BI343: N/A | BJ343: N/A | BK343: N/A | BL343: N/A | BM343: N/A | BN343: N/A | BO343: N/A | BP343: N/A | BQ343: N/A
BB344: No | BC344: N/A | BD344: N/A | BE344: N/A | BF344: N/A | BG344: N/A | BH344: N/A | BI344: N/A | BJ344: N/A | BK344: N/A | BL344: N/A | BM344: N/A | BN344: N/A | BO344: N/A | BP344: N/A | BQ344: N/A
BA345: Use of Basic Water and Hygiene | BB345: Yes | BC345: N/A | BD345: N/A | BE345: N/A | BF345: N/A | BG345: N/A | BH345: N/A | BI345: N/A | BJ345: N/A | BK345: N/A | BL345: N/A | BM345: N/A | BN345: N/A | BO345: N/A | BP345: N/A | BQ345: N/A
BB346: No | BC346: N/A | BD346: N/A | BE346: N/A | BF346: N/A | BG346: N/A | BH346: N/A | BI346: N/A | BJ346: N/A | BK346: N/A | BL346: N/A | BM346: N/A | BN346: N/A | BO346: N/A | BP346: N/A | BQ346: N/A
BA347: Use of Basic Sanitation and Hygiene | BB347: Yes | BC347: N/A | BD347: N/A | BE347: N/A | BF347: N/A | BG347: N/A | BH347: N/A | BI347: N/A | BJ347: N/A | BK347: N/A | BL347: N/A | BM347: N/A | BN347: N/A | BO347: N/A | BP347: N/A | BQ347: N/A
BB348: No | BC348: N/A | BD348: N/A | BE348: N/A | BF348: N/A | BG348: N/A | BH348: N/A | BI348: N/A | BJ348: N/A | BK348: N/A | BL348: N/A | BM348: N/A | BN348: N/A | BO348: N/A | BP348: N/A | BQ348: N/A
BA349: Use of Basic Water | BB349: Yes | BC349: N/A | BD349: N/A | BE349: N/A | BF349: N/A | BG349: N/A | BH349: N/A | BI349: N/A | BJ349: N/A | BK349: N/A | BL349: N/A | BM349: N/A | BN349: N/A | BO349: N/A | BP349: N/A | BQ349: N/A
BB350: No | BC350: N/A | BD350: N/A | BE350: N/A | BF350: N/A | BG350: N/A | BH350: N/A | BI350: N/A | BJ350: N/A | BK350: N/A | BL350: N/A | BM350: N/A | BN350: N/A | BO350: N/A | BP350: N/A | BQ350: N/A
BA351: Use of Basic Sanitation | BB351: Yes | BC351: N/A | BD351: N/A | BE351: N/A | BF351: N/A | BG351: N/A | BH351: N/A | BI351: N/A | BJ351: N/A | BK351: N/A | BL351: N/A | BM351: N/A | BN351: N/A | BO351: N/A | BP351: N/A | BQ351: N/A
BB352: No | BC352: N/A | BD352: N/A | BE352: N/A | BF352: N/A | BG352: N/A | BH352: N/A | BI352: N/A | BJ352: N/A | BK352: N/A | BL352: N/A | BM352: N/A | BN352: N/A | BO352: N/A | BP352: N/A | BQ352: N/A
BA353: Access to Basic Hygiene | BB353: Yes | BC353: N/A | BD353: N/A | BE353: N/A | BF353: N/A | BG353: N/A | BH353: N/A | BI353: N/A | BJ353: N/A | BK353: N/A | BL353: N/A | BM353: N/A | BN353: N/A | BO353: N/A | BP353: N/A | BQ353: N/A
BB354: No | BC354: N/A | BD354: N/A | BE354: N/A | BF354: N/A | BG354: N/A | BH354: N/A | BI354: N/A | BJ354: N/A | BK354: N/A | BL354: N/A | BM354: N/A | BN354: N/A | BO354: N/A | BP354: N/A | BQ354: N/A
C399: INITIAL (national) Wealth Index | H399: URBAN Wealth Index | M399: RURAL Wealth Index
C400: Component Matrix | H400: Component Matrix | M400: Component Matrix
E401: Component | J401: Component | O401: Component
B402: Note: The INITIAL (national) Wealth Index is based on the first component of the Principal Component Analysis (PCA) which has been obtained at national level. The final national-level (NATIONAL) Wealth Index is based on the URBAN and RURAL specific wealth indexes. Regression procedures are used to establish the relationships between the two sets of scores (urban and rural) and the initial (national) wealth factors. This allows best use of the available information for each area and a better precision of the FINAL (NATIONAL) Wealth Index. For dependency reasons, all WASH variables (contained in the generic MICS and DHS scripts) have been excluded from the sets of asset variables used in the PCAs. The PCA can extracts as many components as there are asset variables in the input. Only the first of the components is used to represent the Wealth Index. The scores represent the weights of the asset variables on the Wealth Index (correlations between the variables and the component). The communalities are the proportion of each variable's variance that can be explained by the component. Proportion of explained variance is the part of the model's total variance that is explained by the component. For more information on the procedure used: The DHS Wealth Index, DHS Comparative Reports No. 6, Shea Oscar Rutstein, Kiersten Johnson, ORC Macro International Inc., 2004. The DHS Wealth Index: Approaches for Rural and Urban Areas, Shea O. Rutstein, ORC Macro International Inc., 2008. MICS Methodological Paper No. 4, Review of options for reporting water, sanitation and hygiene coverage by wealth quintile, UNICEF, 2016. | E402: 1 | J402: 1 | O402: 1
C403: Has Magazine | E403: 0.7798530325 | H403: Has Magazine | J403: 0.8206887923 | M403: Has hearth floor | O403: 0.7174243934
C404: Has hearth floor | E404: 0.7784198246 | H404: Uses gaz fuel | J404: -0.8122939606 | M404: Has hard floor | O404: -0.7111003329
C405: Uses gaz fuel | E405: -0.7781091975 | H405: Has hearth floor | J405: 0.7858691063 | M405: Has Magazine | O405: 0.6997905581
C406: Has hard floor | E406: -0.7714008357 | H406: Has hard floor | J406: -0.7661444491 | M406: Uses gaz fuel | O406: -0.696350289
C407: Has Security system | E407: 0.7522135452 | H407: Uses wood fuel | J407: 0.7448476196 | M407: Has Cellular phone | O407: 0.689090668
C408: Has Cellular phone | E408: 0.7256764794 | H408: Uses open fire without chimney | J408: 0.7384397819 | M408: Has Security system | O408: 0.6793056595
C409: Uses open fire without chimney | E409: 0.6794732 | H409: Has Security system | J409: 0.7239381573 | M409: Has TV | O409: 0.61588381
C410: Uses wood fuel | E410: 0.6562105342 | H410: Has cement, brick, stone or wood wall | J410: -0.6563412533 | M410: Has Video | O410: 0.5995914833
C411: Has Video | E411: 0.6333446792 | H411: Has Cellular phone | J411: 0.6488018391 | M411: Uses open fire without chimney | O411: 0.581994629
C412: Has Refrigerator | E412: 0.6218099498 | H412: Has Refrigerator | J412: 0.6311529935 | M412: Has Car | O412: 0.5714299966
C413: Has TV | E413: 0.6198682365 | H413: Has DVD | J413: 0.5872278923 | M413: Has DVD | O413: 0.556335209
C414: Has DVD | E414: 0.5967337763 | H414: Has TV | J414: 0.5499064914 | M414: Uses wood fuel | O414: 0.5436716997
C415: Has Car | E415: 0.5716103906 | H415: Has Vacuum cleaner | J415: 0.5451416073 | M415: Has Refrigerator | O415: 0.4719526602
C416: Has Vacuum cleaner | E416: 0.5500968186 | H416: Has Car | J416: 0.523209923 | M416: Has Vacuum cleaner | O416: 0.4513402943
C417: Has cement, brick, stone or wood wall | E417: -0.4913663176 | H417: Has Second home | J417: 0.4703875765 | M417: Has Second home | O417: 0.3965000962
C418: Has Second home | E418: 0.4761837192 | H418: Has Video | J418: 0.440154537 | M418: Has cement, brick, stone or wood wall | O418: -0.3752658092
C419: Uses open fire without chimney | E419: 0.3879157616 | H419: Uses wood heating | J419: 0.4192304277 | M419: Has Camera | O419: 0.3584977538
C420: Has Internet | E420: 0.3754464226 | H420: Has Internet | J420: 0.4137338362 | M420: Has Internet | O420: 0.3563666072
C421: Has Camera | E421: 0.3607192187 | H421: Uses open fire without chimney | J421: 0.3925233523 | M421: Uses open fire without chimney | O421: 0.3208837538
C422: Heats house | E422: 0.3378287643 | H422: Uses separate room as kitchen | J422: 0.3860524871 | M422: Heats house | O422: 0.2765457851
C423: Uses wood heating | E423: 0.3366482185 | H423: Has mud brick wall | J423: 0.3543057771 | M423: Has Stereo | O423: 0.2641874698
... 187 more rows

Sheet DHS06
A2: =A1026 -> Nepal
A3: =A1034 -> 2006
A4: Use of drinking water sources
A5: by wealth quintile and sub-national region
A6: Notes:
A7: WHO/UNICEF JMP customised wealth index excludes water,
A8: sanitation and hygiene assets.
A9: Survey used for analysis: | B9: =A1025 -> DHS06
A10: =B1028 -> 
A11: =B1027 -> 
A14: Use of drinking water sources | C14: NATIONAL wealth index quintile | H14: URBAN wealth index quintile | M14: RURAL wealth index quintile | R14: SUB-REGIONS: | BA14: Raw numbers of respondents: | BB14: Use of drinking water sources | BC14: NATIONAL wealth index quintile | BH14: URBAN wealth index quintile | BM14: RURAL wealth index quintile | BR14: SUB-REGIONS:
A15: Weighted percentage (used in graphs) | C15: Poorest | D15: Poor | E15: Middle | F15: Rich | G15: Richest | H15: Poorest | I15: Poor | J15: Middle | K15: Rich | L15: Richest | M15: Poorest | N15: Poor | O15: Middle | P15: Rich | Q15: Richest | R15: Central | S15: Eastern | T15: Far-western | U15: Mid-western | V15: Western | BA15: Water data, raw numbers (weighted) | BC15: Poorest | BD15: Poor | BE15: Middle | BF15: Rich | BG15: Richest | BH15: Poorest | BI15: Poor | BJ15: Middle | BK15: Rich | BL15: Richest | BM15: Poorest | BN15: Poor | BO15: Middle | BP15: Rich | BQ15: Richest | BR15: Central | BS15: Eastern | BT15: Far-western | BU15: Mid-western | BV15: Western
A16: Water | B16: Improved | C16: 64.4060793 | D16: 84.61205074 | E16: 91.38849836 | F16: 89.44386484 | G16: 97.29004978 | H16: 86.42464861 | I16: 96.21312913 | J16: 98.90714088 | K16: 96.97771636 | L16: 100 | M16: 62.53183535 | N16: 81.08869861 | O16: 91.19694186 | P16: 90.82196985 | Q16: 92.1734409 | R16: 90.48429901 | S16: 84.24793332 | T16: 78.17126163 | U16: 77.08331798 | V16: 88.07995123 | BA16: Water | BB16: Improved | BC16: N/A | BD16: N/A | BE16: N/A | BF16: N/A | BG16: N/A | BH16: N/A | BI16: N/A | BJ16: N/A | BK16: N/A | BL16: N/A | BM16: N/A | BN16: N/A | BO16: N/A | BP16: N/A | BQ16: N/A | BR16: N/A | BS16: N/A | BT16: N/A | BU16: N/A | BV16: N/A
B17: Not Improved | C17: 35.5939207 | D17: 15.38794926 | E17: 8.611501642 | F17: 10.55613516 | G17: 2.709950218 | H17: 13.57535139 | I17: 3.786870873 | J17: 1.092859117 | K17: 3.022283643 | L17: 0 | M17: 37.46816465 | N17: 18.91130139 | O17: 8.803058136 | P17: 9.178030153 | Q17: 7.826559102 | R17: 9.515700992 | S17: 15.75206668 | T17: 21.82873837 | U17: 22.91668202 | V17: 11.92004877 | BB17: Not Improved | BC17: N/A | BD17: N/A | BE17: N/A | BF17: N/A | BG17: N/A | BH17: N/A | BI17: N/A | BJ17: N/A | BK17: N/A | BL17: N/A | BM17: N/A | BN17: N/A | BO17: N/A | BP17: N/A | BQ17: N/A | BR17: N/A | BS17: N/A | BT17: N/A | BU17: N/A | BV17: N/A
A18: Water ladder | B18: Basic | C18: =C16*C23/100 -> 60.12652966 | D18: =D16*D23/100 -> 82.32546166 | E18: =E16*E23/100 -> 90.32071229 | F18: 88.29858742 | G18: 94.46801469 | H18: 85.03761733 | I18: 93.74559962 | J18: 94.44742467 | K18: 92.6159723 | L18: 95.86438753 | M18: 58.17643423 | N18: 78.53774412 | O18: 89.41547466 | P18: 90.18508329 | Q18: 90.83686628 | R18: 87.47951498 | S18: 83.1139666 | T18: 78.03082463 | U18: 73.38005972 | V18: 84.88421278 | BA18: Water ladder | BB18: Basic | BC18: N/A | BD18: N/A | BE18: N/A | BF18: N/A | BG18: N/A | BH18: N/A | BI18: N/A | BJ18: N/A | BK18: N/A | BL18: N/A | BM18: N/A | BN18: N/A | BO18: N/A | BP18: N/A | BQ18: N/A | BR18: N/A | BS18: N/A | BT18: N/A | BU18: N/A | BV18: N/A
B19: Limited | C19: =C16*C22/100 -> 4.279549644 | D19: =D16*D22/100 -> 2.286589079 | E19: =E16*E22/100 -> 1.067786068 | F19: 1.145277425 | G19: 2.822035091 | H19: 1.387031272 | I19: 2.467529502 | J19: 4.459716214 | K19: 4.361744061 | L19: 4.135612468 | M19: 4.355401122 | N19: 2.550954491 | O19: 1.781467206 | P19: 0.6368865607 | Q19: 1.336574616 | R19: 3.004784028 | S19: 1.133966719 | T19: 0.1404369994 | U19: 3.70325826 | V19: 3.195738445 | BB19: Limited | BC19: N/A | BD19: N/A | BE19: N/A | BF19: N/A | BG19: N/A | BH19: N/A | BI19: N/A | BJ19: N/A | BK19: N/A | BL19: N/A | BM19: N/A | BN19: N/A | BO19: N/A | BP19: N/A | BQ19: N/A | BR19: N/A | BS19: N/A | BT19: N/A | BU19: N/A | BV19: N/A
B20: Unimproved | C20: =100-C18-C19-C21 -> 22.40536137 | D20: =100-D18-D19-D21 -> 12.03706993 | E20: =100-E18-E19-E21 -> 7.640506534 | F20: 9.774741295 | G20: 2.675007253 | H20: 10.14779678 | I20: 3.304427357 | J20: 1.092859117 | K20: 3.022283643 | L20: 3.463895837e-14 | M20: 23.47553898 | N20: 14.17269439 | O20: 7.642743504 | P20: 8.520809215 | Q20: 7.428617037 | R20: 7.352202335 | S20: 11.31728654 | T20: 11.86080976 | U20: 20.6882715 | V20: 10.09727467 | BB20: Unimproved | BC20: N/A | BD20: N/A | BE20: N/A | BF20: N/A | BG20: N/A | BH20: N/A | BI20: N/A | BJ20: N/A | BK20: N/A | BL20: N/A | BM20: N/A | BN20: N/A | BO20: N/A | BP20: N/A | BQ20: N/A | BR20: N/A | BS20: N/A | BT20: N/A | BU20: N/A | BV20: N/A
B21: Surface water | C21: 13.18855933 | D21: 3.350879324 | E21: 0.970995108 | F21: 0.7813938625 | G21: 0.03494296433 | H21: 3.427554615 | I21: 0.4824435161 | J21: 0 | K21: 0 | L21: 0 | M21: 13.99262567 | N21: 4.738607005 | O21: 1.160314632 | P21: 0.6572209378 | Q21: 0.3979420655 | R21: 2.163498656 | S21: 4.434780139 | T21: 9.967928611 | U21: 2.228410523 | V21: 1.822774105 | BB21: Surface water | BC21: N/A | BD21: N/A | BE21: N/A | BF21: N/A | BG21: N/A | BH21: N/A | BI21: N/A | BJ21: N/A | BK21: N/A | BL21: N/A | BM21: N/A | BN21: N/A | BO21: N/A | BP21: N/A | BQ21: N/A | BR21: N/A | BS21: N/A | BT21: N/A | BU21: N/A | BV21: N/A
A22: Improved water point at more than 30 minutes | B22: Yes | C22: 6.644636175 | D22: 2.702439025 | E22: 1.168403122 | F22: 1.280442685 | G22: 2.900641019 | H22: 1.604902414 | I22: 2.564649466 | J22: 4.508993157 | K22: 4.497676606 | L22: 4.135612468 | M22: 6.965094017 | N22: 3.145881652 | O22: 1.953428668 | P22: 0.7012472443 | Q22: 1.450064794 | R22: 3.320779473 | S22: 1.34598758 | T22: 0.1796529779 | U22: 4.804227889 | V22: 3.628224585 | BA22: Improved water point at more than 30 minutes | BB22: Yes | BC22: N/A | BD22: N/A | BE22: N/A | BF22: N/A | BG22: N/A | BH22: N/A | BI22: N/A | BJ22: N/A | BK22: N/A | BL22: N/A | BM22: N/A | BN22: N/A | BO22: N/A | BP22: N/A | BQ22: N/A | BR22: N/A | BS22: N/A | BT22: N/A | BU22: N/A | BV22: N/A
B23: No | C23: 93.35536383 | D23: 97.29756097 | E23: 98.83159688 | F23: 98.71955731 | G23: 97.09935898 | H23: 98.39509759 | I23: 97.43535053 | J23: 95.49100684 | K23: 95.50232339 | L23: 95.86438753 | M23: 93.03490598 | N23: 96.85411835 | O23: 98.04657133 | P23: 99.29875276 | Q23: 98.54993521 | R23: 96.67922053 | S23: 98.65401242 | T23: 99.82034702 | U23: 95.19577211 | V23: 96.37177541 | BB23: No | BC23: N/A | BD23: N/A | BE23: N/A | BF23: N/A | BG23: N/A | BH23: N/A | BI23: N/A | BJ23: N/A | BK23: N/A | BL23: N/A | BM23: N/A | BN23: N/A | BO23: N/A | BP23: N/A | BQ23: N/A | BR23: N/A | BS23: N/A | BT23: N/A | BU23: N/A | BV23: N/A
A24: Manually calculated ratios | B24: Improved wells
B25: Improved springs | C25: =C64/(C64+C65)*100 -> 8.908165296 | D25: 25.13087488 | E25: 16.82608275 | F25: 32.88148873 | G25: 58.07507509 | H25: 58.65982397 | I25: 83.18605998 | J25: 76.98638241 | K25: 100 | L25: 100 | M25: =M64/(M64+M65)*100 -> 8.981345957 | N25: 18.49414503 | O25: 22.08299585 | P25: 20.1347214 | Q25: 32.62121277 | R25: 16.77577539 | S25: 7.500444544 | T25: 14.38186943 | U25: 3.796254549 | V25: 38.61702313
B26: Other
C27: NATIONAL wealth index quintile | H27: URBAN wealth index quintile | M27: RURAL wealth index quintile | R27: SUB-REGIONS: | BA27: Raw numbers of respondents: | BB27: Use of drinking water sources | BC27: NATIONAL wealth index quintile | BH27: URBAN wealth index quintile | BM27: RURAL wealth index quintile | BR27: SUB-REGIONS:
A28: Percentage based on weighted population | C28: Poorest | D28: Poor | E28: Middle | F28: Rich | G28: Richest | H28: Poorest | I28: Poor | J28: Middle | K28: Rich | L28: Richest | M28: Poorest | N28: Poor | O28: Middle | P28: Rich | Q28: Richest | R28: Central | S28: Eastern | T28: Far-western | U28: Mid-western | V28: Western | BA28: Water data, raw numbers (weighted) | BC28: Poorest | BD28: Poor | BE28: Middle | BF28: Rich | BG28: Richest | BH28: Poorest | BI28: Poor | BJ28: Middle | BK28: Rich | BL28: Richest | BM28: Poorest | BN28: Poor | BO28: Middle | BP28: Rich | BQ28: Richest | BR28: Central | BS28: Eastern | BT28: Far-western | BU28: Mid-western | BV28: Western
A29: Piped water | B29: Yes | C29: 50.89385782 | D29: 38.93788068 | E29: 24.47650621 | F29: 24.16330347 | G29: 49.56441103 | H29: 23.81232036 | I29: 31.58515429 | J29: 47.48569117 | K29: 61.94220328 | L29: 74.53155276 | M29: 51.82502879 | N29: 44.90372398 | O29: 25.27370474 | P29: 21.71059874 | Q29: 35.0525151 | R29: 42.77319495 | S29: 27.5656373 | T29: 14.41469119 | U29: 47.00937165 | V29: 50.87840454 | BA29: Piped water | BB29: Yes | BC29: N/A | BD29: N/A | BE29: N/A | BF29: N/A | BG29: N/A | BH29: N/A | BI29: N/A | BJ29: N/A | BK29: N/A | BL29: N/A | BM29: N/A | BN29: N/A | BO29: N/A | BP29: N/A | BQ29: N/A | BR29: N/A | BS29: N/A | BT29: N/A | BU29: N/A | BV29: N/A
B30: No | C30: 49.10614218 | D30: 61.06211932 | E30: 75.52349379 | F30: 75.83669653 | G30: 50.43558897 | H30: 76.18767964 | I30: 68.41484571 | J30: 52.51430883 | K30: 38.05779672 | L30: 25.46844724 | M30: 48.17497121 | N30: 55.09627602 | O30: 74.72629526 | P30: 78.28940126 | Q30: 64.9474849 | R30: 57.22680505 | S30: 72.4343627 | T30: 85.58530881 | U30: 52.99062835 | V30: 49.12159546 | BB30: No | BC30: N/A | BD30: N/A | BE30: N/A | BF30: N/A | BG30: N/A | BH30: N/A | BI30: N/A | BJ30: N/A | BK30: N/A | BL30: N/A | BM30: N/A | BN30: N/A | BO30: N/A | BP30: N/A | BQ30: N/A | BR30: N/A | BS30: N/A | BT30: N/A | BU30: N/A | BV30: N/A
A31: Piped water on premises | B31: Yes | C31: 6.203703449 | D31: 6.494051512 | E31: 5.611687887 | F31: 8.549479841 | G31: 39.58037892 | H31: 6.343734615 | I31: 17.25922964 | J31: 35.78911222 | K31: 53.38918349 | L31: 71.97568496 | M31: 6.327940582 | N31: 7.085645675 | O31: 4.002234442 | P31: 7.263590767 | Q31: 20.34668246 | R31: 20.28251593 | S31: 8.140338777 | T31: 2.340134147 | U31: 8.676177536 | V31: 17.47384716 | BA31: Piped water on premises | BB31: Yes | BC31: N/A | BD31: N/A | BE31: N/A | BF31: N/A | BG31: N/A | BH31: N/A | BI31: N/A | BJ31: N/A | BK31: N/A | BL31: N/A | BM31: N/A | BN31: N/A | BO31: N/A | BP31: N/A | BQ31: N/A | BR31: N/A | BS31: N/A | BT31: N/A | BU31: N/A | BV31: N/A
B32: No | C32: 93.79629655 | D32: 93.50594849 | E32: 94.38831211 | F32: 91.45052016 | G32: 60.41962108 | H32: 93.65626539 | I32: 82.74077036 | J32: 64.21088778 | K32: 46.61081651 | L32: 28.02431504 | M32: 93.67205942 | N32: 92.91435433 | O32: 95.99776556 | P32: 92.73640923 | Q32: 79.65331754 | R32: 79.71748407 | S32: 91.85966122 | T32: 97.65986585 | U32: 91.32382246 | V32: 82.52615284 | BB32: No | BC32: N/A | BD32: N/A | BE32: N/A | BF32: N/A | BG32: N/A | BH32: N/A | BI32: N/A | BJ32: N/A | BK32: N/A | BL32: N/A | BM32: N/A | BN32: N/A | BO32: N/A | BP32: N/A | BQ32: N/A | BR32: N/A | BS32: N/A | BT32: N/A | BU32: N/A | BV32: N/A
A33: Piped water into dwelling | B33: Yes | C33: N/A | D33: N/A | E33: N/A | F33: N/A | G33: N/A | H33: N/A | I33: N/A | J33: N/A | K33: N/A | L33: N/A | M33: N/A | N33: N/A | O33: N/A | P33: N/A | Q33: N/A | R33: N/A | S33: N/A | T33: N/A | U33: N/A | V33: N/A | BA33: Piped water into dwelling | BB33: Yes | BC33: N/A | BD33: N/A | BE33: N/A | BF33: N/A | BG33: N/A | BH33: N/A | BI33: N/A | BJ33: N/A | BK33: N/A | BL33: N/A | BM33: N/A | BN33: N/A | BO33: N/A | BP33: N/A | BQ33: N/A | BR33: N/A | BS33: N/A | BT33: N/A | BU33: N/A | BV33: N/A
B34: No | C34: N/A | D34: N/A | E34: N/A | F34: N/A | G34: N/A | H34: N/A | I34: N/A | J34: N/A | K34: N/A | L34: N/A | M34: N/A | N34: N/A | O34: N/A | P34: N/A | Q34: N/A | R34: N/A | S34: N/A | T34: N/A | U34: N/A | V34: N/A | BB34: No | BC34: N/A | BD34: N/A | BE34: N/A | BF34: N/A | BG34: N/A | BH34: N/A | BI34: N/A | BJ34: N/A | BK34: N/A | BL34: N/A | BM34: N/A | BN34: N/A | BO34: N/A | BP34: N/A | BQ34: N/A | BR34: N/A | BS34: N/A | BT34: N/A | BU34: N/A | BV34: N/A
A35: Water source on premises | B35: Yes | C35: 17.51247047 | D35: 36.76909932 | E35: 49.23910774 | F35: 60.93729521 | G35: 80.10085296 | H35: 47.23124916 | I35: 62.14530149 | J35: 76.87555377 | K35: 82.86543086 | L35: 90.65663195 | M35: 16.22215739 | N35: 32.07968635 | O35: 47.53783196 | P35: 56.69608537 | Q35: 71.16334107 | R35: 50.35974759 | S35: 56.93645858 | T35: 55.31860198 | U35: 34.41902085 | V35: 41.31051844 | BA35: Water source on premises | BB35: Yes | BC35: N/A | BD35: N/A | BE35: N/A | BF35: N/A | BG35: N/A | BH35: N/A | BI35: N/A | BJ35: N/A | BK35: N/A | BL35: N/A | BM35: N/A | BN35: N/A | BO35: N/A | BP35: N/A | BQ35: N/A | BR35: N/A | BS35: N/A | BT35: N/A | BU35: N/A | BV35: N/A
B36: No | C36: 82.48752953 | D36: 63.23090068 | E36: 50.76089226 | F36: 39.06270479 | G36: 19.89914704 | H36: 52.76875084 | I36: 37.85469851 | J36: 23.12444623 | K36: 17.13456914 | L36: 9.343368054 | M36: 83.77784261 | N36: 67.92031365 | O36: 52.46216804 | P36: 43.30391463 | Q36: 28.83665893 | R36: 49.64025241 | S36: 43.06354142 | T36: 44.68139802 | U36: 65.58097915 | V36: 58.68948156 | BB36: No | BC36: N/A | BD36: N/A | BE36: N/A | BF36: N/A | BG36: N/A | BH36: N/A | BI36: N/A | BJ36: N/A | BK36: N/A | BL36: N/A | BM36: N/A | BN36: N/A | BO36: N/A | BP36: N/A | BQ36: N/A | BR36: N/A | BS36: N/A | BT36: N/A | BU36: N/A | BV36: N/A
A37: Improved Water source on premises | B37: Yes | C37: 14.55212585 | D37: 34.69986906 | E37: 48.05146839 | F37: 57.8961519 | G37: 78.73160418 | H37: 44.79445255 | I37: 61.46338083 | J37: 76.3401329 | K37: 81.45071954 | L37: 90.65663195 | M37: 13.19014057 | N37: 30.19641044 | O37: 45.96726142 | P37: 54.51176068 | Q37: 68.19500331 | R37: 49.63033013 | S37: 52.10824756 | T37: 53.77852169 | U37: 31.3388252 | V37: 40.00647767 | BA37: Improved water source on premises | BB37: Yes | BC37: N/A | BD37: N/A | BE37: N/A | BF37: N/A | BG37: N/A | BH37: N/A | BI37: N/A | BJ37: N/A | BK37: N/A | BL37: N/A | BM37: N/A | BN37: N/A | BO37: N/A | BP37: N/A | BQ37: N/A | BR37: N/A | BS37: N/A | BT37: N/A | BU37: N/A | BV37: N/A
B38: No | C38: 85.44787415 | D38: 65.30013094 | E38: 51.94853161 | F38: 42.1038481 | G38: 21.26839582 | H38: 55.20554745 | I38: 38.53661917 | J38: 23.6598671 | K38: 18.54928046 | L38: 9.343368054 | M38: 86.80985943 | N38: 69.80358956 | O38: 54.03273858 | P38: 45.48823932 | Q38: 31.80499669 | R38: 50.36966987 | S38: 47.89175244 | T38: 46.22147831 | U38: 68.6611748 | V38: 59.99352233 | BB38: No | BC38: N/A | BD38: N/A | BE38: N/A | BF38: N/A | BG38: N/A | BH38: N/A | BI38: N/A | BJ38: N/A | BK38: N/A | BL38: N/A | BM38: N/A | BN38: N/A | BO38: N/A | BP38: N/A | BQ38: N/A | BR38: N/A | BS38: N/A | BT38: N/A | BU38: N/A | BV38: N/A
A39: Piped water on premises available when needed | B39: Yes | C39: N/A | D39: N/A | E39: N/A | F39: N/A | G39: N/A | H39: N/A | I39: N/A | J39: N/A | K39: N/A | L39: N/A | M39: N/A | N39: N/A | O39: N/A | P39: N/A | Q39: N/A | R39: N/A | S39: N/A | T39: N/A | U39: N/A | V39: N/A | BA39: Piped water on premises available when needed | BB39: Yes | BC39: N/A | BD39: N/A | BE39: N/A | BF39: N/A | BG39: N/A | BH39: N/A | BI39: N/A | BJ39: N/A | BK39: N/A | BL39: N/A | BM39: N/A | BN39: N/A | BO39: N/A | BP39: N/A | BQ39: N/A | BR39: N/A | BS39: N/A | BT39: N/A | BU39: N/A | BV39: N/A
B40: No | C40: N/A | D40: N/A | E40: N/A | F40: N/A | G40: N/A | H40: N/A | I40: N/A | J40: N/A | K40: N/A | L40: N/A | M40: N/A | N40: N/A | O40: N/A | P40: N/A | Q40: N/A | R40: N/A | S40: N/A | T40: N/A | U40: N/A | V40: N/A | BB40: No | BC40: N/A | BD40: N/A | BE40: N/A | BF40: N/A | BG40: N/A | BH40: N/A | BI40: N/A | BJ40: N/A | BK40: N/A | BL40: N/A | BM40: N/A | BN40: N/A | BO40: N/A | BP40: N/A | BQ40: N/A | BR40: N/A | BS40: N/A | BT40: N/A | BU40: N/A | BV40: N/A
A41: Water point at more than 30 minutes | B41: Yes | C41: 10.21102758 | D41: 3.833548037 | E41: 1.50537372 | F41: 1.684928978 | G41: 2.862648156 | H41: 2.097211878 | I41: 2.467529502 | J41: 4.459716214 | K41: 4.361744061 | L41: 4.135612468 | M41: 10.99908736 | N41: 4.400072519 | O41: 2.263134583 | P41: 0.9830564755 | Q41: 1.92668467 | R41: 4.320155011 | S41: 2.364960792 | T41: 1.44984998 | U41: 8.552164239 | V41: 4.484307978 | BA41: Water point at more than 30 minutes | BB41: Yes | BC41: N/A | BD41: N/A | BE41: N/A | BF41: N/A | BG41: N/A | BH41: N/A | BI41: N/A | BJ41: N/A | BK41: N/A | BL41: N/A | BM41: N/A | BN41: N/A | BO41: N/A | BP41: N/A | BQ41: N/A | BR41: N/A | BS41: N/A | BT41: N/A | BU41: N/A | BV41: N/A
B42: No | C42: 89.78897242 | D42: 96.16645196 | E42: 98.49462628 | F42: 98.31507102 | G42: 97.13735184 | H42: 97.90278812 | I42: 97.5324705 | J42: 95.54028379 | K42: 95.63825594 | L42: 95.86438753 | M42: 89.00091264 | N42: 95.59992748 | O42: 97.73686542 | P42: 99.01694352 | Q42: 98.07331533 | R42: 95.67984499 | S42: 97.63503921 | T42: 98.55015002 | U42: 91.44783576 | V42: 95.51569202 | BB42: No | BC42: N/A | BD42: N/A | BE42: N/A | BF42: N/A | BG42: N/A | BH42: N/A | BI42: N/A | BJ42: N/A | BK42: N/A | BL42: N/A | BM42: N/A | BN42: N/A | BO42: N/A | BP42: N/A | BQ42: N/A | BR42: N/A | BS42: N/A | BT42: N/A | BU42: N/A | BV42: N/A
A43: Water source available when needed | B43: Yes | C43: N/A | D43: N/A | E43: N/A | F43: N/A | G43: N/A | H43: N/A | I43: N/A | J43: N/A | K43: N/A | L43: N/A | M43: N/A | N43: N/A | O43: N/A | P43: N/A | Q43: N/A | R43: N/A | S43: N/A | T43: N/A | U43: N/A | V43: N/A | BA43: Water source available when needed | BB43: Yes | BC43: N/A | BD43: N/A | BE43: N/A | BF43: N/A | BG43: N/A | BH43: N/A | BI43: N/A | BJ43: N/A | BK43: N/A | BL43: N/A | BM43: N/A | BN43: N/A | BO43: N/A | BP43: N/A | BQ43: N/A | BR43: N/A | BS43: N/A | BT43: N/A | BU43: N/A | BV43: N/A
B44: No | C44: N/A | D44: N/A | E44: N/A | F44: N/A | G44: N/A | H44: N/A | I44: N/A | J44: N/A | K44: N/A | L44: N/A | M44: N/A | N44: N/A | O44: N/A | P44: N/A | Q44: N/A | R44: N/A | S44: N/A | T44: N/A | U44: N/A | V44: N/A | BB44: No | BC44: N/A | BD44: N/A | BE44: N/A | BF44: N/A | BG44: N/A | BH44: N/A | BI44: N/A | BJ44: N/A | BK44: N/A | BL44: N/A | BM44: N/A | BN44: N/A | BO44: N/A | BP44: N/A | BQ44: N/A | BR44: N/A | BS44: N/A | BT44: N/A | BU44: N/A | BV44: N/A
A45: Improved water source available when needed | B45: Yes | C45: N/A | D45: N/A | E45: N/A | F45: N/A | G45: N/A | H45: N/A | I45: N/A | J45: N/A | K45: N/A | L45: N/A | M45: N/A | N45: N/A | O45: N/A | P45: N/A | Q45: N/A | R45: N/A | S45: N/A | T45: N/A | U45: N/A | V45: N/A | BA45: Improved water source available when needed | BB45: Yes | BC45: N/A | BD45: N/A | BE45: N/A | BF45: N/A | BG45: N/A | BH45: N/A | BI45: N/A | BJ45: N/A | BK45: N/A | BL45: N/A | BM45: N/A | BN45: N/A | BO45: N/A | BP45: N/A | BQ45: N/A | BR45: N/A | BS45: N/A | BT45: N/A | BU45: N/A | BV45: N/A
B46: No | C46: N/A | D46: N/A | E46: N/A | F46: N/A | G46: N/A | H46: N/A | I46: N/A | J46: N/A | K46: N/A | L46: N/A | M46: N/A | N46: N/A | O46: N/A | P46: N/A | Q46: N/A | R46: N/A | S46: N/A | T46: N/A | U46: N/A | V46: N/A | BB46: No | BC46: N/A | BD46: N/A | BE46: N/A | BF46: N/A | BG46: N/A | BH46: N/A | BI46: N/A | BJ46: N/A | BK46: N/A | BL46: N/A | BM46: N/A | BN46: N/A | BO46: N/A | BP46: N/A | BQ46: N/A | BR46: N/A | BS46: N/A | BT46: N/A | BU46: N/A | BV46: N/A
A47: Microbiological quality at point of collection | B47: Not contaminated (No E. coli in 100 mL) | C47: N/A | D47: N/A | E47: N/A | F47: N/A | G47: N/A | H47: N/A | I47: N/A | J47: N/A | K47: N/A | L47: N/A | M47: N/A | N47: N/A | O47: N/A | P47: N/A | Q47: N/A | R47: N/A | S47: N/A | T47: N/A | U47: N/A | V47: N/A | BA47: Microbiological quality at point of collection | BB47: Not contaminated (No E. coli in 100 mL) | BC47: N/A | BD47: N/A | BE47: N/A | BF47: N/A | BG47: N/A | BH47: N/A | BI47: N/A | BJ47: N/A | BK47: N/A | BL47: N/A | BM47: N/A | BN47: N/A | BO47: N/A | BP47: N/A | BQ47: N/A | BR47: N/A | BS47: N/A | BT47: N/A | BU47: N/A | BV47: N/A
B48: Contaminated (E. coli detected in 100 mL) | C48: N/A | D48: N/A | E48: N/A | F48: N/A | G48: N/A | H48: N/A | I48: N/A | J48: N/A | K48: N/A | L48: N/A | M48: N/A | N48: N/A | O48: N/A | P48: N/A | Q48: N/A | R48: N/A | S48: N/A | T48: N/A | U48: N/A | V48: N/A | BB48: Contaminated (E. coli detected in 100 mL) | BC48: N/A | BD48: N/A | BE48: N/A | BF48: N/A | BG48: N/A | BH48: N/A | BI48: N/A | BJ48: N/A | BK48: N/A | BL48: N/A | BM48: N/A | BN48: N/A | BO48: N/A | BP48: N/A | BQ48: N/A | BR48: N/A | BS48: N/A | BT48: N/A | BU48: N/A | BV48: N/A
B49: Highly contaminated (>100 CFU/100 mL) | C49: N/A | D49: N/A | E49: N/A | F49: N/A | G49: N/A | H49: N/A | I49: N/A | J49: N/A | K49: N/A | L49: N/A | M49: N/A | N49: N/A | O49: N/A | P49: N/A | Q49: N/A | R49: N/A | S49: N/A | T49: N/A | U49: N/A | V49: N/A | BB49: Highly contaminated (>100 CFU/100 mL) | BC49: N/A | BD49: N/A | BE49: N/A | BF49: N/A | BG49: N/A | BH49: N/A | BI49: N/A | BJ49: N/A | BK49: N/A | BL49: N/A | BM49: N/A | BN49: N/A | BO49: N/A | BP49: N/A | BQ49: N/A | BR49: N/A | BS49: N/A | BT49: N/A | BU49: N/A | BV49: N/A
A50: Microbiological quality of improved water sources at point of collection | B50: Not contaminated (No E. coli in 100 mL) | C50: N/A | D50: N/A | E50: N/A | F50: N/A | G50: N/A | H50: N/A | I50: N/A | J50: N/A | K50: N/A | L50: N/A | M50: N/A | N50: N/A | O50: N/A | P50: N/A | Q50: N/A | R50: N/A | S50: N/A | T50: N/A | U50: N/A | V50: N/A | BA50: Microbiological quality of improved water sources at point of collection | BB50: Not contaminated (No E. coli in 100 mL) | BC50: N/A | BD50: N/A | BE50: N/A | BF50: N/A | BG50: N/A | BH50: N/A | BI50: N/A | BJ50: N/A | BK50: N/A | BL50: N/A | BM50: N/A | BN50: N/A | BO50: N/A | BP50: N/A | BQ50: N/A | BR50: N/A | BS50: N/A | BT50: N/A | BU50: N/A | BV50: N/A
B51: Contaminated (E. coli detected in 100 mL) | C51: N/A | D51: N/A | E51: N/A | F51: N/A | G51: N/A | H51: N/A | I51: N/A | J51: N/A | K51: N/A | L51: N/A | M51: N/A | N51: N/A | O51: N/A | P51: N/A | Q51: N/A | R51: N/A | S51: N/A | T51: N/A | U51: N/A | V51: N/A | BB51: Contaminated (E. coli detected in 100 mL) | BC51: N/A | BD51: N/A | BE51: N/A | BF51: N/A | BG51: N/A | BH51: N/A | BI51: N/A | BJ51: N/A | BK51: N/A | BL51: N/A | BM51: N/A | BN51: N/A | BO51: N/A | BP51: N/A | BQ51: N/A | BR51: N/A | BS51: N/A | BT51: N/A | BU51: N/A | BV51: N/A
B52: Highly contaminated (>100 CFU/100 mL) | C52: N/A | D52: N/A | E52: N/A | F52: N/A | G52: N/A | H52: N/A | I52: N/A | J52: N/A | K52: N/A | L52: N/A | M52: N/A | N52: N/A | O52: N/A | P52: N/A | Q52: N/A | R52: N/A | S52: N/A | T52: N/A | U52: N/A | V52: N/A | BB52: Highly contaminated (>100 CFU/100 mL) | BC52: N/A | BD52: N/A | BE52: N/A | BF52: N/A | BG52: N/A | BH52: N/A | BI52: N/A | BJ52: N/A | BK52: N/A | BL52: N/A | BM52: N/A | BN52: N/A | BO52: N/A | BP52: N/A | BQ52: N/A | BR52: N/A | BS52: N/A | BT52: N/A | BU52: N/A | BV52: N/A
A53: Microbiological quality of piped on premises at point of collection | B53: Not contaminated (No E. coli in 100 mL) | C53: N/A | D53: N/A | E53: N/A | F53: N/A | G53: N/A | H53: N/A | I53: N/A | J53: N/A | K53: N/A | L53: N/A | M53: N/A | N53: N/A | O53: N/A | P53: N/A | Q53: N/A | R53: N/A | S53: N/A | T53: N/A | U53: N/A | V53: N/A | BA53: Microbiological quality of piped on premises at point of collection | BB53: Not contaminated (No E. coli in 100 mL) | BC53: N/A | BD53: N/A | BE53: N/A | BF53: N/A | BG53: N/A | BH53: N/A | BI53: N/A | BJ53: N/A | BK53: N/A | BL53: N/A | BM53: N/A | BN53: N/A | BO53: N/A | BP53: N/A | BQ53: N/A | BR53: N/A | BS53: N/A | BT53: N/A | BU53: N/A | BV53: N/A
B54: Contaminated (E. coli detected in 100 mL) | C54: N/A | D54: N/A | E54: N/A | F54: N/A | G54: N/A | H54: N/A | I54: N/A | J54: N/A | K54: N/A | L54: N/A | M54: N/A | N54: N/A | O54: N/A | P54: N/A | Q54: N/A | R54: N/A | S54: N/A | T54: N/A | U54: N/A | V54: N/A | BB54: Contaminated (E. coli detected in 100 mL) | BC54: N/A | BD54: N/A | BE54: N/A | BF54: N/A | BG54: N/A | BH54: N/A | BI54: N/A | BJ54: N/A | BK54: N/A | BL54: N/A | BM54: N/A | BN54: N/A | BO54: N/A | BP54: N/A | BQ54: N/A | BR54: N/A | BS54: N/A | BT54: N/A | BU54: N/A | BV54: N/A
B55: Highly contaminated (>100 CFU/100 mL) | C55: N/A | D55: N/A | E55: N/A | F55: N/A | G55: N/A | H55: N/A | I55: N/A | J55: N/A | K55: N/A | L55: N/A | M55: N/A | N55: N/A | O55: N/A | P55: N/A | Q55: N/A | R55: N/A | S55: N/A | T55: N/A | U55: N/A | V55: N/A | BB55: Highly contaminated (>100 CFU/100 mL) | BC55: N/A | BD55: N/A | BE55: N/A | BF55: N/A | BG55: N/A | BH55: N/A | BI55: N/A | BJ55: N/A | BK55: N/A | BL55: N/A | BM55: N/A | BN55: N/A | BO55: N/A | BP55: N/A | BQ55: N/A | BR55: N/A | BS55: N/A | BT55: N/A | BU55: N/A | BV55: N/A
C56: NATIONAL wealth index quintile | H56: URBAN wealth index quintile | M56: RURAL wealth index quintile | R56: SUB-REGIONS: | BA56: Raw numbers of respondents: | BB56: Use of drinking water sources | BC56: NATIONAL wealth index quintile | BH56: URBAN wealth index quintile | BM56: RURAL wealth index quintile | BR56: SUB-REGIONS:
A57: Percentage based on weighted population | C57: Poorest | D57: Poor | E57: Middle | F57: Rich | G57: Richest | H57: Poorest | I57: Poor | J57: Middle | K57: Rich | L57: Richest | M57: Poorest | N57: Poor | O57: Middle | P57: Rich | Q57: Richest | R57: Central | S57: Eastern | T57: Far-western | U57: Mid-western | V57: Western | BA57: Water data, raw numbers (weighted) | BC57: Poorest | BD57: Poor | BE57: Middle | BF57: Rich | BG57: Richest | BH57: Poorest | BI57: Poor | BJ57: Middle | BK57: Rich | BL57: Richest | BM57: Poorest | BN57: Poor | BO57: Middle | BP57: Rich | BQ57: Richest | BR57: Central | BS57: Eastern | BT57: Far-western | BU57: Mid-western | BV57: Western
A58: Source of drinking water | B58: Piped into dwelling | C58: 0.1285140161 | D58: 0.08899543866 | E58: 0.195986699 | F58: 0.114159444 | G58: 14.8157278 | H58: 0 | I58: 1.486022816 | J58: 9.449855398 | K58: 23.52865048 | L58: 42.56436764 | M58: 0.1519162612 | N58: 0.1050079984 | O58: 0.0750394137 | P58: 0.1958496783 | Q58: 3.635695198 | R58: 6.359806603 | S58: 0.7706820243 | T58: 0.2920439271 | U58: 0.3435109824 | V58: 3.545317591
B59: Piped to yard/plot | C59: 6.075189433 | D59: 6.405056073 | E59: 5.415701188 | F59: 8.435320397 | G59: 24.60548241 | H59: 6.343734615 | I59: 15.77320683 | J59: 26.33925682 | K59: 29.46331471 | L59: 28.77095081 | M59: 6.176024321 | N59: 6.980637676 | O59: 3.927195028 | P59: 7.067741089 | Q59: 16.71098727 | R59: 13.82814719 | S59: 7.369656753 | T59: 2.04809022 | U59: 8.332666553 | V59: 13.92852957
B60: Public tap/standpipe | C60: 44.69015438 | D60: 32.44382917 | E60: 18.86481832 | F60: 15.61382363 | G60: 9.984032114 | H60: 17.46858574 | I60: 14.32592464 | J60: 11.69657896 | K60: 8.553019789 | L60: 2.555867797 | M60: 45.4970882 | N60: 37.8180783 | O60: 21.27147029 | P60: 14.44700797 | Q60: 14.70583264 | R60: 22.49067903 | S60: 19.42529852 | T60: 12.07455705 | U60: 38.33319412 | V60: 33.40455738
B61: Tube well or borehole | C61: 5.316137023 | D61: 40.13965717 | E61: 65.07329557 | F61: 61.85176585 | G61: 38.20928569 | H61: 54.56868162 | I61: 50.46264735 | J61: 35.05819712 | K61: 18.89856367 | L61: 11.36729896 | M61: 2.273140153 | N61: 30.07472891 | O61: 63.63652797 | P61: 66.85228364 | Q61: 54.9840591 | R61: 41.6715247 | S61: 54.10416564 | T61: 59.19564953 | U61: 24.35108568 | V61: 27.6889631
B62: Protected well | C62: 0.07444138111 | D62: 0.2185405821 | E62: 0.2013802965 | F62: 0.5586500085 | G62: 4.280954993 | H62: 1.223204341 | I62: 7.145265141 | J62: 7.84365393 | K62: 6.910882341 | L62: 5.367261661 | M62: 0.04430464347 | N62: 0.2685392573 | O62: 0.1389406971 | P62: 0.2461210523 | Q62: 0.4460994194 | R62: 2.573543968 | S62: 0.1138821658 | T62: 0 | U62: 1.253621394 | V62: 0.1575865742
B63: Unprotected well | C63: 0.7271830763 | D63: 3.166650296 | E63: 2.959272087 | F63: 5.210053682 | G63: 1.801246504 | H63: 6.633009809 | I63: 2.46119513 | J63: 0.7124048538 | K63: 2.830546138 | L63: 0 | M63: 0.4541270291 | N63: 2.821743011 | O63: 2.906645236 | P63: 3.611668926 | Q63: 4.296039777 | R63: 2.997661339 | S63: 4.135490372 | T63: 0.09735332398 | U63: 5.390885335 | V63: 1.119598337
B64: Protected spring | C64: 2.119979207 | D64: 2.977481113 | E64: 0.9129681448 | F64: 1.908860604 | G64: 1.110450023 | H64: 4.943335275 | I64: 4.171845892 | J64: 0.8643434019 | K64: 1.835521439 | L64: 0 | M64: 2.271658126 | N64: 2.575595841 | O64: 1.287582519 | P64: 1.201514107 | Q64: 1.189608763 | R64: 0.7688956239 | S64: 0.5823451113 | T64: 1.975989121 | U64: 0.6036435644 | V64: 5.648001322
B65: Unprotected spring | C65: 21.67817829 | D65: 8.870419637 | E65: 4.512942082 | F65: 3.896413664 | G65: 0.801643971 | H65: 3.483787312 | I65: 0.843232227 | J65: 0.2583790522 | K65: 0 | L65: 0 | M65: 23.02141195 | N65: 11.35095138 | O65: 4.543068937 | P65: 4.765859777 | Q65: 2.457124948 | R65: 3.814472989 | S65: 7.181796172 | T65: 11.76345643 | U65: 15.29738616 | V65: 8.977676329
B66: River/dam/lake/ponds/stream/canal/irirgation channel | C66: 13.18855933 | D66: 3.350879324 | E66: 0.970995108 | F66: 0.7813938625 | G66: 0.03494296433 | H66: 3.427554615 | I66: 0.4824435161 | J66: 0 | K66: 0 | L66: 0 | M66: 13.99262567 | N66: 4.738607005 | O66: 1.160314632 | P66: 0.6572209378 | Q66: 0.3979420655 | R66: 2.163498656 | S66: 4.434780139 | T66: 9.967928611 | U66: 2.228410523 | V66: 1.822774105
B67: Stone tap/dhara | C67: 5.9435732 | D67: 2.320111428 | E67: 0.7228186932 | F67: 0.9612849027 | G67: 3.914125941 | H67: 1.367609058 | I67: 2.848216455 | J67: 7.007986511 | K67: 7.390545626 | L67: 8.011307437 | M67: 6.11770364 | N67: 3.266110619 | O67: 0.8601859451 | P67: 0.8114523109 | Q67: 0.5011585149 | R67: 2.571890342 | S67: 1.881903101 | T67: 2.470052162 | U67: 3.865595688 | V67: 3.706995692
B68: Rainwater | C68: 0.05809066818 | D68: 0.01837976609 | E68: 0.001529450143 | F68: 0 | G68: 0 | H68: 0.5094979496 | I68: 0 | J68: 0 | K68: 0 | L68: 0 | M68: 0 | N68: 0 | O68: 0 | P68: 0 | Q68: 0 | R68: 0 | S68: 0 | T68: 0.114879622 | U68: 0 | V68: 0
B69: Tanker truck | C69: 0 | D69: 0 | E69: 0 | F69: 0 | G69: 0.1477116266 | H69: 0 | I69: 0 | J69: 0.4883008451 | K69: 0 | L69: 0.4717739429 | M69: 0 | N69: 0 | O69: 0 | P69: 0 | Q69: 0 | R69: 0.08775548635 | S69: 0 | T69: 0 | U69: 0 | V69: 0
B70: Bottled water | C70: 0 | D70: 0 | E70: 0 | F70: 0 | G70: 0.2222791803 | H70: 0 | I70: 0 | J70: 0.1589678985 | K70: 0.3972182974 | L70: 0.8911717496 | M70: 0 | N70: 0 | O70: 0 | P70: 0 | Q70: 0 | R70: 0.1320560745 | S70: 0 | T70: 0 | U70: 0 | V70: 0
B71: Other | C71: 0 | D71: 0 | E71: 0.168292366 | F71: 0.6682739492 | G71: 0.07211677885 | H71: 0.03099965768 | I71: 0 | J71: 0.1220752113 | K71: 0.1917375045 | L71: 0 | M71: 0 | N71: 0 | O71: 0.1930293301 | P71: 0.1432805115 | Q71: 0.6754523116 | R71: 0.5400680073 | S71: 0 | T71: 0 | U71: 0 | V71: 0
A108: =A1026 -> Nepal
A109: =A1034 -> 2006
A110: Use of sanitation facilities
A111: by wealth quintile and sub-national region
A112: Notes:
A113: WHO/UNICEF JMP customised wealth index excludes water,
A114: sanitation and hygiene assets.
A115: Survey used for analysis: | B115: =A1025 -> DHS06
A116: =B1030 -> 
A117: =B1029 -> 
A120: Use of sanitation facilities | C120: NATIONAL wealth index quintile | H120: URBAN wealth index quintile | M120: RURAL wealth index quintile | R120: SUB-REGIONS: | BA120: Raw numbers of respondents: | BB120: Use of sanitation facilities | BC120: NATIONAL wealth index quintile | BH120: URBAN wealth index quintile | BM120: RURAL wealth index quintile | BR120: SUB-REGIONS:
A121: Weighted percentage (used in graphs) | C121: Poorest | D121: Poor | E121: Middle | F121: Rich | G121: Richest | H121: Poorest | I121: Poor | J121: Middle | K121: Rich | L121: Richest | M121: Poorest | N121: Poor | O121: Middle | P121: Rich | Q121: Richest | R121: Central | S121: Eastern | T121: Far-western | U121: Mid-western | V121: Western | BA121: Sanitation data, raw numbers (weighted) | BC121: Poorest | BD121: Poor | BE121: Middle | BF121: Rich | BG121: Richest | BH121: Poorest | BI121: Poor | BJ121: Middle | BK121: Rich | BL121: Richest | BM121: Poorest | BN121: Poor | BO121: Middle | BP121: Rich | BQ121: Richest | BR121: Central | BS121: Eastern | BT121: Far-western | BU121: Mid-western | BV121: Western
A122: Sanitation | B122: Improved | C122: 15.63580836 | D122: 22.52736928 | E122: 18.99026527 | F122: 37.76124707 | G122: 88.84524018 | H122: 29.57532388 | I122: 69.13621316 | J122: 91.3310683 | K122: 95.25711742 | L122: 99.75959313 | M122: 14.97344662 | N122: 23.88169215 | O122: 18.72543353 | P122: 24.08495206 | Q122: 65.69371481 | R122: 41.63077193 | S122: 26.33641673 | T122: 25.11264898 | U122: 31.5861352 | V122: 51.5477688 | BA122: Sanitation | BB122: Improved | BC122: 1379.932367 | BD122: 1984.321244 | BE122: 1675.158651 | BF122: 3330.047493 | BG122: 7831.96903 | BH122: 399.408665 | BI122: 937.726214 | BJ122: 1233.486133 | BK122: 1272.979348 | BL122: 1358.900934 | BM122: 1117.906479 | BN122: 1782.838348 | BO122: 1399.505518 | BP122: 1799.134117 | BQ122: 4899.543029 | BR122: 6177.2 | BS122: 2560.978415 | BT122: 1504.111189 | BU122: 1612.600873 | BV122: 4346.538308
B123: Not Improved | C123: 84.36419164 | D123: 77.47263072 | E123: 81.00973473 | F123: 62.23875293 | G123: 11.15475982 | H123: 70.42467612 | I123: 30.86378684 | J123: 8.668931704 | K123: 4.742882577 | L123: 0.240406873 | M123: 85.02655338 | N123: 76.11830785 | O123: 81.27456647 | P123: 75.91504794 | Q123: 34.30628519 | R123: 58.36922807 | S123: 73.66358327 | T123: 74.88735102 | U123: 68.4138648 | V123: 48.4522312 | BB123: Not Improved | BC123: 7445.529899 | BD123: 6824.169526 | BE123: 7145.985379 | BF123: 5488.642966 | BG123: 983.324861 | BH123: 951.070764 | BI123: 418.619717 | BJ123: 117.079623 | BK123: 63.382052 | BL123: 3.274764 | BM123: 6348.019755 | BN123: 5682.454884 | BO123: 6074.316202 | BP123: 5670.816881 | BQ123: 2558.617989 | BR123: 8660.8626 | BS123: 7163.117469 | BT123: 4485.34532 | BU123: 3492.806493 | BV123: 4085.520749
A124: Sanitation ladder | B124: Basic | C124: =C122*C129/100 -> 13.81303716 | D124: =D122*D129/100 -> 17.36489328 | E124: =E122*E129/100 -> 12.95356399 | F124: 25.75218288 | G124: 53.04170803 | H124: 18.82740289 | I124: 40.74174843 | J124: 37.66002749 | K124: 36.10027512 | L124: 78.81995286 | M124: 13.55073558 | N124: 18.94651997 | O124: 12.3525956 | P124: 16.90274111 | Q124: 44.97994135 | R124: 24.90316519 | S124: 18.1257568 | T124: 18.63858426 | U124: 20.41869724 | V124: 38.19807846 | BA124: Sanitation ladder | BB124: Basic | BC124: 1214.783341 | BD124: 1529.585022 | BE124: 1142.652537 | BF124: 2271.005295 | BG124: 4675.782448 | BH124: 254.260203 | BI124: 552.599047 | BJ124: 508.623435 | BK124: 482.430142 | BL124: 1073.666243 | BM124: 1007.302397 | BN124: 1414.413273 | BO124: 923.210973 | BP124: 1262.626478 | BQ124: 3354.676452 | BR124: 3695.14724 | BS124: 1762.565971 | BT124: 1112.753225 | BU124: 1042.457673 | BV124: 3220.884534
B125: Limited | C125: =C122*C128/100 -> 1.822771207 | D125: =D122*D128/100 -> 5.162476 | E125: =E122*E128/100 -> 6.036701274 | F125: 12.00906419 | G125: 35.80353215 | H125: 10.74792099 | I125: 28.39446473 | J125: 53.6710408 | K125: 59.1568423 | L125: 20.93964027 | M125: 1.422711037 | N125: 4.935172183 | O125: 6.372837925 | P125: 7.182210956 | Q125: 20.71377345 | R125: 16.72760674 | S125: 8.210659927 | T125: 6.474064726 | U125: 11.16743796 | V125: 13.34969035 | BB125: Limited | BC125: 160.303058 | BD125: 454.736222 | BE125: 532.506114 | BF125: 1059.042198 | BG125: 3156.186582 | BH125: 145.148462 | BI125: 385.127167 | BJ125: 724.862698 | BK125: 790.549206 | BL125: 285.234691 | BM125: 105.758114 | BN125: 368.425075 | BO125: 476.294545 | BP125: 536.507639 | BQ125: 1544.866577 | BR125: 2482.05276 | BS125: 798.412444 | BT125: 386.511996 | BU125: 570.1432 | BV125: 1125.653774
B126: Unimproved | C126: =100-C124-C125-C127 -> 13.8018948 | D126: =100-D124-D125-D127 -> 14.07227504 | E126: =100-E124-E125-E127 -> 14.27749553 | F126: 11.30910148 | G126: 3.499105337 | H126: 9.959908171 | I126: 8.689085528 | J126: 5.326648383 | K126: 4.205093248 | L126: 0.240406873 | M126: 14.18617495 | N126: 13.71271619 | O126: 13.62608162 | P126: 12.33656396 | Q126: 8.263611881 | R126: 7.330634621 | S126: 23.91081403 | T126: 11.29232827 | U126: 5.912772681 | V126: 7.496725897 | BB126: Unimproved | BC126: 1221.500444 | BD126: 1239.555048 | BE126: 1259.438445 | BF126: 997.314653 | BG126: 308.456419 | BH126: 134.506511 | BI126: 117.854058 | BJ126: 71.939889 | BK126: 56.195243 | BL126: 3.274764 | BM126: 1062.562259 | BN126: 1023.694474 | BO126: 1018.389048 | BP126: 921.535283 | BQ126: 616.31348 | BR126: 1087.724154 | BS126: 2325.110483 | BT126: 679.430885 | BU126: 301.871132 | BV126: 632.128355
B127: Open defecation | C127: 70.56229684 | D127: 63.40035568 | E127: 66.7322392 | F127: 50.92965145 | G127: 7.655654483 | H127: 60.46476795 | I127: 22.17470132 | J127: 3.342283321 | K127: 0.5377893285 | L127: 0 | M127: 70.84037844 | N127: 62.40559165 | O127: 67.64848485 | P127: 63.57848397 | Q127: 26.04267331 | R127: 51.03859345 | S127: 49.75276924 | T127: 63.59502275 | U127: 62.50109212 | V127: 40.9555053 | BB127: Open defecation | BC127: 6224.029455 | BD127: 5584.614478 | BE127: 5886.546934 | BF127: 4491.328313 | BG127: 674.868442 | BH127: 816.564253 | BI127: 300.765659 | BJ127: 45.139734 | BK127: 7.186809 | BL127: 0 | BM127: 5285.457496 | BN127: 4658.76041 | BO127: 5055.927154 | BP127: 4749.281598 | BQ127: 1942.304509 | BR127: 7573.138446 | BS127: 4838.006986 | BT127: 3805.914435 | BU127: 3190.935361 | BV127: 3453.392394
A128: Shared among Improved Sanitation | B128: Yes | C128: 11.6576717 | D128: 22.91646191 | E128: 31.78839889 | F128: 31.80261543 | G128: 40.29876229 | H128: 36.34083953 | I128: 41.07032109 | J128: 58.76537065 | K128: 62.10228055 | L128: 20.99010192 | M128: 9.501560154 | N128: 20.66508584 | O128: 34.03305945 | P128: 29.8203249 | Q128: 31.53082987 | R128: 40.18087094 | S128: 31.17607081 | T128: 25.78009485 | U128: 35.3555061 | V128: 25.89770742 | BA128: Shared among improved sanitation facilities | BB128: Yes | BC128: N/A | BD128: N/A | BE128: N/A | BF128: N/A | BG128: N/A | BH128: N/A | BI128: N/A | BJ128: N/A | BK128: N/A | BL128: N/A | BM128: N/A | BN128: N/A | BO128: N/A | BP128: N/A | BQ128: N/A | BR128: N/A | BS128: N/A | BT128: N/A | BU128: N/A | BV128: N/A
B129: No | C129: 88.3423283 | D129: 77.08353809 | E129: 68.21160111 | F129: 68.19738457 | G129: 59.70123771 | H129: 63.65916047 | I129: 58.92967891 | J129: 41.23462935 | K129: 37.89771945 | L129: 79.00989808 | M129: 90.49843985 | N129: 79.33491416 | O129: 65.96694055 | P129: 70.1796751 | Q129: 68.46917013 | R129: 59.81912906 | S129: 68.82392919 | T129: 74.21990515 | U129: 64.6444939 | V129: 74.10229258 | BB129: No | BC129: N/A | BD129: N/A | BE129: N/A | BF129: N/A | BG129: N/A | BH129: N/A | BI129: N/A | BJ129: N/A | BK129: N/A | BL129: N/A | BM129: N/A | BN129: N/A | BO129: N/A | BP129: N/A | BQ129: N/A | BR129: N/A | BS129: N/A | BT129: N/A | BU129: N/A | BV129: N/A
A130: Manually calculated ratios | B130: Improved latrines | C130: =C159/(C159+C160)*100 -> 26.12878466 | D130: =D159/(D159+D160)*100 -> 37.82327124 | E130: 33.74015881 | F130: 38.79390235 | G130: 65.99739901 | H130: 37.58775523 | I130: 41.60446089 | J130: 76.77252424 | K130: 50.48277682 | L130: 100 | M130: 25.04788386 | N130: 39.65719301 | O130: 37.33931637 | P130: 31.07241581 | Q130: 47.65502887 | R130: 44.18618844 | S130: 12.30626485 | T130: 35.35163842 | U130: 40.94205946 | V130: 64.64168027
B131: Other
B132: Other
C133: NATIONAL wealth index quintile | H133: URBAN wealth index quintile | M133: RURAL wealth index quintile | R133: SUB-REGIONS: | BA133: Raw numbers of respondents: | BB133: Use of sanitation facilities | BC133: NATIONAL wealth index quintile | BH133: URBAN wealth index quintile | BM133: RURAL wealth index quintile | BR133: SUB-REGIONS:
A134: Percentage based on weighted population | C134: Poorest | D134: Poor | E134: Middle | F134: Rich | G134: Richest | H134: Poorest | I134: Poor | J134: Middle | K134: Rich | L134: Richest | M134: Poorest | N134: Poor | O134: Middle | P134: Rich | Q134: Richest | R134: Central | S134: Eastern | T134: Far-western | U134: Mid-western | V134: Western | BA134: Sanitation data, raw numbers (weighted) | BC134: Poorest | BD134: Poor | BE134: Middle | BF134: Rich | BG134: Richest | BH134: Poorest | BI134: Poor | BJ134: Middle | BK134: Rich | BL134: Richest | BM134: Poorest | BN134: Poor | BO134: Middle | BP134: Rich | BQ134: Richest | BR134: Central | BS134: Eastern | BT134: Far-western | BU134: Mid-western | BV134: Western
A135: Sanitation type | B135: Sewer connection | C135: 0 | D135: 0 | E135: 0 | F135: 0.3280309376 | G135: 19.31450204 | H135: 0 | I135: 5.143661761 | J135: 23.04531087 | K135: 32.55262716 | L135: 41.12999247 | M135: 0 | N135: 0 | O135: 0 | P135: 0 | Q135: 4.763462738 | R135: 10.85144766 | S135: 0.07615988251 | T135: 1.697030337 | U135: 0 | V135: 0.1466403392 | BA135: Sanitation type | BB135: Sewer connection | BC135: N/A | BD135: N/A | BE135: N/A | BF135: N/A | BG135: N/A | BH135: N/A | BI135: N/A | BJ135: N/A | BK135: N/A | BL135: N/A | BM135: N/A | BN135: N/A | BO135: N/A | BP135: N/A | BQ135: N/A | BR135: N/A | BS135: N/A | BT135: N/A | BU135: N/A | BV135: N/A
B136: Septic tank connection | C136: 7.229160805 | D136: 11.20134534 | E136: 10.4787575 | F136: 26.02422769 | G136: 64.12263066 | H136: 21.10433635 | I136: 55.99439572 | J136: 65.03704452 | K136: 61.88922892 | L136: 57.85968816 | M136: 6.805803461 | N136: 11.74070725 | O136: 9.243911414 | P136: 14.41183491 | Q136: 51.03834881 | R136: 23.952205 | S136: 19.18655386 | T136: 14.91272815 | U136: 23.01611996 | V136: 35.68045374 | BB136: Septic tank connection | BC136: N/A | BD136: N/A | BE136: N/A | BF136: N/A | BG136: N/A | BH136: N/A | BI136: N/A | BJ136: N/A | BK136: N/A | BL136: N/A | BM136: N/A | BN136: N/A | BO136: N/A | BP136: N/A | BQ136: N/A | BR136: N/A | BS136: N/A | BT136: N/A | BU136: N/A | BV136: N/A
B137: Improved latrines | C137: 8.406647557 | D137: 11.32602395 | E137: 8.511507764 | F137: 11.40898845 | G137: 5.408107488 | H137: 8.470987528 | I137: 7.998155671 | J137: 3.248712905 | K137: 0.8152613507 | L137: 0.7699125021 | M137: 8.167643155 | N137: 12.1409849 | O137: 9.481522112 | P137: 9.673117149 | Q137: 9.891903262 | R137: 6.82711927 | S137: 7.073702987 | T137: 8.502890492 | U137: 8.570015234 | V137: 15.72067473 | BB137: Improved latrines | BC137: N/A | BD137: N/A | BE137: N/A | BF137: N/A | BG137: N/A | BH137: N/A | BI137: N/A | BJ137: N/A | BK137: N/A | BL137: N/A | BM137: N/A | BN137: N/A | BO137: N/A | BP137: N/A | BQ137: N/A | BR137: N/A | BS137: N/A | BT137: N/A | BU137: N/A | BV137: N/A
B138: Unimproved facilities | C138: 13.84063981 | D138: 14.07227504 | E138: 14.27749553 | F138: 11.30910148 | G138: 3.499105337 | H138: 9.959908171 | I138: 8.689085528 | J138: 5.326648383 | K138: 4.205093248 | L138: 0.240406873 | M138: 14.23215587 | N138: 13.71271619 | O138: 13.62608162 | P138: 12.33656396 | Q138: 8.263611881 | R138: 7.330634621 | S138: 23.91081403 | T138: 11.34378193 | U138: 5.912772681 | V138: 7.496725897 | BB138: Unimproved facilities | BC138: N/A | BD138: N/A | BE138: N/A | BF138: N/A | BG138: N/A | BH138: N/A | BI138: N/A | BJ138: N/A | BK138: N/A | BL138: N/A | BM138: N/A | BN138: N/A | BO138: N/A | BP138: N/A | BQ138: N/A | BR138: N/A | BS138: N/A | BT138: N/A | BU138: N/A | BV138: N/A
B139: Open defecation | C139: 70.52355183 | D139: 63.40035568 | E139: 66.7322392 | F139: 50.92965145 | G139: 7.655654483 | H139: 60.46476795 | I139: 22.17470132 | J139: 3.342283321 | K139: 0.5377893285 | L139: 0 | M139: 70.79439751 | N139: 62.40559165 | O139: 67.64848485 | P139: 63.57848397 | Q139: 26.04267331 | R139: 51.03859345 | S139: 49.75276924 | T139: 63.54356909 | U139: 62.50109212 | V139: 40.9555053 | BB139: Open defecation | BC139: N/A | BD139: N/A | BE139: N/A | BF139: N/A | BG139: N/A | BH139: N/A | BI139: N/A | BJ139: N/A | BK139: N/A | BL139: N/A | BM139: N/A | BN139: N/A | BO139: N/A | BP139: N/A | BQ139: N/A | BR139: N/A | BS139: N/A | BT139: N/A | BU139: N/A | BV139: N/A
A140: Septic tank emptying practices | B140: Not emptied/treated and disposed in situ | C140: N/A | D140: N/A | E140: N/A | F140: N/A | G140: N/A | H140: N/A | I140: N/A | J140: N/A | K140: N/A | L140: N/A | M140: N/A | N140: N/A | O140: N/A | P140: N/A | Q140: N/A | R140: N/A | S140: N/A | T140: N/A | U140: N/A | V140: N/A | BA140: Septic tank emptying practices | BB140: Not emptied/treated and disposed in situ | BC140: N/A | BD140: N/A | BE140: N/A | BF140: N/A | BG140: N/A | BH140: N/A | BI140: N/A | BJ140: N/A | BK140: N/A | BL140: N/A | BM140: N/A | BN140: N/A | BO140: N/A | BP140: N/A | BQ140: N/A | BR140: N/A | BS140: N/A | BT140: N/A | BU140: N/A | BV140: N/A
B141: Emptied and buried on site | C141: N/A | D141: N/A | E141: N/A | F141: N/A | G141: N/A | H141: N/A | I141: N/A | J141: N/A | K141: N/A | L141: N/A | M141: N/A | N141: N/A | O141: N/A | P141: N/A | Q141: N/A | R141: N/A | S141: N/A | T141: N/A | U141: N/A | V141: N/A | BB141: Emptied and buried on site | BC141: N/A | BD141: N/A | BE141: N/A | BF141: N/A | BG141: N/A | BH141: N/A | BI141: N/A | BJ141: N/A | BK141: N/A | BL141: N/A | BM141: N/A | BN141: N/A | BO141: N/A | BP141: N/A | BQ141: N/A | BR141: N/A | BS141: N/A | BT141: N/A | BU141: N/A | BV141: N/A
B142: Emptied and discharged locally | C142: N/A | D142: N/A | E142: N/A | F142: N/A | G142: N/A | H142: N/A | I142: N/A | J142: N/A | K142: N/A | L142: N/A | M142: N/A | N142: N/A | O142: N/A | P142: N/A | Q142: N/A | R142: N/A | S142: N/A | T142: N/A | U142: N/A | V142: N/A | BB142: Emptied and discharged locally | BC142: N/A | BD142: N/A | BE142: N/A | BF142: N/A | BG142: N/A | BH142: N/A | BI142: N/A | BJ142: N/A | BK142: N/A | BL142: N/A | BM142: N/A | BN142: N/A | BO142: N/A | BP142: N/A | BQ142: N/A | BR142: N/A | BS142: N/A | BT142: N/A | BU142: N/A | BV142: N/A
B143: Emptied and removed offsite | C143: N/A | D143: N/A | E143: N/A | F143: N/A | G143: N/A | H143: N/A | I143: N/A | J143: N/A | K143: N/A | L143: N/A | M143: N/A | N143: N/A | O143: N/A | P143: N/A | Q143: N/A | R143: N/A | S143: N/A | T143: N/A | U143: N/A | V143: N/A | BB143: Emptied and removed offsite | BC143: N/A | BD143: N/A | BE143: N/A | BF143: N/A | BG143: N/A | BH143: N/A | BI143: N/A | BJ143: N/A | BK143: N/A | BL143: N/A | BM143: N/A | BN143: N/A | BO143: N/A | BP143: N/A | BQ143: N/A | BR143: N/A | BS143: N/A | BT143: N/A | BU143: N/A | BV143: N/A
A144: Latrine emptying practices | B144: Not emptied/treated and disposed in situ | C144: N/A | D144: N/A | E144: N/A | F144: N/A | G144: N/A | H144: N/A | I144: N/A | J144: N/A | K144: N/A | L144: N/A | M144: N/A | N144: N/A | O144: N/A | P144: N/A | Q144: N/A | R144: N/A | S144: N/A | T144: N/A | U144: N/A | V144: N/A | BA144: Latrine emptying practices | BB144: Not emptied/treated and disposed in situ | BC144: N/A | BD144: N/A | BE144: N/A | BF144: N/A | BG144: N/A | BH144: N/A | BI144: N/A | BJ144: N/A | BK144: N/A | BL144: N/A | BM144: N/A | BN144: N/A | BO144: N/A | BP144: N/A | BQ144: N/A | BR144: N/A | BS144: N/A | BT144: N/A | BU144: N/A | BV144: N/A
B145: Emptied and buried on site | C145: N/A | D145: N/A | E145: N/A | F145: N/A | G145: N/A | H145: N/A | I145: N/A | J145: N/A | K145: N/A | L145: N/A | M145: N/A | N145: N/A | O145: N/A | P145: N/A | Q145: N/A | R145: N/A | S145: N/A | T145: N/A | U145: N/A | V145: N/A | BB145: Emptied and buried on site | BC145: N/A | BD145: N/A | BE145: N/A | BF145: N/A | BG145: N/A | BH145: N/A | BI145: N/A | BJ145: N/A | BK145: N/A | BL145: N/A | BM145: N/A | BN145: N/A | BO145: N/A | BP145: N/A | BQ145: N/A | BR145: N/A | BS145: N/A | BT145: N/A | BU145: N/A | BV145: N/A
B146: Emptied and discharged locally | C146: N/A | D146: N/A | E146: N/A | F146: N/A | G146: N/A | H146: N/A | I146: N/A | J146: N/A | K146: N/A | L146: N/A | M146: N/A | N146: N/A | O146: N/A | P146: N/A | Q146: N/A | R146: N/A | S146: N/A | T146: N/A | U146: N/A | V146: N/A | BB146: Emptied and discharged locally | BC146: N/A | BD146: N/A | BE146: N/A | BF146: N/A | BG146: N/A | BH146: N/A | BI146: N/A | BJ146: N/A | BK146: N/A | BL146: N/A | BM146: N/A | BN146: N/A | BO146: N/A | BP146: N/A | BQ146: N/A | BR146: N/A | BS146: N/A | BT146: N/A | BU146: N/A | BV146: N/A
B147: Emptied and removed offsite | C147: N/A | D147: N/A | E147: N/A | F147: N/A | G147: N/A | H147: N/A | I147: N/A | J147: N/A | K147: N/A | L147: N/A | M147: N/A | N147: N/A | O147: N/A | P147: N/A | Q147: N/A | R147: N/A | S147: N/A | T147: N/A | U147: N/A | V147: N/A | BB147: Emptied and removed offsite | BC147: N/A | BD147: N/A | BE147: N/A | BF147: N/A | BG147: N/A | BH147: N/A | BI147: N/A | BJ147: N/A | BK147: N/A | BL147: N/A | BM147: N/A | BN147: N/A | BO147: N/A | BP147: N/A | BQ147: N/A | BR147: N/A | BS147: N/A | BT147: N/A | BU147: N/A | BV147: N/A
A148: Shared among improved sanitation facilities | B148: Yes | C148: 1.816370102 | D148: 5.162476 | E148: 6.036701274 | F148: 12.00906419 | G148: 35.80353215 | H148: 10.74792099 | I148: 28.39446473 | J148: 53.6710408 | K148: 59.1568423 | L148: 20.93964027 | M148: 1.416543784 | N148: 4.935172183 | O148: 6.372837925 | P148: 7.182210956 | Q148: 20.71377345 | R148: 16.72760674 | S148: 8.210659927 | T148: 6.453206487 | U148: 11.16743796 | V148: 13.34969035 | BA148: Shared among improved sanitation facilities | BB148: Yes | BC148: N/A | BD148: N/A | BE148: N/A | BF148: N/A | BG148: N/A | BH148: N/A | BI148: N/A | BJ148: N/A | BK148: N/A | BL148: N/A | BM148: N/A | BN148: N/A | BO148: N/A | BP148: N/A | BQ148: N/A | BR148: N/A | BS148: N/A | BT148: N/A | BU148: N/A | BV148: N/A
B149: No | C149: 13.76452932 | D149: 17.36489328 | E149: 12.95356399 | F149: 25.75218288 | G149: 53.04170803 | H149: 18.82740289 | I149: 40.74174843 | J149: 37.66002749 | K149: 36.10027512 | L149: 78.81995286 | M149: 13.49199504 | N149: 18.94651997 | O149: 12.3525956 | P149: 16.90274111 | Q149: 44.97994135 | R149: 24.90316519 | S149: 18.1257568 | T149: 18.57853418 | U149: 20.41869724 | V149: 38.19807846 | BB149: No | BC149: N/A | BD149: N/A | BE149: N/A | BF149: N/A | BG149: N/A | BH149: N/A | BI149: N/A | BJ149: N/A | BK149: N/A | BL149: N/A | BM149: N/A | BN149: N/A | BO149: N/A | BP149: N/A | BQ149: N/A | BR149: N/A | BS149: N/A | BT149: N/A | BU149: N/A | BV149: N/A
B150: DK/missing | C150: 84.41910058 | D150: 77.47263072 | E150: 81.00973473 | F150: 62.23875293 | G150: 11.15475982 | H150: 70.42467612 | I150: 30.86378684 | J150: 8.668931704 | K150: 4.742882577 | L150: 0.240406873 | M150: 85.09146118 | N150: 76.11830785 | O150: 81.27456647 | P150: 75.91504794 | Q150: 34.30628519 | R150: 58.36922807 | S150: 73.66358327 | T150: 74.96825933 | U150: 68.4138648 | V150: 48.4522312 | BB150: DK/missing | BC150: N/A | BD150: N/A | BE150: N/A | BF150: N/A | BG150: N/A | BH150: N/A | BI150: N/A | BJ150: N/A | BK150: N/A | BL150: N/A | BM150: N/A | BN150: N/A | BO150: N/A | BP150: N/A | BQ150: N/A | BR150: N/A | BS150: N/A | BT150: N/A | BU150: N/A | BV150: N/A
A151: Shared among all sanitation facilities | B151: Yes | C151: 13.64014698 | D151: 20.03769579 | E151: 30.01899004 | F151: 29.94830588 | G151: 39.88189694 | H151: 33.71621937 | I151: 39.08683839 | J151: 58.17659754 | K151: 60.28221593 | L151: 20.93964027 | M151: 12.49037032 | N151: 19.15666276 | O151: 30.81033985 | P151: 27.06930871 | Q151: 30.71739361 | R151: 39.02224027 | S151: 25.42817317 | T151: 21.36797113 | U151: 31.82993512 | V151: 25.52813589 | BA151: Shared among all sanitation facilities | BB151: Yes | BC151: N/A | BD151: N/A | BE151: N/A | BF151: N/A | BG151: N/A | BH151: N/A | BI151: N/A | BJ151: N/A | BK151: N/A | BL151: N/A | BM151: N/A | BN151: N/A | BO151: N/A | BP151: N/A | BQ151: N/A | BR151: N/A | BS151: N/A | BT151: N/A | BU151: N/A | BV151: N/A
B152: No | C152: 86.17357229 | D152: 79.96230421 | E152: 69.98100996 | F152: 70.05169412 | G152: 60.11810306 | H152: 66.28378063 | I152: 60.91316161 | J152: 41.82340246 | K152: 39.71778407 | L152: 79.06035973 | M152: 87.28738536 | N152: 80.84333724 | O152: 69.18966015 | P152: 72.93069129 | Q152: 69.28260639 | R152: 60.97775973 | S152: 74.57182683 | T152: 78.41009735 | U152: 68.17006488 | V152: 74.47186411 | BB152: No | BC152: N/A | BD152: N/A | BE152: N/A | BF152: N/A | BG152: N/A | BH152: N/A | BI152: N/A | BJ152: N/A | BK152: N/A | BL152: N/A | BM152: N/A | BN152: N/A | BO152: N/A | BP152: N/A | BQ152: N/A | BR152: N/A | BS152: N/A | BT152: N/A | BU152: N/A | BV152: N/A
A153: Type of toilet facility | B153: Flush - to piped sewer system | C153: 0 | D153: 0 | E153: 0 | F153: 0.3280309376 | G153: 19.32343157 | H153: 0 | I153: 5.143661761 | J153: 23.04531087 | K153: 32.55262716 | L153: 41.12999247 | M153: 0 | N153: 0 | O153: 0 | P153: 0 | Q153: 4.76606595 | R153: 10.85144766 | S153: 0.07619180085 | T153: 1.697030337 | U153: 0 | V153: 0.1466403392 | BA153: Type of toilet facility | BB153: Flush - to piped sewer system | BC153: 0 | BD153: 0 | BE153: 0 | BF153: 28.928033 | BG153: 1702.630118 | BH153: 0 | BI153: 69.765847 | BJ153: 311.242077 | BK153: 435.020744 | BL153: 560.262762 | BM153: 0 | BN153: 0 | BO153: 0 | BP153: 0 | BQ153: 355.266721 | BR153: 1610.144597 | BS153: 7.40586 | BT153: 101.642894 | BU153: 0 | BV153: 12.3648
